Workbook

Sheet Menu
B3: Janvier
B4: Février
B5: Mars
B6: Avril
B7: Mai
B8: Juin
B9: Juillet
B10: Août
B11: Septembre
B12: Octobre
B13: Novembre
B14: Décembre
B15: Année

Sheet Janvier
B1: 2017 | C1: Menu | U1: =IF($U$5="","masquer colonne","") -> masquer colonne | V1: =IF($U$5="","masquer colonne","") -> masquer colonne | W1: masquer colonne | X1: masquer colonne
A2: =COUNTIF(U1:X1,"masquer colonne") -> 4
B3: =VALUE("01/01/"&B1) -> 2017-01-01
E4: =WEEKNUM(E5,21) -> 1 | I4: =WEEKNUM(I5,21) -> 2 | M4: =WEEKNUM(M5,21) -> 3 | Q4: =WEEKNUM(Q5,21) -> 4 | U4: =IF(U5="","",WEEKNUM(U5,21)) -> 
E5: =VALUE("01/"&MONTH(B3)&"/"&YEAR($B$3))+CHOOSE(WEEKDAY(VALUE("01/"&MONTH(B3)&"/"&YEAR($B$3)),2),6,5,4,10,9,8,7) -> 2017-01-08 | I5: =E5+7 -> 2017-01-15 | M5: =I5+7 -> 2017-01-22 | Q5: =M5+7 -> 2017-01-29 | U5: =IF(DAY(Q5+7)>4,"",Q5+7) -> 
E6: =CHOOSE(WEEKDAY(E5,2),"Lundi","Mardi","Mercredi","Jeudi","Vendredi","Samedi","Dimanche") -> Dimanche | I6: =CHOOSE(WEEKDAY(I5,2),"Lundi","Mardi","Mercredi","Jeudi","Vendredi","Samedi","Dimanche") -> Dimanche | M6: =CHOOSE(WEEKDAY(M5,2),"Lundi","Mardi","Mercredi","Jeudi","Vendredi","Samedi","Dimanche") -> Dimanche | Q6: =CHOOSE(WEEKDAY(Q5,2),"Lundi","Mardi","Mercredi","Jeudi","Vendredi","Samedi","Dimanche") -> Dimanche | U6: =IF(U5="","",CHOOSE(WEEKDAY(U5,2),"Lundi","Mardi","Mercredi","Jeudi","Vendredi","Samedi","Dimanche")) ->  | Y6: ="Total heures mois "&E3 -> Total heures mois
B7: NOM | C7: PRENOM | D7: SECTEUR | E7: Total Sem. | F7: Heure sup. | G7: Heure 25% | H7: Heure 50% | I7: Total Sem. | J7: Heure sup. | K7: Heure 25% | L7: Heure 50% | M7: Total Sem. | N7: Heure sup. | O7: Heure 25% | P7: Heure 50% | Q7: Total Sem. | R7: Heure sup. | S7: Heure 25% | T7: Heure 50% | U7: Total Sem. | V7: Heure sup. | W7: Heure 25% | X7: Heure 50% | Y7: Total Sem. | Z7: Heure sup. | AA7: Heure 25% | AB7: Heure 50%
A8: =B8&" "&C8 -> AMIOT Anne-Lise | B8: AMIOT | C8: Anne-Lise | D8: QUALITE | F8: =IF(E8<(1/24*35),0,E8-(1/24*35)) -> 0 | G8: =IF(F8>=1/24*8,1/24*8,F8) -> 00:00:00 | H8: =IF(F8-G8>0,F8-G8,0) -> 00:00:00 | J8: =IF(I8<(1/24*35),0,I8-(1/24*35)) -> 0 | K8: =IF(J8>=1/24*8,1/24*8,J8) -> 00:00:00 | L8: =IF(J8-K8>0,J8-K8,0) -> 00:00:00 | N8: =IF(M8<(1/24*35),0,M8-(1/24*35)) -> 0 | O8: =IF(N8>=1/24*8,1/24*8,N8) -> 00:00:00 | P8: =IF(N8-O8>0,N8-O8,0) -> 00:00:00 | R8: =IF(Q8<(1/24*35),0,Q8-(1/24*35)) -> 0 | S8: =IF(R8>=1/24*8,1/24*8,R8) -> 00:00:00 | T8: =IF(R8-S8>0,R8-S8,0) -> 00:00:00 | V8: =IF(U8<(1/24*35),0,U8-(1/24*35)) -> 0 | W8: =IF(V8>=1/24*8,1/24*8,V8) -> 00:00:00 | X8: =IF(V8-W8>0,V8-W8,0) -> 00:00:00 | Y8: =SUMIF($E$7:$X$7,$I$7,$E8:$X8) -> 0 | Z8: =SUMIF($E$7:$X$7,$Z$7,$E8:$X8) -> 0 | AA8: =SUMIF($E$7:$X$7,$AA$7,$E8:$X8) -> 0 | AB8: =SUMIF($E$7:$X$7,$AB$7,$E8:$X8) -> 0
A9: =B9&" "&C9 -> ANDRE FABIEN | B9: ANDRE | C9: FABIEN | D9: FABRICATION | F9: =IF(E9<(1/24*35),0,E9-(1/24*35)) -> 0 | G9: =IF(F9>=1/24*8,1/24*8,F9) -> 00:00:00 | H9: =IF(F9-G9>0,F9-G9,0) -> 00:00:00 | J9: =IF(I9<(1/24*35),0,I9-(1/24*35)) -> 0 | K9: =IF(J9>=1/24*8,1/24*8,J9) -> 00:00:00 | L9: =IF(J9-K9>0,J9-K9,0) -> 00:00:00 | N9: 0 | O9: 00:00:00 | P9: 00:00:00 | R9: 0 | S9: 00:00:00 | T9: 00:00:00 | V9: 0 | W9: 00:00:00 | X9: 00:00:00 | Y9: =SUMIF($E$7:$X$7,$I$7,$E9:$X9) -> 0 | Z9: =SUMIF($E$7:$X$7,$Z$7,$E9:$X9) -> 0 | AA9: =SUMIF($E$7:$X$7,$AA$7,$E9:$X9) -> 0 | AB9: =SUMIF($E$7:$X$7,$AB$7,$E9:$X9) -> 0
A10: AUDIARD FLORIAN | B10: AUDIARD | C10: FLORIAN | D10: FABRICATION | F10: 0 | G10: 00:00:00 | H10: 00:00:00 | J10: 0 | K10: 00:00:00 | L10: 00:00:00 | N10: 0 | O10: 00:00:00 | P10: 00:00:00 | R10: 0 | S10: 00:00:00 | T10: 00:00:00 | V10: 0 | W10: 00:00:00 | X10: 00:00:00 | Y10: 0 | Z10: 0 | AA10: 0 | AB10: 0
A11: AZEVEDO Catherine | B11: AZEVEDO | C11: Catherine | D11: EMBALLAGE | F11: 0 | G11: 00:00:00 | H11: 00:00:00 | J11: 0 | K11: 00:00:00 | L11: 00:00:00 | N11: 0 | O11: 00:00:00 | P11: 00:00:00 | R11: 0 | S11: 00:00:00 | T11: 00:00:00 | V11: 0 | W11: 00:00:00 | X11: 00:00:00 | Y11: 0 | Z11: 0 | AA11: 0 | AB11: 0
A12: BARBIER Nathalie | B12: BARBIER | C12: Nathalie | D12: QUALITE | F12: 0 | G12: 00:00:00 | H12: 00:00:00 | J12: 0 | K12: 00:00:00 | L12: 00:00:00 | N12: 0 | O12: 00:00:00 | P12: 00:00:00 | R12: 0 | S12: 00:00:00 | T12: 00:00:00 | V12: 0 | W12: 00:00:00 | X12: 00:00:00 | Y12: 0 | Z12: 0 | AA12: 0 | AB12: 0
A13: BECHTOLD Marie-Christine | B13: BECHTOLD | C13: Marie-Christine | D13: EMBALLAGE | F13: 0 | G13: 00:00:00 | H13: 00:00:00 | J13: 0 | K13: 00:00:00 | L13: 00:00:00 | N13: 0 | O13: 00:00:00 | P13: 00:00:00 | R13: 0 | S13: 00:00:00 | T13: 00:00:00 | V13: 0 | W13: 00:00:00 | X13: 00:00:00 | Y13: 0 | Z13: 0 | AA13: 0 | AB13: 0
A14: BEURET MAUD | B14: BEURET | C14: MAUD | D14: MAGASIN | F14: 0 | G14: 00:00:00 | H14: 00:00:00 | J14: 0 | K14: 00:00:00 | L14: 00:00:00 | N14: 0 | O14: 00:00:00 | P14: 00:00:00 | R14: 0 | S14: 00:00:00 | T14: 00:00:00 | V14: 0 | W14: 00:00:00 | X14: 00:00:00 | Y14: 0 | Z14: 0 | AA14: 0 | AB14: 0
A15: BOUEZNARD Myriam | B15: BOUEZNARD | C15: Myriam | D15: NSG | F15: 0 | G15: 00:00:00 | H15: 00:00:00 | J15: 0 | K15: 00:00:00 | L15: 00:00:00 | N15: 0 | O15: 00:00:00 | P15: 00:00:00 | R15: 0 | S15: 00:00:00 | T15: 00:00:00 | V15: 0 | W15: 00:00:00 | X15: 00:00:00 | Y15: 0 | Z15: 0 | AA15: 0 | AB15: 0
A16: Boutiflat James | B16: Boutiflat | C16: James | D16: EMBALLAGE | F16: 0 | G16: 00:00:00 | H16: 00:00:00 | J16: 0 | K16: 00:00:00 | L16: 00:00:00 | N16: 0 | O16: 00:00:00 | P16: 00:00:00 | R16: 0 | S16: 00:00:00 | T16: 00:00:00 | V16: 0 | W16: 00:00:00 | X16: 00:00:00 | Y16: 0 | Z16: 0 | AA16: 0 | AB16: 0
A17: BOUZENARD Adrien | B17: BOUZENARD | C17: Adrien | D17: FABRICATION | F17: 0 | G17: 00:00:00 | H17: 00:00:00 | J17: 0 | K17: 00:00:00 | L17: 00:00:00 | N17: 0 | O17: 00:00:00 | P17: 00:00:00 | R17: 0 | S17: 00:00:00 | T17: 00:00:00 | V17: 0 | W17: 00:00:00 | X17: 00:00:00 | Y17: 0 | Z17: 0 | AA17: 0 | AB17: 0
A18: BOUZENARD Myriam | B18: BOUZENARD | C18: Myriam | D18: EMBALLAGE | F18: 0 | G18: 00:00:00 | H18: 00:00:00 | J18: 0 | K18: 00:00:00 | L18: 00:00:00 | N18: 0 | O18: 00:00:00 | P18: 00:00:00 | R18: 0 | S18: 00:00:00 | T18: 00:00:00 | V18: 0 | W18: 00:00:00 | X18: 00:00:00 | Y18: 0 | Z18: 0 | AA18: 0 | AB18: 0
A19: CARRION JEAN-CLAUDE | B19: CARRION | C19: JEAN-CLAUDE | D19: CHAUFFEURS | F19: 0 | G19: 00:00:00 | H19: 00:00:00 | J19: 0 | K19: 00:00:00 | L19: 00:00:00 | N19: 0 | O19: 00:00:00 | P19: 00:00:00 | R19: 0 | S19: 00:00:00 | T19: 00:00:00 | V19: 0 | W19: 00:00:00 | X19: 00:00:00 | Y19: 0 | Z19: 0 | AA19: 0 | AB19: 0
A20: CARTERON Claudine | B20: CARTERON | C20: Claudine | D20: BUREAUX | F20: 0 | G20: 00:00:00 | H20: 00:00:00 | J20: 0 | K20: 00:00:00 | L20: 00:00:00 | N20: 0 | O20: 00:00:00 | P20: 00:00:00 | R20: 0 | S20: 00:00:00 | T20: 00:00:00 | V20: 0 | W20: 00:00:00 | X20: 00:00:00 | Y20: 0 | Z20: 0 | AA20: 0 | AB20: 0
A21: CHAUDRON Amandine | B21: CHAUDRON | C21: Amandine | D21: EMBALLAGE | F21: 0 | G21: 00:00:00 | H21: 00:00:00 | J21: 0 | K21: 00:00:00 | L21: 00:00:00 | N21: 0 | O21: 00:00:00 | P21: 00:00:00 | R21: 0 | S21: 00:00:00 | T21: 00:00:00 | V21: 0 | W21: 00:00:00 | X21: 00:00:00 | Y21: 0 | Z21: 0 | AA21: 0 | AB21: 0
A22: CHAUDRON Virginie | B22: CHAUDRON | C22: Virginie | D22: FABRICATION | F22: 0 | G22: 00:00:00 | H22: 00:00:00 | J22: 0 | K22: 00:00:00 | L22: 00:00:00 | N22: 0 | O22: 00:00:00 | P22: 00:00:00 | R22: 0 | S22: 00:00:00 | T22: 00:00:00 | V22: 0 | W22: 00:00:00 | X22: 00:00:00 | Y22: 0 | Z22: 0 | AA22: 0 | AB22: 0
A23: CHEVAUX Rodolphe | B23: CHEVAUX | C23: Rodolphe | D23: MAINTENANCE | F23: 0 | G23: 00:00:00 | H23: 00:00:00 | J23: 0 | K23: 00:00:00 | L23: 00:00:00 | N23: 0 | O23: 00:00:00 | P23: 00:00:00 | R23: 0 | S23: 00:00:00 | T23: 00:00:00 | V23: 0 | W23: 00:00:00 | X23: 00:00:00 | Y23: 0 | Z23: 0 | AA23: 0 | AB23: 0
A24: COCHARD Hervé | B24: COCHARD | C24: Hervé | D24: COMMERCIAL | F24: 0 | G24: 00:00:00 | H24: 00:00:00 | J24: 0 | K24: 00:00:00 | L24: 00:00:00 | N24: 0 | O24: 00:00:00 | P24: 00:00:00 | R24: 0 | S24: 00:00:00 | T24: 00:00:00 | V24: 0 | W24: 00:00:00 | X24: 00:00:00 | Y24: 0 | Z24: 0 | AA24: 0 | AB24: 0
A25: CRETIN JEROME | B25: CRETIN | C25: JEROME | D25: NSG | F25: 0 | G25: 00:00:00 | H25: 00:00:00 | J25: 0 | K25: 00:00:00 | L25: 00:00:00 | N25: 0 | O25: 00:00:00 | P25: 00:00:00 | R25: 0 | S25: 00:00:00 | T25: 00:00:00 | V25: 0 | W25: 00:00:00 | X25: 00:00:00 | Y25: 0 | Z25: 0 | AA25: 0 | AB25: 0
A26: CRINQUANT JEROME | B26: CRINQUANT | C26: JEROME | D26: NSG | F26: 0 | G26: 00:00:00 | H26: 00:00:00 | J26: 0 | K26: 00:00:00 | L26: 00:00:00 | N26: 0 | O26: 00:00:00 | P26: 00:00:00 | R26: 0 | S26: 00:00:00 | T26: 00:00:00 | V26: 0 | W26: 00:00:00 | X26: 00:00:00 | Y26: 0 | Z26: 0 | AA26: 0 | AB26: 0
A27: DAMERON LAURE | B27: DAMERON | C27: LAURE | D27: FABRICATION
A28: DASCIER ANDY | B28: DASCIER | C28: ANDY | D28: PREPA COMMANDE | F28: 0 | G28: 00:00:00 | H28: 00:00:00 | J28: 0 | K28: 00:00:00 | L28: 00:00:00 | N28: 0 | O28: 00:00:00 | P28: 00:00:00 | R28: 0 | S28: 00:00:00 | T28: 00:00:00 | V28: 0 | W28: 00:00:00 | X28: 00:00:00 | Y28: 0 | Z28: 0 | AA28: 0 | AB28: 0
A29: DAVERIO BENOIT | B29: DAVERIO | C29: BENOIT | D29: COMMERCIAL | F29: 0 | G29: 00:00:00 | H29: 00:00:00 | J29: 0 | K29: 00:00:00 | L29: 00:00:00 | N29: 0 | O29: 00:00:00 | P29: 00:00:00 | R29: 0 | S29: 00:00:00 | T29: 00:00:00 | V29: 0 | W29: 00:00:00 | X29: 00:00:00 | Y29: 0 | Z29: 0 | AA29: 0 | AB29: 0
A30: DELANGRE ALEX | B30: DELANGRE | C30: ALEX | D30: FABRICATION | F30: 0 | G30: 00:00:00 | H30: 00:00:00 | J30: 0 | K30: 00:00:00 | L30: 00:00:00 | N30: 0 | O30: 00:00:00 | P30: 00:00:00 | R30: 0 | S30: 00:00:00 | T30: 00:00:00 | V30: 0 | W30: 00:00:00 | X30: 00:00:00 | Y30: 0 | Z30: 0 | AA30: 0 | AB30: 0
A31: DELIN Philippe | B31: DELIN | C31: Philippe | D31: DIRECTION | F31: 0 | G31: 00:00:00 | H31: 00:00:00 | J31: 0 | K31: 00:00:00 | L31: 00:00:00 | N31: 0 | O31: 00:00:00 | P31: 00:00:00 | R31: 0 | S31: 00:00:00 | T31: 00:00:00 | V31: 0 | W31: 00:00:00 | X31: 00:00:00 | Y31: 0 | Z31: 0 | AA31: 0 | AB31: 0
A32: DORE Daisy | B32: DORE | C32: Daisy | D32: FABRICATION | F32: 0 | G32: 00:00:00 | H32: 00:00:00 | J32: 0 | K32: 00:00:00 | L32: 00:00:00 | N32: 0 | O32: 00:00:00 | P32: 00:00:00 | R32: 0 | S32: 00:00:00 | T32: 00:00:00 | V32: 0 | W32: 00:00:00 | X32: 00:00:00 | Y32: 0 | Z32: 0 | AA32: 0 | AB32: 0
A33: ECHEVARIA Luis | B33: ECHEVARIA | C33: Luis | D33: FABRICATION | F33: 0 | G33: 00:00:00 | H33: 00:00:00 | J33: 0 | K33: 00:00:00 | L33: 00:00:00 | N33: 0 | O33: 00:00:00 | P33: 00:00:00 | R33: 0 | S33: 00:00:00 | T33: 00:00:00 | V33: 0 | W33: 00:00:00 | X33: 00:00:00 | Y33: 0 | Z33: 0 | AA33: 0 | AB33: 0
A34: EL MOQADDAM REDOUANE | B34: EL MOQADDAM | C34: REDOUANE | D34: FABRICATION | F34: 0 | G34: 00:00:00 | H34: 00:00:00 | J34: 0 | K34: 00:00:00 | L34: 00:00:00 | N34: 0 | O34: 00:00:00 | P34: 00:00:00 | R34: 0 | S34: 00:00:00 | T34: 00:00:00 | V34: 0 | W34: 00:00:00 | X34: 00:00:00 | Y34: 0 | Z34: 0 | AA34: 0 | AB34: 0
A35: FORMEL CELINE | B35: FORMEL | C35: CELINE | D35: BUREAUX | F35: 0 | G35: 00:00:00 | H35: 00:00:00 | J35: 0 | K35: 00:00:00 | L35: 00:00:00 | N35: 0 | O35: 00:00:00 | P35: 00:00:00 | R35: 0 | S35: 00:00:00 | T35: 00:00:00 | V35: 0 | W35: 00:00:00 | X35: 00:00:00 | Y35: 0 | Z35: 0 | AA35: 0 | AB35: 0
A36: FOUACHE LENA | B36: FOUACHE | C36: LENA | D36: QUALITE | F36: 0 | G36: 00:00:00 | H36: 00:00:00 | J36: 0 | K36: 00:00:00 | L36: 00:00:00 | N36: 0 | O36: 00:00:00 | P36: 00:00:00 | R36: 0 | S36: 00:00:00 | T36: 00:00:00 | V36: 0 | W36: 00:00:00 | X36: 00:00:00 | Y36: 0 | Z36: 0 | AA36: 0 | AB36: 0
A37: GALETTI Maud | B37: GALETTI | C37: Maud | D37: FABRICATION | F37: 0 | G37: 00:00:00 | H37: 00:00:00 | J37: 0 | K37: 00:00:00 | L37: 00:00:00 | N37: 0 | O37: 00:00:00 | P37: 00:00:00 | R37: 0 | S37: 00:00:00 | T37: 00:00:00 | V37: 0 | W37: 00:00:00 | X37: 00:00:00 | Y37: 0 | Z37: 0 | AA37: 0 | AB37: 0
A38: GAY Stephane | B38: GAY | C38: Stephane | D38: FABRICATION | F38: 0 | G38: 00:00:00 | H38: 00:00:00 | J38: 0 | K38: 00:00:00 | L38: 00:00:00 | N38: 0 | O38: 00:00:00 | P38: 00:00:00 | R38: 0 | S38: 00:00:00 | T38: 00:00:00 | V38: 0 | W38: 00:00:00 | X38: 00:00:00 | Y38: 0 | Z38: 0 | AA38: 0 | AB38: 0
A39: Graff MATHILDE | B39: Graff | C39: MATHILDE | D39: CONDITIONNEMENT | F39: 0 | G39: 00:00:00 | H39: 00:00:00 | J39: 0 | K39: 00:00:00 | L39: 00:00:00 | N39: 0 | O39: 00:00:00 | P39: 00:00:00 | R39: 0 | S39: 00:00:00 | T39: 00:00:00 | V39: 0 | W39: 00:00:00 | X39: 00:00:00 | Y39: 0 | Z39: 0 | AA39: 0 | AB39: 0
A40: GRAPPIN Perrine | B40: GRAPPIN | C40: Perrine | D40: FABRICATION | F40: 0 | G40: 00:00:00 | H40: 00:00:00 | J40: 0 | K40: 00:00:00 | L40: 00:00:00 | N40: 0 | O40: 00:00:00 | P40: 00:00:00 | R40: 0 | S40: 00:00:00 | T40: 00:00:00 | V40: 0 | W40: 00:00:00 | X40: 00:00:00 | Y40: 0 | Z40: 0 | AA40: 0 | AB40: 0
A41: GUENOT Anne | B41: GUENOT | C41: Anne | D41: EXPEDITION | F41: 0 | G41: 00:00:00 | H41: 00:00:00 | J41: 0 | K41: 00:00:00 | L41: 00:00:00 | N41: 0 | O41: 00:00:00 | P41: 00:00:00 | R41: 0 | S41: 00:00:00 | T41: 00:00:00 | V41: 0 | W41: 00:00:00 | X41: 00:00:00 | Y41: 0 | Z41: 0 | AA41: 0 | AB41: 0
A42: GUYARD Christine | B42: GUYARD | C42: Christine | D42: BUREAUX | F42: 0 | G42: 00:00:00 | H42: 00:00:00 | J42: 0 | K42: 00:00:00 | L42: 00:00:00 | N42: 0 | O42: 00:00:00 | P42: 00:00:00 | R42: 0 | S42: 00:00:00 | T42: 00:00:00 | V42: 0 | W42: 00:00:00 | X42: 00:00:00 | Y42: 0 | Z42: 0 | AA42: 0 | AB42: 0
A43: GUYARD Marie | B43: GUYARD | C43: Marie | D43: FABRICATION | F43: 0 | G43: 00:00:00 | H43: 00:00:00 | J43: 0 | K43: 00:00:00 | L43: 00:00:00 | N43: 0 | O43: 00:00:00 | P43: 00:00:00 | R43: 0 | S43: 00:00:00 | T43: 00:00:00 | V43: 0 | W43: 00:00:00 | X43: 00:00:00 | Y43: 0 | Z43: 0 | AA43: 0 | AB43: 0
A44: GUYARD Marie | B44: GUYARD | C44: Marie | D44: FABRICATION | F44: 0 | G44: 00:00:00 | H44: 00:00:00 | J44: 0 | K44: 00:00:00 | L44: 00:00:00 | N44: 0 | O44: 00:00:00 | P44: 00:00:00 | R44: 0 | S44: 00:00:00 | T44: 00:00:00 | V44: 0 | W44: 00:00:00 | X44: 00:00:00 | Y44: 0 | Z44: 0 | AA44: 0 | AB44: 0
A45: HARUTYUNYAN Haik | B45: HARUTYUNYAN | C45: Haik | D45: FABRICATION | F45: 0 | G45: 00:00:00 | H45: 00:00:00 | J45: 0 | K45: 00:00:00 | L45: 00:00:00 | N45: 0 | O45: 00:00:00 | P45: 00:00:00 | R45: 0 | S45: 00:00:00 | T45: 00:00:00 | V45: 0 | W45: 00:00:00 | X45: 00:00:00 | Y45: 0 | Z45: 0 | AA45: 0 | AB45: 0
A46: IDRISSI Zinedinne | B46: IDRISSI | C46: Zinedinne | D46: FABRICATION | F46: 0 | G46: 00:00:00 | H46: 00:00:00 | J46: 0 | K46: 00:00:00 | L46: 00:00:00 | N46: 0 | O46: 00:00:00 | P46: 00:00:00 | R46: 0 | S46: 00:00:00 | T46: 00:00:00 | V46: 0 | W46: 00:00:00 | X46: 00:00:00 | Y46: 0 | Z46: 0 | AA46: 0 | AB46: 0
A47: JULIEN Thomas | B47: JULIEN | C47: Thomas | D47: Apprentis | F47: 0 | G47: 00:00:00 | H47: 00:00:00 | J47: 0 | K47: 00:00:00 | L47: 00:00:00 | N47: 0 | O47: 00:00:00 | P47: 00:00:00 | R47: 0 | S47: 00:00:00 | T47: 00:00:00 | V47: 0 | W47: 00:00:00 | X47: 00:00:00 | Y47: 0 | Z47: 0 | AA47: 0 | AB47: 0
A48: LABOREY Jonathan | B48: LABOREY | C48: Jonathan | D48: EMBALLAGE | F48: 0 | G48: 00:00:00 | H48: 00:00:00 | J48: 0 | K48: 00:00:00 | L48: 00:00:00 | N48: 0 | O48: 00:00:00 | P48: 00:00:00 | R48: 0 | S48: 00:00:00 | T48: 00:00:00 | V48: 0 | W48: 00:00:00 | X48: 00:00:00 | Y48: 0 | Z48: 0 | AA48: 0 | AB48: 0
A49: LAHAYE Emmanuel | B49: LAHAYE | C49: Emmanuel | D49: FABRICATION | F49: 0 | G49: 00:00:00 | H49: 00:00:00 | J49: 0 | K49: 00:00:00 | L49: 00:00:00 | N49: 0 | O49: 00:00:00 | P49: 00:00:00 | R49: 0 | S49: 00:00:00 | T49: 00:00:00 | V49: 0 | W49: 00:00:00 | X49: 00:00:00 | Y49: 0 | Z49: 0 | AA49: 0 | AB49: 0
A50: Lasalle Yann | B50: Lasalle | C50: Yann | D50: CHAUFFEURS | F50: 0 | G50: 00:00:00 | H50: 00:00:00 | J50: 0 | K50: 00:00:00 | L50: 00:00:00 | N50: 0 | O50: 00:00:00 | P50: 00:00:00 | R50: 0 | S50: 00:00:00 | T50: 00:00:00 | V50: 0 | W50: 00:00:00 | X50: 00:00:00 | Y50: 0 | Z50: 0 | AA50: 0 | AB50: 0
A51: LORY ANNICK | B51: LORY | C51: ANNICK | D51: FABRICATION | F51: 0 | G51: 00:00:00 | H51: 00:00:00 | J51: 0 | K51: 00:00:00 | L51: 00:00:00 | N51: 0 | O51: 00:00:00 | P51: 00:00:00 | R51: 0 | S51: 00:00:00 | T51: 00:00:00 | V51: 0 | W51: 00:00:00 | X51: 00:00:00 | Y51: 0 | Z51: 0 | AA51: 0 | AB51: 0
A52: LOXTON Morné | B52: LOXTON | C52: Morné | D52: FABRICATION | F52: 0 | G52: 00:00:00 | H52: 00:00:00 | J52: 0 | K52: 00:00:00 | L52: 00:00:00 | N52: 0 | O52: 00:00:00 | P52: 00:00:00 | R52: 0 | S52: 00:00:00 | T52: 00:00:00 | V52: 0 | W52: 00:00:00 | X52: 00:00:00 | Y52: 0 | Z52: 0 | AA52: 0 | AB52: 0
A53: MAILLER Philippe | B53: MAILLER | C53: Philippe | D53: CHAUFFEURS | F53: 0 | G53: 00:00:00 | H53: 00:00:00 | J53: 0 | K53: 00:00:00 | L53: 00:00:00 | N53: 0 | O53: 00:00:00 | P53: 00:00:00 | R53: 0 | S53: 00:00:00 | T53: 00:00:00 | V53: 0 | W53: 00:00:00 | X53: 00:00:00 | Y53: 0 | Z53: 0 | AA53: 0 | AB53: 0
A54: MANOUKIAN Arman | B54: MANOUKIAN | C54: Arman | D54: FABRICATION | F54: 0 | G54: 00:00:00 | H54: 00:00:00 | J54: 0 | K54: 00:00:00 | L54: 00:00:00 | N54: 0 | O54: 00:00:00 | P54: 00:00:00 | R54: 0 | S54: 00:00:00 | T54: 00:00:00 | V54: 0 | W54: 00:00:00 | X54: 00:00:00 | Y54: 0 | Z54: 0 | AA54: 0 | AB54: 0
A55: MARGUIER Stéphane | B55: MARGUIER | C55: Stéphane | D55: EMBALLAGE | F55: 0 | G55: 00:00:00 | H55: 00:00:00 | J55: 0 | K55: 00:00:00 | L55: 00:00:00 | N55: 0 | O55: 00:00:00 | P55: 00:00:00 | R55: 0 | S55: 00:00:00 | T55: 00:00:00 | V55: 0 | W55: 00:00:00 | X55: 00:00:00 | Y55: 0 | Z55: 0 | AA55: 0 | AB55: 0
A56: MARGUIER Stéphane | B56: MARGUIER | C56: Stéphane | D56: NSG | F56: 0 | G56: 00:00:00 | H56: 00:00:00 | J56: 0 | K56: 00:00:00 | L56: 00:00:00 | N56: 0 | O56: 00:00:00 | P56: 00:00:00 | R56: 0 | S56: 00:00:00 | T56: 00:00:00 | V56: 0 | W56: 00:00:00 | X56: 00:00:00 | Y56: 0 | Z56: 0 | AA56: 0 | AB56: 0
A57: MARTIN Julien | B57: MARTIN | C57: Julien | D57: EMBALLAGE | F57: 0 | G57: 00:00:00 | H57: 00:00:00 | J57: 0 | K57: 00:00:00 | L57: 00:00:00 | N57: 0 | O57: 00:00:00 | P57: 00:00:00 | R57: 0 | S57: 00:00:00 | T57: 00:00:00 | V57: 0 | W57: 00:00:00 | X57: 00:00:00 | Y57: 0 | Z57: 0 | AA57: 0 | AB57: 0
A58: MARTIN Pierre | B58: MARTIN | C58: Pierre | D58: FABRICATION | F58: 0 | G58: 00:00:00 | H58: 00:00:00 | J58: 0 | K58: 00:00:00 | L58: 00:00:00 | N58: 0 | O58: 00:00:00 | P58: 00:00:00 | R58: 0 | S58: 00:00:00 | T58: 00:00:00 | V58: 0 | W58: 00:00:00 | X58: 00:00:00 | Y58: 0 | Z58: 0 | AA58: 0 | AB58: 0
A59: MINASYAN ARMAN | B59: MINASYAN | C59: ARMAN | D59: FABRICATION | F59: 0 | G59: 00:00:00 | H59: 00:00:00 | J59: 0 | K59: 00:00:00 | L59: 00:00:00 | N59: 0 | O59: 00:00:00 | P59: 00:00:00 | R59: 0 | S59: 00:00:00 | T59: 00:00:00 | V59: 0 | W59: 00:00:00 | X59: 00:00:00 | Y59: 0 | Z59: 0 | AA59: 0 | AB59: 0
A60: MORET Robin | B60: MORET | C60: Robin | D60: CHAUFFEURS | F60: 0 | G60: 00:00:00 | H60: 00:00:00 | J60: 0 | K60: 00:00:00 | L60: 00:00:00 | N60: 0 | O60: 00:00:00 | P60: 00:00:00 | R60: 0 | S60: 00:00:00 | T60: 00:00:00 | V60: 0 | W60: 00:00:00 | X60: 00:00:00 | Y60: 0 | Z60: 0 | AA60: 0 | AB60: 0
A61: MORIAUX Charles-Henry | B61: MORIAUX | C61: Charles-Henry | D61: EXPEDITION | F61: 0 | G61: 00:00:00 | H61: 00:00:00 | J61: 0 | K61: 00:00:00 | L61: 00:00:00 | N61: 0 | O61: 00:00:00 | P61: 00:00:00 | R61: 0 | S61: 00:00:00 | T61: 00:00:00 | V61: 0 | W61: 00:00:00 | X61: 00:00:00 | Y61: 0 | Z61: 0 | AA61: 0 | AB61: 0
A62: MORIN Christophe | B62: MORIN | C62: Christophe | D62: FABRICATION | F62: 0 | G62: 00:00:00 | H62: 00:00:00 | J62: 0 | K62: 00:00:00 | L62: 00:00:00 | N62: 0 | O62: 00:00:00 | P62: 00:00:00 | R62: 0 | S62: 00:00:00 | T62: 00:00:00 | V62: 0 | W62: 00:00:00 | X62: 00:00:00 | Y62: 0 | Z62: 0 | AA62: 0 | AB62: 0
A63: MORTET Alice | B63: MORTET | C63: Alice | D63: EXPEDITION | F63: 0 | G63: 00:00:00 | H63: 00:00:00 | J63: 0 | K63: 00:00:00 | L63: 00:00:00 | N63: 0 | O63: 00:00:00 | P63: 00:00:00 | R63: 0 | S63: 00:00:00 | T63: 00:00:00 | V63: 0 | W63: 00:00:00 | X63: 00:00:00 | Y63: 0 | Z63: 0 | AA63: 0 | AB63: 0
A64: M'SAKINI Coralie | B64: M'SAKINI | C64: Coralie | D64: COMMERCIAL | F64: 0 | G64: 00:00:00 | H64: 00:00:00 | J64: 0 | K64: 00:00:00 | L64: 00:00:00 | N64: 0 | O64: 00:00:00 | P64: 00:00:00 | R64: 0 | S64: 00:00:00 | T64: 00:00:00 | V64: 0 | W64: 00:00:00 | X64: 00:00:00 | Y64: 0 | Z64: 0 | AA64: 0 | AB64: 0
A65: NEAULT Emilie | B65: NEAULT | C65: Emilie | D65: EMBALLAGE | F65: 0 | G65: 00:00:00 | H65: 00:00:00 | J65: 0 | K65: 00:00:00 | L65: 00:00:00 | N65: 0 | O65: 00:00:00 | P65: 00:00:00 | R65: 0 | S65: 00:00:00 | T65: 00:00:00 | V65: 0 | W65: 00:00:00 | X65: 00:00:00 | Y65: 0 | Z65: 0 | AA65: 0 | AB65: 0
A66: OCQUIDANT MANON | B66: OCQUIDANT | C66: MANON | D66: FABRICATION | F66: 0 | G66: 00:00:00 | H66: 00:00:00 | J66: 0 | K66: 00:00:00 | L66: 00:00:00 | N66: 0 | O66: 00:00:00 | P66: 00:00:00 | R66: 0 | S66: 00:00:00 | T66: 00:00:00 | V66: 0 | W66: 00:00:00 | X66: 00:00:00 | Y66: 0 | Z66: 0 | AA66: 0 | AB66: 0
A67: PACOT Louis | B67: PACOT | C67: Louis | D67: FABRICATION | F67: 0 | G67: 00:00:00 | H67: 00:00:00 | J67: 0 | K67: 00:00:00 | L67: 00:00:00 | N67: 0 | O67: 00:00:00 | P67: 00:00:00 | R67: 0 | S67: 00:00:00 | T67: 00:00:00 | V67: 0 | W67: 00:00:00 | X67: 00:00:00 | Y67: 0 | Z67: 0 | AA67: 0 | AB67: 0
A68: PACOT BENJAMIN | B68: PACOT | C68: BENJAMIN | D68: FABRICATION | F68: 0 | G68: 00:00:00 | H68: 00:00:00 | J68: 0 | K68: 00:00:00 | L68: 00:00:00 | N68: 0 | O68: 00:00:00 | P68: 00:00:00 | R68: 0 | S68: 00:00:00 | T68: 00:00:00 | V68: 0 | W68: 00:00:00 | X68: 00:00:00 | Y68: 0 | Z68: 0 | AA68: 0 | AB68: 0
A69: PASSOT jean luc | B69: PASSOT | C69: jean luc | D69: CHAUFFEURS | F69: 0 | G69: 00:00:00 | H69: 00:00:00 | J69: 0 | K69: 00:00:00 | L69: 00:00:00 | N69: 0 | O69: 00:00:00 | P69: 00:00:00 | R69: 0 | S69: 00:00:00 | T69: 00:00:00 | V69: 0 | W69: 00:00:00 | X69: 00:00:00 | Y69: 0 | Z69: 0 | AA69: 0 | AB69: 0
A70: PAYET Cédric | B70: PAYET | C70: Cédric | D70: FABRICATION | F70: 0 | G70: 00:00:00 | H70: 00:00:00 | J70: 0 | K70: 00:00:00 | L70: 00:00:00 | N70: 0 | O70: 00:00:00 | P70: 00:00:00 | R70: 0 | S70: 00:00:00 | T70: 00:00:00 | V70: 0 | W70: 00:00:00 | X70: 00:00:00 | Y70: 0 | Z70: 0 | AA70: 0 | AB70: 0
A71: PAYET Cédric | B71: PAYET | C71: Cédric | D71: NSG | F71: 0 | G71: 00:00:00 | H71: 00:00:00 | J71: 0 | K71: 00:00:00 | L71: 00:00:00 | N71: 0 | O71: 00:00:00 | P71: 00:00:00 | R71: 0 | S71: 00:00:00 | T71: 00:00:00 | V71: 0 | W71: 00:00:00 | X71: 00:00:00 | Y71: 0 | Z71: 0 | AA71: 0 | AB71: 0
A72: PETIT ISABELLE | B72: PETIT | C72: ISABELLE | D72: CONDITIONNEMENT | F72: 0 | G72: 00:00:00 | H72: 00:00:00 | J72: 0 | K72: 00:00:00 | L72: 00:00:00 | N72: 0 | O72: 00:00:00 | P72: 00:00:00 | R72: 0 | S72: 00:00:00 | T72: 00:00:00 | V72: 0 | W72: 00:00:00 | X72: 00:00:00 | Y72: 0 | Z72: 0 | AA72: 0 | AB72: 0
A73: PIGEARD Jérémy | B73: PIGEARD | C73: Jérémy | D73: FABRICATION | F73: 0 | G73: 00:00:00 | H73: 00:00:00 | J73: 0 | K73: 00:00:00 | L73: 00:00:00 | N73: =IF(M73<(1/24*35),0,M73-(1/24*35)) -> 0 | O73: =IF(N73>=1/24*8,1/24*8,N73) -> 00:00:00 | P73: =IF(N73-O73>0,N73-O73,0) -> 00:00:00 | R73: =IF(Q73<(1/24*35),0,Q73-(1/24*35)) -> 0 | S73: =IF(R73>=1/24*8,1/24*8,R73) -> 00:00:00 | T73: =IF(R73-S73>0,R73-S73,0) -> 00:00:00 | V73: =IF(U73<(1/24*35),0,U73-(1/24*35)) -> 0 | W73: =IF(V73>=1/24*8,1/24*8,V73) -> 00:00:00 | X73: =IF(V73-W73>0,V73-W73,0) -> 00:00:00 | Y73: 0 | Z73: 0 | AA73: 0 | AB73: 0
A74: =B74&" "&C74 -> POIGNANT Anthony | B74: POIGNANT | C74: Anthony | D74: EMBALLAGE
A75: PRINCET Véronique | B75: PRINCET | C75: Véronique | D75: EMBALLAGE
A76: PRUDENT Axelle | B76: PRUDENT | C76: Axelle | D76: Apprentis
A77: PUSSET Françis | B77: PUSSET | C77: Françis | D77: FABRICATION
A78: ROGER Céline | B78: ROGER | C78: Céline | D78: BUREAUX
A79: ROY Marianne | B79: ROY | C79: Marianne | D79: NSG
A80: ROY SEBASTIEN | B80: ROY | C80: SEBASTIEN | D80: EXPEDITION
A81: SABRI Moha | B81: SABRI | C81: Moha | D81: FABRICATION
A82: SAVARIAT Betty | B82: SAVARIAT | C82: Betty | D82: EMBALLAGE
A83: Shakaryan Artak | B83: Shakaryan | C83: Artak | D83: FABRICATION
A84: Shakaryan ARTUR | B84: Shakaryan | C84: ARTUR | D84: FABRICATION | F84: =IF(E84<(1/24*35),0,E84-(1/24*35)) -> 0 | G84: =IF(F84>=1/24*8,1/24*8,F84) -> 00:00:00 | H84: =IF(F84-G84>0,F84-G84,0) -> 00:00:00 | J84: =IF(I84<(1/24*35),0,I84-(1/24*35)) -> 0 | K84: =IF(J84>=1/24*8,1/24*8,J84) -> 00:00:00 | L84: =IF(J84-K84>0,J84-K84,0) -> 00:00:00 | N84: 0 | O84: 00:00:00 | P84: 00:00:00 | R84: 0 | S84: 00:00:00 | T84: 00:00:00 | V84: 0 | W84: 00:00:00 | X84: 00:00:00 | Y84: =SUMIF($E$7:$X$7,$I$7,$E84:$X84) -> 0 | Z84: =SUMIF($E$7:$X$7,$Z$7,$E84:$X84) -> 0 | AA84: =SUMIF($E$7:$X$7,$AA$7,$E84:$X84) -> 0 | AB84: =SUMIF($E$7:$X$7,$AB$7,$E84:$X84) -> 0
A85: Tallo Oumar | B85: Tallo | C85: Oumar | D85: FABRICATION | F85: 0 | G85: 00:00:00 | H85: 00:00:00 | J85: 0 | K85: 00:00:00 | L85: 00:00:00 | N85: 0 | O85: 00:00:00 | P85: 00:00:00 | R85: 0 | S85: 00:00:00 | T85: 00:00:00 | V85: 0 | W85: 00:00:00 | X85: 00:00:00 | Y85: 0 | Z85: 0 | AA85: 0 | AB85: 0
A86: TEIXERA Géraldine | B86: TEIXERA | C86: Géraldine | D86: EMBALLAGE | F86: 0 | G86: 00:00:00 | H86: 00:00:00 | J86: 0 | K86: 00:00:00 | L86: 00:00:00 | N86: 0 | O86: 00:00:00 | P86: 00:00:00 | R86: 0 | S86: 00:00:00 | T86: 00:00:00 | V86: 0 | W86: 00:00:00 | X86: 00:00:00 | Y86: 0 | Z86: 0 | AA86: 0 | AB86: 0
A87: THRITHARD Serge | B87: THRITHARD | C87: Serge | D87: FABRICATION | F87: 0 | G87: 00:00:00 | H87: 00:00:00 | J87: 0 | K87: 00:00:00 | L87: 00:00:00 | N87: 0 | O87: 00:00:00 | P87: 00:00:00 | R87: 0 | S87: 00:00:00 | T87: 00:00:00 | V87: 0 | W87: 00:00:00 | X87: 00:00:00 | Y87: 0 | Z87: 0 | AA87: 0 | AB87: 0
A88: TOULOUSE Florian | B88: TOULOUSE | C88: Florian | D88: FABRICATION | F88: 0 | G88: 00:00:00 | H88: 00:00:00 | J88: 0 | K88: 00:00:00 | L88: 00:00:00 | N88: 0 | O88: 00:00:00 | P88: 00:00:00 | R88: 0 | S88: 00:00:00 | T88: 00:00:00 | V88: 0 | W88: 00:00:00 | X88: 00:00:00 | Y88: 0 | Z88: 0 | AA88: 0 | AB88: 0
A89: VARVOU Annie | B89: VARVOU | C89: Annie | D89: COMMERCIAL | F89: 0 | G89: 00:00:00 | H89: 00:00:00 | J89: 0 | K89: 00:00:00 | L89: 00:00:00 | N89: 0 | O89: 00:00:00 | P89: 00:00:00 | R89: 0 | S89: 00:00:00 | T89: 00:00:00 | V89: 0 | W89: 00:00:00 | X89: 00:00:00 | Y89: 0 | Z89: 0 | AA89: 0 | AB89: 0
A90: VERDIERE Steeven | B90: VERDIERE | C90: Steeven | D90: FABRICATION | F90: 0 | G90: 00:00:00 | H90: 00:00:00 | J90: 0 | K90: 00:00:00 | L90: 00:00:00 | N90: 0 | O90: 00:00:00 | P90: 00:00:00 | R90: 0 | S90: 00:00:00 | T90: 00:00:00 | V90: 0 | W90: 00:00:00 | X90: 00:00:00 | Y90: 0 | Z90: 0 | AA90: 0 | AB90: 0
A91: VINCENT FRANCK | B91: VINCENT | C91: FRANCK | D91: EXPEDITION | F91: 0 | G91: 00:00:00 | H91: 00:00:00 | J91: 0 | K91: 00:00:00 | L91: 00:00:00 | N91: 0 | O91: 00:00:00 | P91: 00:00:00 | R91: 0 | S91: 00:00:00 | T91: 00:00:00 | V91: 0 | W91: 00:00:00 | X91: 00:00:00 | Y91: 0 | Z91: 0 | AA91: 0 | AB91: 0
A92: VINCENT FABRICE | B92: VINCENT | C92: FABRICE | D92: FABRICATION
A93: WARGNIER Margot | B93: WARGNIER | C93: Margot | D93: EMBALLAGE
A94: ZAMPARUTTI Simon | B94: ZAMPARUTTI | C94: Simon | D94: DIRECTION
A95: ZIVANOVIC NATHALIE | B95: ZIVANOVIC | C95: NATHALIE | D95: EMPLOYE DE SERVICE | F95: 0 | G95: 00:00:00 | H95: 00:00:00 | J95: 0 | K95: 00:00:00 | L95: 00:00:00 | N95: 0 | O95: 00:00:00 | P95: 00:00:00 | R95: 0 | S95: 00:00:00 | T95: 00:00:00 | V95: 0 | W95: 00:00:00 | X95: 00:00:00 | Y95: 0 | Z95: 0 | AA95: 0 | AB95: 0
E96: =SUM(E8:E95) -> 0 | F96: =SUM(F8:F95) -> 0 | G96: =SUM(G8:G95) -> 0 | H96: =SUM(H8:H95) -> 0 | I96: =SUM(I8:I95) -> 0 | J96: =SUM(J8:J95) -> 0 | K96: =SUM(K8:K95) -> 0 | L96: =SUM(L8:L95) -> 0 | M96: =SUM(M8:M95) -> 0 | N96: =SUM(N8:N95) -> 0 | O96: =SUM(O8:O95) -> 0 | P96: =SUM(P8:P95) -> 0 | Q96: =SUM(Q8:Q95) -> 0 | R96: =SUM(R8:R95) -> 0 | S96: =SUM(S8:S95) -> 0 | T96: =SUM(T8:T95) -> 0 | U96: =SUM(U8:U95) -> 0 | V96: =SUM(V8:V95) -> 0 | W96: =SUM(W8:W95) -> 0 | X96: =SUM(X8:X95) -> 0 | Y96: =SUM(Y8:Y95) -> 0 | Z96: =SUM(Z8:Z95) -> 0 | AA96: =SUM(AA8:AA95) -> 0 | AB96: =SUM(AB8:AB95) -> 0

Sheet Février
C1: Menu | U1: =IF($U$5="","masquer colonne","") -> masquer colonne | V1: =IF($U$5="","masquer colonne","") -> masquer colonne | W1: masquer colonne | X1: masquer colonne
A2: =COUNTIF(U1:X1,"masquer colonne") -> 4
B3: =VALUE("01/02/"&Janvier!$B$1) -> 2017-02-01 | E3: =CHOOSE(MONTH(B3),"Janvier","Février","Mars","Avril","Mai","Juin","Juillet","Août","Septembre","Octobre","Novembre","Décembre") -> Février
E4: =WEEKNUM(E5,21) -> 5 | I4: =WEEKNUM(I5,21) -> 6 | M4: =WEEKNUM(M5,21) -> 7 | Q4: =WEEKNUM(Q5,21) -> 8 | U4: =IF(U5="","",WEEKNUM(U5,21)) -> 
E5: =VALUE("01/"&MONTH(B3)&"/"&YEAR($B$3))+CHOOSE(WEEKDAY(VALUE("01/"&MONTH(B3)&"/"&YEAR($B$3)),2),6,5,4,10,9,8,7) -> 2017-02-05 | I5: =E5+7 -> 2017-02-12 | M5: =I5+7 -> 2017-02-19 | Q5: =M5+7 -> 2017-02-26 | U5: =IF(DAY(Q5+7)>4,"",Q5+7) -> 
E6: =CHOOSE(WEEKDAY(E5,2),"Lundi","Mardi","Mercredi","Jeudi","Vendredi","Samedi","Dimanche") -> Dimanche | I6: =CHOOSE(WEEKDAY(I5,2),"Lundi","Mardi","Mercredi","Jeudi","Vendredi","Samedi","Dimanche") -> Dimanche | M6: =CHOOSE(WEEKDAY(M5,2),"Lundi","Mardi","Mercredi","Jeudi","Vendredi","Samedi","Dimanche") -> Dimanche | Q6: =CHOOSE(WEEKDAY(Q5,2),"Lundi","Mardi","Mercredi","Jeudi","Vendredi","Samedi","Dimanche") -> Dimanche | U6: =IF(U5="","",CHOOSE(WEEKDAY(U5,2),"Lundi","Mardi","Mercredi","Jeudi","Vendredi","Samedi","Dimanche")) ->  | Y6: ="Total heures mois "&E3 -> Total heures mois Février
B7: NOM | C7: PRENOM | D7: SECTEUR | E7: Total Sem. | F7: Heure sup. | G7: Heure 25% | H7: Heure 50% | I7: Total Sem. | J7: Heure sup. | K7: Heure 25% | L7: Heure 50% | M7: Total Sem. | N7: Heure sup. | O7: Heure 25% | P7: Heure 50% | Q7: Total Sem. | R7: Heure sup. | S7: Heure 25% | T7: Heure 50% | U7: Total Sem. | V7: Heure sup. | W7: Heure 25% | X7: Heure 50% | Y7: Total Sem. | Z7: Heure sup. | AA7: Heure 25% | AB7: Heure 50%
A8: =B8&" "&C8 -> AMIOT Anne-Lise | B8: =Janvier!B8 -> AMIOT | C8: =Janvier!C8 -> Anne-Lise | D8: =Janvier!D8 -> QUALITE | F8: =IF(E8<(1/24*35),0,E8-(1/24*35)) -> 0 | G8: =IF(F8>=1/24*8,1/24*8,F8) -> 00:00:00 | H8: =IF(F8-G8>0,F8-G8,0) -> 00:00:00 | J8: =IF(I8<(1/24*35),0,I8-(1/24*35)) -> 0 | K8: =IF(J8>=1/24*8,1/24*8,J8) -> 00:00:00 | L8: =IF(J8-K8>0,J8-K8,0) -> 00:00:00 | N8: =IF(M8<(1/24*35),0,M8-(1/24*35)) -> 0 | O8: =IF(N8>=1/24*8,1/24*8,N8) -> 00:00:00 | P8: =IF(N8-O8>0,N8-O8,0) -> 00:00:00 | R8: =IF(Q8<(1/24*35),0,Q8-(1/24*35)) -> 0 | S8: =IF(R8>=1/24*8,1/24*8,R8) -> 00:00:00 | T8: =IF(R8-S8>0,R8-S8,0) -> 00:00:00 | V8: =IF(U8<(1/24*35),0,U8-(1/24*35)) -> 0 | W8: =IF(V8>=1/24*8,1/24*8,V8) -> 00:00:00 | X8: =IF(V8-W8>0,V8-W8,0) -> 00:00:00 | Y8: =SUMIF($E$7:$X$7,$I$7,$E8:$X8) -> 0 | Z8: =SUMIF($E$7:$X$7,$Z$7,$E8:$X8) -> 0 | AA8: =SUMIF($E$7:$X$7,$AA$7,$E8:$X8) -> 0 | AB8: =SUMIF($E$7:$X$7,$AB$7,$E8:$X8) -> 0
A9: =B9&" "&C9 -> ANDRE FABIEN | B9: =Janvier!B9 -> ANDRE | C9: =Janvier!C9 -> FABIEN | D9: =Janvier!D9 -> FABRICATION | F9: =IF(E9<(1/24*35),0,E9-(1/24*35)) -> 0 | G9: =IF(F9>=1/24*8,1/24*8,F9) -> 00:00:00 | H9: =IF(F9-G9>0,F9-G9,0) -> 00:00:00 | J9: =IF(I9<(1/24*35),0,I9-(1/24*35)) -> 0 | K9: =IF(J9>=1/24*8,1/24*8,J9) -> 00:00:00 | L9: =IF(J9-K9>0,J9-K9,0) -> 00:00:00 | N9: 0 | O9: 00:00:00 | P9: 00:00:00 | R9: 0 | S9: 00:00:00 | T9: 00:00:00 | V9: 0 | W9: 00:00:00 | X9: 00:00:00 | Y9: =SUMIF($E$7:$X$7,$I$7,$E9:$X9) -> 0 | Z9: =SUMIF($E$7:$X$7,$Z$7,$E9:$X9) -> 0 | AA9: =SUMIF($E$7:$X$7,$AA$7,$E9:$X9) -> 0 | AB9: =SUMIF($E$7:$X$7,$AB$7,$E9:$X9) -> 0
A10: AUDIARD FLORIAN | B10: =Janvier!B10 -> AUDIARD | C10: =Janvier!C10 -> FLORIAN | D10: =Janvier!D10 -> FABRICATION | F10: 0 | G10: 00:00:00 | H10: 00:00:00 | J10: 0 | K10: 00:00:00 | L10: 00:00:00 | N10: 0 | O10: 00:00:00 | P10: 00:00:00 | R10: 0 | S10: 00:00:00 | T10: 00:00:00 | V10: 0 | W10: 00:00:00 | X10: 00:00:00 | Y10: 0 | Z10: 0 | AA10: 0 | AB10: 0
A11: AZEVEDO Catherine | B11: =Janvier!B11 -> AZEVEDO | C11: =Janvier!C11 -> Catherine | D11: =Janvier!D11 -> EMBALLAGE | F11: 0 | G11: 00:00:00 | H11: 00:00:00 | J11: 0 | K11: 00:00:00 | L11: 00:00:00 | N11: 0 | O11: 00:00:00 | P11: 00:00:00 | R11: 0 | S11: 00:00:00 | T11: 00:00:00 | V11: 0 | W11: 00:00:00 | X11: 00:00:00 | Y11: 0 | Z11: 0 | AA11: 0 | AB11: 0
A12: BARBIER Nathalie | B12: =Janvier!B12 -> BARBIER | C12: =Janvier!C12 -> Nathalie | D12: =Janvier!D12 -> QUALITE | F12: 0 | G12: 00:00:00 | H12: 00:00:00 | J12: 0 | K12: 00:00:00 | L12: 00:00:00 | N12: 0 | O12: 00:00:00 | P12: 00:00:00 | R12: 0 | S12: 00:00:00 | T12: 00:00:00 | V12: 0 | W12: 00:00:00 | X12: 00:00:00 | Y12: 0 | Z12: 0 | AA12: 0 | AB12: 0
A13: BECHTOLD Marie-Christine | B13: =Janvier!B13 -> BECHTOLD | C13: =Janvier!C13 -> Marie-Christine | D13: =Janvier!D13 -> EMBALLAGE | F13: 0 | G13: 00:00:00 | H13: 00:00:00 | J13: 0 | K13: 00:00:00 | L13: 00:00:00 | N13: 0 | O13: 00:00:00 | P13: 00:00:00 | R13: 0 | S13: 00:00:00 | T13: 00:00:00 | V13: 0 | W13: 00:00:00 | X13: 00:00:00 | Y13: 0 | Z13: 0 | AA13: 0 | AB13: 0
A14: BEURET MAUD | B14: =Janvier!B14 -> BEURET | C14: =Janvier!C14 -> MAUD | D14: =Janvier!D14 -> MAGASIN | F14: 0 | G14: 00:00:00 | H14: 00:00:00 | J14: 0 | K14: 00:00:00 | L14: 00:00:00 | N14: 0 | O14: 00:00:00 | P14: 00:00:00 | R14: 0 | S14: 00:00:00 | T14: 00:00:00 | V14: 0 | W14: 00:00:00 | X14: 00:00:00 | Y14: 0 | Z14: 0 | AA14: 0 | AB14: 0
A15: BOUEZNARD Myriam | B15: =Janvier!B15 -> BOUEZNARD | C15: =Janvier!C15 -> Myriam | D15: =Janvier!D15 -> NSG | F15: 0 | G15: 00:00:00 | H15: 00:00:00 | J15: 0 | K15: 00:00:00 | L15: 00:00:00 | N15: 0 | O15: 00:00:00 | P15: 00:00:00 | R15: 0 | S15: 00:00:00 | T15: 00:00:00 | V15: 0 | W15: 00:00:00 | X15: 00:00:00 | Y15: 0 | Z15: 0 | AA15: 0 | AB15: 0
A16: Boutiflat James | B16: =Janvier!B16 -> Boutiflat | C16: =Janvier!C16 -> James | D16: =Janvier!D16 -> EMBALLAGE | F16: 0 | G16: 00:00:00 | H16: 00:00:00 | J16: 0 | K16: 00:00:00 | L16: 00:00:00 | N16: 0 | O16: 00:00:00 | P16: 00:00:00 | R16: 0 | S16: 00:00:00 | T16: 00:00:00 | V16: 0 | W16: 00:00:00 | X16: 00:00:00 | Y16: 0 | Z16: 0 | AA16: 0 | AB16: 0
A17: BOUZENARD Adrien | B17: =Janvier!B17 -> BOUZENARD | C17: =Janvier!C17 -> Adrien | D17: =Janvier!D17 -> FABRICATION | F17: 0 | G17: 00:00:00 | H17: 00:00:00 | J17: 0 | K17: 00:00:00 | L17: 00:00:00 | N17: 0 | O17: 00:00:00 | P17: 00:00:00 | R17: 0 | S17: 00:00:00 | T17: 00:00:00 | V17: 0 | W17: 00:00:00 | X17: 00:00:00 | Y17: 0 | Z17: 0 | AA17: 0 | AB17: 0
A18: BOUZENARD Myriam | B18: =Janvier!B18 -> BOUZENARD | C18: =Janvier!C18 -> Myriam | D18: =Janvier!D18 -> EMBALLAGE | F18: 0 | G18: 00:00:00 | H18: 00:00:00 | J18: 0 | K18: 00:00:00 | L18: 00:00:00 | N18: 0 | O18: 00:00:00 | P18: 00:00:00 | R18: 0 | S18: 00:00:00 | T18: 00:00:00 | V18: 0 | W18: 00:00:00 | X18: 00:00:00 | Y18: 0 | Z18: 0 | AA18: 0 | AB18: 0
A19: CARRION JEAN-CLAUDE | B19: =Janvier!B19 -> CARRION | C19: =Janvier!C19 -> JEAN-CLAUDE | D19: =Janvier!D19 -> CHAUFFEURS | F19: 0 | G19: 00:00:00 | H19: 00:00:00 | J19: 0 | K19: 00:00:00 | L19: 00:00:00 | N19: 0 | O19: 00:00:00 | P19: 00:00:00 | R19: 0 | S19: 00:00:00 | T19: 00:00:00 | V19: 0 | W19: 00:00:00 | X19: 00:00:00 | Y19: 0 | Z19: 0 | AA19: 0 | AB19: 0
A20: CARTERON Claudine | B20: =Janvier!B20 -> CARTERON | C20: =Janvier!C20 -> Claudine | D20: =Janvier!D20 -> BUREAUX | F20: 0 | G20: 00:00:00 | H20: 00:00:00 | J20: 0 | K20: 00:00:00 | L20: 00:00:00 | N20: 0 | O20: 00:00:00 | P20: 00:00:00 | R20: 0 | S20: 00:00:00 | T20: 00:00:00 | V20: 0 | W20: 00:00:00 | X20: 00:00:00 | Y20: 0 | Z20: 0 | AA20: 0 | AB20: 0
A21: CHAUDRON Amandine | B21: =Janvier!B21 -> CHAUDRON | C21: =Janvier!C21 -> Amandine | D21: =Janvier!D21 -> EMBALLAGE | F21: 0 | G21: 00:00:00 | H21: 00:00:00 | J21: 0 | K21: 00:00:00 | L21: 00:00:00 | N21: 0 | O21: 00:00:00 | P21: 00:00:00 | R21: 0 | S21: 00:00:00 | T21: 00:00:00 | V21: 0 | W21: 00:00:00 | X21: 00:00:00 | Y21: 0 | Z21: 0 | AA21: 0 | AB21: 0
A22: CHAUDRON Virginie | B22: =Janvier!B22 -> CHAUDRON | C22: =Janvier!C22 -> Virginie | D22: =Janvier!D22 -> FABRICATION | F22: 0 | G22: 00:00:00 | H22: 00:00:00 | J22: 0 | K22: 00:00:00 | L22: 00:00:00 | N22: 0 | O22: 00:00:00 | P22: 00:00:00 | R22: 0 | S22: 00:00:00 | T22: 00:00:00 | V22: 0 | W22: 00:00:00 | X22: 00:00:00 | Y22: 0 | Z22: 0 | AA22: 0 | AB22: 0
A23: CHEVAUX Rodolphe | B23: =Janvier!B23 -> CHEVAUX | C23: =Janvier!C23 -> Rodolphe | D23: =Janvier!D23 -> MAINTENANCE | F23: 0 | G23: 00:00:00 | H23: 00:00:00 | J23: 0 | K23: 00:00:00 | L23: 00:00:00 | N23: 0 | O23: 00:00:00 | P23: 00:00:00 | R23: 0 | S23: 00:00:00 | T23: 00:00:00 | V23: 0 | W23: 00:00:00 | X23: 00:00:00 | Y23: 0 | Z23: 0 | AA23: 0 | AB23: 0
A24: COCHARD Hervé | B24: =Janvier!B24 -> COCHARD | C24: =Janvier!C24 -> Hervé | D24: =Janvier!D24 -> COMMERCIAL | F24: 0 | G24: 00:00:00 | H24: 00:00:00 | J24: 0 | K24: 00:00:00 | L24: 00:00:00 | N24: 0 | O24: 00:00:00 | P24: 00:00:00 | R24: 0 | S24: 00:00:00 | T24: 00:00:00 | V24: 0 | W24: 00:00:00 | X24: 00:00:00 | Y24: 0 | Z24: 0 | AA24: 0 | AB24: 0
A25: CRETIN JEROME | B25: =Janvier!B25 -> CRETIN | C25: =Janvier!C25 -> JEROME | D25: =Janvier!D25 -> NSG | F25: 0 | G25: 00:00:00 | H25: 00:00:00 | J25: 0 | K25: 00:00:00 | L25: 00:00:00 | N25: 0 | O25: 00:00:00 | P25: 00:00:00 | R25: 0 | S25: 00:00:00 | T25: 00:00:00 | V25: 0 | W25: 00:00:00 | X25: 00:00:00 | Y25: 0 | Z25: 0 | AA25: 0 | AB25: 0
A26: CRINQUANT JEROME | B26: =Janvier!B26 -> CRINQUANT | C26: =Janvier!C26 -> JEROME | D26: =Janvier!D26 -> NSG | F26: 0 | G26: 00:00:00 | H26: 00:00:00 | J26: 0 | K26: 00:00:00 | L26: 00:00:00 | N26: 0 | O26: 00:00:00 | P26: 00:00:00 | R26: 0 | S26: 00:00:00 | T26: 00:00:00 | V26: 0 | W26: 00:00:00 | X26: 00:00:00 | Y26: 0 | Z26: 0 | AA26: 0 | AB26: 0
A27: DASCIER ANDY | B27: =Janvier!B28 -> DASCIER | C27: =Janvier!C28 -> ANDY | D27: =Janvier!D28 -> PREPA COMMANDE | F27: 0 | G27: 00:00:00 | H27: 00:00:00 | J27: 0 | K27: 00:00:00 | L27: 00:00:00 | N27: 0 | O27: 00:00:00 | P27: 00:00:00 | R27: 0 | S27: 00:00:00 | T27: 00:00:00 | V27: 0 | W27: 00:00:00 | X27: 00:00:00 | Y27: 0 | Z27: 0 | AA27: 0 | AB27: 0
A28: DAVERIO BENOIT | B28: =Janvier!B29 -> DAVERIO | C28: =Janvier!C29 -> BENOIT | D28: =Janvier!D29 -> COMMERCIAL | F28: 0 | G28: 00:00:00 | H28: 00:00:00 | J28: 0 | K28: 00:00:00 | L28: 00:00:00 | N28: 0 | O28: 00:00:00 | P28: 00:00:00 | R28: 0 | S28: 00:00:00 | T28: 00:00:00 | V28: 0 | W28: 00:00:00 | X28: 00:00:00 | Y28: 0 | Z28: 0 | AA28: 0 | AB28: 0
A29: DELANGRE ALEX | B29: =Janvier!B30 -> DELANGRE | C29: =Janvier!C30 -> ALEX | D29: =Janvier!D30 -> FABRICATION | F29: 0 | G29: 00:00:00 | H29: 00:00:00 | J29: 0 | K29: 00:00:00 | L29: 00:00:00 | N29: 0 | O29: 00:00:00 | P29: 00:00:00 | R29: 0 | S29: 00:00:00 | T29: 00:00:00 | V29: 0 | W29: 00:00:00 | X29: 00:00:00 | Y29: 0 | Z29: 0 | AA29: 0 | AB29: 0
A30: DELIN Philippe | B30: =Janvier!B31 -> DELIN | C30: =Janvier!C31 -> Philippe | D30: =Janvier!D31 -> DIRECTION | F30: 0 | G30: 00:00:00 | H30: 00:00:00 | J30: 0 | K30: 00:00:00 | L30: 00:00:00 | N30: 0 | O30: 00:00:00 | P30: 00:00:00 | R30: 0 | S30: 00:00:00 | T30: 00:00:00 | V30: 0 | W30: 00:00:00 | X30: 00:00:00 | Y30: 0 | Z30: 0 | AA30: 0 | AB30: 0
A31: DORE Daisy | B31: =Janvier!B32 -> DORE | C31: =Janvier!C32 -> Daisy | D31: =Janvier!D32 -> FABRICATION | F31: 0 | G31: 00:00:00 | H31: 00:00:00 | J31: 0 | K31: 00:00:00 | L31: 00:00:00 | N31: 0 | O31: 00:00:00 | P31: 00:00:00 | R31: 0 | S31: 00:00:00 | T31: 00:00:00 | V31: 0 | W31: 00:00:00 | X31: 00:00:00 | Y31: 0 | Z31: 0 | AA31: 0 | AB31: 0
A32: ECHEVARIA Luis | B32: =Janvier!B33 -> ECHEVARIA | C32: =Janvier!C33 -> Luis | D32: =Janvier!D33 -> FABRICATION | F32: 0 | G32: 00:00:00 | H32: 00:00:00 | J32: 0 | K32: 00:00:00 | L32: 00:00:00 | N32: 0 | O32: 00:00:00 | P32: 00:00:00 | R32: 0 | S32: 00:00:00 | T32: 00:00:00 | V32: 0 | W32: 00:00:00 | X32: 00:00:00 | Y32: 0 | Z32: 0 | AA32: 0 | AB32: 0
A33: EL MOQADDAM REDOUANE | B33: =Janvier!B34 -> EL MOQADDAM | C33: =Janvier!C34 -> REDOUANE | D33: =Janvier!D34 -> FABRICATION | F33: 0 | G33: 00:00:00 | H33: 00:00:00 | J33: 0 | K33: 00:00:00 | L33: 00:00:00 | N33: 0 | O33: 00:00:00 | P33: 00:00:00 | R33: 0 | S33: 00:00:00 | T33: 00:00:00 | V33: 0 | W33: 00:00:00 | X33: 00:00:00 | Y33: 0 | Z33: 0 | AA33: 0 | AB33: 0
A34: FORMEL CELINE | B34: =Janvier!B35 -> FORMEL | C34: =Janvier!C35 -> CELINE | D34: =Janvier!D35 -> BUREAUX | F34: 0 | G34: 00:00:00 | H34: 00:00:00 | J34: 0 | K34: 00:00:00 | L34: 00:00:00 | N34: 0 | O34: 00:00:00 | P34: 00:00:00 | R34: 0 | S34: 00:00:00 | T34: 00:00:00 | V34: 0 | W34: 00:00:00 | X34: 00:00:00 | Y34: 0 | Z34: 0 | AA34: 0 | AB34: 0
A35: FOUACHE LENA | B35: =Janvier!B36 -> FOUACHE | C35: =Janvier!C36 -> LENA | D35: =Janvier!D36 -> QUALITE | F35: 0 | G35: 00:00:00 | H35: 00:00:00 | J35: 0 | K35: 00:00:00 | L35: 00:00:00 | N35: 0 | O35: 00:00:00 | P35: 00:00:00 | R35: 0 | S35: 00:00:00 | T35: 00:00:00 | V35: 0 | W35: 00:00:00 | X35: 00:00:00 | Y35: 0 | Z35: 0 | AA35: 0 | AB35: 0
A36: GALETTI Maud | B36: =Janvier!B37 -> GALETTI | C36: =Janvier!C37 -> Maud | D36: =Janvier!D37 -> FABRICATION | F36: 0 | G36: 00:00:00 | H36: 00:00:00 | J36: 0 | K36: 00:00:00 | L36: 00:00:00 | N36: 0 | O36: 00:00:00 | P36: 00:00:00 | R36: 0 | S36: 00:00:00 | T36: 00:00:00 | V36: 0 | W36: 00:00:00 | X36: 00:00:00 | Y36: 0 | Z36: 0 | AA36: 0 | AB36: 0
A37: GAY Stephane | B37: =Janvier!B38 -> GAY | C37: =Janvier!C38 -> Stephane | D37: =Janvier!D38 -> FABRICATION | F37: 0 | G37: 00:00:00 | H37: 00:00:00 | J37: 0 | K37: 00:00:00 | L37: 00:00:00 | N37: 0 | O37: 00:00:00 | P37: 00:00:00 | R37: 0 | S37: 00:00:00 | T37: 00:00:00 | V37: 0 | W37: 00:00:00 | X37: 00:00:00 | Y37: 0 | Z37: 0 | AA37: 0 | AB37: 0
A38: Graff MATHILDE | B38: =Janvier!B39 -> Graff | C38: =Janvier!C39 -> MATHILDE | D38: =Janvier!D39 -> CONDITIONNEMENT | F38: 0 | G38: 00:00:00 | H38: 00:00:00 | J38: 0 | K38: 00:00:00 | L38: 00:00:00 | N38: 0 | O38: 00:00:00 | P38: 00:00:00 | R38: 0 | S38: 00:00:00 | T38: 00:00:00 | V38: 0 | W38: 00:00:00 | X38: 00:00:00 | Y38: 0 | Z38: 0 | AA38: 0 | AB38: 0
A39: GRAPPIN Perrine | B39: =Janvier!B40 -> GRAPPIN | C39: =Janvier!C40 -> Perrine | D39: =Janvier!D40 -> FABRICATION | F39: 0 | G39: 00:00:00 | H39: 00:00:00 | J39: 0 | K39: 00:00:00 | L39: 00:00:00 | N39: 0 | O39: 00:00:00 | P39: 00:00:00 | R39: 0 | S39: 00:00:00 | T39: 00:00:00 | V39: 0 | W39: 00:00:00 | X39: 00:00:00 | Y39: 0 | Z39: 0 | AA39: 0 | AB39: 0
A40: GUENOT Anne | B40: =Janvier!B41 -> GUENOT | C40: =Janvier!C41 -> Anne | D40: =Janvier!D41 -> EXPEDITION | F40: 0 | G40: 00:00:00 | H40: 00:00:00 | J40: 0 | K40: 00:00:00 | L40: 00:00:00 | N40: 0 | O40: 00:00:00 | P40: 00:00:00 | R40: 0 | S40: 00:00:00 | T40: 00:00:00 | V40: 0 | W40: 00:00:00 | X40: 00:00:00 | Y40: 0 | Z40: 0 | AA40: 0 | AB40: 0
A41: GUYARD Christine | B41: =Janvier!B42 -> GUYARD | C41: =Janvier!C42 -> Christine | D41: =Janvier!D42 -> BUREAUX | F41: 0 | G41: 00:00:00 | H41: 00:00:00 | J41: 0 | K41: 00:00:00 | L41: 00:00:00 | N41: 0 | O41: 00:00:00 | P41: 00:00:00 | R41: 0 | S41: 00:00:00 | T41: 00:00:00 | V41: 0 | W41: 00:00:00 | X41: 00:00:00 | Y41: 0 | Z41: 0 | AA41: 0 | AB41: 0
A42: GUYARD Marie | B42: =Janvier!B43 -> GUYARD | C42: =Janvier!C43 -> Marie | D42: =Janvier!D43 -> FABRICATION | F42: 0 | G42: 00:00:00 | H42: 00:00:00 | J42: 0 | K42: 00:00:00 | L42: 00:00:00 | N42: 0 | O42: 00:00:00 | P42: 00:00:00 | R42: 0 | S42: 00:00:00 | T42: 00:00:00 | V42: 0 | W42: 00:00:00 | X42: 00:00:00 | Y42: 0 | Z42: 0 | AA42: 0 | AB42: 0
A43: GUYARD Marie | B43: =Janvier!B44 -> GUYARD | C43: =Janvier!C44 -> Marie | D43: =Janvier!D44 -> FABRICATION | F43: 0 | G43: 00:00:00 | H43: 00:00:00 | J43: 0 | K43: 00:00:00 | L43: 00:00:00 | N43: 0 | O43: 00:00:00 | P43: 00:00:00 | R43: 0 | S43: 00:00:00 | T43: 00:00:00 | V43: 0 | W43: 00:00:00 | X43: 00:00:00 | Y43: 0 | Z43: 0 | AA43: 0 | AB43: 0
A44: HARUTYUNYAN Haik | B44: =Janvier!B45 -> HARUTYUNYAN | C44: =Janvier!C45 -> Haik | D44: =Janvier!D45 -> FABRICATION | F44: 0 | G44: 00:00:00 | H44: 00:00:00 | J44: 0 | K44: 00:00:00 | L44: 00:00:00 | N44: 0 | O44: 00:00:00 | P44: 00:00:00 | R44: 0 | S44: 00:00:00 | T44: 00:00:00 | V44: 0 | W44: 00:00:00 | X44: 00:00:00 | Y44: 0 | Z44: 0 | AA44: 0 | AB44: 0
A45: IDRISSI Zinedinne | B45: =Janvier!B46 -> IDRISSI | C45: =Janvier!C46 -> Zinedinne | D45: =Janvier!D46 -> FABRICATION | F45: 0 | G45: 00:00:00 | H45: 00:00:00 | J45: 0 | K45: 00:00:00 | L45: 00:00:00 | N45: 0 | O45: 00:00:00 | P45: 00:00:00 | R45: 0 | S45: 00:00:00 | T45: 00:00:00 | V45: 0 | W45: 00:00:00 | X45: 00:00:00 | Y45: 0 | Z45: 0 | AA45: 0 | AB45: 0
A46: JULIEN Thomas | B46: =Janvier!B47 -> JULIEN | C46: =Janvier!C47 -> Thomas | D46: =Janvier!D47 -> Apprentis | F46: 0 | G46: 00:00:00 | H46: 00:00:00 | J46: 0 | K46: 00:00:00 | L46: 00:00:00 | N46: 0 | O46: 00:00:00 | P46: 00:00:00 | R46: 0 | S46: 00:00:00 | T46: 00:00:00 | V46: 0 | W46: 00:00:00 | X46: 00:00:00 | Y46: 0 | Z46: 0 | AA46: 0 | AB46: 0
A47: LABOREY Jonathan | B47: =Janvier!B48 -> LABOREY | C47: =Janvier!C48 -> Jonathan | D47: =Janvier!D48 -> EMBALLAGE | F47: 0 | G47: 00:00:00 | H47: 00:00:00 | J47: 0 | K47: 00:00:00 | L47: 00:00:00 | N47: 0 | O47: 00:00:00 | P47: 00:00:00 | R47: 0 | S47: 00:00:00 | T47: 00:00:00 | V47: 0 | W47: 00:00:00 | X47: 00:00:00 | Y47: 0 | Z47: 0 | AA47: 0 | AB47: 0
A48: LAHAYE Emmanuel | B48: =Janvier!B49 -> LAHAYE | C48: =Janvier!C49 -> Emmanuel | D48: =Janvier!D49 -> FABRICATION | F48: 0 | G48: 00:00:00 | H48: 00:00:00 | J48: 0 | K48: 00:00:00 | L48: 00:00:00 | N48: 0 | O48: 00:00:00 | P48: 00:00:00 | R48: 0 | S48: 00:00:00 | T48: 00:00:00 | V48: 0 | W48: 00:00:00 | X48: 00:00:00 | Y48: 0 | Z48: 0 | AA48: 0 | AB48: 0
A49: Lasalle Yann | B49: =Janvier!B50 -> Lasalle | C49: =Janvier!C50 -> Yann | D49: =Janvier!D50 -> CHAUFFEURS | F49: 0 | G49: 00:00:00 | H49: 00:00:00 | J49: 0 | K49: 00:00:00 | L49: 00:00:00 | N49: 0 | O49: 00:00:00 | P49: 00:00:00 | R49: 0 | S49: 00:00:00 | T49: 00:00:00 | V49: 0 | W49: 00:00:00 | X49: 00:00:00 | Y49: 0 | Z49: 0 | AA49: 0 | AB49: 0
A50: LORY ANNICK | B50: =Janvier!B51 -> LORY | C50: =Janvier!C51 -> ANNICK | D50: =Janvier!D51 -> FABRICATION | F50: 0 | G50: 00:00:00 | H50: 00:00:00 | J50: 0 | K50: 00:00:00 | L50: 00:00:00 | N50: 0 | O50: 00:00:00 | P50: 00:00:00 | R50: 0 | S50: 00:00:00 | T50: 00:00:00 | V50: 0 | W50: 00:00:00 | X50: 00:00:00 | Y50: 0 | Z50: 0 | AA50: 0 | AB50: 0
A51: LOXTON Morné | B51: =Janvier!B52 -> LOXTON | C51: =Janvier!C52 -> Morné | D51: =Janvier!D52 -> FABRICATION | F51: 0 | G51: 00:00:00 | H51: 00:00:00 | J51: 0 | K51: 00:00:00 | L51: 00:00:00 | N51: 0 | O51: 00:00:00 | P51: 00:00:00 | R51: 0 | S51: 00:00:00 | T51: 00:00:00 | V51: 0 | W51: 00:00:00 | X51: 00:00:00 | Y51: 0 | Z51: 0 | AA51: 0 | AB51: 0
A52: MAILLER Philippe | B52: =Janvier!B53 -> MAILLER | C52: =Janvier!C53 -> Philippe | D52: =Janvier!D53 -> CHAUFFEURS | F52: 0 | G52: 00:00:00 | H52: 00:00:00 | J52: 0 | K52: 00:00:00 | L52: 00:00:00 | N52: 0 | O52: 00:00:00 | P52: 00:00:00 | R52: 0 | S52: 00:00:00 | T52: 00:00:00 | V52: 0 | W52: 00:00:00 | X52: 00:00:00 | Y52: 0 | Z52: 0 | AA52: 0 | AB52: 0
A53: MANOUKIAN Arman | B53: =Janvier!B54 -> MANOUKIAN | C53: =Janvier!C54 -> Arman | D53: =Janvier!D54 -> FABRICATION | F53: 0 | G53: 00:00:00 | H53: 00:00:00 | J53: 0 | K53: 00:00:00 | L53: 00:00:00 | N53: 0 | O53: 00:00:00 | P53: 00:00:00 | R53: 0 | S53: 00:00:00 | T53: 00:00:00 | V53: 0 | W53: 00:00:00 | X53: 00:00:00 | Y53: 0 | Z53: 0 | AA53: 0 | AB53: 0
A54: MARGUIER Stéphane | B54: =Janvier!B55 -> MARGUIER | C54: =Janvier!C55 -> Stéphane | D54: =Janvier!D55 -> EMBALLAGE | F54: 0 | G54: 00:00:00 | H54: 00:00:00 | J54: 0 | K54: 00:00:00 | L54: 00:00:00 | N54: 0 | O54: 00:00:00 | P54: 00:00:00 | R54: 0 | S54: 00:00:00 | T54: 00:00:00 | V54: 0 | W54: 00:00:00 | X54: 00:00:00 | Y54: 0 | Z54: 0 | AA54: 0 | AB54: 0
A55: MARGUIER Stéphane | B55: =Janvier!B56 -> MARGUIER | C55: =Janvier!C56 -> Stéphane | D55: =Janvier!D56 -> NSG | F55: 0 | G55: 00:00:00 | H55: 00:00:00 | J55: 0 | K55: 00:00:00 | L55: 00:00:00 | N55: 0 | O55: 00:00:00 | P55: 00:00:00 | R55: 0 | S55: 00:00:00 | T55: 00:00:00 | V55: 0 | W55: 00:00:00 | X55: 00:00:00 | Y55: 0 | Z55: 0 | AA55: 0 | AB55: 0
A56: MARTIN Julien | B56: =Janvier!B57 -> MARTIN | C56: =Janvier!C57 -> Julien | D56: =Janvier!D57 -> EMBALLAGE | F56: 0 | G56: 00:00:00 | H56: 00:00:00 | J56: 0 | K56: 00:00:00 | L56: 00:00:00 | N56: 0 | O56: 00:00:00 | P56: 00:00:00 | R56: 0 | S56: 00:00:00 | T56: 00:00:00 | V56: 0 | W56: 00:00:00 | X56: 00:00:00 | Y56: 0 | Z56: 0 | AA56: 0 | AB56: 0
A57: MARTIN Pierre | B57: =Janvier!B58 -> MARTIN | C57: =Janvier!C58 -> Pierre | D57: =Janvier!D58 -> FABRICATION | F57: 0 | G57: 00:00:00 | H57: 00:00:00 | J57: 0 | K57: 00:00:00 | L57: 00:00:00 | N57: 0 | O57: 00:00:00 | P57: 00:00:00 | R57: 0 | S57: 00:00:00 | T57: 00:00:00 | V57: 0 | W57: 00:00:00 | X57: 00:00:00 | Y57: 0 | Z57: 0 | AA57: 0 | AB57: 0
A58: MINASYAN ARMAN | B58: =Janvier!B59 -> MINASYAN | C58: =Janvier!C59 -> ARMAN | D58: =Janvier!D59 -> FABRICATION | F58: 0 | G58: 00:00:00 | H58: 00:00:00 | J58: 0 | K58: 00:00:00 | L58: 00:00:00 | N58: 0 | O58: 00:00:00 | P58: 00:00:00 | R58: 0 | S58: 00:00:00 | T58: 00:00:00 | V58: 0 | W58: 00:00:00 | X58: 00:00:00 | Y58: 0 | Z58: 0 | AA58: 0 | AB58: 0
A59: MORET Robin | B59: =Janvier!B60 -> MORET | C59: =Janvier!C60 -> Robin | D59: =Janvier!D60 -> CHAUFFEURS | F59: 0 | G59: 00:00:00 | H59: 00:00:00 | J59: 0 | K59: 00:00:00 | L59: 00:00:00 | N59: 0 | O59: 00:00:00 | P59: 00:00:00 | R59: 0 | S59: 00:00:00 | T59: 00:00:00 | V59: 0 | W59: 00:00:00 | X59: 00:00:00 | Y59: 0 | Z59: 0 | AA59: 0 | AB59: 0
A60: MORIAUX Charles-Henry | B60: =Janvier!B61 -> MORIAUX | C60: =Janvier!C61 -> Charles-Henry | D60: =Janvier!D61 -> EXPEDITION | F60: 0 | G60: 00:00:00 | H60: 00:00:00 | J60: 0 | K60: 00:00:00 | L60: 00:00:00 | N60: 0 | O60: 00:00:00 | P60: 00:00:00 | R60: 0 | S60: 00:00:00 | T60: 00:00:00 | V60: 0 | W60: 00:00:00 | X60: 00:00:00 | Y60: 0 | Z60: 0 | AA60: 0 | AB60: 0
A61: MORIN Christophe | B61: =Janvier!B62 -> MORIN | C61: =Janvier!C62 -> Christophe | D61: =Janvier!D62 -> FABRICATION | F61: 0 | G61: 00:00:00 | H61: 00:00:00 | J61: 0 | K61: 00:00:00 | L61: 00:00:00 | N61: 0 | O61: 00:00:00 | P61: 00:00:00 | R61: 0 | S61: 00:00:00 | T61: 00:00:00 | V61: 0 | W61: 00:00:00 | X61: 00:00:00 | Y61: 0 | Z61: 0 | AA61: 0 | AB61: 0
A62: MORTET Alice | B62: =Janvier!B63 -> MORTET | C62: =Janvier!C63 -> Alice | D62: =Janvier!D63 -> EXPEDITION | F62: 0 | G62: 00:00:00 | H62: 00:00:00 | J62: 0 | K62: 00:00:00 | L62: 00:00:00 | N62: 0 | O62: 00:00:00 | P62: 00:00:00 | R62: 0 | S62: 00:00:00 | T62: 00:00:00 | V62: 0 | W62: 00:00:00 | X62: 00:00:00 | Y62: 0 | Z62: 0 | AA62: 0 | AB62: 0
A63: M'SAKINI Coralie | B63: =Janvier!B64 -> M'SAKINI | C63: =Janvier!C64 -> Coralie | D63: =Janvier!D64 -> COMMERCIAL | F63: 0 | G63: 00:00:00 | H63: 00:00:00 | J63: 0 | K63: 00:00:00 | L63: 00:00:00 | N63: 0 | O63: 00:00:00 | P63: 00:00:00 | R63: 0 | S63: 00:00:00 | T63: 00:00:00 | V63: 0 | W63: 00:00:00 | X63: 00:00:00 | Y63: 0 | Z63: 0 | AA63: 0 | AB63: 0
A64: NEAULT Emilie | B64: =Janvier!B65 -> NEAULT | C64: =Janvier!C65 -> Emilie | D64: =Janvier!D65 -> EMBALLAGE | F64: 0 | G64: 00:00:00 | H64: 00:00:00 | J64: 0 | K64: 00:00:00 | L64: 00:00:00 | N64: 0 | O64: 00:00:00 | P64: 00:00:00 | R64: 0 | S64: 00:00:00 | T64: 00:00:00 | V64: 0 | W64: 00:00:00 | X64: 00:00:00 | Y64: 0 | Z64: 0 | AA64: 0 | AB64: 0
A65: OCQUIDANT MANON | B65: =Janvier!B66 -> OCQUIDANT | C65: =Janvier!C66 -> MANON | D65: =Janvier!D66 -> FABRICATION | F65: 0 | G65: 00:00:00 | H65: 00:00:00 | J65: 0 | K65: 00:00:00 | L65: 00:00:00 | N65: 0 | O65: 00:00:00 | P65: 00:00:00 | R65: 0 | S65: 00:00:00 | T65: 00:00:00 | V65: 0 | W65: 00:00:00 | X65: 00:00:00 | Y65: 0 | Z65: 0 | AA65: 0 | AB65: 0
A66: PACOT Louis | B66: =Janvier!B67 -> PACOT | C66: =Janvier!C67 -> Louis | D66: =Janvier!D67 -> FABRICATION | F66: 0 | G66: 00:00:00 | H66: 00:00:00 | J66: 0 | K66: 00:00:00 | L66: 00:00:00 | N66: 0 | O66: 00:00:00 | P66: 00:00:00 | R66: 0 | S66: 00:00:00 | T66: 00:00:00 | V66: 0 | W66: 00:00:00 | X66: 00:00:00 | Y66: 0 | Z66: 0 | AA66: 0 | AB66: 0
A67: PACOT BENJAMIN | B67: =Janvier!B68 -> PACOT | C67: =Janvier!C68 -> BENJAMIN | D67: =Janvier!D68 -> FABRICATION | F67: 0 | G67: 00:00:00 | H67: 00:00:00 | J67: 0 | K67: 00:00:00 | L67: 00:00:00 | N67: 0 | O67: 00:00:00 | P67: 00:00:00 | R67: 0 | S67: 00:00:00 | T67: 00:00:00 | V67: 0 | W67: 00:00:00 | X67: 00:00:00 | Y67: 0 | Z67: 0 | AA67: 0 | AB67: 0
A68: PASSOT jean luc | B68: =Janvier!B69 -> PASSOT | C68: =Janvier!C69 -> jean luc | D68: =Janvier!D69 -> CHAUFFEURS | F68: 0 | G68: 00:00:00 | H68: 00:00:00 | J68: 0 | K68: 00:00:00 | L68: 00:00:00 | N68: 0 | O68: 00:00:00 | P68: 00:00:00 | R68: 0 | S68: 00:00:00 | T68: 00:00:00 | V68: 0 | W68: 00:00:00 | X68: 00:00:00 | Y68: 0 | Z68: 0 | AA68: 0 | AB68: 0
A69: PAYET Cédric | B69: =Janvier!B70 -> PAYET | C69: =Janvier!C70 -> Cédric | D69: =Janvier!D70 -> FABRICATION | F69: 0 | G69: 00:00:00 | H69: 00:00:00 | J69: 0 | K69: 00:00:00 | L69: 00:00:00 | N69: 0 | O69: 00:00:00 | P69: 00:00:00 | R69: 0 | S69: 00:00:00 | T69: 00:00:00 | V69: 0 | W69: 00:00:00 | X69: 00:00:00 | Y69: 0 | Z69: 0 | AA69: 0 | AB69: 0
A70: PAYET Cédric | B70: =Janvier!B71 -> PAYET | C70: =Janvier!C71 -> Cédric | D70: =Janvier!D71 -> NSG | F70: 0 | G70: 00:00:00 | H70: 00:00:00 | J70: 0 | K70: 00:00:00 | L70: 00:00:00 | N70: 0 | O70: 00:00:00 | P70: 00:00:00 | R70: 0 | S70: 00:00:00 | T70: 00:00:00 | V70: 0 | W70: 00:00:00 | X70: 00:00:00 | Y70: 0 | Z70: 0 | AA70: 0 | AB70: 0
A71: PETIT ISABELLE | B71: =Janvier!B72 -> PETIT | C71: =Janvier!C72 -> ISABELLE | D71: =Janvier!D72 -> CONDITIONNEMENT | F71: 0 | G71: 00:00:00 | H71: 00:00:00 | J71: 0 | K71: 00:00:00 | L71: 00:00:00 | N71: 0 | O71: 00:00:00 | P71: 00:00:00 | R71: 0 | S71: 00:00:00 | T71: 00:00:00 | V71: 0 | W71: 00:00:00 | X71: 00:00:00 | Y71: 0 | Z71: 0 | AA71: 0 | AB71: 0
A72: PIGEARD Jérémy | B72: =Janvier!B73 -> PIGEARD | C72: =Janvier!C73 -> Jérémy | D72: =Janvier!D73 -> FABRICATION | F72: 0 | G72: 00:00:00 | H72: 00:00:00 | J72: 0 | K72: 00:00:00 | L72: 00:00:00 | N72: =IF(M72<(1/24*35),0,M72-(1/24*35)) -> 0 | O72: =IF(N72>=1/24*8,1/24*8,N72) -> 00:00:00 | P72: =IF(N72-O72>0,N72-O72,0) -> 00:00:00 | R72: =IF(Q72<(1/24*35),0,Q72-(1/24*35)) -> 0 | S72: =IF(R72>=1/24*8,1/24*8,R72) -> 00:00:00 | T72: =IF(R72-S72>0,R72-S72,0) -> 00:00:00 | V72: =IF(U72<(1/24*35),0,U72-(1/24*35)) -> 0 | W72: =IF(V72>=1/24*8,1/24*8,V72) -> 00:00:00 | X72: =IF(V72-W72>0,V72-W72,0) -> 00:00:00 | Y72: 0 | Z72: 0 | AA72: 0 | AB72: 0
A73: =B73&" "&C73 -> POIGNANT Anthony | B73: =Janvier!B74 -> POIGNANT | C73: =Janvier!C74 -> Anthony | D73: =Janvier!D74 -> EMBALLAGE | F73: 0 | G73: 00:00:00 | H73: =IF(F73-G73>0,F73-G73,0) -> 00:00:00 | J73: 0 | K73: 00:00:00 | L73: =IF(J73-K73>0,J73-K73,0) -> 00:00:00 | N73: 0 | O73: 00:00:00 | P73: 00:00:00 | R73: 0 | S73: 00:00:00 | T73: 00:00:00 | V73: 0 | W73: 00:00:00 | X73: 00:00:00 | Y73: =SUMIF($E$7:$X$7,$I$7,$E73:$X73) -> 0 | Z73: =SUMIF($E$7:$X$7,$Z$7,$E73:$X73) -> 0 | AA73: =SUMIF($E$7:$X$7,$AA$7,$E73:$X73) -> 0 | AB73: =SUMIF($E$7:$X$7,$AB$7,$E73:$X73) -> 0
A74: PRINCET Véronique | B74: =Janvier!B75 -> PRINCET | C74: =Janvier!C75 -> Véronique | D74: =Janvier!D75 -> EMBALLAGE | F74: =IF(E74<(1/24*35),0,E74-(1/24*35)) -> 0 | G74: =IF(F74>=1/24*8,1/24*8,F74) -> 00:00:00 | H74: 00:00:00 | J74: =IF(I74<(1/24*35),0,I74-(1/24*35)) -> 0 | K74: =IF(J74>=1/24*8,1/24*8,J74) -> 00:00:00 | L74: 00:00:00 | N74: 0 | O74: 00:00:00 | P74: 00:00:00 | R74: 0 | S74: 00:00:00 | T74: 00:00:00 | V74: 0 | W74: 00:00:00 | X74: 00:00:00 | Y74: 0 | Z74: 0 | AA74: 0 | AB74: 0
A75: PRUDENT Axelle | B75: =Janvier!B76 -> PRUDENT | C75: =Janvier!C76 -> Axelle | D75: =Janvier!D76 -> Apprentis | F75: 0 | G75: 00:00:00 | H75: 00:00:00 | J75: 0 | K75: 00:00:00 | L75: 00:00:00 | N75: 0 | O75: 00:00:00 | P75: 00:00:00 | R75: 0 | S75: 00:00:00 | T75: 00:00:00 | V75: 0 | W75: 00:00:00 | X75: 00:00:00 | Y75: 0 | Z75: 0 | AA75: 0 | AB75: 0
A76: PUSSET Françis | B76: =Janvier!B77 -> PUSSET | C76: =Janvier!C77 -> Françis | D76: =Janvier!D77 -> FABRICATION | F76: 0 | G76: 00:00:00 | H76: 00:00:00 | J76: 0 | K76: 00:00:00 | L76: 00:00:00 | N76: 0 | O76: 00:00:00 | P76: 00:00:00 | R76: 0 | S76: 00:00:00 | T76: 00:00:00 | V76: 0 | W76: 00:00:00 | X76: 00:00:00 | Y76: 0 | Z76: 0 | AA76: 0 | AB76: 0
A77: ROGER Céline | B77: =Janvier!B78 -> ROGER | C77: =Janvier!C78 -> Céline | D77: =Janvier!D78 -> BUREAUX | F77: 0 | G77: 00:00:00 | H77: 00:00:00 | J77: 0 | K77: 00:00:00 | L77: 00:00:00 | N77: 0 | O77: 00:00:00 | P77: 00:00:00 | R77: 0 | S77: 00:00:00 | T77: 00:00:00 | V77: 0 | W77: 00:00:00 | X77: 00:00:00 | Y77: 0 | Z77: 0 | AA77: 0 | AB77: 0
A78: ROY Marianne | B78: =Janvier!B79 -> ROY | C78: =Janvier!C79 -> Marianne | D78: =Janvier!D79 -> NSG | F78: 0 | G78: 00:00:00 | H78: 00:00:00 | J78: 0 | K78: 00:00:00 | L78: 00:00:00 | N78: 0 | O78: 00:00:00 | P78: 00:00:00 | R78: 0 | S78: 00:00:00 | T78: 00:00:00 | V78: 0 | W78: 00:00:00 | X78: 00:00:00 | Y78: 0 | Z78: 0 | AA78: 0 | AB78: 0
A79: ROY SEBASTIEN | B79: =Janvier!B80 -> ROY | C79: =Janvier!C80 -> SEBASTIEN | D79: =Janvier!D80 -> EXPEDITION | F79: 0 | G79: 00:00:00 | H79: 00:00:00 | J79: 0 | K79: 00:00:00 | L79: 00:00:00 | N79: 0 | O79: 00:00:00 | P79: 00:00:00 | R79: 0 | S79: 00:00:00 | T79: 00:00:00 | V79: 0 | W79: 00:00:00 | X79: 00:00:00 | Y79: 0 | Z79: 0 | AA79: 0 | AB79: 0
A80: SABRI Moha | B80: =Janvier!B81 -> SABRI | C80: =Janvier!C81 -> Moha | D80: =Janvier!D81 -> FABRICATION | F80: 0 | G80: 00:00:00 | H80: 00:00:00 | J80: 0 | K80: 00:00:00 | L80: 00:00:00 | N80: 0 | O80: 00:00:00 | P80: 00:00:00 | R80: 0 | S80: 00:00:00 | T80: 00:00:00 | V80: 0 | W80: 00:00:00 | X80: 00:00:00 | Y80: 0 | Z80: 0 | AA80: 0 | AB80: 0
A81: SAVARIAT Betty | B81: =Janvier!B82 -> SAVARIAT | C81: =Janvier!C82 -> Betty | D81: =Janvier!D82 -> EMBALLAGE | F81: 0 | G81: 00:00:00 | H81: 00:00:00 | J81: 0 | K81: 00:00:00 | L81: 00:00:00 | N81: 0 | O81: 00:00:00 | P81: 00:00:00 | R81: 0 | S81: 00:00:00 | T81: 00:00:00 | V81: 0 | W81: 00:00:00 | X81: 00:00:00 | Y81: 0 | Z81: 0 | AA81: 0 | AB81: 0
E82: =SUM(E8:E81) -> 0 | F82: 0 | G82: 0 | H82: 0 | I82: 0 | J82: 0 | K82: 0 | L82: 0 | M82: 0 | N82: 0 | O82: 0 | P82: 0 | Q82: 0 | R82: 0 | S82: 0 | T82: 0 | U82: 0 | V82: 0 | W82: 0 | X82: 0 | Y82: =SUM(Y8:Y81) -> 0 | Z82: =SUM(Z8:Z81) -> 0 | AA82: 0 | AB82: 0

Sheet Mars
C1: Menu | U1: =IF($U$5="","masquer colonne","") ->  | V1: =IF($U$5="","masquer colonne","") -> 
A2: =COUNTIF(U1:X1,"masquer colonne") -> 0
B3: =VALUE("01/03/"&Janvier!$B$1) -> 2017-03-01 | E3: =CHOOSE(MONTH(B3),"Janvier","Février","Mars","Avril","Mai","Juin","Juillet","Août","Septembre","Octobre","Novembre","Décembre") -> Mars
E4: =WEEKNUM(E5,21) -> 9 | I4: =WEEKNUM(I5,21) -> 10 | M4: =WEEKNUM(M5,21) -> 11 | Q4: =WEEKNUM(Q5,21) -> 12 | U4: =IF(U5="","",WEEKNUM(U5,21)) -> 13
E5: =VALUE("01/"&MONTH(B3)&"/"&YEAR($B$3))+CHOOSE(WEEKDAY(VALUE("01/"&MONTH(B3)&"/"&YEAR($B$3)),2),6,5,4,10,9,8,7) -> 2017-03-05 | I5: =E5+7 -> 2017-03-12 | M5: =I5+7 -> 2017-03-19 | Q5: =M5+7 -> 2017-03-26 | U5: =IF(DAY(Q5+7)>4,"",Q5+7) -> 2017-04-02
E6: =CHOOSE(WEEKDAY(E5,2),"Lundi","Mardi","Mercredi","Jeudi","Vendredi","Samedi","Dimanche") -> Dimanche | I6: =CHOOSE(WEEKDAY(I5,2),"Lundi","Mardi","Mercredi","Jeudi","Vendredi","Samedi","Dimanche") -> Dimanche | M6: =CHOOSE(WEEKDAY(M5,2),"Lundi","Mardi","Mercredi","Jeudi","Vendredi","Samedi","Dimanche") -> Dimanche | Q6: =CHOOSE(WEEKDAY(Q5,2),"Lundi","Mardi","Mercredi","Jeudi","Vendredi","Samedi","Dimanche") -> Dimanche | U6: =IF(U5="","",CHOOSE(WEEKDAY(U5,2),"Lundi","Mardi","Mercredi","Jeudi","Vendredi","Samedi","Dimanche")) -> Dimanche | Y6: ="Total heures mois "&E3 -> Total heures mois Mars
B7: NOM | C7: PRENOM | D7: SECTEUR | E7: Total Sem. | F7: Heure sup. | G7: Heure 25% | H7: Heure 50% | I7: Total Sem. | J7: Heure sup. | K7: Heure 25% | L7: Heure 50% | M7: Total Sem. | N7: Heure sup. | O7: Heure 25% | P7: Heure 50% | Q7: Total Sem. | R7: Heure sup. | S7: Heure 25% | T7: Heure 50% | U7: Total Sem. | V7: Heure sup. | W7: Heure 25% | X7: Heure 50% | Y7: Total Sem. | Z7: Heure sup. | AA7: Heure 25% | AB7: Heure 50%
A8: =B8&" "&C8 -> AMIOT Anne-Lise | B8: =Janvier!B8 -> AMIOT | C8: =Janvier!C8 -> Anne-Lise | D8: =Janvier!D8 -> QUALITE | F8: =IF(E8<(1/24*35),0,E8-(1/24*35)) -> 0 | G8: =IF(F8>=1/24*8,1/24*8,F8) -> 00:00:00 | H8: =IF(F8-G8>0,F8-G8,0) -> 00:00:00 | J8: =IF(I8<(1/24*35),0,I8-(1/24*35)) -> 0 | K8: =IF(J8>=1/24*8,1/24*8,J8) -> 00:00:00 | L8: =IF(J8-K8>0,J8-K8,0) -> 00:00:00 | N8: =IF(M8<(1/24*35),0,M8-(1/24*35)) -> 0 | O8: =IF(N8>=1/24*8,1/24*8,N8) -> 00:00:00 | P8: =IF(N8-O8>0,N8-O8,0) -> 00:00:00 | R8: =IF(Q8<(1/24*35),0,Q8-(1/24*35)) -> 0 | S8: =IF(R8>=1/24*8,1/24*8,R8) -> 00:00:00 | T8: =IF(R8-S8>0,R8-S8,0) -> 00:00:00 | V8: =IF(U8<(1/24*35),0,U8-(1/24*35)) -> 0 | W8: =IF(V8>=1/24*8,1/24*8,V8) -> 00:00:00 | X8: =IF(V8-W8>0,V8-W8,0) -> 00:00:00 | Y8: =SUMIF($E$7:$X$7,$I$7,$E8:$X8) -> 0 | Z8: =SUMIF($E$7:$X$7,$Z$7,$E8:$X8) -> 0 | AA8: =SUMIF($E$7:$X$7,$AA$7,$E8:$X8) -> 0 | AB8: =SUMIF($E$7:$X$7,$AB$7,$E8:$X8) -> 0
A9: =B9&" "&C9 -> ANDRE FABIEN | B9: =Janvier!B9 -> ANDRE | C9: =Janvier!C9 -> FABIEN | D9: =Janvier!D9 -> FABRICATION | F9: =IF(E9<(1/24*35),0,E9-(1/24*35)) -> 0 | G9: =IF(F9>=1/24*8,1/24*8,F9) -> 00:00:00 | H9: =IF(F9-G9>0,F9-G9,0) -> 00:00:00 | J9: =IF(I9<(1/24*35),0,I9-(1/24*35)) -> 0 | K9: =IF(J9>=1/24*8,1/24*8,J9) -> 00:00:00 | L9: =IF(J9-K9>0,J9-K9,0) -> 00:00:00 | N9: =IF(M9<(1/24*35),0,M9-(1/24*35)) -> 0 | O9: =IF(N9>=1/24*8,1/24*8,N9) -> 00:00:00 | P9: =IF(N9-O9>0,N9-O9,0) -> 00:00:00 | R9: =IF(Q9<(1/24*35),0,Q9-(1/24*35)) -> 0 | S9: =IF(R9>=1/24*8,1/24*8,R9) -> 00:00:00 | T9: =IF(R9-S9>0,R9-S9,0) -> 00:00:00 | V9: =IF(U9<(1/24*35),0,U9-(1/24*35)) -> 0 | W9: =IF(V9>=1/24*8,1/24*8,V9) -> 00:00:00 | X9: =IF(V9-W9>0,V9-W9,0) -> 00:00:00 | Y9: =SUMIF($E$7:$X$7,$I$7,$E9:$X9) -> 0 | Z9: =SUMIF($E$7:$X$7,$Z$7,$E9:$X9) -> 0 | AA9: =SUMIF($E$7:$X$7,$AA$7,$E9:$X9) -> 0 | AB9: =SUMIF($E$7:$X$7,$AB$7,$E9:$X9) -> 0
A10: AUDIARD FLORIAN | B10: =Janvier!B10 -> AUDIARD | C10: =Janvier!C10 -> FLORIAN | D10: =Janvier!D10 -> FABRICATION | F10: 0 | G10: 00:00:00 | H10: 00:00:00 | J10: 0 | K10: 00:00:00 | L10: 00:00:00 | N10: 0 | O10: 00:00:00 | P10: 00:00:00 | R10: 0 | S10: 00:00:00 | T10: 00:00:00 | V10: 0 | W10: 00:00:00 | X10: 00:00:00 | Y10: 0 | Z10: 0 | AA10: 0 | AB10: 0
A11: AZEVEDO Catherine | B11: =Janvier!B11 -> AZEVEDO | C11: =Janvier!C11 -> Catherine | D11: =Janvier!D11 -> EMBALLAGE | F11: 0 | G11: 00:00:00 | H11: 00:00:00 | J11: 0 | K11: 00:00:00 | L11: 00:00:00 | N11: 0 | O11: 00:00:00 | P11: 00:00:00 | R11: 0 | S11: 00:00:00 | T11: 00:00:00 | V11: 0 | W11: 00:00:00 | X11: 00:00:00 | Y11: 0 | Z11: 0 | AA11: 0 | AB11: 0
A12: BARBIER Nathalie | B12: =Janvier!B12 -> BARBIER | C12: =Janvier!C12 -> Nathalie | D12: =Janvier!D12 -> QUALITE | F12: 0 | G12: 00:00:00 | H12: 00:00:00 | J12: 0 | K12: 00:00:00 | L12: 00:00:00 | N12: 0 | O12: 00:00:00 | P12: 00:00:00 | R12: 0 | S12: 00:00:00 | T12: 00:00:00 | V12: 0 | W12: 00:00:00 | X12: 00:00:00 | Y12: 0 | Z12: 0 | AA12: 0 | AB12: 0
A13: BECHTOLD Marie-Christine | B13: =Janvier!B13 -> BECHTOLD | C13: =Janvier!C13 -> Marie-Christine | D13: =Janvier!D13 -> EMBALLAGE | F13: 0 | G13: 00:00:00 | H13: 00:00:00 | J13: 0 | K13: 00:00:00 | L13: 00:00:00 | N13: 0 | O13: 00:00:00 | P13: 00:00:00 | R13: 0 | S13: 00:00:00 | T13: 00:00:00 | V13: 0 | W13: 00:00:00 | X13: 00:00:00 | Y13: 0 | Z13: 0 | AA13: 0 | AB13: 0
A14: BEURET MAUD | B14: =Janvier!B14 -> BEURET | C14: =Janvier!C14 -> MAUD | D14: =Janvier!D14 -> MAGASIN | F14: 0 | G14: 00:00:00 | H14: 00:00:00 | J14: 0 | K14: 00:00:00 | L14: 00:00:00 | N14: 0 | O14: 00:00:00 | P14: 00:00:00 | R14: 0 | S14: 00:00:00 | T14: 00:00:00 | V14: 0 | W14: 00:00:00 | X14: 00:00:00 | Y14: 0 | Z14: 0 | AA14: 0 | AB14: 0
A15: BOUEZNARD Myriam | B15: =Janvier!B15 -> BOUEZNARD | C15: =Janvier!C15 -> Myriam | D15: =Janvier!D15 -> NSG | F15: 0 | G15: 00:00:00 | H15: 00:00:00 | J15: 0 | K15: 00:00:00 | L15: 00:00:00 | N15: 0 | O15: 00:00:00 | P15: 00:00:00 | R15: 0 | S15: 00:00:00 | T15: 00:00:00 | V15: 0 | W15: 00:00:00 | X15: 00:00:00 | Y15: 0 | Z15: 0 | AA15: 0 | AB15: 0
A16: Boutiflat James | B16: =Janvier!B16 -> Boutiflat | C16: =Janvier!C16 -> James | D16: =Janvier!D16 -> EMBALLAGE | F16: 0 | G16: 00:00:00 | H16: 00:00:00 | J16: 0 | K16: 00:00:00 | L16: 00:00:00 | N16: 0 | O16: 00:00:00 | P16: 00:00:00 | R16: 0 | S16: 00:00:00 | T16: 00:00:00 | V16: 0 | W16: 00:00:00 | X16: 00:00:00 | Y16: 0 | Z16: 0 | AA16: 0 | AB16: 0
A17: BOUZENARD Adrien | B17: =Janvier!B17 -> BOUZENARD | C17: =Janvier!C17 -> Adrien | D17: =Janvier!D17 -> FABRICATION | F17: 0 | G17: 00:00:00 | H17: 00:00:00 | J17: 0 | K17: 00:00:00 | L17: 00:00:00 | N17: 0 | O17: 00:00:00 | P17: 00:00:00 | R17: 0 | S17: 00:00:00 | T17: 00:00:00 | V17: 0 | W17: 00:00:00 | X17: 00:00:00 | Y17: 0 | Z17: 0 | AA17: 0 | AB17: 0
A18: BOUZENARD Myriam | B18: =Janvier!B18 -> BOUZENARD | C18: =Janvier!C18 -> Myriam | D18: =Janvier!D18 -> EMBALLAGE | F18: 0 | G18: 00:00:00 | H18: 00:00:00 | J18: 0 | K18: 00:00:00 | L18: 00:00:00 | N18: 0 | O18: 00:00:00 | P18: 00:00:00 | R18: 0 | S18: 00:00:00 | T18: 00:00:00 | V18: 0 | W18: 00:00:00 | X18: 00:00:00 | Y18: 0 | Z18: 0 | AA18: 0 | AB18: 0
A19: CARRION JEAN-CLAUDE | B19: =Janvier!B19 -> CARRION | C19: =Janvier!C19 -> JEAN-CLAUDE | D19: =Janvier!D19 -> CHAUFFEURS | F19: 0 | G19: 00:00:00 | H19: 00:00:00 | J19: 0 | K19: 00:00:00 | L19: 00:00:00 | N19: 0 | O19: 00:00:00 | P19: 00:00:00 | R19: 0 | S19: 00:00:00 | T19: 00:00:00 | V19: 0 | W19: 00:00:00 | X19: 00:00:00 | Y19: 0 | Z19: 0 | AA19: 0 | AB19: 0
A20: CARTERON Claudine | B20: =Janvier!B20 -> CARTERON | C20: =Janvier!C20 -> Claudine | D20: =Janvier!D20 -> BUREAUX | F20: 0 | G20: 00:00:00 | H20: 00:00:00 | J20: 0 | K20: 00:00:00 | L20: 00:00:00 | N20: 0 | O20: 00:00:00 | P20: 00:00:00 | R20: 0 | S20: 00:00:00 | T20: 00:00:00 | V20: 0 | W20: 00:00:00 | X20: 00:00:00 | Y20: 0 | Z20: 0 | AA20: 0 | AB20: 0
A21: CHAUDRON Amandine | B21: =Janvier!B21 -> CHAUDRON | C21: =Janvier!C21 -> Amandine | D21: =Janvier!D21 -> EMBALLAGE | F21: 0 | G21: 00:00:00 | H21: 00:00:00 | J21: 0 | K21: 00:00:00 | L21: 00:00:00 | N21: 0 | O21: 00:00:00 | P21: 00:00:00 | R21: 0 | S21: 00:00:00 | T21: 00:00:00 | V21: 0 | W21: 00:00:00 | X21: 00:00:00 | Y21: 0 | Z21: 0 | AA21: 0 | AB21: 0
A22: CHAUDRON Virginie | B22: =Janvier!B22 -> CHAUDRON | C22: =Janvier!C22 -> Virginie | D22: =Janvier!D22 -> FABRICATION | F22: 0 | G22: 00:00:00 | H22: 00:00:00 | J22: 0 | K22: 00:00:00 | L22: 00:00:00 | N22: 0 | O22: 00:00:00 | P22: 00:00:00 | R22: 0 | S22: 00:00:00 | T22: 00:00:00 | V22: 0 | W22: 00:00:00 | X22: 00:00:00 | Y22: 0 | Z22: 0 | AA22: 0 | AB22: 0
A23: CHEVAUX Rodolphe | B23: =Janvier!B23 -> CHEVAUX | C23: =Janvier!C23 -> Rodolphe | D23: =Janvier!D23 -> MAINTENANCE | F23: 0 | G23: 00:00:00 | H23: 00:00:00 | J23: 0 | K23: 00:00:00 | L23: 00:00:00 | N23: 0 | O23: 00:00:00 | P23: 00:00:00 | R23: 0 | S23: 00:00:00 | T23: 00:00:00 | V23: 0 | W23: 00:00:00 | X23: 00:00:00 | Y23: 0 | Z23: 0 | AA23: 0 | AB23: 0
A24: COCHARD Hervé | B24: =Janvier!B24 -> COCHARD | C24: =Janvier!C24 -> Hervé | D24: =Janvier!D24 -> COMMERCIAL | F24: 0 | G24: 00:00:00 | H24: 00:00:00 | J24: 0 | K24: 00:00:00 | L24: 00:00:00 | N24: 0 | O24: 00:00:00 | P24: 00:00:00 | R24: 0 | S24: 00:00:00 | T24: 00:00:00 | V24: 0 | W24: 00:00:00 | X24: 00:00:00 | Y24: 0 | Z24: 0 | AA24: 0 | AB24: 0
A25: CRETIN JEROME | B25: =Janvier!B25 -> CRETIN | C25: =Janvier!C25 -> JEROME | D25: =Janvier!D25 -> NSG | F25: 0 | G25: 00:00:00 | H25: 00:00:00 | J25: 0 | K25: 00:00:00 | L25: 00:00:00 | N25: 0 | O25: 00:00:00 | P25: 00:00:00 | R25: 0 | S25: 00:00:00 | T25: 00:00:00 | V25: 0 | W25: 00:00:00 | X25: 00:00:00 | Y25: 0 | Z25: 0 | AA25: 0 | AB25: 0
A26: CRINQUANT JEROME | B26: =Janvier!B26 -> CRINQUANT | C26: =Janvier!C26 -> JEROME | D26: =Janvier!D26 -> NSG | F26: 0 | G26: 00:00:00 | H26: 00:00:00 | J26: 0 | K26: 00:00:00 | L26: 00:00:00 | N26: 0 | O26: 00:00:00 | P26: 00:00:00 | R26: 0 | S26: 00:00:00 | T26: 00:00:00 | V26: 0 | W26: 00:00:00 | X26: 00:00:00 | Y26: 0 | Z26: 0 | AA26: 0 | AB26: 0
A27: DASCIER ANDY | B27: =Janvier!B28 -> DASCIER | C27: =Janvier!C28 -> ANDY | D27: =Janvier!D28 -> PREPA COMMANDE | F27: 0 | G27: 00:00:00 | H27: 00:00:00 | J27: 0 | K27: 00:00:00 | L27: 00:00:00 | N27: 0 | O27: 00:00:00 | P27: 00:00:00 | R27: 0 | S27: 00:00:00 | T27: 00:00:00 | V27: 0 | W27: 00:00:00 | X27: 00:00:00 | Y27: 0 | Z27: 0 | AA27: 0 | AB27: 0
A28: DAVERIO BENOIT | B28: =Janvier!B29 -> DAVERIO | C28: =Janvier!C29 -> BENOIT | D28: =Janvier!D29 -> COMMERCIAL | F28: 0 | G28: 00:00:00 | H28: 00:00:00 | J28: 0 | K28: 00:00:00 | L28: 00:00:00 | N28: 0 | O28: 00:00:00 | P28: 00:00:00 | R28: 0 | S28: 00:00:00 | T28: 00:00:00 | V28: 0 | W28: 00:00:00 | X28: 00:00:00 | Y28: 0 | Z28: 0 | AA28: 0 | AB28: 0
A29: DELANGRE ALEX | B29: =Janvier!B30 -> DELANGRE | C29: =Janvier!C30 -> ALEX | D29: =Janvier!D30 -> FABRICATION | F29: 0 | G29: 00:00:00 | H29: 00:00:00 | J29: 0 | K29: 00:00:00 | L29: 00:00:00 | N29: 0 | O29: 00:00:00 | P29: 00:00:00 | R29: 0 | S29: 00:00:00 | T29: 00:00:00 | V29: 0 | W29: 00:00:00 | X29: 00:00:00 | Y29: 0 | Z29: 0 | AA29: 0 | AB29: 0
A30: DELIN Philippe | B30: =Janvier!B31 -> DELIN | C30: =Janvier!C31 -> Philippe | D30: =Janvier!D31 -> DIRECTION | F30: 0 | G30: 00:00:00 | H30: 00:00:00 | J30: 0 | K30: 00:00:00 | L30: 00:00:00 | N30: 0 | O30: 00:00:00 | P30: 00:00:00 | R30: 0 | S30: 00:00:00 | T30: 00:00:00 | V30: 0 | W30: 00:00:00 | X30: 00:00:00 | Y30: 0 | Z30: 0 | AA30: 0 | AB30: 0
A31: DORE Daisy | B31: =Janvier!B32 -> DORE | C31: =Janvier!C32 -> Daisy | D31: =Janvier!D32 -> FABRICATION | F31: 0 | G31: 00:00:00 | H31: 00:00:00 | J31: 0 | K31: 00:00:00 | L31: 00:00:00 | N31: 0 | O31: 00:00:00 | P31: 00:00:00 | R31: 0 | S31: 00:00:00 | T31: 00:00:00 | V31: 0 | W31: 00:00:00 | X31: 00:00:00 | Y31: 0 | Z31: 0 | AA31: 0 | AB31: 0
A32: ECHEVARIA Luis | B32: =Janvier!B33 -> ECHEVARIA | C32: =Janvier!C33 -> Luis | D32: =Janvier!D33 -> FABRICATION | F32: 0 | G32: 00:00:00 | H32: 00:00:00 | J32: 0 | K32: 00:00:00 | L32: 00:00:00 | N32: 0 | O32: 00:00:00 | P32: 00:00:00 | R32: 0 | S32: 00:00:00 | T32: 00:00:00 | V32: 0 | W32: 00:00:00 | X32: 00:00:00 | Y32: 0 | Z32: 0 | AA32: 0 | AB32: 0
A33: EL MOQADDAM REDOUANE | B33: =Janvier!B34 -> EL MOQADDAM | C33: =Janvier!C34 -> REDOUANE | D33: =Janvier!D34 -> FABRICATION | F33: 0 | G33: 00:00:00 | H33: 00:00:00 | J33: 0 | K33: 00:00:00 | L33: 00:00:00 | N33: 0 | O33: 00:00:00 | P33: 00:00:00 | R33: 0 | S33: 00:00:00 | T33: 00:00:00 | V33: 0 | W33: 00:00:00 | X33: 00:00:00 | Y33: 0 | Z33: 0 | AA33: 0 | AB33: 0
A34: FORMEL CELINE | B34: =Janvier!B35 -> FORMEL | C34: =Janvier!C35 -> CELINE | D34: =Janvier!D35 -> BUREAUX | F34: 0 | G34: 00:00:00 | H34: 00:00:00 | J34: 0 | K34: 00:00:00 | L34: 00:00:00 | N34: 0 | O34: 00:00:00 | P34: 00:00:00 | R34: 0 | S34: 00:00:00 | T34: 00:00:00 | V34: 0 | W34: 00:00:00 | X34: 00:00:00 | Y34: 0 | Z34: 0 | AA34: 0 | AB34: 0
A35: FOUACHE LENA | B35: =Janvier!B36 -> FOUACHE | C35: =Janvier!C36 -> LENA | D35: =Janvier!D36 -> QUALITE | F35: 0 | G35: 00:00:00 | H35: 00:00:00 | J35: 0 | K35: 00:00:00 | L35: 00:00:00 | N35: 0 | O35: 00:00:00 | P35: 00:00:00 | R35: 0 | S35: 00:00:00 | T35: 00:00:00 | V35: 0 | W35: 00:00:00 | X35: 00:00:00 | Y35: 0 | Z35: 0 | AA35: 0 | AB35: 0
A36: GALETTI Maud | B36: =Janvier!B37 -> GALETTI | C36: =Janvier!C37 -> Maud | D36: =Janvier!D37 -> FABRICATION | F36: 0 | G36: 00:00:00 | H36: 00:00:00 | J36: 0 | K36: 00:00:00 | L36: 00:00:00 | N36: 0 | O36: 00:00:00 | P36: 00:00:00 | R36: 0 | S36: 00:00:00 | T36: 00:00:00 | V36: 0 | W36: 00:00:00 | X36: 00:00:00 | Y36: 0 | Z36: 0 | AA36: 0 | AB36: 0
A37: GAY Stephane | B37: =Janvier!B38 -> GAY | C37: =Janvier!C38 -> Stephane | D37: =Janvier!D38 -> FABRICATION | F37: 0 | G37: 00:00:00 | H37: 00:00:00 | J37: 0 | K37: 00:00:00 | L37: 00:00:00 | N37: 0 | O37: 00:00:00 | P37: 00:00:00 | R37: 0 | S37: 00:00:00 | T37: 00:00:00 | V37: 0 | W37: 00:00:00 | X37: 00:00:00 | Y37: 0 | Z37: 0 | AA37: 0 | AB37: 0
A38: Graff MATHILDE | B38: =Janvier!B39 -> Graff | C38: =Janvier!C39 -> MATHILDE | D38: =Janvier!D39 -> CONDITIONNEMENT | F38: 0 | G38: 00:00:00 | H38: 00:00:00 | J38: 0 | K38: 00:00:00 | L38: 00:00:00 | N38: 0 | O38: 00:00:00 | P38: 00:00:00 | R38: 0 | S38: 00:00:00 | T38: 00:00:00 | V38: 0 | W38: 00:00:00 | X38: 00:00:00 | Y38: 0 | Z38: 0 | AA38: 0 | AB38: 0
A39: GRAPPIN Perrine | B39: =Janvier!B40 -> GRAPPIN | C39: =Janvier!C40 -> Perrine | D39: =Janvier!D40 -> FABRICATION | F39: 0 | G39: 00:00:00 | H39: 00:00:00 | J39: 0 | K39: 00:00:00 | L39: 00:00:00 | N39: 0 | O39: 00:00:00 | P39: 00:00:00 | R39: 0 | S39: 00:00:00 | T39: 00:00:00 | V39: 0 | W39: 00:00:00 | X39: 00:00:00 | Y39: 0 | Z39: 0 | AA39: 0 | AB39: 0
A40: GUENOT Anne | B40: =Janvier!B41 -> GUENOT | C40: =Janvier!C41 -> Anne | D40: =Janvier!D41 -> EXPEDITION | F40: 0 | G40: 00:00:00 | H40: 00:00:00 | J40: 0 | K40: 00:00:00 | L40: 00:00:00 | N40: 0 | O40: 00:00:00 | P40: 00:00:00 | R40: 0 | S40: 00:00:00 | T40: 00:00:00 | V40: 0 | W40: 00:00:00 | X40: 00:00:00 | Y40: 0 | Z40: 0 | AA40: 0 | AB40: 0
A41: GUYARD Christine | B41: =Janvier!B42 -> GUYARD | C41: =Janvier!C42 -> Christine | D41: =Janvier!D42 -> BUREAUX | F41: 0 | G41: 00:00:00 | H41: 00:00:00 | J41: 0 | K41: 00:00:00 | L41: 00:00:00 | N41: 0 | O41: 00:00:00 | P41: 00:00:00 | R41: 0 | S41: 00:00:00 | T41: 00:00:00 | V41: 0 | W41: 00:00:00 | X41: 00:00:00 | Y41: 0 | Z41: 0 | AA41: 0 | AB41: 0
A42: GUYARD Marie | B42: =Janvier!B43 -> GUYARD | C42: =Janvier!C43 -> Marie | D42: =Janvier!D43 -> FABRICATION | F42: 0 | G42: 00:00:00 | H42: 00:00:00 | J42: 0 | K42: 00:00:00 | L42: 00:00:00 | N42: 0 | O42: 00:00:00 | P42: 00:00:00 | R42: 0 | S42: 00:00:00 | T42: 00:00:00 | V42: 0 | W42: 00:00:00 | X42: 00:00:00 | Y42: 0 | Z42: 0 | AA42: 0 | AB42: 0
A43: GUYARD Marie | B43: =Janvier!B44 -> GUYARD | C43: =Janvier!C44 -> Marie | D43: =Janvier!D44 -> FABRICATION | F43: 0 | G43: 00:00:00 | H43: 00:00:00 | J43: 0 | K43: 00:00:00 | L43: 00:00:00 | N43: 0 | O43: 00:00:00 | P43: 00:00:00 | R43: 0 | S43: 00:00:00 | T43: 00:00:00 | V43: 0 | W43: 00:00:00 | X43: 00:00:00 | Y43: 0 | Z43: 0 | AA43: 0 | AB43: 0
A44: HARUTYUNYAN Haik | B44: =Janvier!B45 -> HARUTYUNYAN | C44: =Janvier!C45 -> Haik | D44: =Janvier!D45 -> FABRICATION | F44: 0 | G44: 00:00:00 | H44: 00:00:00 | J44: 0 | K44: 00:00:00 | L44: 00:00:00 | N44: 0 | O44: 00:00:00 | P44: 00:00:00 | R44: 0 | S44: 00:00:00 | T44: 00:00:00 | V44: 0 | W44: 00:00:00 | X44: 00:00:00 | Y44: 0 | Z44: 0 | AA44: 0 | AB44: 0
A45: IDRISSI Zinedinne | B45: =Janvier!B46 -> IDRISSI | C45: =Janvier!C46 -> Zinedinne | D45: =Janvier!D46 -> FABRICATION | F45: 0 | G45: 00:00:00 | H45: 00:00:00 | J45: 0 | K45: 00:00:00 | L45: 00:00:00 | N45: 0 | O45: 00:00:00 | P45: 00:00:00 | R45: 0 | S45: 00:00:00 | T45: 00:00:00 | V45: 0 | W45: 00:00:00 | X45: 00:00:00 | Y45: 0 | Z45: 0 | AA45: 0 | AB45: 0
A46: JULIEN Thomas | B46: =Janvier!B47 -> JULIEN | C46: =Janvier!C47 -> Thomas | D46: =Janvier!D47 -> Apprentis | F46: 0 | G46: 00:00:00 | H46: 00:00:00 | J46: 0 | K46: 00:00:00 | L46: 00:00:00 | N46: 0 | O46: 00:00:00 | P46: 00:00:00 | R46: 0 | S46: 00:00:00 | T46: 00:00:00 | V46: 0 | W46: 00:00:00 | X46: 00:00:00 | Y46: 0 | Z46: 0 | AA46: 0 | AB46: 0
A47: LABOREY Jonathan | B47: =Janvier!B48 -> LABOREY | C47: =Janvier!C48 -> Jonathan | D47: =Janvier!D48 -> EMBALLAGE | F47: 0 | G47: 00:00:00 | H47: 00:00:00 | J47: 0 | K47: 00:00:00 | L47: 00:00:00 | N47: 0 | O47: 00:00:00 | P47: 00:00:00 | R47: 0 | S47: 00:00:00 | T47: 00:00:00 | V47: 0 | W47: 00:00:00 | X47: 00:00:00 | Y47: 0 | Z47: 0 | AA47: 0 | AB47: 0
A48: LAHAYE Emmanuel | B48: =Janvier!B49 -> LAHAYE | C48: =Janvier!C49 -> Emmanuel | D48: =Janvier!D49 -> FABRICATION | F48: 0 | G48: 00:00:00 | H48: 00:00:00 | J48: 0 | K48: 00:00:00 | L48: 00:00:00 | N48: 0 | O48: 00:00:00 | P48: 00:00:00 | R48: 0 | S48: 00:00:00 | T48: 00:00:00 | V48: 0 | W48: 00:00:00 | X48: 00:00:00 | Y48: 0 | Z48: 0 | AA48: 0 | AB48: 0
A49: Lasalle Yann | B49: =Janvier!B50 -> Lasalle | C49: =Janvier!C50 -> Yann | D49: =Janvier!D50 -> CHAUFFEURS | F49: 0 | G49: 00:00:00 | H49: 00:00:00 | J49: 0 | K49: 00:00:00 | L49: 00:00:00 | N49: 0 | O49: 00:00:00 | P49: 00:00:00 | R49: 0 | S49: 00:00:00 | T49: 00:00:00 | V49: 0 | W49: 00:00:00 | X49: 00:00:00 | Y49: 0 | Z49: 0 | AA49: 0 | AB49: 0
A50: LORY ANNICK | B50: =Janvier!B51 -> LORY | C50: =Janvier!C51 -> ANNICK | D50: =Janvier!D51 -> FABRICATION | F50: 0 | G50: 00:00:00 | H50: 00:00:00 | J50: 0 | K50: 00:00:00 | L50: 00:00:00 | N50: 0 | O50: 00:00:00 | P50: 00:00:00 | R50: 0 | S50: 00:00:00 | T50: 00:00:00 | V50: 0 | W50: 00:00:00 | X50: 00:00:00 | Y50: 0 | Z50: 0 | AA50: 0 | AB50: 0
A51: LOXTON Morné | B51: =Janvier!B52 -> LOXTON | C51: =Janvier!C52 -> Morné | D51: =Janvier!D52 -> FABRICATION | F51: 0 | G51: 00:00:00 | H51: 00:00:00 | J51: 0 | K51: 00:00:00 | L51: 00:00:00 | N51: 0 | O51: 00:00:00 | P51: 00:00:00 | R51: 0 | S51: 00:00:00 | T51: 00:00:00 | V51: 0 | W51: 00:00:00 | X51: 00:00:00 | Y51: 0 | Z51: 0 | AA51: 0 | AB51: 0
A52: MAILLER Philippe | B52: =Janvier!B53 -> MAILLER | C52: =Janvier!C53 -> Philippe | D52: =Janvier!D53 -> CHAUFFEURS | F52: 0 | G52: 00:00:00 | H52: 00:00:00 | J52: 0 | K52: 00:00:00 | L52: 00:00:00 | N52: 0 | O52: 00:00:00 | P52: 00:00:00 | R52: 0 | S52: 00:00:00 | T52: 00:00:00 | V52: 0 | W52: 00:00:00 | X52: 00:00:00 | Y52: 0 | Z52: 0 | AA52: 0 | AB52: 0
A53: MANOUKIAN Arman | B53: =Janvier!B54 -> MANOUKIAN | C53: =Janvier!C54 -> Arman | D53: =Janvier!D54 -> FABRICATION | F53: 0 | G53: 00:00:00 | H53: 00:00:00 | J53: 0 | K53: 00:00:00 | L53: 00:00:00 | N53: 0 | O53: 00:00:00 | P53: 00:00:00 | R53: 0 | S53: 00:00:00 | T53: 00:00:00 | V53: 0 | W53: 00:00:00 | X53: 00:00:00 | Y53: 0 | Z53: 0 | AA53: 0 | AB53: 0
A54: MARGUIER Stéphane | B54: =Janvier!B55 -> MARGUIER | C54: =Janvier!C55 -> Stéphane | D54: =Janvier!D55 -> EMBALLAGE | F54: 0 | G54: 00:00:00 | H54: 00:00:00 | J54: 0 | K54: 00:00:00 | L54: 00:00:00 | N54: 0 | O54: 00:00:00 | P54: 00:00:00 | R54: 0 | S54: 00:00:00 | T54: 00:00:00 | V54: 0 | W54: 00:00:00 | X54: 00:00:00 | Y54: 0 | Z54: 0 | AA54: 0 | AB54: 0
A55: MARGUIER Stéphane | B55: =Janvier!B56 -> MARGUIER | C55: =Janvier!C56 -> Stéphane | D55: =Janvier!D56 -> NSG | F55: 0 | G55: 00:00:00 | H55: 00:00:00 | J55: 0 | K55: 00:00:00 | L55: 00:00:00 | N55: 0 | O55: 00:00:00 | P55: 00:00:00 | R55: 0 | S55: 00:00:00 | T55: 00:00:00 | V55: 0 | W55: 00:00:00 | X55: 00:00:00 | Y55: 0 | Z55: 0 | AA55: 0 | AB55: 0
A56: MARTIN Julien | B56: =Janvier!B57 -> MARTIN | C56: =Janvier!C57 -> Julien | D56: =Janvier!D57 -> EMBALLAGE | F56: 0 | G56: 00:00:00 | H56: 00:00:00 | J56: 0 | K56: 00:00:00 | L56: 00:00:00 | N56: 0 | O56: 00:00:00 | P56: 00:00:00 | R56: 0 | S56: 00:00:00 | T56: 00:00:00 | V56: 0 | W56: 00:00:00 | X56: 00:00:00 | Y56: 0 | Z56: 0 | AA56: 0 | AB56: 0
A57: MARTIN Pierre | B57: =Janvier!B58 -> MARTIN | C57: =Janvier!C58 -> Pierre | D57: =Janvier!D58 -> FABRICATION | F57: 0 | G57: 00:00:00 | H57: 00:00:00 | J57: 0 | K57: 00:00:00 | L57: 00:00:00 | N57: 0 | O57: 00:00:00 | P57: 00:00:00 | R57: 0 | S57: 00:00:00 | T57: 00:00:00 | V57: 0 | W57: 00:00:00 | X57: 00:00:00 | Y57: 0 | Z57: 0 | AA57: 0 | AB57: 0
A58: MINASYAN ARMAN | B58: =Janvier!B59 -> MINASYAN | C58: =Janvier!C59 -> ARMAN | D58: =Janvier!D59 -> FABRICATION | F58: 0 | G58: 00:00:00 | H58: 00:00:00 | J58: 0 | K58: 00:00:00 | L58: 00:00:00 | N58: 0 | O58: 00:00:00 | P58: 00:00:00 | R58: 0 | S58: 00:00:00 | T58: 00:00:00 | V58: 0 | W58: 00:00:00 | X58: 00:00:00 | Y58: 0 | Z58: 0 | AA58: 0 | AB58: 0
A59: MORET Robin | B59: =Janvier!B60 -> MORET | C59: =Janvier!C60 -> Robin | D59: =Janvier!D60 -> CHAUFFEURS | F59: 0 | G59: 00:00:00 | H59: 00:00:00 | J59: 0 | K59: 00:00:00 | L59: 00:00:00 | N59: 0 | O59: 00:00:00 | P59: 00:00:00 | R59: 0 | S59: 00:00:00 | T59: 00:00:00 | V59: 0 | W59: 00:00:00 | X59: 00:00:00 | Y59: 0 | Z59: 0 | AA59: 0 | AB59: 0
A60: MORIAUX Charles-Henry | B60: =Janvier!B61 -> MORIAUX | C60: =Janvier!C61 -> Charles-Henry | D60: =Janvier!D61 -> EXPEDITION | F60: 0 | G60: 00:00:00 | H60: 00:00:00 | J60: 0 | K60: 00:00:00 | L60: 00:00:00 | N60: 0 | O60: 00:00:00 | P60: 00:00:00 | R60: 0 | S60: 00:00:00 | T60: 00:00:00 | V60: 0 | W60: 00:00:00 | X60: 00:00:00 | Y60: 0 | Z60: 0 | AA60: 0 | AB60: 0
A61: MORIN Christophe | B61: =Janvier!B62 -> MORIN | C61: =Janvier!C62 -> Christophe | D61: =Janvier!D62 -> FABRICATION | F61: 0 | G61: 00:00:00 | H61: 00:00:00 | J61: 0 | K61: 00:00:00 | L61: 00:00:00 | N61: 0 | O61: 00:00:00 | P61: 00:00:00 | R61: 0 | S61: 00:00:00 | T61: 00:00:00 | V61: 0 | W61: 00:00:00 | X61: 00:00:00 | Y61: 0 | Z61: 0 | AA61: 0 | AB61: 0
A62: MORTET Alice | B62: =Janvier!B63 -> MORTET | C62: =Janvier!C63 -> Alice | D62: =Janvier!D63 -> EXPEDITION | F62: 0 | G62: 00:00:00 | H62: 00:00:00 | J62: 0 | K62: 00:00:00 | L62: 00:00:00 | N62: 0 | O62: 00:00:00 | P62: 00:00:00 | R62: 0 | S62: 00:00:00 | T62: 00:00:00 | V62: 0 | W62: 00:00:00 | X62: 00:00:00 | Y62: 0 | Z62: 0 | AA62: 0 | AB62: 0
A63: M'SAKINI Coralie | B63: =Janvier!B64 -> M'SAKINI | C63: =Janvier!C64 -> Coralie | D63: =Janvier!D64 -> COMMERCIAL | F63: 0 | G63: 00:00:00 | H63: 00:00:00 | J63: 0 | K63: 00:00:00 | L63: 00:00:00 | N63: 0 | O63: 00:00:00 | P63: 00:00:00 | R63: 0 | S63: 00:00:00 | T63: 00:00:00 | V63: 0 | W63: 00:00:00 | X63: 00:00:00 | Y63: 0 | Z63: 0 | AA63: 0 | AB63: 0
A64: NEAULT Emilie | B64: =Janvier!B65 -> NEAULT | C64: =Janvier!C65 -> Emilie | D64: =Janvier!D65 -> EMBALLAGE | F64: 0 | G64: 00:00:00 | H64: 00:00:00 | J64: 0 | K64: 00:00:00 | L64: 00:00:00 | N64: 0 | O64: 00:00:00 | P64: 00:00:00 | R64: 0 | S64: 00:00:00 | T64: 00:00:00 | V64: 0 | W64: 00:00:00 | X64: 00:00:00 | Y64: 0 | Z64: 0 | AA64: 0 | AB64: 0
A65: OCQUIDANT MANON | B65: =Janvier!B66 -> OCQUIDANT | C65: =Janvier!C66 -> MANON | D65: =Janvier!D66 -> FABRICATION | F65: 0 | G65: 00:00:00 | H65: 00:00:00 | J65: 0 | K65: 00:00:00 | L65: 00:00:00 | N65: 0 | O65: 00:00:00 | P65: 00:00:00 | R65: 0 | S65: 00:00:00 | T65: 00:00:00 | V65: 0 | W65: 00:00:00 | X65: 00:00:00 | Y65: 0 | Z65: 0 | AA65: 0 | AB65: 0
A66: PACOT Louis | B66: =Janvier!B67 -> PACOT | C66: =Janvier!C67 -> Louis | D66: =Janvier!D67 -> FABRICATION | F66: 0 | G66: 00:00:00 | H66: 00:00:00 | J66: 0 | K66: 00:00:00 | L66: 00:00:00 | N66: 0 | O66: 00:00:00 | P66: 00:00:00 | R66: 0 | S66: 00:00:00 | T66: 00:00:00 | V66: 0 | W66: 00:00:00 | X66: 00:00:00 | Y66: 0 | Z66: 0 | AA66: 0 | AB66: 0
A67: PACOT BENJAMIN | B67: =Janvier!B68 -> PACOT | C67: =Janvier!C68 -> BENJAMIN | D67: =Janvier!D68 -> FABRICATION | F67: 0 | G67: 00:00:00 | H67: 00:00:00 | J67: 0 | K67: 00:00:00 | L67: 00:00:00 | N67: 0 | O67: 00:00:00 | P67: 00:00:00 | R67: 0 | S67: 00:00:00 | T67: 00:00:00 | V67: 0 | W67: 00:00:00 | X67: 00:00:00 | Y67: 0 | Z67: 0 | AA67: 0 | AB67: 0
A68: PASSOT jean luc | B68: =Janvier!B69 -> PASSOT | C68: =Janvier!C69 -> jean luc | D68: =Janvier!D69 -> CHAUFFEURS | F68: 0 | G68: 00:00:00 | H68: 00:00:00 | J68: 0 | K68: 00:00:00 | L68: 00:00:00 | N68: 0 | O68: 00:00:00 | P68: 00:00:00 | R68: 0 | S68: 00:00:00 | T68: 00:00:00 | V68: 0 | W68: 00:00:00 | X68: 00:00:00 | Y68: 0 | Z68: 0 | AA68: 0 | AB68: 0
A69: PAYET Cédric | B69: =Janvier!B70 -> PAYET | C69: =Janvier!C70 -> Cédric | D69: =Janvier!D70 -> FABRICATION | F69: 0 | G69: 00:00:00 | H69: 00:00:00 | J69: 0 | K69: 00:00:00 | L69: 00:00:00 | N69: 0 | O69: 00:00:00 | P69: 00:00:00 | R69: 0 | S69: 00:00:00 | T69: 00:00:00 | V69: 0 | W69: 00:00:00 | X69: 00:00:00 | Y69: 0 | Z69: 0 | AA69: 0 | AB69: 0
A70: PAYET Cédric | B70: =Janvier!B71 -> PAYET | C70: =Janvier!C71 -> Cédric | D70: =Janvier!D71 -> NSG | F70: 0 | G70: 00:00:00 | H70: 00:00:00 | J70: 0 | K70: 00:00:00 | L70: 00:00:00 | N70: 0 | O70: 00:00:00 | P70: 00:00:00 | R70: 0 | S70: 00:00:00 | T70: 00:00:00 | V70: 0 | W70: 00:00:00 | X70: 00:00:00 | Y70: 0 | Z70: 0 | AA70: 0 | AB70: 0
A71: PETIT ISABELLE | B71: =Janvier!B72 -> PETIT | C71: =Janvier!C72 -> ISABELLE | D71: =Janvier!D72 -> CONDITIONNEMENT | F71: 0 | G71: 00:00:00 | H71: 00:00:00 | J71: 0 | K71: 00:00:00 | L71: 00:00:00 | N71: 0 | O71: 00:00:00 | P71: 00:00:00 | R71: 0 | S71: 00:00:00 | T71: 00:00:00 | V71: 0 | W71: 00:00:00 | X71: 00:00:00 | Y71: 0 | Z71: 0 | AA71: 0 | AB71: 0
A72: PIGEARD Jérémy | B72: =Janvier!B73 -> PIGEARD | C72: =Janvier!C73 -> Jérémy | D72: =Janvier!D73 -> FABRICATION | F72: 0 | G72: 00:00:00 | H72: 00:00:00 | J72: 0 | K72: 00:00:00 | L72: 00:00:00 | N72: 0 | O72: 00:00:00 | P72: 00:00:00 | R72: 0 | S72: 00:00:00 | T72: 00:00:00 | V72: 0 | W72: 00:00:00 | X72: 00:00:00 | Y72: 0 | Z72: 0 | AA72: 0 | AB72: 0
A73: =B73&" "&C73 -> POIGNANT Anthony | B73: =Janvier!B74 -> POIGNANT | C73: =Janvier!C74 -> Anthony | D73: =Janvier!D74 -> EMBALLAGE | F73: =IF(E73<(1/24*35),0,E73-(1/24*35)) -> 0 | G73: =IF(F73>=1/24*8,1/24*8,F73) -> 00:00:00 | H73: =IF(F73-G73>0,F73-G73,0) -> 00:00:00 | J73: =IF(I73<(1/24*35),0,I73-(1/24*35)) -> 0 | K73: =IF(J73>=1/24*8,1/24*8,J73) -> 00:00:00 | L73: =IF(J73-K73>0,J73-K73,0) -> 00:00:00 | N73: =IF(M73<(1/24*35),0,M73-(1/24*35)) -> 0 | O73: =IF(N73>=1/24*8,1/24*8,N73) -> 00:00:00 | P73: =IF(N73-O73>0,N73-O73,0) -> 00:00:00 | R73: =IF(Q73<(1/24*35),0,Q73-(1/24*35)) -> 0 | S73: =IF(R73>=1/24*8,1/24*8,R73) -> 00:00:00 | T73: =IF(R73-S73>0,R73-S73,0) -> 00:00:00 | V73: =IF(U73<(1/24*35),0,U73-(1/24*35)) -> 0 | W73: =IF(V73>=1/24*8,1/24*8,V73) -> 00:00:00 | X73: =IF(V73-W73>0,V73-W73,0) -> 00:00:00 | Y73: =SUMIF($E$7:$X$7,$I$7,$E73:$X73) -> 0 | Z73: =SUMIF($E$7:$X$7,$Z$7,$E73:$X73) -> 0 | AA73: =SUMIF($E$7:$X$7,$AA$7,$E73:$X73) -> 0 | AB73: =SUMIF($E$7:$X$7,$AB$7,$E73:$X73) -> 0
A74: PRINCET Véronique | B74: =Janvier!B75 -> PRINCET | C74: =Janvier!C75 -> Véronique | D74: =Janvier!D75 -> EMBALLAGE | F74: 0 | G74: 00:00:00 | H74: 00:00:00 | J74: 0 | K74: 00:00:00 | L74: 00:00:00 | N74: 0 | O74: 00:00:00 | P74: 00:00:00 | R74: 0 | S74: 00:00:00 | T74: 00:00:00 | V74: 0 | W74: 00:00:00 | X74: 00:00:00 | Y74: 0 | Z74: 0 | AA74: 0 | AB74: 0
A75: PRUDENT Axelle | B75: =Janvier!B76 -> PRUDENT | C75: =Janvier!C76 -> Axelle | D75: =Janvier!D76 -> Apprentis | F75: 0 | G75: 00:00:00 | H75: 00:00:00 | J75: 0 | K75: 00:00:00 | L75: 00:00:00 | N75: 0 | O75: 00:00:00 | P75: 00:00:00 | R75: 0 | S75: 00:00:00 | T75: 00:00:00 | V75: 0 | W75: 00:00:00 | X75: 00:00:00 | Y75: 0 | Z75: 0 | AA75: 0 | AB75: 0
A76: PUSSET Françis | B76: =Janvier!B77 -> PUSSET | C76: =Janvier!C77 -> Françis | D76: =Janvier!D77 -> FABRICATION | F76: 0 | G76: 00:00:00 | H76: 00:00:00 | J76: 0 | K76: 00:00:00 | L76: 00:00:00 | N76: 0 | O76: 00:00:00 | P76: 00:00:00 | R76: 0 | S76: 00:00:00 | T76: 00:00:00 | V76: 0 | W76: 00:00:00 | X76: 00:00:00 | Y76: 0 | Z76: 0 | AA76: 0 | AB76: 0
A77: ROGER Céline | B77: =Janvier!B78 -> ROGER | C77: =Janvier!C78 -> Céline | D77: =Janvier!D78 -> BUREAUX | F77: 0 | G77: 00:00:00 | H77: 00:00:00 | J77: 0 | K77: 00:00:00 | L77: 00:00:00 | N77: 0 | O77: 00:00:00 | P77: 00:00:00 | R77: 0 | S77: 00:00:00 | T77: 00:00:00 | V77: 0 | W77: 00:00:00 | X77: 00:00:00 | Y77: 0 | Z77: 0 | AA77: 0 | AB77: 0
A78: ROY Marianne | B78: =Janvier!B79 -> ROY | C78: =Janvier!C79 -> Marianne | D78: =Janvier!D79 -> NSG | F78: 0 | G78: 00:00:00 | H78: 00:00:00 | J78: 0 | K78: 00:00:00 | L78: 00:00:00 | N78: 0 | O78: 00:00:00 | P78: 00:00:00 | R78: 0 | S78: 00:00:00 | T78: 00:00:00 | V78: 0 | W78: 00:00:00 | X78: 00:00:00 | Y78: 0 | Z78: 0 | AA78: 0 | AB78: 0
A79: ROY SEBASTIEN | B79: =Janvier!B80 -> ROY | C79: =Janvier!C80 -> SEBASTIEN | D79: =Janvier!D80 -> EXPEDITION | F79: 0 | G79: 00:00:00 | H79: 00:00:00 | J79: 0 | K79: 00:00:00 | L79: 00:00:00 | N79: 0 | O79: 00:00:00 | P79: 00:00:00 | R79: 0 | S79: 00:00:00 | T79: 00:00:00 | V79: 0 | W79: 00:00:00 | X79: 00:00:00 | Y79: 0 | Z79: 0 | AA79: 0 | AB79: 0
A80: SABRI Moha | B80: =Janvier!B81 -> SABRI | C80: =Janvier!C81 -> Moha | D80: =Janvier!D81 -> FABRICATION | F80: 0 | G80: 00:00:00 | H80: 00:00:00 | J80: 0 | K80: 00:00:00 | L80: 00:00:00 | N80: 0 | O80: 00:00:00 | P80: 00:00:00 | R80: 0 | S80: 00:00:00 | T80: 00:00:00 | V80: 0 | W80: 00:00:00 | X80: 00:00:00 | Y80: 0 | Z80: 0 | AA80: 0 | AB80: 0
A81: SAVARIAT Betty | B81: =Janvier!B82 -> SAVARIAT | C81: =Janvier!C82 -> Betty | D81: =Janvier!D82 -> EMBALLAGE | F81: 0 | G81: 00:00:00 | H81: 00:00:00 | J81: 0 | K81: 00:00:00 | L81: 00:00:00 | N81: 0 | O81: 00:00:00 | P81: 00:00:00 | R81: 0 | S81: 00:00:00 | T81: 00:00:00 | V81: 0 | W81: 00:00:00 | X81: 00:00:00 | Y81: 0 | Z81: 0 | AA81: 0 | AB81: 0
E82: =SUM(E8:E81) -> 0 | F82: 0 | G82: 0 | H82: 0 | I82: 0 | J82: 0 | K82: 0 | L82: 0 | M82: 0 | N82: 0 | O82: 0 | P82: 0 | Q82: 0 | R82: 0 | S82: 0 | T82: 0 | U82: 0 | V82: 0 | W82: 0 | X82: 0 | Y82: =SUM(Y8:Y81) -> 0 | Z82: =SUM(Z8:Z81) -> 0 | AA82: 0 | AB82: 0

Sheet Avril
C1: Menu | U1: =IF($U$5="","masquer colonne","") -> masquer colonne | V1: =IF($U$5="","masquer colonne","") -> masquer colonne | W1: masquer colonne | X1: masquer colonne
A2: =COUNTIF(U1:X1,"masquer colonne") -> 4
B3: =VALUE("01/04/"&Janvier!$B$1) -> 2017-04-01 | E3: =CHOOSE(MONTH(B3),"Janvier","Février","Mars","Avril","Mai","Juin","Juillet","Août","Septembre","Octobre","Novembre","Décembre") -> Avril
E4: =WEEKNUM(E5,21) -> 14 | I4: =WEEKNUM(I5,21) -> 15 | M4: =WEEKNUM(M5,21) -> 16 | Q4: =WEEKNUM(Q5,21) -> 17 | U4: =IF(U5="","",WEEKNUM(U5,21)) -> 
E5: =VALUE("01/"&MONTH(B3)&"/"&YEAR($B$3))+CHOOSE(WEEKDAY(VALUE("01/"&MONTH(B3)&"/"&YEAR($B$3)),2),6,5,4,10,9,8,7) -> 2017-04-09 | I5: =E5+7 -> 2017-04-16 | M5: =I5+7 -> 2017-04-23 | Q5: =M5+7 -> 2017-04-30 | U5: =IF(DAY(Q5+7)>4,"",Q5+7) -> 
E6: =CHOOSE(WEEKDAY(E5,2),"Lundi","Mardi","Mercredi","Jeudi","Vendredi","Samedi","Dimanche") -> Dimanche | I6: =CHOOSE(WEEKDAY(I5,2),"Lundi","Mardi","Mercredi","Jeudi","Vendredi","Samedi","Dimanche") -> Dimanche | M6: =CHOOSE(WEEKDAY(M5,2),"Lundi","Mardi","Mercredi","Jeudi","Vendredi","Samedi","Dimanche") -> Dimanche | Q6: =CHOOSE(WEEKDAY(Q5,2),"Lundi","Mardi","Mercredi","Jeudi","Vendredi","Samedi","Dimanche") -> Dimanche | U6: =IF(U5="","",CHOOSE(WEEKDAY(U5,2),"Lundi","Mardi","Mercredi","Jeudi","Vendredi","Samedi","Dimanche")) ->  | Y6: ="Total heures mois "&E3 -> Total heures mois Avril
B7: NOM | C7: PRENOM | D7: SECTEUR | E7: Total Sem. | F7: Heure sup. | G7: Heure 25% | H7: Heure 50% | I7: Total Sem. | J7: Heure sup. | K7: Heure 25% | L7: Heure 50% | M7: Total Sem. | N7: Heure sup. | O7: Heure 25% | P7: Heure 50% | Q7: Total Sem. | R7: Heure sup. | S7: Heure 25% | T7: Heure 50% | U7: Total Sem. | V7: Heure sup. | W7: Heure 25% | X7: Heure 50% | Y7: Total Sem. | Z7: Heure sup. | AA7: Heure 25% | AB7: Heure 50%
A8: =B8&" "&C8 -> AMIOT Anne-Lise | B8: =Janvier!B8 -> AMIOT | C8: =Janvier!C8 -> Anne-Lise | D8: =Janvier!D8 -> QUALITE | F8: =IF(E8<(1/24*35),0,E8-(1/24*35)) -> 0 | G8: =IF(F8>=1/24*8,1/24*8,F8) -> 00:00:00 | H8: =IF(F8-G8>0,F8-G8,0) -> 00:00:00 | J8: =IF(I8<(1/24*35),0,I8-(1/24*35)) -> 0 | K8: =IF(J8>=1/24*8,1/24*8,J8) -> 00:00:00 | L8: =IF(J8-K8>0,J8-K8,0) -> 00:00:00 | N8: =IF(M8<(1/24*35),0,M8-(1/24*35)) -> 0 | O8: =IF(N8>=1/24*8,1/24*8,N8) -> 00:00:00 | P8: =IF(N8-O8>0,N8-O8,0) -> 00:00:00 | R8: =IF(Q8<(1/24*35),0,Q8-(1/24*35)) -> 0 | S8: =IF(R8>=1/24*8,1/24*8,R8) -> 00:00:00 | T8: =IF(R8-S8>0,R8-S8,0) -> 00:00:00 | V8: =IF(U8<(1/24*35),0,U8-(1/24*35)) -> 0 | W8: =IF(V8>=1/24*8,1/24*8,V8) -> 00:00:00 | X8: =IF(V8-W8>0,V8-W8,0) -> 00:00:00 | Y8: =SUMIF($E$7:$X$7,$I$7,$E8:$X8) -> 0 | Z8: =SUMIF($E$7:$X$7,$Z$7,$E8:$X8) -> 0 | AA8: =SUMIF($E$7:$X$7,$AA$7,$E8:$X8) -> 0 | AB8: =SUMIF($E$7:$X$7,$AB$7,$E8:$X8) -> 0
A9: =B9&" "&C9 -> ANDRE FABIEN | B9: =Janvier!B9 -> ANDRE | C9: =Janvier!C9 -> FABIEN | D9: =Janvier!D9 -> FABRICATION | F9: =IF(E9<(1/24*35),0,E9-(1/24*35)) -> 0 | G9: =IF(F9>=1/24*8,1/24*8,F9) -> 00:00:00 | H9: =IF(F9-G9>0,F9-G9,0) -> 00:00:00 | J9: =IF(I9<(1/24*35),0,I9-(1/24*35)) -> 0 | K9: =IF(J9>=1/24*8,1/24*8,J9) -> 00:00:00 | L9: =IF(J9-K9>0,J9-K9,0) -> 00:00:00 | N9: 0 | O9: 00:00:00 | P9: 00:00:00 | R9: 0 | S9: 00:00:00 | T9: 00:00:00 | V9: 0 | W9: 00:00:00 | X9: 00:00:00 | Y9: =SUMIF($E$7:$X$7,$I$7,$E9:$X9) -> 0 | Z9: =SUMIF($E$7:$X$7,$Z$7,$E9:$X9) -> 0 | AA9: =SUMIF($E$7:$X$7,$AA$7,$E9:$X9) -> 0 | AB9: =SUMIF($E$7:$X$7,$AB$7,$E9:$X9) -> 0
A10: AUDIARD FLORIAN | B10: =Janvier!B10 -> AUDIARD | C10: =Janvier!C10 -> FLORIAN | D10: =Janvier!D10 -> FABRICATION | F10: 0 | G10: 00:00:00 | H10: 00:00:00 | J10: 0 | K10: 00:00:00 | L10: 00:00:00 | N10: 0 | O10: 00:00:00 | P10: 00:00:00 | R10: 0 | S10: 00:00:00 | T10: 00:00:00 | V10: 0 | W10: 00:00:00 | X10: 00:00:00 | Y10: 0 | Z10: 0 | AA10: 0 | AB10: 0
A11: AZEVEDO Catherine | B11: =Janvier!B11 -> AZEVEDO | C11: =Janvier!C11 -> Catherine | D11: =Janvier!D11 -> EMBALLAGE | F11: 0 | G11: 00:00:00 | H11: 00:00:00 | J11: 0 | K11: 00:00:00 | L11: 00:00:00 | N11: 0 | O11: 00:00:00 | P11: 00:00:00 | R11: 0 | S11: 00:00:00 | T11: 00:00:00 | V11: 0 | W11: 00:00:00 | X11: 00:00:00 | Y11: 0 | Z11: 0 | AA11: 0 | AB11: 0
A12: BARBIER Nathalie | B12: =Janvier!B12 -> BARBIER | C12: =Janvier!C12 -> Nathalie | D12: =Janvier!D12 -> QUALITE | F12: 0 | G12: 00:00:00 | H12: 00:00:00 | J12: 0 | K12: 00:00:00 | L12: 00:00:00 | N12: 0 | O12: 00:00:00 | P12: 00:00:00 | R12: 0 | S12: 00:00:00 | T12: 00:00:00 | V12: 0 | W12: 00:00:00 | X12: 00:00:00 | Y12: 0 | Z12: 0 | AA12: 0 | AB12: 0
A13: BECHTOLD Marie-Christine | B13: =Janvier!B13 -> BECHTOLD | C13: =Janvier!C13 -> Marie-Christine | D13: =Janvier!D13 -> EMBALLAGE | F13: 0 | G13: 00:00:00 | H13: 00:00:00 | J13: 0 | K13: 00:00:00 | L13: 00:00:00 | N13: 0 | O13: 00:00:00 | P13: 00:00:00 | R13: 0 | S13: 00:00:00 | T13: 00:00:00 | V13: 0 | W13: 00:00:00 | X13: 00:00:00 | Y13: 0 | Z13: 0 | AA13: 0 | AB13: 0
A14: BEURET MAUD | B14: =Janvier!B14 -> BEURET | C14: =Janvier!C14 -> MAUD | D14: =Janvier!D14 -> MAGASIN | F14: 0 | G14: 00:00:00 | H14: 00:00:00 | J14: 0 | K14: 00:00:00 | L14: 00:00:00 | N14: 0 | O14: 00:00:00 | P14: 00:00:00 | R14: 0 | S14: 00:00:00 | T14: 00:00:00 | V14: 0 | W14: 00:00:00 | X14: 00:00:00 | Y14: 0 | Z14: 0 | AA14: 0 | AB14: 0
A15: BOUEZNARD Myriam | B15: =Janvier!B15 -> BOUEZNARD | C15: =Janvier!C15 -> Myriam | D15: =Janvier!D15 -> NSG | F15: 0 | G15: 00:00:00 | H15: 00:00:00 | J15: 0 | K15: 00:00:00 | L15: 00:00:00 | N15: 0 | O15: 00:00:00 | P15: 00:00:00 | R15: 0 | S15: 00:00:00 | T15: 00:00:00 | V15: 0 | W15: 00:00:00 | X15: 00:00:00 | Y15: 0 | Z15: 0 | AA15: 0 | AB15: 0
A16: Boutiflat James | B16: =Janvier!B16 -> Boutiflat | C16: =Janvier!C16 -> James | D16: =Janvier!D16 -> EMBALLAGE | F16: 0 | G16: 00:00:00 | H16: 00:00:00 | J16: 0 | K16: 00:00:00 | L16: 00:00:00 | N16: 0 | O16: 00:00:00 | P16: 00:00:00 | R16: 0 | S16: 00:00:00 | T16: 00:00:00 | V16: 0 | W16: 00:00:00 | X16: 00:00:00 | Y16: 0 | Z16: 0 | AA16: 0 | AB16: 0
A17: BOUZENARD Adrien | B17: =Janvier!B17 -> BOUZENARD | C17: =Janvier!C17 -> Adrien | D17: =Janvier!D17 -> FABRICATION | F17: 0 | G17: 00:00:00 | H17: 00:00:00 | J17: 0 | K17: 00:00:00 | L17: 00:00:00 | N17: 0 | O17: 00:00:00 | P17: 00:00:00 | R17: 0 | S17: 00:00:00 | T17: 00:00:00 | V17: 0 | W17: 00:00:00 | X17: 00:00:00 | Y17: 0 | Z17: 0 | AA17: 0 | AB17: 0
A18: BOUZENARD Myriam | B18: =Janvier!B18 -> BOUZENARD | C18: =Janvier!C18 -> Myriam | D18: =Janvier!D18 -> EMBALLAGE | F18: 0 | G18: 00:00:00 | H18: 00:00:00 | J18: 0 | K18: 00:00:00 | L18: 00:00:00 | N18: 0 | O18: 00:00:00 | P18: 00:00:00 | R18: 0 | S18: 00:00:00 | T18: 00:00:00 | V18: 0 | W18: 00:00:00 | X18: 00:00:00 | Y18: 0 | Z18: 0 | AA18: 0 | AB18: 0
A19: CARRION JEAN-CLAUDE | B19: =Janvier!B19 -> CARRION | C19: =Janvier!C19 -> JEAN-CLAUDE | D19: =Janvier!D19 -> CHAUFFEURS | F19: 0 | G19: 00:00:00 | H19: 00:00:00 | J19: 0 | K19: 00:00:00 | L19: 00:00:00 | N19: 0 | O19: 00:00:00 | P19: 00:00:00 | R19: 0 | S19: 00:00:00 | T19: 00:00:00 | V19: 0 | W19: 00:00:00 | X19: 00:00:00 | Y19: 0 | Z19: 0 | AA19: 0 | AB19: 0
A20: CARTERON Claudine | B20: =Janvier!B20 -> CARTERON | C20: =Janvier!C20 -> Claudine | D20: =Janvier!D20 -> BUREAUX | F20: 0 | G20: 00:00:00 | H20: 00:00:00 | J20: 0 | K20: 00:00:00 | L20: 00:00:00 | N20: 0 | O20: 00:00:00 | P20: 00:00:00 | R20: 0 | S20: 00:00:00 | T20: 00:00:00 | V20: 0 | W20: 00:00:00 | X20: 00:00:00 | Y20: 0 | Z20: 0 | AA20: 0 | AB20: 0
A21: CHAUDRON Amandine | B21: =Janvier!B21 -> CHAUDRON | C21: =Janvier!C21 -> Amandine | D21: =Janvier!D21 -> EMBALLAGE | F21: 0 | G21: 00:00:00 | H21: 00:00:00 | J21: 0 | K21: 00:00:00 | L21: 00:00:00 | N21: 0 | O21: 00:00:00 | P21: 00:00:00 | R21: 0 | S21: 00:00:00 | T21: 00:00:00 | V21: 0 | W21: 00:00:00 | X21: 00:00:00 | Y21: 0 | Z21: 0 | AA21: 0 | AB21: 0
A22: CHAUDRON Virginie | B22: =Janvier!B22 -> CHAUDRON | C22: =Janvier!C22 -> Virginie | D22: =Janvier!D22 -> FABRICATION | F22: 0 | G22: 00:00:00 | H22: 00:00:00 | J22: 0 | K22: 00:00:00 | L22: 00:00:00 | N22: 0 | O22: 00:00:00 | P22: 00:00:00 | R22: 0 | S22: 00:00:00 | T22: 00:00:00 | V22: 0 | W22: 00:00:00 | X22: 00:00:00 | Y22: 0 | Z22: 0 | AA22: 0 | AB22: 0
A23: CHEVAUX Rodolphe | B23: =Janvier!B23 -> CHEVAUX | C23: =Janvier!C23 -> Rodolphe | D23: =Janvier!D23 -> MAINTENANCE | F23: 0 | G23: 00:00:00 | H23: 00:00:00 | J23: 0 | K23: 00:00:00 | L23: 00:00:00 | N23: 0 | O23: 00:00:00 | P23: 00:00:00 | R23: 0 | S23: 00:00:00 | T23: 00:00:00 | V23: 0 | W23: 00:00:00 | X23: 00:00:00 | Y23: 0 | Z23: 0 | AA23: 0 | AB23: 0
A24: COCHARD Hervé | B24: =Janvier!B24 -> COCHARD | C24: =Janvier!C24 -> Hervé | D24: =Janvier!D24 -> COMMERCIAL | F24: 0 | G24: 00:00:00 | H24: 00:00:00 | J24: 0 | K24: 00:00:00 | L24: 00:00:00 | N24: 0 | O24: 00:00:00 | P24: 00:00:00 | R24: 0 | S24: 00:00:00 | T24: 00:00:00 | V24: 0 | W24: 00:00:00 | X24: 00:00:00 | Y24: 0 | Z24: 0 | AA24: 0 | AB24: 0
A25: CRETIN JEROME | B25: =Janvier!B25 -> CRETIN | C25: =Janvier!C25 -> JEROME | D25: =Janvier!D25 -> NSG | F25: 0 | G25: 00:00:00 | H25: 00:00:00 | J25: 0 | K25: 00:00:00 | L25: 00:00:00 | N25: 0 | O25: 00:00:00 | P25: 00:00:00 | R25: 0 | S25: 00:00:00 | T25: 00:00:00 | V25: 0 | W25: 00:00:00 | X25: 00:00:00 | Y25: 0 | Z25: 0 | AA25: 0 | AB25: 0
A26: CRINQUANT JEROME | B26: =Janvier!B26 -> CRINQUANT | C26: =Janvier!C26 -> JEROME | D26: =Janvier!D26 -> NSG | F26: 0 | G26: 00:00:00 | H26: 00:00:00 | J26: 0 | K26: 00:00:00 | L26: 00:00:00 | N26: 0 | O26: 00:00:00 | P26: 00:00:00 | R26: 0 | S26: 00:00:00 | T26: 00:00:00 | V26: 0 | W26: 00:00:00 | X26: 00:00:00 | Y26: 0 | Z26: 0 | AA26: 0 | AB26: 0
A27: DASCIER ANDY | B27: =Janvier!B28 -> DASCIER | C27: =Janvier!C28 -> ANDY | D27: =Janvier!D28 -> PREPA COMMANDE | F27: 0 | G27: 00:00:00 | H27: 00:00:00 | J27: 0 | K27: 00:00:00 | L27: 00:00:00 | N27: 0 | O27: 00:00:00 | P27: 00:00:00 | R27: 0 | S27: 00:00:00 | T27: 00:00:00 | V27: 0 | W27: 00:00:00 | X27: 00:00:00 | Y27: 0 | Z27: 0 | AA27: 0 | AB27: 0
A28: DAVERIO BENOIT | B28: =Janvier!B29 -> DAVERIO | C28: =Janvier!C29 -> BENOIT | D28: =Janvier!D29 -> COMMERCIAL | F28: 0 | G28: 00:00:00 | H28: 00:00:00 | J28: 0 | K28: 00:00:00 | L28: 00:00:00 | N28: 0 | O28: 00:00:00 | P28: 00:00:00 | R28: 0 | S28: 00:00:00 | T28: 00:00:00 | V28: 0 | W28: 00:00:00 | X28: 00:00:00 | Y28: 0 | Z28: 0 | AA28: 0 | AB28: 0
A29: DELANGRE ALEX | B29: =Janvier!B30 -> DELANGRE | C29: =Janvier!C30 -> ALEX | D29: =Janvier!D30 -> FABRICATION | F29: 0 | G29: 00:00:00 | H29: 00:00:00 | J29: 0 | K29: 00:00:00 | L29: 00:00:00 | N29: 0 | O29: 00:00:00 | P29: 00:00:00 | R29: 0 | S29: 00:00:00 | T29: 00:00:00 | V29: 0 | W29: 00:00:00 | X29: 00:00:00 | Y29: 0 | Z29: 0 | AA29: 0 | AB29: 0
A30: DELIN Philippe | B30: =Janvier!B31 -> DELIN | C30: =Janvier!C31 -> Philippe | D30: =Janvier!D31 -> DIRECTION | F30: 0 | G30: 00:00:00 | H30: 00:00:00 | J30: 0 | K30: 00:00:00 | L30: 00:00:00 | N30: 0 | O30: 00:00:00 | P30: 00:00:00 | R30: 0 | S30: 00:00:00 | T30: 00:00:00 | V30: 0 | W30: 00:00:00 | X30: 00:00:00 | Y30: 0 | Z30: 0 | AA30: 0 | AB30: 0
A31: DORE Daisy | B31: =Janvier!B32 -> DORE | C31: =Janvier!C32 -> Daisy | D31: =Janvier!D32 -> FABRICATION | F31: 0 | G31: 00:00:00 | H31: 00:00:00 | J31: 0 | K31: 00:00:00 | L31: 00:00:00 | N31: 0 | O31: 00:00:00 | P31: 00:00:00 | R31: 0 | S31: 00:00:00 | T31: 00:00:00 | V31: 0 | W31: 00:00:00 | X31: 00:00:00 | Y31: 0 | Z31: 0 | AA31: 0 | AB31: 0
A32: ECHEVARIA Luis | B32: =Janvier!B33 -> ECHEVARIA | C32: =Janvier!C33 -> Luis | D32: =Janvier!D33 -> FABRICATION | F32: 0 | G32: 00:00:00 | H32: 00:00:00 | J32: 0 | K32: 00:00:00 | L32: 00:00:00 | N32: 0 | O32: 00:00:00 | P32: 00:00:00 | R32: 0 | S32: 00:00:00 | T32: 00:00:00 | V32: 0 | W32: 00:00:00 | X32: 00:00:00 | Y32: 0 | Z32: 0 | AA32: 0 | AB32: 0
A33: EL MOQADDAM REDOUANE | B33: =Janvier!B34 -> EL MOQADDAM | C33: =Janvier!C34 -> REDOUANE | D33: =Janvier!D34 -> FABRICATION | F33: 0 | G33: 00:00:00 | H33: 00:00:00 | J33: 0 | K33: 00:00:00 | L33: 00:00:00 | N33: 0 | O33: 00:00:00 | P33: 00:00:00 | R33: 0 | S33: 00:00:00 | T33: 00:00:00 | V33: 0 | W33: 00:00:00 | X33: 00:00:00 | Y33: 0 | Z33: 0 | AA33: 0 | AB33: 0
A34: FORMEL CELINE | B34: =Janvier!B35 -> FORMEL | C34: =Janvier!C35 -> CELINE | D34: =Janvier!D35 -> BUREAUX | F34: 0 | G34: 00:00:00 | H34: 00:00:00 | J34: 0 | K34: 00:00:00 | L34: 00:00:00 | N34: 0 | O34: 00:00:00 | P34: 00:00:00 | R34: 0 | S34: 00:00:00 | T34: 00:00:00 | V34: 0 | W34: 00:00:00 | X34: 00:00:00 | Y34: 0 | Z34: 0 | AA34: 0 | AB34: 0
A35: FOUACHE LENA | B35: =Janvier!B36 -> FOUACHE | C35: =Janvier!C36 -> LENA | D35: =Janvier!D36 -> QUALITE | F35: 0 | G35: 00:00:00 | H35: 00:00:00 | J35: 0 | K35: 00:00:00 | L35: 00:00:00 | N35: 0 | O35: 00:00:00 | P35: 00:00:00 | R35: 0 | S35: 00:00:00 | T35: 00:00:00 | V35: 0 | W35: 00:00:00 | X35: 00:00:00 | Y35: 0 | Z35: 0 | AA35: 0 | AB35: 0
A36: GALETTI Maud | B36: =Janvier!B37 -> GALETTI | C36: =Janvier!C37 -> Maud | D36: =Janvier!D37 -> FABRICATION | F36: 0 | G36: 00:00:00 | H36: 00:00:00 | J36: 0 | K36: 00:00:00 | L36: 00:00:00 | N36: 0 | O36: 00:00:00 | P36: 00:00:00 | R36: 0 | S36: 00:00:00 | T36: 00:00:00 | V36: 0 | W36: 00:00:00 | X36: 00:00:00 | Y36: 0 | Z36: 0 | AA36: 0 | AB36: 0
A37: GAY Stephane | B37: =Janvier!B38 -> GAY | C37: =Janvier!C38 -> Stephane | D37: =Janvier!D38 -> FABRICATION | F37: 0 | G37: 00:00:00 | H37: 00:00:00 | J37: 0 | K37: 00:00:00 | L37: 00:00:00 | N37: 0 | O37: 00:00:00 | P37: 00:00:00 | R37: 0 | S37: 00:00:00 | T37: 00:00:00 | V37: 0 | W37: 00:00:00 | X37: 00:00:00 | Y37: 0 | Z37: 0 | AA37: 0 | AB37: 0
A38: Graff MATHILDE | B38: =Janvier!B39 -> Graff | C38: =Janvier!C39 -> MATHILDE | D38: =Janvier!D39 -> CONDITIONNEMENT | F38: 0 | G38: 00:00:00 | H38: 00:00:00 | J38: 0 | K38: 00:00:00 | L38: 00:00:00 | N38: 0 | O38: 00:00:00 | P38: 00:00:00 | R38: 0 | S38: 00:00:00 | T38: 00:00:00 | V38: 0 | W38: 00:00:00 | X38: 00:00:00 | Y38: 0 | Z38: 0 | AA38: 0 | AB38: 0
A39: GRAPPIN Perrine | B39: =Janvier!B40 -> GRAPPIN | C39: =Janvier!C40 -> Perrine | D39: =Janvier!D40 -> FABRICATION | F39: 0 | G39: 00:00:00 | H39: 00:00:00 | J39: 0 | K39: 00:00:00 | L39: 00:00:00 | N39: 0 | O39: 00:00:00 | P39: 00:00:00 | R39: 0 | S39: 00:00:00 | T39: 00:00:00 | V39: 0 | W39: 00:00:00 | X39: 00:00:00 | Y39: 0 | Z39: 0 | AA39: 0 | AB39: 0
A40: GUENOT Anne | B40: =Janvier!B41 -> GUENOT | C40: =Janvier!C41 -> Anne | D40: =Janvier!D41 -> EXPEDITION | F40: 0 | G40: 00:00:00 | H40: 00:00:00 | J40: 0 | K40: 00:00:00 | L40: 00:00:00 | N40: 0 | O40: 00:00:00 | P40: 00:00:00 | R40: 0 | S40: 00:00:00 | T40: 00:00:00 | V40: 0 | W40: 00:00:00 | X40: 00:00:00 | Y40: 0 | Z40: 0 | AA40: 0 | AB40: 0
A41: GUYARD Christine | B41: =Janvier!B42 -> GUYARD | C41: =Janvier!C42 -> Christine | D41: =Janvier!D42 -> BUREAUX | F41: 0 | G41: 00:00:00 | H41: 00:00:00 | J41: 0 | K41: 00:00:00 | L41: 00:00:00 | N41: 0 | O41: 00:00:00 | P41: 00:00:00 | R41: 0 | S41: 00:00:00 | T41: 00:00:00 | V41: 0 | W41: 00:00:00 | X41: 00:00:00 | Y41: 0 | Z41: 0 | AA41: 0 | AB41: 0
A42: GUYARD Marie | B42: =Janvier!B43 -> GUYARD | C42: =Janvier!C43 -> Marie | D42: =Janvier!D43 -> FABRICATION | F42: 0 | G42: 00:00:00 | H42: 00:00:00 | J42: 0 | K42: 00:00:00 | L42: 00:00:00 | N42: 0 | O42: 00:00:00 | P42: 00:00:00 | R42: 0 | S42: 00:00:00 | T42: 00:00:00 | V42: 0 | W42: 00:00:00 | X42: 00:00:00 | Y42: 0 | Z42: 0 | AA42: 0 | AB42: 0
A43: GUYARD Marie | B43: =Janvier!B44 -> GUYARD | C43: =Janvier!C44 -> Marie | D43: =Janvier!D44 -> FABRICATION | F43: 0 | G43: 00:00:00 | H43: 00:00:00 | J43: 0 | K43: 00:00:00 | L43: 00:00:00 | N43: 0 | O43: 00:00:00 | P43: 00:00:00 | R43: 0 | S43: 00:00:00 | T43: 00:00:00 | V43: 0 | W43: 00:00:00 | X43: 00:00:00 | Y43: 0 | Z43: 0 | AA43: 0 | AB43: 0
A44: HARUTYUNYAN Haik | B44: =Janvier!B45 -> HARUTYUNYAN | C44: =Janvier!C45 -> Haik | D44: =Janvier!D45 -> FABRICATION | F44: 0 | G44: 00:00:00 | H44: 00:00:00 | J44: 0 | K44: 00:00:00 | L44: 00:00:00 | N44: 0 | O44: 00:00:00 | P44: 00:00:00 | R44: 0 | S44: 00:00:00 | T44: 00:00:00 | V44: 0 | W44: 00:00:00 | X44: 00:00:00 | Y44: 0 | Z44: 0 | AA44: 0 | AB44: 0
A45: IDRISSI Zinedinne | B45: =Janvier!B46 -> IDRISSI | C45: =Janvier!C46 -> Zinedinne | D45: =Janvier!D46 -> FABRICATION | F45: 0 | G45: 00:00:00 | H45: 00:00:00 | J45: 0 | K45: 00:00:00 | L45: 00:00:00 | N45: 0 | O45: 00:00:00 | P45: 00:00:00 | R45: 0 | S45: 00:00:00 | T45: 00:00:00 | V45: 0 | W45: 00:00:00 | X45: 00:00:00 | Y45: 0 | Z45: 0 | AA45: 0 | AB45: 0
A46: JULIEN Thomas | B46: =Janvier!B47 -> JULIEN | C46: =Janvier!C47 -> Thomas | D46: =Janvier!D47 -> Apprentis | F46: 0 | G46: 00:00:00 | H46: 00:00:00 | J46: 0 | K46: 00:00:00 | L46: 00:00:00 | N46: 0 | O46: 00:00:00 | P46: 00:00:00 | R46: 0 | S46: 00:00:00 | T46: 00:00:00 | V46: 0 | W46: 00:00:00 | X46: 00:00:00 | Y46: 0 | Z46: 0 | AA46: 0 | AB46: 0
A47: LABOREY Jonathan | B47: =Janvier!B48 -> LABOREY | C47: =Janvier!C48 -> Jonathan | D47: =Janvier!D48 -> EMBALLAGE | F47: 0 | G47: 00:00:00 | H47: 00:00:00 | J47: 0 | K47: 00:00:00 | L47: 00:00:00 | N47: 0 | O47: 00:00:00 | P47: 00:00:00 | R47: 0 | S47: 00:00:00 | T47: 00:00:00 | V47: 0 | W47: 00:00:00 | X47: 00:00:00 | Y47: 0 | Z47: 0 | AA47: 0 | AB47: 0
A48: LAHAYE Emmanuel | B48: =Janvier!B49 -> LAHAYE | C48: =Janvier!C49 -> Emmanuel | D48: =Janvier!D49 -> FABRICATION | F48: 0 | G48: 00:00:00 | H48: 00:00:00 | J48: 0 | K48: 00:00:00 | L48: 00:00:00 | N48: 0 | O48: 00:00:00 | P48: 00:00:00 | R48: 0 | S48: 00:00:00 | T48: 00:00:00 | V48: 0 | W48: 00:00:00 | X48: 00:00:00 | Y48: 0 | Z48: 0 | AA48: 0 | AB48: 0
A49: Lasalle Yann | B49: =Janvier!B50 -> Lasalle | C49: =Janvier!C50 -> Yann | D49: =Janvier!D50 -> CHAUFFEURS | F49: 0 | G49: 00:00:00 | H49: 00:00:00 | J49: 0 | K49: 00:00:00 | L49: 00:00:00 | N49: 0 | O49: 00:00:00 | P49: 00:00:00 | R49: 0 | S49: 00:00:00 | T49: 00:00:00 | V49: 0 | W49: 00:00:00 | X49: 00:00:00 | Y49: 0 | Z49: 0 | AA49: 0 | AB49: 0
A50: LORY ANNICK | B50: =Janvier!B51 -> LORY | C50: =Janvier!C51 -> ANNICK | D50: =Janvier!D51 -> FABRICATION | F50: 0 | G50: 00:00:00 | H50: 00:00:00 | J50: 0 | K50: 00:00:00 | L50: 00:00:00 | N50: 0 | O50: 00:00:00 | P50: 00:00:00 | R50: 0 | S50: 00:00:00 | T50: 00:00:00 | V50: 0 | W50: 00:00:00 | X50: 00:00:00 | Y50: 0 | Z50: 0 | AA50: 0 | AB50: 0
A51: LOXTON Morné | B51: =Janvier!B52 -> LOXTON | C51: =Janvier!C52 -> Morné | D51: =Janvier!D52 -> FABRICATION | F51: 0 | G51: 00:00:00 | H51: 00:00:00 | J51: 0 | K51: 00:00:00 | L51: 00:00:00 | N51: 0 | O51: 00:00:00 | P51: 00:00:00 | R51: 0 | S51: 00:00:00 | T51: 00:00:00 | V51: 0 | W51: 00:00:00 | X51: 00:00:00 | Y51: 0 | Z51: 0 | AA51: 0 | AB51: 0
A52: MAILLER Philippe | B52: =Janvier!B53 -> MAILLER | C52: =Janvier!C53 -> Philippe | D52: =Janvier!D53 -> CHAUFFEURS | F52: 0 | G52: 00:00:00 | H52: 00:00:00 | J52: 0 | K52: 00:00:00 | L52: 00:00:00 | N52: 0 | O52: 00:00:00 | P52: 00:00:00 | R52: 0 | S52: 00:00:00 | T52: 00:00:00 | V52: 0 | W52: 00:00:00 | X52: 00:00:00 | Y52: 0 | Z52: 0 | AA52: 0 | AB52: 0
A53: MANOUKIAN Arman | B53: =Janvier!B54 -> MANOUKIAN | C53: =Janvier!C54 -> Arman | D53: =Janvier!D54 -> FABRICATION | F53: 0 | G53: 00:00:00 | H53: 00:00:00 | J53: 0 | K53: 00:00:00 | L53: 00:00:00 | N53: 0 | O53: 00:00:00 | P53: 00:00:00 | R53: 0 | S53: 00:00:00 | T53: 00:00:00 | V53: 0 | W53: 00:00:00 | X53: 00:00:00 | Y53: 0 | Z53: 0 | AA53: 0 | AB53: 0
A54: MARGUIER Stéphane | B54: =Janvier!B55 -> MARGUIER | C54: =Janvier!C55 -> Stéphane | D54: =Janvier!D55 -> EMBALLAGE | F54: 0 | G54: 00:00:00 | H54: 00:00:00 | J54: 0 | K54: 00:00:00 | L54: 00:00:00 | N54: 0 | O54: 00:00:00 | P54: 00:00:00 | R54: 0 | S54: 00:00:00 | T54: 00:00:00 | V54: 0 | W54: 00:00:00 | X54: 00:00:00 | Y54: 0 | Z54: 0 | AA54: 0 | AB54: 0
A55: MARGUIER Stéphane | B55: =Janvier!B56 -> MARGUIER | C55: =Janvier!C56 -> Stéphane | D55: =Janvier!D56 -> NSG | F55: 0 | G55: 00:00:00 | H55: 00:00:00 | J55: 0 | K55: 00:00:00 | L55: 00:00:00 | N55: 0 | O55: 00:00:00 | P55: 00:00:00 | R55: 0 | S55: 00:00:00 | T55: 00:00:00 | V55: 0 | W55: 00:00:00 | X55: 00:00:00 | Y55: 0 | Z55: 0 | AA55: 0 | AB55: 0
A56: MARTIN Julien | B56: =Janvier!B57 -> MARTIN | C56: =Janvier!C57 -> Julien | D56: =Janvier!D57 -> EMBALLAGE | F56: 0 | G56: 00:00:00 | H56: 00:00:00 | J56: 0 | K56: 00:00:00 | L56: 00:00:00 | N56: 0 | O56: 00:00:00 | P56: 00:00:00 | R56: 0 | S56: 00:00:00 | T56: 00:00:00 | V56: 0 | W56: 00:00:00 | X56: 00:00:00 | Y56: 0 | Z56: 0 | AA56: 0 | AB56: 0
A57: MARTIN Pierre | B57: =Janvier!B58 -> MARTIN | C57: =Janvier!C58 -> Pierre | D57: =Janvier!D58 -> FABRICATION | F57: 0 | G57: 00:00:00 | H57: 00:00:00 | J57: 0 | K57: 00:00:00 | L57: 00:00:00 | N57: 0 | O57: 00:00:00 | P57: 00:00:00 | R57: 0 | S57: 00:00:00 | T57: 00:00:00 | V57: 0 | W57: 00:00:00 | X57: 00:00:00 | Y57: 0 | Z57: 0 | AA57: 0 | AB57: 0
A58: MINASYAN ARMAN | B58: =Janvier!B59 -> MINASYAN | C58: =Janvier!C59 -> ARMAN | D58: =Janvier!D59 -> FABRICATION | F58: 0 | G58: 00:00:00 | H58: 00:00:00 | J58: 0 | K58: 00:00:00 | L58: 00:00:00 | N58: 0 | O58: 00:00:00 | P58: 00:00:00 | R58: 0 | S58: 00:00:00 | T58: 00:00:00 | V58: 0 | W58: 00:00:00 | X58: 00:00:00 | Y58: 0 | Z58: 0 | AA58: 0 | AB58: 0
A59: MORET Robin | B59: =Janvier!B60 -> MORET | C59: =Janvier!C60 -> Robin | D59: =Janvier!D60 -> CHAUFFEURS | F59: 0 | G59: 00:00:00 | H59: 00:00:00 | J59: 0 | K59: 00:00:00 | L59: 00:00:00 | N59: 0 | O59: 00:00:00 | P59: 00:00:00 | R59: 0 | S59: 00:00:00 | T59: 00:00:00 | V59: 0 | W59: 00:00:00 | X59: 00:00:00 | Y59: 0 | Z59: 0 | AA59: 0 | AB59: 0
A60: MORIAUX Charles-Henry | B60: =Janvier!B61 -> MORIAUX | C60: =Janvier!C61 -> Charles-Henry | D60: =Janvier!D61 -> EXPEDITION | F60: 0 | G60: 00:00:00 | H60: 00:00:00 | J60: 0 | K60: 00:00:00 | L60: 00:00:00 | N60: 0 | O60: 00:00:00 | P60: 00:00:00 | R60: 0 | S60: 00:00:00 | T60: 00:00:00 | V60: 0 | W60: 00:00:00 | X60: 00:00:00 | Y60: 0 | Z60: 0 | AA60: 0 | AB60: 0
A61: MORIN Christophe | B61: =Janvier!B62 -> MORIN | C61: =Janvier!C62 -> Christophe | D61: =Janvier!D62 -> FABRICATION | F61: 0 | G61: 00:00:00 | H61: 00:00:00 | J61: 0 | K61: 00:00:00 | L61: 00:00:00 | N61: 0 | O61: 00:00:00 | P61: 00:00:00 | R61: 0 | S61: 00:00:00 | T61: 00:00:00 | V61: 0 | W61: 00:00:00 | X61: 00:00:00 | Y61: 0 | Z61: 0 | AA61: 0 | AB61: 0
A62: MORTET Alice | B62: =Janvier!B63 -> MORTET | C62: =Janvier!C63 -> Alice | D62: =Janvier!D63 -> EXPEDITION | F62: 0 | G62: 00:00:00 | H62: 00:00:00 | J62: 0 | K62: 00:00:00 | L62: 00:00:00 | N62: 0 | O62: 00:00:00 | P62: 00:00:00 | R62: 0 | S62: 00:00:00 | T62: 00:00:00 | V62: 0 | W62: 00:00:00 | X62: 00:00:00 | Y62: 0 | Z62: 0 | AA62: 0 | AB62: 0
A63: M'SAKINI Coralie | B63: =Janvier!B64 -> M'SAKINI | C63: =Janvier!C64 -> Coralie | D63: =Janvier!D64 -> COMMERCIAL | F63: 0 | G63: 00:00:00 | H63: 00:00:00 | J63: 0 | K63: 00:00:00 | L63: 00:00:00 | N63: 0 | O63: 00:00:00 | P63: 00:00:00 | R63: 0 | S63: 00:00:00 | T63: 00:00:00 | V63: 0 | W63: 00:00:00 | X63: 00:00:00 | Y63: 0 | Z63: 0 | AA63: 0 | AB63: 0
A64: NEAULT Emilie | B64: =Janvier!B65 -> NEAULT | C64: =Janvier!C65 -> Emilie | D64: =Janvier!D65 -> EMBALLAGE | F64: 0 | G64: 00:00:00 | H64: 00:00:00 | J64: 0 | K64: 00:00:00 | L64: 00:00:00 | N64: 0 | O64: 00:00:00 | P64: 00:00:00 | R64: 0 | S64: 00:00:00 | T64: 00:00:00 | V64: 0 | W64: 00:00:00 | X64: 00:00:00 | Y64: 0 | Z64: 0 | AA64: 0 | AB64: 0
A65: OCQUIDANT MANON | B65: =Janvier!B66 -> OCQUIDANT | C65: =Janvier!C66 -> MANON | D65: =Janvier!D66 -> FABRICATION | F65: 0 | G65: 00:00:00 | H65: 00:00:00 | J65: 0 | K65: 00:00:00 | L65: 00:00:00 | N65: 0 | O65: 00:00:00 | P65: 00:00:00 | R65: 0 | S65: 00:00:00 | T65: 00:00:00 | V65: 0 | W65: 00:00:00 | X65: 00:00:00 | Y65: 0 | Z65: 0 | AA65: 0 | AB65: 0
A66: PACOT Louis | B66: =Janvier!B67 -> PACOT | C66: =Janvier!C67 -> Louis | D66: =Janvier!D67 -> FABRICATION | F66: 0 | G66: 00:00:00 | H66: 00:00:00 | J66: 0 | K66: 00:00:00 | L66: 00:00:00 | N66: 0 | O66: 00:00:00 | P66: 00:00:00 | R66: 0 | S66: 00:00:00 | T66: 00:00:00 | V66: 0 | W66: 00:00:00 | X66: 00:00:00 | Y66: 0 | Z66: 0 | AA66: 0 | AB66: 0
A67: PACOT BENJAMIN | B67: =Janvier!B68 -> PACOT | C67: =Janvier!C68 -> BENJAMIN | D67: =Janvier!D68 -> FABRICATION | F67: 0 | G67: 00:00:00 | H67: 00:00:00 | J67: 0 | K67: 00:00:00 | L67: 00:00:00 | N67: 0 | O67: 00:00:00 | P67: 00:00:00 | R67: 0 | S67: 00:00:00 | T67: 00:00:00 | V67: 0 | W67: 00:00:00 | X67: 00:00:00 | Y67: 0 | Z67: 0 | AA67: 0 | AB67: 0
A68: PASSOT jean luc | B68: =Janvier!B69 -> PASSOT | C68: =Janvier!C69 -> jean luc | D68: =Janvier!D69 -> CHAUFFEURS | F68: 0 | G68: 00:00:00 | H68: 00:00:00 | J68: 0 | K68: 00:00:00 | L68: 00:00:00 | N68: 0 | O68: 00:00:00 | P68: 00:00:00 | R68: 0 | S68: 00:00:00 | T68: 00:00:00 | V68: 0 | W68: 00:00:00 | X68: 00:00:00 | Y68: 0 | Z68: 0 | AA68: 0 | AB68: 0
A69: PAYET Cédric | B69: =Janvier!B70 -> PAYET | C69: =Janvier!C70 -> Cédric | D69: =Janvier!D70 -> FABRICATION | F69: 0 | G69: 00:00:00 | H69: 00:00:00 | J69: 0 | K69: 00:00:00 | L69: 00:00:00 | N69: 0 | O69: 00:00:00 | P69: 00:00:00 | R69: 0 | S69: 00:00:00 | T69: 00:00:00 | V69: 0 | W69: 00:00:00 | X69: 00:00:00 | Y69: 0 | Z69: 0 | AA69: 0 | AB69: 0
A70: PAYET Cédric | B70: =Janvier!B71 -> PAYET | C70: =Janvier!C71 -> Cédric | D70: =Janvier!D71 -> NSG | F70: 0 | G70: 00:00:00 | H70: 00:00:00 | J70: 0 | K70: 00:00:00 | L70: 00:00:00 | N70: 0 | O70: 00:00:00 | P70: 00:00:00 | R70: 0 | S70: 00:00:00 | T70: 00:00:00 | V70: 0 | W70: 00:00:00 | X70: 00:00:00 | Y70: 0 | Z70: 0 | AA70: 0 | AB70: 0
A71: PETIT ISABELLE | B71: =Janvier!B72 -> PETIT | C71: =Janvier!C72 -> ISABELLE | D71: =Janvier!D72 -> CONDITIONNEMENT | F71: 0 | G71: 00:00:00 | H71: 00:00:00 | J71: 0 | K71: 00:00:00 | L71: 00:00:00 | N71: 0 | O71: 00:00:00 | P71: 00:00:00 | R71: 0 | S71: 00:00:00 | T71: 00:00:00 | V71: 0 | W71: 00:00:00 | X71: 00:00:00 | Y71: 0 | Z71: 0 | AA71: 0 | AB71: 0
A72: PIGEARD Jérémy | B72: =Janvier!B73 -> PIGEARD | C72: =Janvier!C73 -> Jérémy | D72: =Janvier!D73 -> FABRICATION | F72: 0 | G72: 00:00:00 | H72: 00:00:00 | J72: 0 | K72: 00:00:00 | L72: 00:00:00 | N72: =IF(M72<(1/24*35),0,M72-(1/24*35)) -> 0 | O72: =IF(N72>=1/24*8,1/24*8,N72) -> 00:00:00 | P72: =IF(N72-O72>0,N72-O72,0) -> 00:00:00 | R72: =IF(Q72<(1/24*35),0,Q72-(1/24*35)) -> 0 | S72: =IF(R72>=1/24*8,1/24*8,R72) -> 00:00:00 | T72: =IF(R72-S72>0,R72-S72,0) -> 00:00:00 | V72: =IF(U72<(1/24*35),0,U72-(1/24*35)) -> 0 | W72: =IF(V72>=1/24*8,1/24*8,V72) -> 00:00:00 | X72: =IF(V72-W72>0,V72-W72,0) -> 00:00:00 | Y72: 0 | Z72: 0 | AA72: 0 | AB72: 0
A73: =B73&" "&C73 -> POIGNANT Anthony | B73: =Janvier!B74 -> POIGNANT | C73: =Janvier!C74 -> Anthony | D73: =Janvier!D74 -> EMBALLAGE | F73: 0 | G73: 00:00:00 | H73: =IF(F73-G73>0,F73-G73,0) -> 00:00:00 | J73: 0 | K73: 00:00:00 | L73: =IF(J73-K73>0,J73-K73,0) -> 00:00:00 | N73: 0 | O73: 00:00:00 | P73: 00:00:00 | R73: 0 | S73: 00:00:00 | T73: 00:00:00 | V73: 0 | W73: 00:00:00 | X73: 00:00:00 | Y73: =SUMIF($E$7:$X$7,$I$7,$E73:$X73) -> 0 | Z73: =SUMIF($E$7:$X$7,$Z$7,$E73:$X73) -> 0 | AA73: =SUMIF($E$7:$X$7,$AA$7,$E73:$X73) -> 0 | AB73: =SUMIF($E$7:$X$7,$AB$7,$E73:$X73) -> 0
A74: PRINCET Véronique | B74: =Janvier!B75 -> PRINCET | C74: =Janvier!C75 -> Véronique | D74: =Janvier!D75 -> EMBALLAGE | F74: =IF(E74<(1/24*35),0,E74-(1/24*35)) -> 0 | G74: =IF(F74>=1/24*8,1/24*8,F74) -> 00:00:00 | H74: 00:00:00 | J74: =IF(I74<(1/24*35),0,I74-(1/24*35)) -> 0 | K74: =IF(J74>=1/24*8,1/24*8,J74) -> 00:00:00 | L74: 00:00:00 | N74: 0 | O74: 00:00:00 | P74: 00:00:00 | R74: 0 | S74: 00:00:00 | T74: 00:00:00 | V74: 0 | W74: 00:00:00 | X74: 00:00:00 | Y74: 0 | Z74: 0 | AA74: 0 | AB74: 0
A75: PRUDENT Axelle | B75: =Janvier!B76 -> PRUDENT | C75: =Janvier!C76 -> Axelle | D75: =Janvier!D76 -> Apprentis | F75: 0 | G75: 00:00:00 | H75: 00:00:00 | J75: 0 | K75: 00:00:00 | L75: 00:00:00 | N75: 0 | O75: 00:00:00 | P75: 00:00:00 | R75: 0 | S75: 00:00:00 | T75: 00:00:00 | V75: 0 | W75: 00:00:00 | X75: 00:00:00 | Y75: 0 | Z75: 0 | AA75: 0 | AB75: 0
A76: PUSSET Françis | B76: =Janvier!B77 -> PUSSET | C76: =Janvier!C77 -> Françis | D76: =Janvier!D77 -> FABRICATION | F76: 0 | G76: 00:00:00 | H76: 00:00:00 | J76: 0 | K76: 00:00:00 | L76: 00:00:00 | N76: 0 | O76: 00:00:00 | P76: 00:00:00 | R76: 0 | S76: 00:00:00 | T76: 00:00:00 | V76: 0 | W76: 00:00:00 | X76: 00:00:00 | Y76: 0 | Z76: 0 | AA76: 0 | AB76: 0
A77: ROGER Céline | B77: =Janvier!B78 -> ROGER | C77: =Janvier!C78 -> Céline | D77: =Janvier!D78 -> BUREAUX | F77: 0 | G77: 00:00:00 | H77: 00:00:00 | J77: 0 | K77: 00:00:00 | L77: 00:00:00 | N77: 0 | O77: 00:00:00 | P77: 00:00:00 | R77: 0 | S77: 00:00:00 | T77: 00:00:00 | V77: 0 | W77: 00:00:00 | X77: 00:00:00 | Y77: 0 | Z77: 0 | AA77: 0 | AB77: 0
A78: ROY Marianne | B78: =Janvier!B79 -> ROY | C78: =Janvier!C79 -> Marianne | D78: =Janvier!D79 -> NSG | F78: 0 | G78: 00:00:00 | H78: 00:00:00 | J78: 0 | K78: 00:00:00 | L78: 00:00:00 | N78: 0 | O78: 00:00:00 | P78: 00:00:00 | R78: 0 | S78: 00:00:00 | T78: 00:00:00 | V78: 0 | W78: 00:00:00 | X78: 00:00:00 | Y78: 0 | Z78: 0 | AA78: 0 | AB78: 0
A79: ROY SEBASTIEN | B79: =Janvier!B80 -> ROY | C79: =Janvier!C80 -> SEBASTIEN | D79: =Janvier!D80 -> EXPEDITION | F79: 0 | G79: 00:00:00 | H79: 00:00:00 | J79: 0 | K79: 00:00:00 | L79: 00:00:00 | N79: 0 | O79: 00:00:00 | P79: 00:00:00 | R79: 0 | S79: 00:00:00 | T79: 00:00:00 | V79: 0 | W79: 00:00:00 | X79: 00:00:00 | Y79: 0 | Z79: 0 | AA79: 0 | AB79: 0
A80: SABRI Moha | B80: =Janvier!B81 -> SABRI | C80: =Janvier!C81 -> Moha | D80: =Janvier!D81 -> FABRICATION | F80: 0 | G80: 00:00:00 | H80: 00:00:00 | J80: 0 | K80: 00:00:00 | L80: 00:00:00 | N80: 0 | O80: 00:00:00 | P80: 00:00:00 | R80: 0 | S80: 00:00:00 | T80: 00:00:00 | V80: 0 | W80: 00:00:00 | X80: 00:00:00 | Y80: 0 | Z80: 0 | AA80: 0 | AB80: 0
A81: SAVARIAT Betty | B81: =Janvier!B82 -> SAVARIAT | C81: =Janvier!C82 -> Betty | D81: =Janvier!D82 -> EMBALLAGE | F81: 0 | G81: 00:00:00 | H81: 00:00:00 | J81: 0 | K81: 00:00:00 | L81: 00:00:00 | N81: 0 | O81: 00:00:00 | P81: 00:00:00 | R81: 0 | S81: 00:00:00 | T81: 00:00:00 | V81: 0 | W81: 00:00:00 | X81: 00:00:00 | Y81: 0 | Z81: 0 | AA81: 0 | AB81: 0
E82: =SUM(E8:E81) -> 0 | F82: 0 | G82: 0 | H82: 0 | I82: 0 | J82: 0 | K82: 0 | L82: 0 | M82: 0 | N82: 0 | O82: 0 | P82: 0 | Q82: 0 | R82: 0 | S82: 0 | T82: 0 | U82: 0 | V82: 0 | W82: 0 | X82: 0 | Y82: =SUM(Y8:Y81) -> 0 | Z82: =SUM(Z8:Z81) -> 0 | AA82: 0 | AB82: 0

Sheet Mai
C1: Menu | U1: =IF($U$5="","masquer colonne","") ->  | V1: =IF($U$5="","masquer colonne","") -> 
A2: =COUNTIF(U1:X1,"masquer colonne") -> 0
B3: =VALUE("01/05/"&Janvier!$B$1) -> 2017-05-01 | E3: =CHOOSE(MONTH(B3),"Janvier","Février","Mars","Avril","Mai","Juin","Juillet","Août","Septembre","Octobre","Novembre","Décembre") -> Mai
E4: =WEEKNUM(E5,21) -> 18 | I4: =WEEKNUM(I5,21) -> 19 | M4: =WEEKNUM(M5,21) -> 20 | Q4: =WEEKNUM(Q5,21) -> 21 | U4: =IF(U5="","",WEEKNUM(U5,21)) -> 22
E5: =VALUE("01/"&MONTH(B3)&"/"&YEAR($B$3))+CHOOSE(WEEKDAY(VALUE("01/"&MONTH(B3)&"/"&YEAR($B$3)),2),6,5,4,10,9,8,7) -> 2017-05-07 | I5: =E5+7 -> 2017-05-14 | M5: =I5+7 -> 2017-05-21 | Q5: =M5+7 -> 2017-05-28 | U5: =IF(DAY(Q5+7)>4,"",Q5+7) -> 2017-06-04
E6: =CHOOSE(WEEKDAY(E5,2),"Lundi","Mardi","Mercredi","Jeudi","Vendredi","Samedi","Dimanche") -> Dimanche | I6: =CHOOSE(WEEKDAY(I5,2),"Lundi","Mardi","Mercredi","Jeudi","Vendredi","Samedi","Dimanche") -> Dimanche | M6: =CHOOSE(WEEKDAY(M5,2),"Lundi","Mardi","Mercredi","Jeudi","Vendredi","Samedi","Dimanche") -> Dimanche | Q6: =CHOOSE(WEEKDAY(Q5,2),"Lundi","Mardi","Mercredi","Jeudi","Vendredi","Samedi","Dimanche") -> Dimanche | U6: =IF(U5="","",CHOOSE(WEEKDAY(U5,2),"Lundi","Mardi","Mercredi","Jeudi","Vendredi","Samedi","Dimanche")) -> Dimanche | Y6: ="Total heures mois "&E3 -> Total heures mois Mai
B7: NOM | C7: PRENOM | D7: SECTEUR | E7: Total Sem. | F7: Heure sup. | G7: Heure 25% | H7: Heure 50% | I7: Total Sem. | J7: Heure sup. | K7: Heure 25% | L7: Heure 50% | M7: Total Sem. | N7: Heure sup. | O7: Heure 25% | P7: Heure 50% | Q7: Total Sem. | R7: Heure sup. | S7: Heure 25% | T7: Heure 50% | U7: Total Sem. | V7: Heure sup. | W7: Heure 25% | X7: Heure 50% | Y7: Total Sem. | Z7: Heure sup. | AA7: Heure 25% | AB7: Heure 50%
A8: =B8&" "&C8 -> AMIOT Anne-Lise | B8: =Janvier!B8 -> AMIOT | C8: =Janvier!C8 -> Anne-Lise | D8: =Janvier!D8 -> QUALITE | F8: =IF(E8<(1/24*35),0,E8-(1/24*35)) -> 0 | G8: =IF(F8>=1/24*8,1/24*8,F8) -> 00:00:00 | H8: =IF(F8-G8>0,F8-G8,0) -> 00:00:00 | J8: =IF(I8<(1/24*35),0,I8-(1/24*35)) -> 0 | K8: =IF(J8>=1/24*8,1/24*8,J8) -> 00:00:00 | L8: =IF(J8-K8>0,J8-K8,0) -> 00:00:00 | N8: =IF(M8<(1/24*35),0,M8-(1/24*35)) -> 0 | O8: =IF(N8>=1/24*8,1/24*8,N8) -> 00:00:00 | P8: =IF(N8-O8>0,N8-O8,0) -> 00:00:00 | R8: =IF(Q8<(1/24*35),0,Q8-(1/24*35)) -> 0 | S8: =IF(R8>=1/24*8,1/24*8,R8) -> 00:00:00 | T8: =IF(R8-S8>0,R8-S8,0) -> 00:00:00 | V8: =IF(U8<(1/24*35),0,U8-(1/24*35)) -> 0 | W8: =IF(V8>=1/24*8,1/24*8,V8) -> 00:00:00 | X8: =IF(V8-W8>0,V8-W8,0) -> 00:00:00 | Y8: =SUMIF($E$7:$X$7,$I$7,$E8:$X8) -> 0 | Z8: =SUMIF($E$7:$X$7,$Z$7,$E8:$X8) -> 0 | AA8: =SUMIF($E$7:$X$7,$AA$7,$E8:$X8) -> 0 | AB8: =SUMIF($E$7:$X$7,$AB$7,$E8:$X8) -> 0
A9: =B9&" "&C9 -> ANDRE FABIEN | B9: =Janvier!B9 -> ANDRE | C9: =Janvier!C9 -> FABIEN | D9: =Janvier!D9 -> FABRICATION | F9: =IF(E9<(1/24*35),0,E9-(1/24*35)) -> 0 | G9: =IF(F9>=1/24*8,1/24*8,F9) -> 00:00:00 | H9: =IF(F9-G9>0,F9-G9,0) -> 00:00:00 | J9: =IF(I9<(1/24*35),0,I9-(1/24*35)) -> 0 | K9: =IF(J9>=1/24*8,1/24*8,J9) -> 00:00:00 | L9: =IF(J9-K9>0,J9-K9,0) -> 00:00:00 | N9: 0 | O9: 00:00:00 | P9: 00:00:00 | R9: 0 | S9: 00:00:00 | T9: 00:00:00 | V9: 0 | W9: 00:00:00 | X9: 00:00:00 | Y9: =SUMIF($E$7:$X$7,$I$7,$E9:$X9) -> 0 | Z9: =SUMIF($E$7:$X$7,$Z$7,$E9:$X9) -> 0 | AA9: =SUMIF($E$7:$X$7,$AA$7,$E9:$X9) -> 0 | AB9: =SUMIF($E$7:$X$7,$AB$7,$E9:$X9) -> 0
A10: AUDIARD FLORIAN | B10: =Janvier!B10 -> AUDIARD | C10: =Janvier!C10 -> FLORIAN | D10: =Janvier!D10 -> FABRICATION | F10: 0 | G10: 00:00:00 | H10: 00:00:00 | J10: 0 | K10: 00:00:00 | L10: 00:00:00 | N10: 0 | O10: 00:00:00 | P10: 00:00:00 | R10: 0 | S10: 00:00:00 | T10: 00:00:00 | V10: 0 | W10: 00:00:00 | X10: 00:00:00 | Y10: 0 | Z10: 0 | AA10: 0 | AB10: 0
A11: AZEVEDO Catherine | B11: =Janvier!B11 -> AZEVEDO | C11: =Janvier!C11 -> Catherine | D11: =Janvier!D11 -> EMBALLAGE | F11: 0 | G11: 00:00:00 | H11: 00:00:00 | J11: 0 | K11: 00:00:00 | L11: 00:00:00 | N11: 0 | O11: 00:00:00 | P11: 00:00:00 | R11: 0 | S11: 00:00:00 | T11: 00:00:00 | V11: 0 | W11: 00:00:00 | X11: 00:00:00 | Y11: 0 | Z11: 0 | AA11: 0 | AB11: 0
A12: BARBIER Nathalie | B12: =Janvier!B12 -> BARBIER | C12: =Janvier!C12 -> Nathalie | D12: =Janvier!D12 -> QUALITE | F12: 0 | G12: 00:00:00 | H12: 00:00:00 | J12: 0 | K12: 00:00:00 | L12: 00:00:00 | N12: 0 | O12: 00:00:00 | P12: 00:00:00 | R12: 0 | S12: 00:00:00 | T12: 00:00:00 | V12: 0 | W12: 00:00:00 | X12: 00:00:00 | Y12: 0 | Z12: 0 | AA12: 0 | AB12: 0
A13: BECHTOLD Marie-Christine | B13: =Janvier!B13 -> BECHTOLD | C13: =Janvier!C13 -> Marie-Christine | D13: =Janvier!D13 -> EMBALLAGE | F13: 0 | G13: 00:00:00 | H13: 00:00:00 | J13: 0 | K13: 00:00:00 | L13: 00:00:00 | N13: 0 | O13: 00:00:00 | P13: 00:00:00 | R13: 0 | S13: 00:00:00 | T13: 00:00:00 | V13: 0 | W13: 00:00:00 | X13: 00:00:00 | Y13: 0 | Z13: 0 | AA13: 0 | AB13: 0
A14: BEURET MAUD | B14: =Janvier!B14 -> BEURET | C14: =Janvier!C14 -> MAUD | D14: =Janvier!D14 -> MAGASIN | F14: 0 | G14: 00:00:00 | H14: 00:00:00 | J14: 0 | K14: 00:00:00 | L14: 00:00:00 | N14: 0 | O14: 00:00:00 | P14: 00:00:00 | R14: 0 | S14: 00:00:00 | T14: 00:00:00 | V14: 0 | W14: 00:00:00 | X14: 00:00:00 | Y14: 0 | Z14: 0 | AA14: 0 | AB14: 0
A15: BOUEZNARD Myriam | B15: =Janvier!B15 -> BOUEZNARD | C15: =Janvier!C15 -> Myriam | D15: =Janvier!D15 -> NSG | F15: 0 | G15: 00:00:00 | H15: 00:00:00 | J15: 0 | K15: 00:00:00 | L15: 00:00:00 | N15: 0 | O15: 00:00:00 | P15: 00:00:00 | R15: 0 | S15: 00:00:00 | T15: 00:00:00 | V15: 0 | W15: 00:00:00 | X15: 00:00:00 | Y15: 0 | Z15: 0 | AA15: 0 | AB15: 0
A16: Boutiflat James | B16: =Janvier!B16 -> Boutiflat | C16: =Janvier!C16 -> James | D16: =Janvier!D16 -> EMBALLAGE | F16: 0 | G16: 00:00:00 | H16: 00:00:00 | J16: 0 | K16: 00:00:00 | L16: 00:00:00 | N16: 0 | O16: 00:00:00 | P16: 00:00:00 | R16: 0 | S16: 00:00:00 | T16: 00:00:00 | V16: 0 | W16: 00:00:00 | X16: 00:00:00 | Y16: 0 | Z16: 0 | AA16: 0 | AB16: 0
A17: BOUZENARD Adrien | B17: =Janvier!B17 -> BOUZENARD | C17: =Janvier!C17 -> Adrien | D17: =Janvier!D17 -> FABRICATION | F17: 0 | G17: 00:00:00 | H17: 00:00:00 | J17: 0 | K17: 00:00:00 | L17: 00:00:00 | N17: 0 | O17: 00:00:00 | P17: 00:00:00 | R17: 0 | S17: 00:00:00 | T17: 00:00:00 | V17: 0 | W17: 00:00:00 | X17: 00:00:00 | Y17: 0 | Z17: 0 | AA17: 0 | AB17: 0
A18: BOUZENARD Myriam | B18: =Janvier!B18 -> BOUZENARD | C18: =Janvier!C18 -> Myriam | D18: =Janvier!D18 -> EMBALLAGE | F18: 0 | G18: 00:00:00 | H18: 00:00:00 | J18: 0 | K18: 00:00:00 | L18: 00:00:00 | N18: 0 | O18: 00:00:00 | P18: 00:00:00 | R18: 0 | S18: 00:00:00 | T18: 00:00:00 | V18: 0 | W18: 00:00:00 | X18: 00:00:00 | Y18: 0 | Z18: 0 | AA18: 0 | AB18: 0
A19: CARRION JEAN-CLAUDE | B19: =Janvier!B19 -> CARRION | C19: =Janvier!C19 -> JEAN-CLAUDE | D19: =Janvier!D19 -> CHAUFFEURS | F19: 0 | G19: 00:00:00 | H19: 00:00:00 | J19: 0 | K19: 00:00:00 | L19: 00:00:00 | N19: 0 | O19: 00:00:00 | P19: 00:00:00 | R19: 0 | S19: 00:00:00 | T19: 00:00:00 | V19: 0 | W19: 00:00:00 | X19: 00:00:00 | Y19: 0 | Z19: 0 | AA19: 0 | AB19: 0
A20: CARTERON Claudine | B20: =Janvier!B20 -> CARTERON | C20: =Janvier!C20 -> Claudine | D20: =Janvier!D20 -> BUREAUX | F20: 0 | G20: 00:00:00 | H20: 00:00:00 | J20: 0 | K20: 00:00:00 | L20: 00:00:00 | N20: 0 | O20: 00:00:00 | P20: 00:00:00 | R20: 0 | S20: 00:00:00 | T20: 00:00:00 | V20: 0 | W20: 00:00:00 | X20: 00:00:00 | Y20: 0 | Z20: 0 | AA20: 0 | AB20: 0
A21: CHAUDRON Amandine | B21: =Janvier!B21 -> CHAUDRON | C21: =Janvier!C21 -> Amandine | D21: =Janvier!D21 -> EMBALLAGE | F21: 0 | G21: 00:00:00 | H21: 00:00:00 | J21: 0 | K21: 00:00:00 | L21: 00:00:00 | N21: 0 | O21: 00:00:00 | P21: 00:00:00 | R21: 0 | S21: 00:00:00 | T21: 00:00:00 | V21: 0 | W21: 00:00:00 | X21: 00:00:00 | Y21: 0 | Z21: 0 | AA21: 0 | AB21: 0
A22: CHAUDRON Virginie | B22: =Janvier!B22 -> CHAUDRON | C22: =Janvier!C22 -> Virginie | D22: =Janvier!D22 -> FABRICATION | F22: 0 | G22: 00:00:00 | H22: 00:00:00 | J22: 0 | K22: 00:00:00 | L22: 00:00:00 | N22: 0 | O22: 00:00:00 | P22: 00:00:00 | R22: 0 | S22: 00:00:00 | T22: 00:00:00 | V22: 0 | W22: 00:00:00 | X22: 00:00:00 | Y22: 0 | Z22: 0 | AA22: 0 | AB22: 0
A23: CHEVAUX Rodolphe | B23: =Janvier!B23 -> CHEVAUX | C23: =Janvier!C23 -> Rodolphe | D23: =Janvier!D23 -> MAINTENANCE | F23: 0 | G23: 00:00:00 | H23: 00:00:00 | J23: 0 | K23: 00:00:00 | L23: 00:00:00 | N23: 0 | O23: 00:00:00 | P23: 00:00:00 | R23: 0 | S23: 00:00:00 | T23: 00:00:00 | V23: 0 | W23: 00:00:00 | X23: 00:00:00 | Y23: 0 | Z23: 0 | AA23: 0 | AB23: 0
A24: COCHARD Hervé | B24: =Janvier!B24 -> COCHARD | C24: =Janvier!C24 -> Hervé | D24: =Janvier!D24 -> COMMERCIAL | F24: 0 | G24: 00:00:00 | H24: 00:00:00 | J24: 0 | K24: 00:00:00 | L24: 00:00:00 | N24: 0 | O24: 00:00:00 | P24: 00:00:00 | R24: 0 | S24: 00:00:00 | T24: 00:00:00 | V24: 0 | W24: 00:00:00 | X24: 00:00:00 | Y24: 0 | Z24: 0 | AA24: 0 | AB24: 0
A25: CRETIN JEROME | B25: =Janvier!B25 -> CRETIN | C25: =Janvier!C25 -> JEROME | D25: =Janvier!D25 -> NSG | F25: 0 | G25: 00:00:00 | H25: 00:00:00 | J25: 0 | K25: 00:00:00 | L25: 00:00:00 | N25: 0 | O25: 00:00:00 | P25: 00:00:00 | R25: 0 | S25: 00:00:00 | T25: 00:00:00 | V25: 0 | W25: 00:00:00 | X25: 00:00:00 | Y25: 0 | Z25: 0 | AA25: 0 | AB25: 0
A26: CRINQUANT JEROME | B26: =Janvier!B26 -> CRINQUANT | C26: =Janvier!C26 -> JEROME | D26: =Janvier!D26 -> NSG | F26: 0 | G26: 00:00:00 | H26: 00:00:00 | J26: 0 | K26: 00:00:00 | L26: 00:00:00 | N26: 0 | O26: 00:00:00 | P26: 00:00:00 | R26: 0 | S26: 00:00:00 | T26: 00:00:00 | V26: 0 | W26: 00:00:00 | X26: 00:00:00 | Y26: 0 | Z26: 0 | AA26: 0 | AB26: 0
A27: DASCIER ANDY | B27: =Janvier!B28 -> DASCIER | C27: =Janvier!C28 -> ANDY | D27: =Janvier!D28 -> PREPA COMMANDE | F27: 0 | G27: 00:00:00 | H27: 00:00:00 | J27: 0 | K27: 00:00:00 | L27: 00:00:00 | N27: 0 | O27: 00:00:00 | P27: 00:00:00 | R27: 0 | S27: 00:00:00 | T27: 00:00:00 | V27: 0 | W27: 00:00:00 | X27: 00:00:00 | Y27: 0 | Z27: 0 | AA27: 0 | AB27: 0
A28: DAVERIO BENOIT | B28: =Janvier!B29 -> DAVERIO | C28: =Janvier!C29 -> BENOIT | D28: =Janvier!D29 -> COMMERCIAL | F28: 0 | G28: 00:00:00 | H28: 00:00:00 | J28: 0 | K28: 00:00:00 | L28: 00:00:00 | N28: 0 | O28: 00:00:00 | P28: 00:00:00 | R28: 0 | S28: 00:00:00 | T28: 00:00:00 | V28: 0 | W28: 00:00:00 | X28: 00:00:00 | Y28: 0 | Z28: 0 | AA28: 0 | AB28: 0
A29: DELANGRE ALEX | B29: =Janvier!B30 -> DELANGRE | C29: =Janvier!C30 -> ALEX | D29: =Janvier!D30 -> FABRICATION | F29: 0 | G29: 00:00:00 | H29: 00:00:00 | J29: 0 | K29: 00:00:00 | L29: 00:00:00 | N29: 0 | O29: 00:00:00 | P29: 00:00:00 | R29: 0 | S29: 00:00:00 | T29: 00:00:00 | V29: 0 | W29: 00:00:00 | X29: 00:00:00 | Y29: 0 | Z29: 0 | AA29: 0 | AB29: 0
A30: DELIN Philippe | B30: =Janvier!B31 -> DELIN | C30: =Janvier!C31 -> Philippe | D30: =Janvier!D31 -> DIRECTION | F30: 0 | G30: 00:00:00 | H30: 00:00:00 | J30: 0 | K30: 00:00:00 | L30: 00:00:00 | N30: 0 | O30: 00:00:00 | P30: 00:00:00 | R30: 0 | S30: 00:00:00 | T30: 00:00:00 | V30: 0 | W30: 00:00:00 | X30: 00:00:00 | Y30: 0 | Z30: 0 | AA30: 0 | AB30: 0
A31: DORE Daisy | B31: =Janvier!B32 -> DORE | C31: =Janvier!C32 -> Daisy | D31: =Janvier!D32 -> FABRICATION | F31: 0 | G31: 00:00:00 | H31: 00:00:00 | J31: 0 | K31: 00:00:00 | L31: 00:00:00 | N31: 0 | O31: 00:00:00 | P31: 00:00:00 | R31: 0 | S31: 00:00:00 | T31: 00:00:00 | V31: 0 | W31: 00:00:00 | X31: 00:00:00 | Y31: 0 | Z31: 0 | AA31: 0 | AB31: 0
A32: ECHEVARIA Luis | B32: =Janvier!B33 -> ECHEVARIA | C32: =Janvier!C33 -> Luis | D32: =Janvier!D33 -> FABRICATION | F32: 0 | G32: 00:00:00 | H32: 00:00:00 | J32: 0 | K32: 00:00:00 | L32: 00:00:00 | N32: 0 | O32: 00:00:00 | P32: 00:00:00 | R32: 0 | S32: 00:00:00 | T32: 00:00:00 | V32: 0 | W32: 00:00:00 | X32: 00:00:00 | Y32: 0 | Z32: 0 | AA32: 0 | AB32: 0
A33: EL MOQADDAM REDOUANE | B33: =Janvier!B34 -> EL MOQADDAM | C33: =Janvier!C34 -> REDOUANE | D33: =Janvier!D34 -> FABRICATION | F33: 0 | G33: 00:00:00 | H33: 00:00:00 | J33: 0 | K33: 00:00:00 | L33: 00:00:00 | N33: 0 | O33: 00:00:00 | P33: 00:00:00 | R33: 0 | S33: 00:00:00 | T33: 00:00:00 | V33: 0 | W33: 00:00:00 | X33: 00:00:00 | Y33: 0 | Z33: 0 | AA33: 0 | AB33: 0
A34: FORMEL CELINE | B34: =Janvier!B35 -> FORMEL | C34: =Janvier!C35 -> CELINE | D34: =Janvier!D35 -> BUREAUX | F34: 0 | G34: 00:00:00 | H34: 00:00:00 | J34: 0 | K34: 00:00:00 | L34: 00:00:00 | N34: 0 | O34: 00:00:00 | P34: 00:00:00 | R34: 0 | S34: 00:00:00 | T34: 00:00:00 | V34: 0 | W34: 00:00:00 | X34: 00:00:00 | Y34: 0 | Z34: 0 | AA34: 0 | AB34: 0
A35: FOUACHE LENA | B35: =Janvier!B36 -> FOUACHE | C35: =Janvier!C36 -> LENA | D35: =Janvier!D36 -> QUALITE | F35: 0 | G35: 00:00:00 | H35: 00:00:00 | J35: 0 | K35: 00:00:00 | L35: 00:00:00 | N35: 0 | O35: 00:00:00 | P35: 00:00:00 | R35: 0 | S35: 00:00:00 | T35: 00:00:00 | V35: 0 | W35: 00:00:00 | X35: 00:00:00 | Y35: 0 | Z35: 0 | AA35: 0 | AB35: 0
A36: GALETTI Maud | B36: =Janvier!B37 -> GALETTI | C36: =Janvier!C37 -> Maud | D36: =Janvier!D37 -> FABRICATION | F36: 0 | G36: 00:00:00 | H36: 00:00:00 | J36: 0 | K36: 00:00:00 | L36: 00:00:00 | N36: 0 | O36: 00:00:00 | P36: 00:00:00 | R36: 0 | S36: 00:00:00 | T36: 00:00:00 | V36: 0 | W36: 00:00:00 | X36: 00:00:00 | Y36: 0 | Z36: 0 | AA36: 0 | AB36: 0
A37: GAY Stephane | B37: =Janvier!B38 -> GAY | C37: =Janvier!C38 -> Stephane | D37: =Janvier!D38 -> FABRICATION | F37: 0 | G37: 00:00:00 | H37: 00:00:00 | J37: 0 | K37: 00:00:00 | L37: 00:00:00 | N37: 0 | O37: 00:00:00 | P37: 00:00:00 | R37: 0 | S37: 00:00:00 | T37: 00:00:00 | V37: 0 | W37: 00:00:00 | X37: 00:00:00 | Y37: 0 | Z37: 0 | AA37: 0 | AB37: 0
A38: Graff MATHILDE | B38: =Janvier!B39 -> Graff | C38: =Janvier!C39 -> MATHILDE | D38: =Janvier!D39 -> CONDITIONNEMENT | F38: 0 | G38: 00:00:00 | H38: 00:00:00 | J38: 0 | K38: 00:00:00 | L38: 00:00:00 | N38: 0 | O38: 00:00:00 | P38: 00:00:00 | R38: 0 | S38: 00:00:00 | T38: 00:00:00 | V38: 0 | W38: 00:00:00 | X38: 00:00:00 | Y38: 0 | Z38: 0 | AA38: 0 | AB38: 0
A39: GRAPPIN Perrine | B39: =Janvier!B40 -> GRAPPIN | C39: =Janvier!C40 -> Perrine | D39: =Janvier!D40 -> FABRICATION | F39: 0 | G39: 00:00:00 | H39: 00:00:00 | J39: 0 | K39: 00:00:00 | L39: 00:00:00 | N39: 0 | O39: 00:00:00 | P39: 00:00:00 | R39: 0 | S39: 00:00:00 | T39: 00:00:00 | V39: 0 | W39: 00:00:00 | X39: 00:00:00 | Y39: 0 | Z39: 0 | AA39: 0 | AB39: 0
A40: GUENOT Anne | B40: =Janvier!B41 -> GUENOT | C40: =Janvier!C41 -> Anne | D40: =Janvier!D41 -> EXPEDITION | F40: 0 | G40: 00:00:00 | H40: 00:00:00 | J40: 0 | K40: 00:00:00 | L40: 00:00:00 | N40: 0 | O40: 00:00:00 | P40: 00:00:00 | R40: 0 | S40: 00:00:00 | T40: 00:00:00 | V40: 0 | W40: 00:00:00 | X40: 00:00:00 | Y40: 0 | Z40: 0 | AA40: 0 | AB40: 0
A41: GUYARD Christine | B41: =Janvier!B42 -> GUYARD | C41: =Janvier!C42 -> Christine | D41: =Janvier!D42 -> BUREAUX | F41: 0 | G41: 00:00:00 | H41: 00:00:00 | J41: 0 | K41: 00:00:00 | L41: 00:00:00 | N41: 0 | O41: 00:00:00 | P41: 00:00:00 | R41: 0 | S41: 00:00:00 | T41: 00:00:00 | V41: 0 | W41: 00:00:00 | X41: 00:00:00 | Y41: 0 | Z41: 0 | AA41: 0 | AB41: 0
A42: GUYARD Marie | B42: =Janvier!B43 -> GUYARD | C42: =Janvier!C43 -> Marie | D42: =Janvier!D43 -> FABRICATION | F42: 0 | G42: 00:00:00 | H42: 00:00:00 | J42: 0 | K42: 00:00:00 | L42: 00:00:00 | N42: 0 | O42: 00:00:00 | P42: 00:00:00 | R42: 0 | S42: 00:00:00 | T42: 00:00:00 | V42: 0 | W42: 00:00:00 | X42: 00:00:00 | Y42: 0 | Z42: 0 | AA42: 0 | AB42: 0
A43: GUYARD Marie | B43: =Janvier!B44 -> GUYARD | C43: =Janvier!C44 -> Marie | D43: =Janvier!D44 -> FABRICATION | F43: 0 | G43: 00:00:00 | H43: 00:00:00 | J43: 0 | K43: 00:00:00 | L43: 00:00:00 | N43: 0 | O43: 00:00:00 | P43: 00:00:00 | R43: 0 | S43: 00:00:00 | T43: 00:00:00 | V43: 0 | W43: 00:00:00 | X43: 00:00:00 | Y43: 0 | Z43: 0 | AA43: 0 | AB43: 0
A44: HARUTYUNYAN Haik | B44: =Janvier!B45 -> HARUTYUNYAN | C44: =Janvier!C45 -> Haik | D44: =Janvier!D45 -> FABRICATION | F44: 0 | G44: 00:00:00 | H44: 00:00:00 | J44: 0 | K44: 00:00:00 | L44: 00:00:00 | N44: 0 | O44: 00:00:00 | P44: 00:00:00 | R44: 0 | S44: 00:00:00 | T44: 00:00:00 | V44: 0 | W44: 00:00:00 | X44: 00:00:00 | Y44: 0 | Z44: 0 | AA44: 0 | AB44: 0
A45: IDRISSI Zinedinne | B45: =Janvier!B46 -> IDRISSI | C45: =Janvier!C46 -> Zinedinne | D45: =Janvier!D46 -> FABRICATION | F45: 0 | G45: 00:00:00 | H45: 00:00:00 | J45: 0 | K45: 00:00:00 | L45: 00:00:00 | N45: 0 | O45: 00:00:00 | P45: 00:00:00 | R45: 0 | S45: 00:00:00 | T45: 00:00:00 | V45: 0 | W45: 00:00:00 | X45: 00:00:00 | Y45: 0 | Z45: 0 | AA45: 0 | AB45: 0
A46: JULIEN Thomas | B46: =Janvier!B47 -> JULIEN | C46: =Janvier!C47 -> Thomas | D46: =Janvier!D47 -> Apprentis | F46: 0 | G46: 00:00:00 | H46: 00:00:00 | J46: 0 | K46: 00:00:00 | L46: 00:00:00 | N46: 0 | O46: 00:00:00 | P46: 00:00:00 | R46: 0 | S46: 00:00:00 | T46: 00:00:00 | V46: 0 | W46: 00:00:00 | X46: 00:00:00 | Y46: 0 | Z46: 0 | AA46: 0 | AB46: 0
A47: LABOREY Jonathan | B47: =Janvier!B48 -> LABOREY | C47: =Janvier!C48 -> Jonathan | D47: =Janvier!D48 -> EMBALLAGE | F47: 0 | G47: 00:00:00 | H47: 00:00:00 | J47: 0 | K47: 00:00:00 | L47: 00:00:00 | N47: 0 | O47: 00:00:00 | P47: 00:00:00 | R47: 0 | S47: 00:00:00 | T47: 00:00:00 | V47: 0 | W47: 00:00:00 | X47: 00:00:00 | Y47: 0 | Z47: 0 | AA47: 0 | AB47: 0
A48: LAHAYE Emmanuel | B48: =Janvier!B49 -> LAHAYE | C48: =Janvier!C49 -> Emmanuel | D48: =Janvier!D49 -> FABRICATION | F48: 0 | G48: 00:00:00 | H48: 00:00:00 | J48: 0 | K48: 00:00:00 | L48: 00:00:00 | N48: 0 | O48: 00:00:00 | P48: 00:00:00 | R48: 0 | S48: 00:00:00 | T48: 00:00:00 | V48: 0 | W48: 00:00:00 | X48: 00:00:00 | Y48: 0 | Z48: 0 | AA48: 0 | AB48: 0
A49: Lasalle Yann | B49: =Janvier!B50 -> Lasalle | C49: =Janvier!C50 -> Yann | D49: =Janvier!D50 -> CHAUFFEURS | F49: 0 | G49: 00:00:00 | H49: 00:00:00 | J49: 0 | K49: 00:00:00 | L49: 00:00:00 | N49: 0 | O49: 00:00:00 | P49: 00:00:00 | R49: 0 | S49: 00:00:00 | T49: 00:00:00 | V49: 0 | W49: 00:00:00 | X49: 00:00:00 | Y49: 0 | Z49: 0 | AA49: 0 | AB49: 0
A50: LORY ANNICK | B50: =Janvier!B51 -> LORY | C50: =Janvier!C51 -> ANNICK | D50: =Janvier!D51 -> FABRICATION | F50: 0 | G50: 00:00:00 | H50: 00:00:00 | J50: 0 | K50: 00:00:00 | L50: 00:00:00 | N50: 0 | O50: 00:00:00 | P50: 00:00:00 | R50: 0 | S50: 00:00:00 | T50: 00:00:00 | V50: 0 | W50: 00:00:00 | X50: 00:00:00 | Y50: 0 | Z50: 0 | AA50: 0 | AB50: 0
A51: LOXTON Morné | B51: =Janvier!B52 -> LOXTON | C51: =Janvier!C52 -> Morné | D51: =Janvier!D52 -> FABRICATION | F51: 0 | G51: 00:00:00 | H51: 00:00:00 | J51: 0 | K51: 00:00:00 | L51: 00:00:00 | N51: 0 | O51: 00:00:00 | P51: 00:00:00 | R51: 0 | S51: 00:00:00 | T51: 00:00:00 | V51: 0 | W51: 00:00:00 | X51: 00:00:00 | Y51: 0 | Z51: 0 | AA51: 0 | AB51: 0
A52: MAILLER Philippe | B52: =Janvier!B53 -> MAILLER | C52: =Janvier!C53 -> Philippe | D52: =Janvier!D53 -> CHAUFFEURS | F52: 0 | G52: 00:00:00 | H52: 00:00:00 | J52: 0 | K52: 00:00:00 | L52: 00:00:00 | N52: 0 | O52: 00:00:00 | P52: 00:00:00 | R52: 0 | S52: 00:00:00 | T52: 00:00:00 | V52: 0 | W52: 00:00:00 | X52: 00:00:00 | Y52: 0 | Z52: 0 | AA52: 0 | AB52: 0
A53: MANOUKIAN Arman | B53: =Janvier!B54 -> MANOUKIAN | C53: =Janvier!C54 -> Arman | D53: =Janvier!D54 -> FABRICATION | F53: 0 | G53: 00:00:00 | H53: 00:00:00 | J53: 0 | K53: 00:00:00 | L53: 00:00:00 | N53: 0 | O53: 00:00:00 | P53: 00:00:00 | R53: 0 | S53: 00:00:00 | T53: 00:00:00 | V53: 0 | W53: 00:00:00 | X53: 00:00:00 | Y53: 0 | Z53: 0 | AA53: 0 | AB53: 0
A54: MARGUIER Stéphane | B54: =Janvier!B55 -> MARGUIER | C54: =Janvier!C55 -> Stéphane | D54: =Janvier!D55 -> EMBALLAGE | F54: 0 | G54: 00:00:00 | H54: 00:00:00 | J54: 0 | K54: 00:00:00 | L54: 00:00:00 | N54: 0 | O54: 00:00:00 | P54: 00:00:00 | R54: 0 | S54: 00:00:00 | T54: 00:00:00 | V54: 0 | W54: 00:00:00 | X54: 00:00:00 | Y54: 0 | Z54: 0 | AA54: 0 | AB54: 0
A55: MARGUIER Stéphane | B55: =Janvier!B56 -> MARGUIER | C55: =Janvier!C56 -> Stéphane | D55: =Janvier!D56 -> NSG | F55: 0 | G55: 00:00:00 | H55: 00:00:00 | J55: 0 | K55: 00:00:00 | L55: 00:00:00 | N55: 0 | O55: 00:00:00 | P55: 00:00:00 | R55: 0 | S55: 00:00:00 | T55: 00:00:00 | V55: 0 | W55: 00:00:00 | X55: 00:00:00 | Y55: 0 | Z55: 0 | AA55: 0 | AB55: 0
A56: MARTIN Julien | B56: =Janvier!B57 -> MARTIN | C56: =Janvier!C57 -> Julien | D56: =Janvier!D57 -> EMBALLAGE | F56: 0 | G56: 00:00:00 | H56: 00:00:00 | J56: 0 | K56: 00:00:00 | L56: 00:00:00 | N56: 0 | O56: 00:00:00 | P56: 00:00:00 | R56: 0 | S56: 00:00:00 | T56: 00:00:00 | V56: 0 | W56: 00:00:00 | X56: 00:00:00 | Y56: 0 | Z56: 0 | AA56: 0 | AB56: 0
A57: MARTIN Pierre | B57: =Janvier!B58 -> MARTIN | C57: =Janvier!C58 -> Pierre | D57: =Janvier!D58 -> FABRICATION | F57: 0 | G57: 00:00:00 | H57: 00:00:00 | J57: 0 | K57: 00:00:00 | L57: 00:00:00 | N57: 0 | O57: 00:00:00 | P57: 00:00:00 | R57: 0 | S57: 00:00:00 | T57: 00:00:00 | V57: 0 | W57: 00:00:00 | X57: 00:00:00 | Y57: 0 | Z57: 0 | AA57: 0 | AB57: 0
A58: MINASYAN ARMAN | B58: =Janvier!B59 -> MINASYAN | C58: =Janvier!C59 -> ARMAN | D58: =Janvier!D59 -> FABRICATION | F58: 0 | G58: 00:00:00 | H58: 00:00:00 | J58: 0 | K58: 00:00:00 | L58: 00:00:00 | N58: 0 | O58: 00:00:00 | P58: 00:00:00 | R58: 0 | S58: 00:00:00 | T58: 00:00:00 | V58: 0 | W58: 00:00:00 | X58: 00:00:00 | Y58: 0 | Z58: 0 | AA58: 0 | AB58: 0
A59: MORET Robin | B59: =Janvier!B60 -> MORET | C59: =Janvier!C60 -> Robin | D59: =Janvier!D60 -> CHAUFFEURS | F59: 0 | G59: 00:00:00 | H59: 00:00:00 | J59: 0 | K59: 00:00:00 | L59: 00:00:00 | N59: 0 | O59: 00:00:00 | P59: 00:00:00 | R59: 0 | S59: 00:00:00 | T59: 00:00:00 | V59: 0 | W59: 00:00:00 | X59: 00:00:00 | Y59: 0 | Z59: 0 | AA59: 0 | AB59: 0
A60: MORIAUX Charles-Henry | B60: =Janvier!B61 -> MORIAUX | C60: =Janvier!C61 -> Charles-Henry | D60: =Janvier!D61 -> EXPEDITION | F60: 0 | G60: 00:00:00 | H60: 00:00:00 | J60: 0 | K60: 00:00:00 | L60: 00:00:00 | N60: 0 | O60: 00:00:00 | P60: 00:00:00 | R60: 0 | S60: 00:00:00 | T60: 00:00:00 | V60: 0 | W60: 00:00:00 | X60: 00:00:00 | Y60: 0 | Z60: 0 | AA60: 0 | AB60: 0
A61: MORIN Christophe | B61: =Janvier!B62 -> MORIN | C61: =Janvier!C62 -> Christophe | D61: =Janvier!D62 -> FABRICATION | F61: 0 | G61: 00:00:00 | H61: 00:00:00 | J61: 0 | K61: 00:00:00 | L61: 00:00:00 | N61: 0 | O61: 00:00:00 | P61: 00:00:00 | R61: 0 | S61: 00:00:00 | T61: 00:00:00 | V61: 0 | W61: 00:00:00 | X61: 00:00:00 | Y61: 0 | Z61: 0 | AA61: 0 | AB61: 0
A62: MORTET Alice | B62: =Janvier!B63 -> MORTET | C62: =Janvier!C63 -> Alice | D62: =Janvier!D63 -> EXPEDITION | F62: 0 | G62: 00:00:00 | H62: 00:00:00 | J62: 0 | K62: 00:00:00 | L62: 00:00:00 | N62: 0 | O62: 00:00:00 | P62: 00:00:00 | R62: 0 | S62: 00:00:00 | T62: 00:00:00 | V62: 0 | W62: 00:00:00 | X62: 00:00:00 | Y62: 0 | Z62: 0 | AA62: 0 | AB62: 0
A63: M'SAKINI Coralie | B63: =Janvier!B64 -> M'SAKINI | C63: =Janvier!C64 -> Coralie | D63: =Janvier!D64 -> COMMERCIAL | F63: 0 | G63: 00:00:00 | H63: 00:00:00 | J63: 0 | K63: 00:00:00 | L63: 00:00:00 | N63: 0 | O63: 00:00:00 | P63: 00:00:00 | R63: 0 | S63: 00:00:00 | T63: 00:00:00 | V63: 0 | W63: 00:00:00 | X63: 00:00:00 | Y63: 0 | Z63: 0 | AA63: 0 | AB63: 0
A64: NEAULT Emilie | B64: =Janvier!B65 -> NEAULT | C64: =Janvier!C65 -> Emilie | D64: =Janvier!D65 -> EMBALLAGE | F64: 0 | G64: 00:00:00 | H64: 00:00:00 | J64: 0 | K64: 00:00:00 | L64: 00:00:00 | N64: 0 | O64: 00:00:00 | P64: 00:00:00 | R64: 0 | S64: 00:00:00 | T64: 00:00:00 | V64: 0 | W64: 00:00:00 | X64: 00:00:00 | Y64: 0 | Z64: 0 | AA64: 0 | AB64: 0
A65: OCQUIDANT MANON | B65: =Janvier!B66 -> OCQUIDANT | C65: =Janvier!C66 -> MANON | D65: =Janvier!D66 -> FABRICATION | F65: 0 | G65: 00:00:00 | H65: 00:00:00 | J65: 0 | K65: 00:00:00 | L65: 00:00:00 | N65: 0 | O65: 00:00:00 | P65: 00:00:00 | R65: 0 | S65: 00:00:00 | T65: 00:00:00 | V65: 0 | W65: 00:00:00 | X65: 00:00:00 | Y65: 0 | Z65: 0 | AA65: 0 | AB65: 0
A66: PACOT Louis | B66: =Janvier!B67 -> PACOT | C66: =Janvier!C67 -> Louis | D66: =Janvier!D67 -> FABRICATION | F66: 0 | G66: 00:00:00 | H66: 00:00:00 | J66: 0 | K66: 00:00:00 | L66: 00:00:00 | N66: 0 | O66: 00:00:00 | P66: 00:00:00 | R66: 0 | S66: 00:00:00 | T66: 00:00:00 | V66: 0 | W66: 00:00:00 | X66: 00:00:00 | Y66: 0 | Z66: 0 | AA66: 0 | AB66: 0
A67: PACOT BENJAMIN | B67: =Janvier!B68 -> PACOT | C67: =Janvier!C68 -> BENJAMIN | D67: =Janvier!D68 -> FABRICATION | F67: 0 | G67: 00:00:00 | H67: 00:00:00 | J67: 0 | K67: 00:00:00 | L67: 00:00:00 | N67: 0 | O67: 00:00:00 | P67: 00:00:00 | R67: 0 | S67: 00:00:00 | T67: 00:00:00 | V67: 0 | W67: 00:00:00 | X67: 00:00:00 | Y67: 0 | Z67: 0 | AA67: 0 | AB67: 0
A68: PASSOT jean luc | B68: =Janvier!B69 -> PASSOT | C68: =Janvier!C69 -> jean luc | D68: =Janvier!D69 -> CHAUFFEURS | F68: 0 | G68: 00:00:00 | H68: 00:00:00 | J68: 0 | K68: 00:00:00 | L68: 00:00:00 | N68: 0 | O68: 00:00:00 | P68: 00:00:00 | R68: 0 | S68: 00:00:00 | T68: 00:00:00 | V68: 0 | W68: 00:00:00 | X68: 00:00:00 | Y68: 0 | Z68: 0 | AA68: 0 | AB68: 0
A69: PAYET Cédric | B69: =Janvier!B70 -> PAYET | C69: =Janvier!C70 -> Cédric | D69: =Janvier!D70 -> FABRICATION | F69: 0 | G69: 00:00:00 | H69: 00:00:00 | J69: 0 | K69: 00:00:00 | L69: 00:00:00 | N69: 0 | O69: 00:00:00 | P69: 00:00:00 | R69: 0 | S69: 00:00:00 | T69: 00:00:00 | V69: 0 | W69: 00:00:00 | X69: 00:00:00 | Y69: 0 | Z69: 0 | AA69: 0 | AB69: 0
A70: PAYET Cédric | B70: =Janvier!B71 -> PAYET | C70: =Janvier!C71 -> Cédric | D70: =Janvier!D71 -> NSG | F70: 0 | G70: 00:00:00 | H70: 00:00:00 | J70: 0 | K70: 00:00:00 | L70: 00:00:00 | N70: 0 | O70: 00:00:00 | P70: 00:00:00 | R70: 0 | S70: 00:00:00 | T70: 00:00:00 | V70: 0 | W70: 00:00:00 | X70: 00:00:00 | Y70: 0 | Z70: 0 | AA70: 0 | AB70: 0
A71: PETIT ISABELLE | B71: =Janvier!B72 -> PETIT | C71: =Janvier!C72 -> ISABELLE | D71: =Janvier!D72 -> CONDITIONNEMENT | F71: 0 | G71: 00:00:00 | H71: 00:00:00 | J71: 0 | K71: 00:00:00 | L71: 00:00:00 | N71: 0 | O71: 00:00:00 | P71: 00:00:00 | R71: 0 | S71: 00:00:00 | T71: 00:00:00 | V71: 0 | W71: 00:00:00 | X71: 00:00:00 | Y71: 0 | Z71: 0 | AA71: 0 | AB71: 0
A72: PIGEARD Jérémy | B72: =Janvier!B73 -> PIGEARD | C72: =Janvier!C73 -> Jérémy | D72: =Janvier!D73 -> FABRICATION | F72: 0 | G72: 00:00:00 | H72: 00:00:00 | J72: 0 | K72: 00:00:00 | L72: 00:00:00 | N72: =IF(M72<(1/24*35),0,M72-(1/24*35)) -> 0 | O72: =IF(N72>=1/24*8,1/24*8,N72) -> 00:00:00 | P72: =IF(N72-O72>0,N72-O72,0) -> 00:00:00 | R72: =IF(Q72<(1/24*35),0,Q72-(1/24*35)) -> 0 | S72: =IF(R72>=1/24*8,1/24*8,R72) -> 00:00:00 | T72: =IF(R72-S72>0,R72-S72,0) -> 00:00:00 | V72: =IF(U72<(1/24*35),0,U72-(1/24*35)) -> 0 | W72: =IF(V72>=1/24*8,1/24*8,V72) -> 00:00:00 | X72: =IF(V72-W72>0,V72-W72,0) -> 00:00:00 | Y72: 0 | Z72: 0 | AA72: 0 | AB72: 0
A73: =B73&" "&C73 -> POIGNANT Anthony | B73: =Janvier!B74 -> POIGNANT | C73: =Janvier!C74 -> Anthony | D73: =Janvier!D74 -> EMBALLAGE | F73: 0 | G73: 00:00:00 | H73: =IF(F73-G73>0,F73-G73,0) -> 00:00:00 | J73: 0 | K73: 00:00:00 | L73: =IF(J73-K73>0,J73-K73,0) -> 00:00:00 | N73: 0 | O73: 00:00:00 | P73: 00:00:00 | R73: 0 | S73: 00:00:00 | T73: 00:00:00 | V73: 0 | W73: 00:00:00 | X73: 00:00:00 | Y73: =SUMIF($E$7:$X$7,$I$7,$E73:$X73) -> 0 | Z73: =SUMIF($E$7:$X$7,$Z$7,$E73:$X73) -> 0 | AA73: =SUMIF($E$7:$X$7,$AA$7,$E73:$X73) -> 0 | AB73: =SUMIF($E$7:$X$7,$AB$7,$E73:$X73) -> 0
A74: PRINCET Véronique | B74: =Janvier!B75 -> PRINCET | C74: =Janvier!C75 -> Véronique | D74: =Janvier!D75 -> EMBALLAGE | F74: =IF(E74<(1/24*35),0,E74-(1/24*35)) -> 0 | G74: =IF(F74>=1/24*8,1/24*8,F74) -> 00:00:00 | H74: 00:00:00 | J74: =IF(I74<(1/24*35),0,I74-(1/24*35)) -> 0 | K74: =IF(J74>=1/24*8,1/24*8,J74) -> 00:00:00 | L74: 00:00:00 | N74: 0 | O74: 00:00:00 | P74: 00:00:00 | R74: 0 | S74: 00:00:00 | T74: 00:00:00 | V74: 0 | W74: 00:00:00 | X74: 00:00:00 | Y74: 0 | Z74: 0 | AA74: 0 | AB74: 0
A75: PRUDENT Axelle | B75: =Janvier!B76 -> PRUDENT | C75: =Janvier!C76 -> Axelle | D75: =Janvier!D76 -> Apprentis | F75: 0 | G75: 00:00:00 | H75: 00:00:00 | J75: 0 | K75: 00:00:00 | L75: 00:00:00 | N75: 0 | O75: 00:00:00 | P75: 00:00:00 | R75: 0 | S75: 00:00:00 | T75: 00:00:00 | V75: 0 | W75: 00:00:00 | X75: 00:00:00 | Y75: 0 | Z75: 0 | AA75: 0 | AB75: 0
A76: PUSSET Françis | B76: =Janvier!B77 -> PUSSET | C76: =Janvier!C77 -> Françis | D76: =Janvier!D77 -> FABRICATION | F76: 0 | G76: 00:00:00 | H76: 00:00:00 | J76: 0 | K76: 00:00:00 | L76: 00:00:00 | N76: 0 | O76: 00:00:00 | P76: 00:00:00 | R76: 0 | S76: 00:00:00 | T76: 00:00:00 | V76: 0 | W76: 00:00:00 | X76: 00:00:00 | Y76: 0 | Z76: 0 | AA76: 0 | AB76: 0
A77: ROGER Céline | B77: =Janvier!B78 -> ROGER | C77: =Janvier!C78 -> Céline | D77: =Janvier!D78 -> BUREAUX | F77: 0 | G77: 00:00:00 | H77: 00:00:00 | J77: 0 | K77: 00:00:00 | L77: 00:00:00 | N77: 0 | O77: 00:00:00 | P77: 00:00:00 | R77: 0 | S77: 00:00:00 | T77: 00:00:00 | V77: 0 | W77: 00:00:00 | X77: 00:00:00 | Y77: 0 | Z77: 0 | AA77: 0 | AB77: 0
A78: ROY Marianne | B78: =Janvier!B79 -> ROY | C78: =Janvier!C79 -> Marianne | D78: =Janvier!D79 -> NSG | F78: 0 | G78: 00:00:00 | H78: 00:00:00 | J78: 0 | K78: 00:00:00 | L78: 00:00:00 | N78: 0 | O78: 00:00:00 | P78: 00:00:00 | R78: 0 | S78: 00:00:00 | T78: 00:00:00 | V78: 0 | W78: 00:00:00 | X78: 00:00:00 | Y78: 0 | Z78: 0 | AA78: 0 | AB78: 0
A79: ROY SEBASTIEN | B79: =Janvier!B80 -> ROY | C79: =Janvier!C80 -> SEBASTIEN | D79: =Janvier!D80 -> EXPEDITION | F79: 0 | G79: 00:00:00 | H79: 00:00:00 | J79: 0 | K79: 00:00:00 | L79: 00:00:00 | N79: 0 | O79: 00:00:00 | P79: 00:00:00 | R79: 0 | S79: 00:00:00 | T79: 00:00:00 | V79: 0 | W79: 00:00:00 | X79: 00:00:00 | Y79: 0 | Z79: 0 | AA79: 0 | AB79: 0
A80: SABRI Moha | B80: =Janvier!B81 -> SABRI | C80: =Janvier!C81 -> Moha | D80: =Janvier!D81 -> FABRICATION | F80: 0 | G80: 00:00:00 | H80: 00:00:00 | J80: 0 | K80: 00:00:00 | L80: 00:00:00 | N80: 0 | O80: 00:00:00 | P80: 00:00:00 | R80: 0 | S80: 00:00:00 | T80: 00:00:00 | V80: 0 | W80: 00:00:00 | X80: 00:00:00 | Y80: 0 | Z80: 0 | AA80: 0 | AB80: 0
A81: SAVARIAT Betty | B81: =Janvier!B82 -> SAVARIAT | C81: =Janvier!C82 -> Betty | D81: =Janvier!D82 -> EMBALLAGE | F81: 0 | G81: 00:00:00 | H81: 00:00:00 | J81: 0 | K81: 00:00:00 | L81: 00:00:00 | N81: 0 | O81: 00:00:00 | P81: 00:00:00 | R81: 0 | S81: 00:00:00 | T81: 00:00:00 | V81: 0 | W81: 00:00:00 | X81: 00:00:00 | Y81: 0 | Z81: 0 | AA81: 0 | AB81: 0
E82: =SUM(E8:E81) -> 0 | F82: 0 | G82: 0 | H82: 0 | I82: 0 | J82: 0 | K82: 0 | L82: 0 | M82: 0 | N82: 0 | O82: 0 | P82: 0 | Q82: 0 | R82: 0 | S82: 0 | T82: 0 | U82: 0 | V82: 0 | W82: 0 | X82: 0 | Y82: =SUM(Y8:Y81) -> 0 | Z82: =SUM(Z8:Z81) -> 0 | AA82: 0 | AB82: 0

Sheet Juin
C1: Menu | U1: =IF($U$5="","masquer colonne","") -> masquer colonne | V1: =IF($U$5="","masquer colonne","") -> masquer colonne | W1: masquer colonne | X1: masquer colonne
A2: =COUNTIF(U1:X1,"masquer colonne") -> 4
B3: =VALUE("01/06/"&Janvier!$B$1) -> 2017-06-01 | E3: =CHOOSE(MONTH(B3),"Janvier","Février","Mars","Avril","Mai","Juin","Juillet","Août","Septembre","Octobre","Novembre","Décembre") -> Juin
E4: =WEEKNUM(E5,21) -> 23 | I4: =WEEKNUM(I5,21) -> 24 | M4: =WEEKNUM(M5,21) -> 25 | Q4: =WEEKNUM(Q5,21) -> 26 | U4: =IF(U5="","",WEEKNUM(U5,21)) -> 
E5: =VALUE("01/"&MONTH(B3)&"/"&YEAR($B$3))+CHOOSE(WEEKDAY(VALUE("01/"&MONTH(B3)&"/"&YEAR($B$3)),2),6,5,4,10,9,8,7) -> 2017-06-11 | I5: =E5+7 -> 2017-06-18 | M5: =I5+7 -> 2017-06-25 | Q5: =M5+7 -> 2017-07-02 | U5: =IF(DAY(Q5+7)>4,"",Q5+7) -> 
E6: =CHOOSE(WEEKDAY(E5,2),"Lundi","Mardi","Mercredi","Jeudi","Vendredi","Samedi","Dimanche") -> Dimanche | I6: =CHOOSE(WEEKDAY(I5,2),"Lundi","Mardi","Mercredi","Jeudi","Vendredi","Samedi","Dimanche") -> Dimanche | M6: =CHOOSE(WEEKDAY(M5,2),"Lundi","Mardi","Mercredi","Jeudi","Vendredi","Samedi","Dimanche") -> Dimanche | Q6: =CHOOSE(WEEKDAY(Q5,2),"Lundi","Mardi","Mercredi","Jeudi","Vendredi","Samedi","Dimanche") -> Dimanche | U6: =IF(U5="","",CHOOSE(WEEKDAY(U5,2),"Lundi","Mardi","Mercredi","Jeudi","Vendredi","Samedi","Dimanche")) ->  | Y6: ="Total heures mois "&E3 -> Total heures mois Juin
B7: NOM | C7: PRENOM | D7: SECTEUR | E7: Total Sem. | F7: Heure sup. | G7: Heure 25% | H7: Heure 50% | I7: Total Sem. | J7: Heure sup. | K7: Heure 25% | L7: Heure 50% | M7: Total Sem. | N7: Heure sup. | O7: Heure 25% | P7: Heure 50% | Q7: Total Sem. | R7: Heure sup. | S7: Heure 25% | T7: Heure 50% | U7: Total Sem. | V7: Heure sup. | W7: Heure 25% | X7: Heure 50% | Y7: Total Sem. | Z7: Heure sup. | AA7: Heure 25% | AB7: Heure 50%
A8: =B8&" "&C8 -> AMIOT Anne-Lise | B8: =Janvier!B8 -> AMIOT | C8: =Janvier!C8 -> Anne-Lise | D8: =Janvier!D8 -> QUALITE | F8: =IF(E8<(1/24*35),0,E8-(1/24*35)) -> 0 | G8: =IF(F8>=1/24*8,1/24*8,F8) -> 00:00:00 | H8: =IF(F8-G8>0,F8-G8,0) -> 00:00:00 | J8: =IF(I8<(1/24*35),0,I8-(1/24*35)) -> 0 | K8: =IF(J8>=1/24*8,1/24*8,J8) -> 00:00:00 | L8: =IF(J8-K8>0,J8-K8,0) -> 00:00:00 | N8: =IF(M8<(1/24*35),0,M8-(1/24*35)) -> 0 | O8: =IF(N8>=1/24*8,1/24*8,N8) -> 00:00:00 | P8: =IF(N8-O8>0,N8-O8,0) -> 00:00:00 | R8: =IF(Q8<(1/24*35),0,Q8-(1/24*35)) -> 0 | S8: =IF(R8>=1/24*8,1/24*8,R8) -> 00:00:00 | T8: =IF(R8-S8>0,R8-S8,0) -> 00:00:00 | V8: =IF(U8<(1/24*35),0,U8-(1/24*35)) -> 0 | W8: =IF(V8>=1/24*8,1/24*8,V8) -> 00:00:00 | X8: =IF(V8-W8>0,V8-W8,0) -> 00:00:00 | Y8: =SUMIF($E$7:$X$7,$I$7,$E8:$X8) -> 0 | Z8: =SUMIF($E$7:$X$7,$Z$7,$E8:$X8) -> 0 | AA8: =SUMIF($E$7:$X$7,$AA$7,$E8:$X8) -> 0 | AB8: =SUMIF($E$7:$X$7,$AB$7,$E8:$X8) -> 0
A9: =B9&" "&C9 -> ANDRE FABIEN | B9: =Janvier!B9 -> ANDRE | C9: =Janvier!C9 -> FABIEN | D9: =Janvier!D9 -> FABRICATION | F9: =IF(E9<(1/24*35),0,E9-(1/24*35)) -> 0 | G9: =IF(F9>=1/24*8,1/24*8,F9) -> 00:00:00 | H9: =IF(F9-G9>0,F9-G9,0) -> 00:00:00 | J9: =IF(I9<(1/24*35),0,I9-(1/24*35)) -> 0 | K9: =IF(J9>=1/24*8,1/24*8,J9) -> 00:00:00 | L9: =IF(J9-K9>0,J9-K9,0) -> 00:00:00 | N9: 0 | O9: 00:00:00 | P9: 00:00:00 | R9: 0 | S9: 00:00:00 | T9: 00:00:00 | V9: 0 | W9: 00:00:00 | X9: 00:00:00 | Y9: =SUMIF($E$7:$X$7,$I$7,$E9:$X9) -> 0 | Z9: =SUMIF($E$7:$X$7,$Z$7,$E9:$X9) -> 0 | AA9: =SUMIF($E$7:$X$7,$AA$7,$E9:$X9) -> 0 | AB9: =SUMIF($E$7:$X$7,$AB$7,$E9:$X9) -> 0
A10: AUDIARD FLORIAN | B10: =Janvier!B10 -> AUDIARD | C10: =Janvier!C10 -> FLORIAN | D10: =Janvier!D10 -> FABRICATION | F10: 0 | G10: 00:00:00 | H10: 00:00:00 | J10: 0 | K10: 00:00:00 | L10: 00:00:00 | N10: 0 | O10: 00:00:00 | P10: 00:00:00 | R10: 0 | S10: 00:00:00 | T10: 00:00:00 | V10: 0 | W10: 00:00:00 | X10: 00:00:00 | Y10: 0 | Z10: 0 | AA10: 0 | AB10: 0
A11: AZEVEDO Catherine | B11: =Janvier!B11 -> AZEVEDO | C11: =Janvier!C11 -> Catherine | D11: =Janvier!D11 -> EMBALLAGE | F11: 0 | G11: 00:00:00 | H11: 00:00:00 | J11: 0 | K11: 00:00:00 | L11: 00:00:00 | N11: 0 | O11: 00:00:00 | P11: 00:00:00 | R11: 0 | S11: 00:00:00 | T11: 00:00:00 | V11: 0 | W11: 00:00:00 | X11: 00:00:00 | Y11: 0 | Z11: 0 | AA11: 0 | AB11: 0
A12: BARBIER Nathalie | B12: =Janvier!B12 -> BARBIER | C12: =Janvier!C12 -> Nathalie | D12: =Janvier!D12 -> QUALITE | F12: 0 | G12: 00:00:00 | H12: 00:00:00 | J12: 0 | K12: 00:00:00 | L12: 00:00:00 | N12: 0 | O12: 00:00:00 | P12: 00:00:00 | R12: 0 | S12: 00:00:00 | T12: 00:00:00 | V12: 0 | W12: 00:00:00 | X12: 00:00:00 | Y12: 0 | Z12: 0 | AA12: 0 | AB12: 0
A13: BECHTOLD Marie-Christine | B13: =Janvier!B13 -> BECHTOLD | C13: =Janvier!C13 -> Marie-Christine | D13: =Janvier!D13 -> EMBALLAGE | F13: 0 | G13: 00:00:00 | H13: 00:00:00 | J13: 0 | K13: 00:00:00 | L13: 00:00:00 | N13: 0 | O13: 00:00:00 | P13: 00:00:00 | R13: 0 | S13: 00:00:00 | T13: 00:00:00 | V13: 0 | W13: 00:00:00 | X13: 00:00:00 | Y13: 0 | Z13: 0 | AA13: 0 | AB13: 0
A14: BEURET MAUD | B14: =Janvier!B14 -> BEURET | C14: =Janvier!C14 -> MAUD | D14: =Janvier!D14 -> MAGASIN | F14: 0 | G14: 00:00:00 | H14: 00:00:00 | J14: 0 | K14: 00:00:00 | L14: 00:00:00 | N14: 0 | O14: 00:00:00 | P14: 00:00:00 | R14: 0 | S14: 00:00:00 | T14: 00:00:00 | V14: 0 | W14: 00:00:00 | X14: 00:00:00 | Y14: 0 | Z14: 0 | AA14: 0 | AB14: 0
A15: BOUEZNARD Myriam | B15: =Janvier!B15 -> BOUEZNARD | C15: =Janvier!C15 -> Myriam | D15: =Janvier!D15 -> NSG | F15: 0 | G15: 00:00:00 | H15: 00:00:00 | J15: 0 | K15: 00:00:00 | L15: 00:00:00 | N15: 0 | O15: 00:00:00 | P15: 00:00:00 | R15: 0 | S15: 00:00:00 | T15: 00:00:00 | V15: 0 | W15: 00:00:00 | X15: 00:00:00 | Y15: 0 | Z15: 0 | AA15: 0 | AB15: 0
A16: Boutiflat James | B16: =Janvier!B16 -> Boutiflat | C16: =Janvier!C16 -> James | D16: =Janvier!D16 -> EMBALLAGE | F16: 0 | G16: 00:00:00 | H16: 00:00:00 | J16: 0 | K16: 00:00:00 | L16: 00:00:00 | N16: 0 | O16: 00:00:00 | P16: 00:00:00 | R16: 0 | S16: 00:00:00 | T16: 00:00:00 | V16: 0 | W16: 00:00:00 | X16: 00:00:00 | Y16: 0 | Z16: 0 | AA16: 0 | AB16: 0
A17: BOUZENARD Adrien | B17: =Janvier!B17 -> BOUZENARD | C17: =Janvier!C17 -> Adrien | D17: =Janvier!D17 -> FABRICATION | F17: 0 | G17: 00:00:00 | H17: 00:00:00 | J17: 0 | K17: 00:00:00 | L17: 00:00:00 | N17: 0 | O17: 00:00:00 | P17: 00:00:00 | R17: 0 | S17: 00:00:00 | T17: 00:00:00 | V17: 0 | W17: 00:00:00 | X17: 00:00:00 | Y17: 0 | Z17: 0 | AA17: 0 | AB17: 0
A18: BOUZENARD Myriam | B18: =Janvier!B18 -> BOUZENARD | C18: =Janvier!C18 -> Myriam | D18: =Janvier!D18 -> EMBALLAGE | F18: 0 | G18: 00:00:00 | H18: 00:00:00 | J18: 0 | K18: 00:00:00 | L18: 00:00:00 | N18: 0 | O18: 00:00:00 | P18: 00:00:00 | R18: 0 | S18: 00:00:00 | T18: 00:00:00 | V18: 0 | W18: 00:00:00 | X18: 00:00:00 | Y18: 0 | Z18: 0 | AA18: 0 | AB18: 0
A19: CARRION JEAN-CLAUDE | B19: =Janvier!B19 -> CARRION | C19: =Janvier!C19 -> JEAN-CLAUDE | D19: =Janvier!D19 -> CHAUFFEURS | F19: 0 | G19: 00:00:00 | H19: 00:00:00 | J19: 0 | K19: 00:00:00 | L19: 00:00:00 | N19: 0 | O19: 00:00:00 | P19: 00:00:00 | R19: 0 | S19: 00:00:00 | T19: 00:00:00 | V19: 0 | W19: 00:00:00 | X19: 00:00:00 | Y19: 0 | Z19: 0 | AA19: 0 | AB19: 0
A20: CARTERON Claudine | B20: =Janvier!B20 -> CARTERON | C20: =Janvier!C20 -> Claudine | D20: =Janvier!D20 -> BUREAUX | F20: 0 | G20: 00:00:00 | H20: 00:00:00 | J20: 0 | K20: 00:00:00 | L20: 00:00:00 | N20: 0 | O20: 00:00:00 | P20: 00:00:00 | R20: 0 | S20: 00:00:00 | T20: 00:00:00 | V20: 0 | W20: 00:00:00 | X20: 00:00:00 | Y20: 0 | Z20: 0 | AA20: 0 | AB20: 0
A21: CHAUDRON Amandine | B21: =Janvier!B21 -> CHAUDRON | C21: =Janvier!C21 -> Amandine | D21: =Janvier!D21 -> EMBALLAGE | F21: 0 | G21: 00:00:00 | H21: 00:00:00 | J21: 0 | K21: 00:00:00 | L21: 00:00:00 | N21: 0 | O21: 00:00:00 | P21: 00:00:00 | R21: 0 | S21: 00:00:00 | T21: 00:00:00 | V21: 0 | W21: 00:00:00 | X21: 00:00:00 | Y21: 0 | Z21: 0 | AA21: 0 | AB21: 0
A22: CHAUDRON Virginie | B22: =Janvier!B22 -> CHAUDRON | C22: =Janvier!C22 -> Virginie | D22: =Janvier!D22 -> FABRICATION | F22: 0 | G22: 00:00:00 | H22: 00:00:00 | J22: 0 | K22: 00:00:00 | L22: 00:00:00 | N22: 0 | O22: 00:00:00 | P22: 00:00:00 | R22: 0 | S22: 00:00:00 | T22: 00:00:00 | V22: 0 | W22: 00:00:00 | X22: 00:00:00 | Y22: 0 | Z22: 0 | AA22: 0 | AB22: 0
A23: CHEVAUX Rodolphe | B23: =Janvier!B23 -> CHEVAUX | C23: =Janvier!C23 -> Rodolphe | D23: =Janvier!D23 -> MAINTENANCE | F23: 0 | G23: 00:00:00 | H23: 00:00:00 | J23: 0 | K23: 00:00:00 | L23: 00:00:00 | N23: 0 | O23: 00:00:00 | P23: 00:00:00 | R23: 0 | S23: 00:00:00 | T23: 00:00:00 | V23: 0 | W23: 00:00:00 | X23: 00:00:00 | Y23: 0 | Z23: 0 | AA23: 0 | AB23: 0
A24: COCHARD Hervé | B24: =Janvier!B24 -> COCHARD | C24: =Janvier!C24 -> Hervé | D24: =Janvier!D24 -> COMMERCIAL | F24: 0 | G24: 00:00:00 | H24: 00:00:00 | J24: 0 | K24: 00:00:00 | L24: 00:00:00 | N24: 0 | O24: 00:00:00 | P24: 00:00:00 | R24: 0 | S24: 00:00:00 | T24: 00:00:00 | V24: 0 | W24: 00:00:00 | X24: 00:00:00 | Y24: 0 | Z24: 0 | AA24: 0 | AB24: 0
A25: CRETIN JEROME | B25: =Janvier!B25 -> CRETIN | C25: =Janvier!C25 -> JEROME | D25: =Janvier!D25 -> NSG | F25: 0 | G25: 00:00:00 | H25: 00:00:00 | J25: 0 | K25: 00:00:00 | L25: 00:00:00 | N25: 0 | O25: 00:00:00 | P25: 00:00:00 | R25: 0 | S25: 00:00:00 | T25: 00:00:00 | V25: 0 | W25: 00:00:00 | X25: 00:00:00 | Y25: 0 | Z25: 0 | AA25: 0 | AB25: 0
A26: CRINQUANT JEROME | B26: =Janvier!B26 -> CRINQUANT | C26: =Janvier!C26 -> JEROME | D26: =Janvier!D26 -> NSG | F26: 0 | G26: 00:00:00 | H26: 00:00:00 | J26: 0 | K26: 00:00:00 | L26: 00:00:00 | N26: 0 | O26: 00:00:00 | P26: 00:00:00 | R26: 0 | S26: 00:00:00 | T26: 00:00:00 | V26: 0 | W26: 00:00:00 | X26: 00:00:00 | Y26: 0 | Z26: 0 | AA26: 0 | AB26: 0
A27: DASCIER ANDY | B27: =Janvier!B28 -> DASCIER | C27: =Janvier!C28 -> ANDY | D27: =Janvier!D28 -> PREPA COMMANDE | F27: 0 | G27: 00:00:00 | H27: 00:00:00 | J27: 0 | K27: 00:00:00 | L27: 00:00:00 | N27: 0 | O27: 00:00:00 | P27: 00:00:00 | R27: 0 | S27: 00:00:00 | T27: 00:00:00 | V27: 0 | W27: 00:00:00 | X27: 00:00:00 | Y27: 0 | Z27: 0 | AA27: 0 | AB27: 0
A28: DAVERIO BENOIT | B28: =Janvier!B29 -> DAVERIO | C28: =Janvier!C29 -> BENOIT | D28: =Janvier!D29 -> COMMERCIAL | F28: 0 | G28: 00:00:00 | H28: 00:00:00 | J28: 0 | K28: 00:00:00 | L28: 00:00:00 | N28: 0 | O28: 00:00:00 | P28: 00:00:00 | R28: 0 | S28: 00:00:00 | T28: 00:00:00 | V28: 0 | W28: 00:00:00 | X28: 00:00:00 | Y28: 0 | Z28: 0 | AA28: 0 | AB28: 0
A29: DELANGRE ALEX | B29: =Janvier!B30 -> DELANGRE | C29: =Janvier!C30 -> ALEX | D29: =Janvier!D30 -> FABRICATION | F29: 0 | G29: 00:00:00 | H29: 00:00:00 | J29: 0 | K29: 00:00:00 | L29: 00:00:00 | N29: 0 | O29: 00:00:00 | P29: 00:00:00 | R29: 0 | S29: 00:00:00 | T29: 00:00:00 | V29: 0 | W29: 00:00:00 | X29: 00:00:00 | Y29: 0 | Z29: 0 | AA29: 0 | AB29: 0
A30: DELIN Philippe | B30: =Janvier!B31 -> DELIN | C30: =Janvier!C31 -> Philippe | D30: =Janvier!D31 -> DIRECTION | F30: 0 | G30: 00:00:00 | H30: 00:00:00 | J30: 0 | K30: 00:00:00 | L30: 00:00:00 | N30: 0 | O30: 00:00:00 | P30: 00:00:00 | R30: 0 | S30: 00:00:00 | T30: 00:00:00 | V30: 0 | W30: 00:00:00 | X30: 00:00:00 | Y30: 0 | Z30: 0 | AA30: 0 | AB30: 0
A31: DORE Daisy | B31: =Janvier!B32 -> DORE | C31: =Janvier!C32 -> Daisy | D31: =Janvier!D32 -> FABRICATION | F31: 0 | G31: 00:00:00 | H31: 00:00:00 | J31: 0 | K31: 00:00:00 | L31: 00:00:00 | N31: 0 | O31: 00:00:00 | P31: 00:00:00 | R31: 0 | S31: 00:00:00 | T31: 00:00:00 | V31: 0 | W31: 00:00:00 | X31: 00:00:00 | Y31: 0 | Z31: 0 | AA31: 0 | AB31: 0
A32: ECHEVARIA Luis | B32: =Janvier!B33 -> ECHEVARIA | C32: =Janvier!C33 -> Luis | D32: =Janvier!D33 -> FABRICATION | F32: 0 | G32: 00:00:00 | H32: 00:00:00 | J32: 0 | K32: 00:00:00 | L32: 00:00:00 | N32: 0 | O32: 00:00:00 | P32: 00:00:00 | R32: 0 | S32: 00:00:00 | T32: 00:00:00 | V32: 0 | W32: 00:00:00 | X32: 00:00:00 | Y32: 0 | Z32: 0 | AA32: 0 | AB32: 0
A33: EL MOQADDAM REDOUANE | B33: =Janvier!B34 -> EL MOQADDAM | C33: =Janvier!C34 -> REDOUANE | D33: =Janvier!D34 -> FABRICATION | F33: 0 | G33: 00:00:00 | H33: 00:00:00 | J33: 0 | K33: 00:00:00 | L33: 00:00:00 | N33: 0 | O33: 00:00:00 | P33: 00:00:00 | R33: 0 | S33: 00:00:00 | T33: 00:00:00 | V33: 0 | W33: 00:00:00 | X33: 00:00:00 | Y33: 0 | Z33: 0 | AA33: 0 | AB33: 0
A34: FORMEL CELINE | B34: =Janvier!B35 -> FORMEL | C34: =Janvier!C35 -> CELINE | D34: =Janvier!D35 -> BUREAUX | F34: 0 | G34: 00:00:00 | H34: 00:00:00 | J34: 0 | K34: 00:00:00 | L34: 00:00:00 | N34: 0 | O34: 00:00:00 | P34: 00:00:00 | R34: 0 | S34: 00:00:00 | T34: 00:00:00 | V34: 0 | W34: 00:00:00 | X34: 00:00:00 | Y34: 0 | Z34: 0 | AA34: 0 | AB34: 0
A35: FOUACHE LENA | B35: =Janvier!B36 -> FOUACHE | C35: =Janvier!C36 -> LENA | D35: =Janvier!D36 -> QUALITE | F35: 0 | G35: 00:00:00 | H35: 00:00:00 | J35: 0 | K35: 00:00:00 | L35: 00:00:00 | N35: 0 | O35: 00:00:00 | P35: 00:00:00 | R35: 0 | S35: 00:00:00 | T35: 00:00:00 | V35: 0 | W35: 00:00:00 | X35: 00:00:00 | Y35: 0 | Z35: 0 | AA35: 0 | AB35: 0
A36: GALETTI Maud | B36: =Janvier!B37 -> GALETTI | C36: =Janvier!C37 -> Maud | D36: =Janvier!D37 -> FABRICATION | F36: 0 | G36: 00:00:00 | H36: 00:00:00 | J36: 0 | K36: 00:00:00 | L36: 00:00:00 | N36: 0 | O36: 00:00:00 | P36: 00:00:00 | R36: 0 | S36: 00:00:00 | T36: 00:00:00 | V36: 0 | W36: 00:00:00 | X36: 00:00:00 | Y36: 0 | Z36: 0 | AA36: 0 | AB36: 0
A37: GAY Stephane | B37: =Janvier!B38 -> GAY | C37: =Janvier!C38 -> Stephane | D37: =Janvier!D38 -> FABRICATION | F37: 0 | G37: 00:00:00 | H37: 00:00:00 | J37: 0 | K37: 00:00:00 | L37: 00:00:00 | N37: 0 | O37: 00:00:00 | P37: 00:00:00 | R37: 0 | S37: 00:00:00 | T37: 00:00:00 | V37: 0 | W37: 00:00:00 | X37: 00:00:00 | Y37: 0 | Z37: 0 | AA37: 0 | AB37: 0
A38: Graff MATHILDE | B38: =Janvier!B39 -> Graff | C38: =Janvier!C39 -> MATHILDE | D38: =Janvier!D39 -> CONDITIONNEMENT | F38: 0 | G38: 00:00:00 | H38: 00:00:00 | J38: 0 | K38: 00:00:00 | L38: 00:00:00 | N38: 0 | O38: 00:00:00 | P38: 00:00:00 | R38: 0 | S38: 00:00:00 | T38: 00:00:00 | V38: 0 | W38: 00:00:00 | X38: 00:00:00 | Y38: 0 | Z38: 0 | AA38: 0 | AB38: 0
A39: GRAPPIN Perrine | B39: =Janvier!B40 -> GRAPPIN | C39: =Janvier!C40 -> Perrine | D39: =Janvier!D40 -> FABRICATION | F39: 0 | G39: 00:00:00 | H39: 00:00:00 | J39: 0 | K39: 00:00:00 | L39: 00:00:00 | N39: 0 | O39: 00:00:00 | P39: 00:00:00 | R39: 0 | S39: 00:00:00 | T39: 00:00:00 | V39: 0 | W39: 00:00:00 | X39: 00:00:00 | Y39: 0 | Z39: 0 | AA39: 0 | AB39: 0
A40: GUENOT Anne | B40: =Janvier!B41 -> GUENOT | C40: =Janvier!C41 -> Anne | D40: =Janvier!D41 -> EXPEDITION | F40: 0 | G40: 00:00:00 | H40: 00:00:00 | J40: 0 | K40: 00:00:00 | L40: 00:00:00 | N40: 0 | O40: 00:00:00 | P40: 00:00:00 | R40: 0 | S40: 00:00:00 | T40: 00:00:00 | V40: 0 | W40: 00:00:00 | X40: 00:00:00 | Y40: 0 | Z40: 0 | AA40: 0 | AB40: 0
A41: GUYARD Christine | B41: =Janvier!B42 -> GUYARD | C41: =Janvier!C42 -> Christine | D41: =Janvier!D42 -> BUREAUX | F41: 0 | G41: 00:00:00 | H41: 00:00:00 | J41: 0 | K41: 00:00:00 | L41: 00:00:00 | N41: 0 | O41: 00:00:00 | P41: 00:00:00 | R41: 0 | S41: 00:00:00 | T41: 00:00:00 | V41: 0 | W41: 00:00:00 | X41: 00:00:00 | Y41: 0 | Z41: 0 | AA41: 0 | AB41: 0
A42: GUYARD Marie | B42: =Janvier!B43 -> GUYARD | C42: =Janvier!C43 -> Marie | D42: =Janvier!D43 -> FABRICATION | F42: 0 | G42: 00:00:00 | H42: 00:00:00 | J42: 0 | K42: 00:00:00 | L42: 00:00:00 | N42: 0 | O42: 00:00:00 | P42: 00:00:00 | R42: 0 | S42: 00:00:00 | T42: 00:00:00 | V42: 0 | W42: 00:00:00 | X42: 00:00:00 | Y42: 0 | Z42: 0 | AA42: 0 | AB42: 0
A43: GUYARD Marie | B43: =Janvier!B44 -> GUYARD | C43: =Janvier!C44 -> Marie | D43: =Janvier!D44 -> FABRICATION | F43: 0 | G43: 00:00:00 | H43: 00:00:00 | J43: 0 | K43: 00:00:00 | L43: 00:00:00 | N43: 0 | O43: 00:00:00 | P43: 00:00:00 | R43: 0 | S43: 00:00:00 | T43: 00:00:00 | V43: 0 | W43: 00:00:00 | X43: 00:00:00 | Y43: 0 | Z43: 0 | AA43: 0 | AB43: 0
A44: HARUTYUNYAN Haik | B44: =Janvier!B45 -> HARUTYUNYAN | C44: =Janvier!C45 -> Haik | D44: =Janvier!D45 -> FABRICATION | F44: 0 | G44: 00:00:00 | H44: 00:00:00 | J44: 0 | K44: 00:00:00 | L44: 00:00:00 | N44: 0 | O44: 00:00:00 | P44: 00:00:00 | R44: 0 | S44: 00:00:00 | T44: 00:00:00 | V44: 0 | W44: 00:00:00 | X44: 00:00:00 | Y44: 0 | Z44: 0 | AA44: 0 | AB44: 0
A45: IDRISSI Zinedinne | B45: =Janvier!B46 -> IDRISSI | C45: =Janvier!C46 -> Zinedinne | D45: =Janvier!D46 -> FABRICATION | F45: 0 | G45: 00:00:00 | H45: 00:00:00 | J45: 0 | K45: 00:00:00 | L45: 00:00:00 | N45: 0 | O45: 00:00:00 | P45: 00:00:00 | R45: 0 | S45: 00:00:00 | T45: 00:00:00 | V45: 0 | W45: 00:00:00 | X45: 00:00:00 | Y45: 0 | Z45: 0 | AA45: 0 | AB45: 0
A46: JULIEN Thomas | B46: =Janvier!B47 -> JULIEN | C46: =Janvier!C47 -> Thomas | D46: =Janvier!D47 -> Apprentis | F46: 0 | G46: 00:00:00 | H46: 00:00:00 | J46: 0 | K46: 00:00:00 | L46: 00:00:00 | N46: 0 | O46: 00:00:00 | P46: 00:00:00 | R46: 0 | S46: 00:00:00 | T46: 00:00:00 | V46: 0 | W46: 00:00:00 | X46: 00:00:00 | Y46: 0 | Z46: 0 | AA46: 0 | AB46: 0
A47: LABOREY Jonathan | B47: =Janvier!B48 -> LABOREY | C47: =Janvier!C48 -> Jonathan | D47: =Janvier!D48 -> EMBALLAGE | F47: 0 | G47: 00:00:00 | H47: 00:00:00 | J47: 0 | K47: 00:00:00 | L47: 00:00:00 | N47: 0 | O47: 00:00:00 | P47: 00:00:00 | R47: 0 | S47: 00:00:00 | T47: 00:00:00 | V47: 0 | W47: 00:00:00 | X47: 00:00:00 | Y47: 0 | Z47: 0 | AA47: 0 | AB47: 0
A48: LAHAYE Emmanuel | B48: =Janvier!B49 -> LAHAYE | C48: =Janvier!C49 -> Emmanuel | D48: =Janvier!D49 -> FABRICATION | F48: 0 | G48: 00:00:00 | H48: 00:00:00 | J48: 0 | K48: 00:00:00 | L48: 00:00:00 | N48: 0 | O48: 00:00:00 | P48: 00:00:00 | R48: 0 | S48: 00:00:00 | T48: 00:00:00 | V48: 0 | W48: 00:00:00 | X48: 00:00:00 | Y48: 0 | Z48: 0 | AA48: 0 | AB48: 0
A49: Lasalle Yann | B49: =Janvier!B50 -> Lasalle | C49: =Janvier!C50 -> Yann | D49: =Janvier!D50 -> CHAUFFEURS | F49: 0 | G49: 00:00:00 | H49: 00:00:00 | J49: 0 | K49: 00:00:00 | L49: 00:00:00 | N49: 0 | O49: 00:00:00 | P49: 00:00:00 | R49: 0 | S49: 00:00:00 | T49: 00:00:00 | V49: 0 | W49: 00:00:00 | X49: 00:00:00 | Y49: 0 | Z49: 0 | AA49: 0 | AB49: 0
A50: LORY ANNICK | B50: =Janvier!B51 -> LORY | C50: =Janvier!C51 -> ANNICK | D50: =Janvier!D51 -> FABRICATION | F50: 0 | G50: 00:00:00 | H50: 00:00:00 | J50: 0 | K50: 00:00:00 | L50: 00:00:00 | N50: 0 | O50: 00:00:00 | P50: 00:00:00 | R50: 0 | S50: 00:00:00 | T50: 00:00:00 | V50: 0 | W50: 00:00:00 | X50: 00:00:00 | Y50: 0 | Z50: 0 | AA50: 0 | AB50: 0
A51: LOXTON Morné | B51: =Janvier!B52 -> LOXTON | C51: =Janvier!C52 -> Morné | D51: =Janvier!D52 -> FABRICATION | F51: 0 | G51: 00:00:00 | H51: 00:00:00 | J51: 0 | K51: 00:00:00 | L51: 00:00:00 | N51: 0 | O51: 00:00:00 | P51: 00:00:00 | R51: 0 | S51: 00:00:00 | T51: 00:00:00 | V51: 0 | W51: 00:00:00 | X51: 00:00:00 | Y51: 0 | Z51: 0 | AA51: 0 | AB51: 0
A52: MAILLER Philippe | B52: =Janvier!B53 -> MAILLER | C52: =Janvier!C53 -> Philippe | D52: =Janvier!D53 -> CHAUFFEURS | F52: 0 | G52: 00:00:00 | H52: 00:00:00 | J52: 0 | K52: 00:00:00 | L52: 00:00:00 | N52: 0 | O52: 00:00:00 | P52: 00:00:00 | R52: 0 | S52: 00:00:00 | T52: 00:00:00 | V52: 0 | W52: 00:00:00 | X52: 00:00:00 | Y52: 0 | Z52: 0 | AA52: 0 | AB52: 0
A53: MANOUKIAN Arman | B53: =Janvier!B54 -> MANOUKIAN | C53: =Janvier!C54 -> Arman | D53: =Janvier!D54 -> FABRICATION | F53: 0 | G53: 00:00:00 | H53: 00:00:00 | J53: 0 | K53: 00:00:00 | L53: 00:00:00 | N53: 0 | O53: 00:00:00 | P53: 00:00:00 | R53: 0 | S53: 00:00:00 | T53: 00:00:00 | V53: 0 | W53: 00:00:00 | X53: 00:00:00 | Y53: 0 | Z53: 0 | AA53: 0 | AB53: 0
A54: MARGUIER Stéphane | B54: =Janvier!B55 -> MARGUIER | C54: =Janvier!C55 -> Stéphane | D54: =Janvier!D55 -> EMBALLAGE | F54: 0 | G54: 00:00:00 | H54: 00:00:00 | J54: 0 | K54: 00:00:00 | L54: 00:00:00 | N54: 0 | O54: 00:00:00 | P54: 00:00:00 | R54: 0 | S54: 00:00:00 | T54: 00:00:00 | V54: 0 | W54: 00:00:00 | X54: 00:00:00 | Y54: 0 | Z54: 0 | AA54: 0 | AB54: 0
A55: MARGUIER Stéphane | B55: =Janvier!B56 -> MARGUIER | C55: =Janvier!C56 -> Stéphane | D55: =Janvier!D56 -> NSG | F55: 0 | G55: 00:00:00 | H55: 00:00:00 | J55: 0 | K55: 00:00:00 | L55: 00:00:00 | N55: 0 | O55: 00:00:00 | P55: 00:00:00 | R55: 0 | S55: 00:00:00 | T55: 00:00:00 | V55: 0 | W55: 00:00:00 | X55: 00:00:00 | Y55: 0 | Z55: 0 | AA55: 0 | AB55: 0
A56: MARTIN Julien | B56: =Janvier!B57 -> MARTIN | C56: =Janvier!C57 -> Julien | D56: =Janvier!D57 -> EMBALLAGE | F56: 0 | G56: 00:00:00 | H56: 00:00:00 | J56: 0 | K56: 00:00:00 | L56: 00:00:00 | N56: 0 | O56: 00:00:00 | P56: 00:00:00 | R56: 0 | S56: 00:00:00 | T56: 00:00:00 | V56: 0 | W56: 00:00:00 | X56: 00:00:00 | Y56: 0 | Z56: 0 | AA56: 0 | AB56: 0
A57: MARTIN Pierre | B57: =Janvier!B58 -> MARTIN | C57: =Janvier!C58 -> Pierre | D57: =Janvier!D58 -> FABRICATION | F57: 0 | G57: 00:00:00 | H57: 00:00:00 | J57: 0 | K57: 00:00:00 | L57: 00:00:00 | N57: 0 | O57: 00:00:00 | P57: 00:00:00 | R57: 0 | S57: 00:00:00 | T57: 00:00:00 | V57: 0 | W57: 00:00:00 | X57: 00:00:00 | Y57: 0 | Z57: 0 | AA57: 0 | AB57: 0
A58: MINASYAN ARMAN | B58: =Janvier!B59 -> MINASYAN | C58: =Janvier!C59 -> ARMAN | D58: =Janvier!D59 -> FABRICATION | F58: 0 | G58: 00:00:00 | H58: 00:00:00 | J58: 0 | K58: 00:00:00 | L58: 00:00:00 | N58: 0 | O58: 00:00:00 | P58: 00:00:00 | R58: 0 | S58: 00:00:00 | T58: 00:00:00 | V58: 0 | W58: 00:00:00 | X58: 00:00:00 | Y58: 0 | Z58: 0 | AA58: 0 | AB58: 0
A59: MORET Robin | B59: =Janvier!B60 -> MORET | C59: =Janvier!C60 -> Robin | D59: =Janvier!D60 -> CHAUFFEURS | F59: 0 | G59: 00:00:00 | H59: 00:00:00 | J59: 0 | K59: 00:00:00 | L59: 00:00:00 | N59: 0 | O59: 00:00:00 | P59: 00:00:00 | R59: 0 | S59: 00:00:00 | T59: 00:00:00 | V59: 0 | W59: 00:00:00 | X59: 00:00:00 | Y59: 0 | Z59: 0 | AA59: 0 | AB59: 0
A60: MORIAUX Charles-Henry | B60: =Janvier!B61 -> MORIAUX | C60: =Janvier!C61 -> Charles-Henry | D60: =Janvier!D61 -> EXPEDITION | F60: 0 | G60: 00:00:00 | H60: 00:00:00 | J60: 0 | K60: 00:00:00 | L60: 00:00:00 | N60: 0 | O60: 00:00:00 | P60: 00:00:00 | R60: 0 | S60: 00:00:00 | T60: 00:00:00 | V60: 0 | W60: 00:00:00 | X60: 00:00:00 | Y60: 0 | Z60: 0 | AA60: 0 | AB60: 0
A61: MORIN Christophe | B61: =Janvier!B62 -> MORIN | C61: =Janvier!C62 -> Christophe | D61: =Janvier!D62 -> FABRICATION | F61: 0 | G61: 00:00:00 | H61: 00:00:00 | J61: 0 | K61: 00:00:00 | L61: 00:00:00 | N61: 0 | O61: 00:00:00 | P61: 00:00:00 | R61: 0 | S61: 00:00:00 | T61: 00:00:00 | V61: 0 | W61: 00:00:00 | X61: 00:00:00 | Y61: 0 | Z61: 0 | AA61: 0 | AB61: 0
A62: MORTET Alice | B62: =Janvier!B63 -> MORTET | C62: =Janvier!C63 -> Alice | D62: =Janvier!D63 -> EXPEDITION | F62: 0 | G62: 00:00:00 | H62: 00:00:00 | J62: 0 | K62: 00:00:00 | L62: 00:00:00 | N62: 0 | O62: 00:00:00 | P62: 00:00:00 | R62: 0 | S62: 00:00:00 | T62: 00:00:00 | V62: 0 | W62: 00:00:00 | X62: 00:00:00 | Y62: 0 | Z62: 0 | AA62: 0 | AB62: 0
A63: M'SAKINI Coralie | B63: =Janvier!B64 -> M'SAKINI | C63: =Janvier!C64 -> Coralie | D63: =Janvier!D64 -> COMMERCIAL | F63: 0 | G63: 00:00:00 | H63: 00:00:00 | J63: 0 | K63: 00:00:00 | L63: 00:00:00 | N63: 0 | O63: 00:00:00 | P63: 00:00:00 | R63: 0 | S63: 00:00:00 | T63: 00:00:00 | V63: 0 | W63: 00:00:00 | X63: 00:00:00 | Y63: 0 | Z63: 0 | AA63: 0 | AB63: 0
A64: NEAULT Emilie | B64: =Janvier!B65 -> NEAULT | C64: =Janvier!C65 -> Emilie | D64: =Janvier!D65 -> EMBALLAGE | F64: 0 | G64: 00:00:00 | H64: 00:00:00 | J64: 0 | K64: 00:00:00 | L64: 00:00:00 | N64: 0 | O64: 00:00:00 | P64: 00:00:00 | R64: 0 | S64: 00:00:00 | T64: 00:00:00 | V64: 0 | W64: 00:00:00 | X64: 00:00:00 | Y64: 0 | Z64: 0 | AA64: 0 | AB64: 0
A65: OCQUIDANT MANON | B65: =Janvier!B66 -> OCQUIDANT | C65: =Janvier!C66 -> MANON | D65: =Janvier!D66 -> FABRICATION | F65: 0 | G65: 00:00:00 | H65: 00:00:00 | J65: 0 | K65: 00:00:00 | L65: 00:00:00 | N65: 0 | O65: 00:00:00 | P65: 00:00:00 | R65: 0 | S65: 00:00:00 | T65: 00:00:00 | V65: 0 | W65: 00:00:00 | X65: 00:00:00 | Y65: 0 | Z65: 0 | AA65: 0 | AB65: 0
A66: PACOT Louis | B66: =Janvier!B67 -> PACOT | C66: =Janvier!C67 -> Louis | D66: =Janvier!D67 -> FABRICATION | F66: 0 | G66: 00:00:00 | H66: 00:00:00 | J66: 0 | K66: 00:00:00 | L66: 00:00:00 | N66: 0 | O66: 00:00:00 | P66: 00:00:00 | R66: 0 | S66: 00:00:00 | T66: 00:00:00 | V66: 0 | W66: 00:00:00 | X66: 00:00:00 | Y66: 0 | Z66: 0 | AA66: 0 | AB66: 0
A67: PACOT BENJAMIN | B67: =Janvier!B68 -> PACOT | C67: =Janvier!C68 -> BENJAMIN | D67: =Janvier!D68 -> FABRICATION | F67: 0 | G67: 00:00:00 | H67: 00:00:00 | J67: 0 | K67: 00:00:00 | L67: 00:00:00 | N67: 0 | O67: 00:00:00 | P67: 00:00:00 | R67: 0 | S67: 00:00:00 | T67: 00:00:00 | V67: 0 | W67: 00:00:00 | X67: 00:00:00 | Y67: 0 | Z67: 0 | AA67: 0 | AB67: 0
A68: PASSOT jean luc | B68: =Janvier!B69 -> PASSOT | C68: =Janvier!C69 -> jean luc | D68: =Janvier!D69 -> CHAUFFEURS | F68: 0 | G68: 00:00:00 | H68: 00:00:00 | J68: 0 | K68: 00:00:00 | L68: 00:00:00 | N68: 0 | O68: 00:00:00 | P68: 00:00:00 | R68: 0 | S68: 00:00:00 | T68: 00:00:00 | V68: 0 | W68: 00:00:00 | X68: 00:00:00 | Y68: 0 | Z68: 0 | AA68: 0 | AB68: 0
A69: PAYET Cédric | B69: =Janvier!B70 -> PAYET | C69: =Janvier!C70 -> Cédric | D69: =Janvier!D70 -> FABRICATION | F69: 0 | G69: 00:00:00 | H69: 00:00:00 | J69: 0 | K69: 00:00:00 | L69: 00:00:00 | N69: 0 | O69: 00:00:00 | P69: 00:00:00 | R69: 0 | S69: 00:00:00 | T69: 00:00:00 | V69: 0 | W69: 00:00:00 | X69: 00:00:00 | Y69: 0 | Z69: 0 | AA69: 0 | AB69: 0
A70: PAYET Cédric | B70: =Janvier!B71 -> PAYET | C70: =Janvier!C71 -> Cédric | D70: =Janvier!D71 -> NSG | F70: 0 | G70: 00:00:00 | H70: 00:00:00 | J70: 0 | K70: 00:00:00 | L70: 00:00:00 | N70: 0 | O70: 00:00:00 | P70: 00:00:00 | R70: 0 | S70: 00:00:00 | T70: 00:00:00 | V70: 0 | W70: 00:00:00 | X70: 00:00:00 | Y70: 0 | Z70: 0 | AA70: 0 | AB70: 0
A71: PETIT ISABELLE | B71: =Janvier!B72 -> PETIT | C71: =Janvier!C72 -> ISABELLE | D71: =Janvier!D72 -> CONDITIONNEMENT | F71: 0 | G71: 00:00:00 | H71: 00:00:00 | J71: 0 | K71: 00:00:00 | L71: 00:00:00 | N71: 0 | O71: 00:00:00 | P71: 00:00:00 | R71: 0 | S71: 00:00:00 | T71: 00:00:00 | V71: 0 | W71: 00:00:00 | X71: 00:00:00 | Y71: 0 | Z71: 0 | AA71: 0 | AB71: 0
A72: PIGEARD Jérémy | B72: =Janvier!B73 -> PIGEARD | C72: =Janvier!C73 -> Jérémy | D72: =Janvier!D73 -> FABRICATION | F72: 0 | G72: 00:00:00 | H72: 00:00:00 | J72: 0 | K72: 00:00:00 | L72: 00:00:00 | N72: =IF(M72<(1/24*35),0,M72-(1/24*35)) -> 0 | O72: =IF(N72>=1/24*8,1/24*8,N72) -> 00:00:00 | P72: =IF(N72-O72>0,N72-O72,0) -> 00:00:00 | R72: =IF(Q72<(1/24*35),0,Q72-(1/24*35)) -> 0 | S72: =IF(R72>=1/24*8,1/24*8,R72) -> 00:00:00 | T72: =IF(R72-S72>0,R72-S72,0) -> 00:00:00 | V72: =IF(U72<(1/24*35),0,U72-(1/24*35)) -> 0 | W72: =IF(V72>=1/24*8,1/24*8,V72) -> 00:00:00 | X72: =IF(V72-W72>0,V72-W72,0) -> 00:00:00 | Y72: 0 | Z72: 0 | AA72: 0 | AB72: 0
A73: =B73&" "&C73 -> POIGNANT Anthony | B73: =Janvier!B74 -> POIGNANT | C73: =Janvier!C74 -> Anthony | D73: =Janvier!D74 -> EMBALLAGE | F73: 0 | G73: 00:00:00 | H73: =IF(F73-G73>0,F73-G73,0) -> 00:00:00 | J73: 0 | K73: 00:00:00 | L73: =IF(J73-K73>0,J73-K73,0) -> 00:00:00 | N73: 0 | O73: 00:00:00 | P73: 00:00:00 | R73: 0 | S73: 00:00:00 | T73: 00:00:00 | V73: 0 | W73: 00:00:00 | X73: 00:00:00 | Y73: =SUMIF($E$7:$X$7,$I$7,$E73:$X73) -> 0 | Z73: =SUMIF($E$7:$X$7,$Z$7,$E73:$X73) -> 0 | AA73: =SUMIF($E$7:$X$7,$AA$7,$E73:$X73) -> 0 | AB73: =SUMIF($E$7:$X$7,$AB$7,$E73:$X73) -> 0
A74: PRINCET Véronique | B74: =Janvier!B75 -> PRINCET | C74: =Janvier!C75 -> Véronique | D74: =Janvier!D75 -> EMBALLAGE | F74: =IF(E74<(1/24*35),0,E74-(1/24*35)) -> 0 | G74: =IF(F74>=1/24*8,1/24*8,F74) -> 00:00:00 | H74: 00:00:00 | J74: =IF(I74<(1/24*35),0,I74-(1/24*35)) -> 0 | K74: =IF(J74>=1/24*8,1/24*8,J74) -> 00:00:00 | L74: 00:00:00 | N74: 0 | O74: 00:00:00 | P74: 00:00:00 | R74: 0 | S74: 00:00:00 | T74: 00:00:00 | V74: 0 | W74: 00:00:00 | X74: 00:00:00 | Y74: 0 | Z74: 0 | AA74: 0 | AB74: 0
A75: PRUDENT Axelle | B75: =Janvier!B76 -> PRUDENT | C75: =Janvier!C76 -> Axelle | D75: =Janvier!D76 -> Apprentis | F75: 0 | G75: 00:00:00 | H75: 00:00:00 | J75: 0 | K75: 00:00:00 | L75: 00:00:00 | N75: 0 | O75: 00:00:00 | P75: 00:00:00 | R75: 0 | S75: 00:00:00 | T75: 00:00:00 | V75: 0 | W75: 00:00:00 | X75: 00:00:00 | Y75: 0 | Z75: 0 | AA75: 0 | AB75: 0
A76: PUSSET Françis | B76: =Janvier!B77 -> PUSSET | C76: =Janvier!C77 -> Françis | D76: =Janvier!D77 -> FABRICATION | F76: 0 | G76: 00:00:00 | H76: 00:00:00 | J76: 0 | K76: 00:00:00 | L76: 00:00:00 | N76: 0 | O76: 00:00:00 | P76: 00:00:00 | R76: 0 | S76: 00:00:00 | T76: 00:00:00 | V76: 0 | W76: 00:00:00 | X76: 00:00:00 | Y76: 0 | Z76: 0 | AA76: 0 | AB76: 0
A77: ROGER Céline | B77: =Janvier!B78 -> ROGER | C77: =Janvier!C78 -> Céline | D77: =Janvier!D78 -> BUREAUX | F77: 0 | G77: 00:00:00 | H77: 00:00:00 | J77: 0 | K77: 00:00:00 | L77: 00:00:00 | N77: 0 | O77: 00:00:00 | P77: 00:00:00 | R77: 0 | S77: 00:00:00 | T77: 00:00:00 | V77: 0 | W77: 00:00:00 | X77: 00:00:00 | Y77: 0 | Z77: 0 | AA77: 0 | AB77: 0
A78: ROY Marianne | B78: =Janvier!B79 -> ROY | C78: =Janvier!C79 -> Marianne | D78: =Janvier!D79 -> NSG | F78: 0 | G78: 00:00:00 | H78: 00:00:00 | J78: 0 | K78: 00:00:00 | L78: 00:00:00 | N78: 0 | O78: 00:00:00 | P78: 00:00:00 | R78: 0 | S78: 00:00:00 | T78: 00:00:00 | V78: 0 | W78: 00:00:00 | X78: 00:00:00 | Y78: 0 | Z78: 0 | AA78: 0 | AB78: 0
A79: ROY SEBASTIEN | B79: =Janvier!B80 -> ROY | C79: =Janvier!C80 -> SEBASTIEN | D79: =Janvier!D80 -> EXPEDITION | F79: 0 | G79: 00:00:00 | H79: 00:00:00 | J79: 0 | K79: 00:00:00 | L79: 00:00:00 | N79: 0 | O79: 00:00:00 | P79: 00:00:00 | R79: 0 | S79: 00:00:00 | T79: 00:00:00 | V79: 0 | W79: 00:00:00 | X79: 00:00:00 | Y79: 0 | Z79: 0 | AA79: 0 | AB79: 0
A80: SABRI Moha | B80: =Janvier!B81 -> SABRI | C80: =Janvier!C81 -> Moha | D80: =Janvier!D81 -> FABRICATION | F80: 0 | G80: 00:00:00 | H80: 00:00:00 | J80: 0 | K80: 00:00:00 | L80: 00:00:00 | N80: 0 | O80: 00:00:00 | P80: 00:00:00 | R80: 0 | S80: 00:00:00 | T80: 00:00:00 | V80: 0 | W80: 00:00:00 | X80: 00:00:00 | Y80: 0 | Z80: 0 | AA80: 0 | AB80: 0
A81: SAVARIAT Betty | B81: =Janvier!B82 -> SAVARIAT | C81: =Janvier!C82 -> Betty | D81: =Janvier!D82 -> EMBALLAGE | F81: 0 | G81: 00:00:00 | H81: 00:00:00 | J81: 0 | K81: 00:00:00 | L81: 00:00:00 | N81: 0 | O81: 00:00:00 | P81: 00:00:00 | R81: 0 | S81: 00:00:00 | T81: 00:00:00 | V81: 0 | W81: 00:00:00 | X81: 00:00:00 | Y81: 0 | Z81: 0 | AA81: 0 | AB81: 0
E82: =SUM(E8:E81) -> 0 | F82: 0 | G82: 0 | H82: 0 | I82: 0 | J82: 0 | K82: 0 | L82: 0 | M82: 0 | N82: 0 | O82: 0 | P82: 0 | Q82: 0 | R82: 0 | S82: 0 | T82: 0 | U82: 0 | V82: 0 | W82: 0 | X82: 0 | Y82: =SUM(Y8:Y81) -> 0 | Z82: =SUM(Z8:Z81) -> 0 | AA82: 0 | AB82: 0

Sheet Juillet
C1: Menu | U1: =IF($U$5="","masquer colonne","") -> masquer colonne | V1: =IF($U$5="","masquer colonne","") -> masquer colonne | W1: masquer colonne | X1: masquer colonne
A2: =COUNTIF(U1:X1,"masquer colonne") -> 4
B3: =VALUE("01/07/"&Janvier!$B$1) -> 2017-07-01 | E3: =CHOOSE(MONTH(B3),"Janvier","Février","Mars","Avril","Mai","Juin","Juillet","Août","Septembre","Octobre","Novembre","Décembre") -> Juillet
E4: =WEEKNUM(E5,21) -> 27 | I4: =WEEKNUM(I5,21) -> 28 | M4: =WEEKNUM(M5,21) -> 29 | Q4: =WEEKNUM(Q5,21) -> 30 | U4: =IF(U5="","",WEEKNUM(U5,21)) -> 
E5: =VALUE("01/"&MONTH(B3)&"/"&YEAR($B$3))+CHOOSE(WEEKDAY(VALUE("01/"&MONTH(B3)&"/"&YEAR($B$3)),2),6,5,4,10,9,8,7) -> 2017-07-09 | I5: =E5+7 -> 2017-07-16 | M5: =I5+7 -> 2017-07-23 | Q5: =M5+7 -> 2017-07-30 | U5: =IF(DAY(Q5+7)>4,"",Q5+7) -> 
E6: =CHOOSE(WEEKDAY(E5,2),"Lundi","Mardi","Mercredi","Jeudi","Vendredi","Samedi","Dimanche") -> Dimanche | I6: =CHOOSE(WEEKDAY(I5,2),"Lundi","Mardi","Mercredi","Jeudi","Vendredi","Samedi","Dimanche") -> Dimanche | M6: =CHOOSE(WEEKDAY(M5,2),"Lundi","Mardi","Mercredi","Jeudi","Vendredi","Samedi","Dimanche") -> Dimanche | Q6: =CHOOSE(WEEKDAY(Q5,2),"Lundi","Mardi","Mercredi","Jeudi","Vendredi","Samedi","Dimanche") -> Dimanche | U6: =IF(U5="","",CHOOSE(WEEKDAY(U5,2),"Lundi","Mardi","Mercredi","Jeudi","Vendredi","Samedi","Dimanche")) ->  | Y6: ="Total heures mois "&E3 -> Total heures mois Juillet
B7: NOM | C7: PRENOM | D7: SECTEUR | E7: Total Sem. | F7: Heure sup. | G7: Heure 25% | H7: Heure 50% | I7: Total Sem. | J7: Heure sup. | K7: Heure 25% | L7: Heure 50% | M7: Total Sem. | N7: Heure sup. | O7: Heure 25% | P7: Heure 50% | Q7: Total Sem. | R7: Heure sup. | S7: Heure 25% | T7: Heure 50% | U7: Total Sem. | V7: Heure sup. | W7: Heure 25% | X7: Heure 50% | Y7: Total Sem. | Z7: Heure sup. | AA7: Heure 25% | AB7: Heure 50%
A8: =B8&" "&C8 -> AMIOT Anne-Lise | B8: =Janvier!B8 -> AMIOT | C8: =Janvier!C8 -> Anne-Lise | D8: =Janvier!D8 -> QUALITE | F8: =IF(E8<(1/24*35),0,E8-(1/24*35)) -> 0 | G8: =IF(F8>=1/24*8,1/24*8,F8) -> 00:00:00 | H8: =IF(F8-G8>0,F8-G8,0) -> 00:00:00 | J8: =IF(I8<(1/24*35),0,I8-(1/24*35)) -> 0 | K8: =IF(J8>=1/24*8,1/24*8,J8) -> 00:00:00 | L8: =IF(J8-K8>0,J8-K8,0) -> 00:00:00 | N8: =IF(M8<(1/24*35),0,M8-(1/24*35)) -> 0 | O8: =IF(N8>=1/24*8,1/24*8,N8) -> 00:00:00 | P8: =IF(N8-O8>0,N8-O8,0) -> 00:00:00 | R8: =IF(Q8<(1/24*35),0,Q8-(1/24*35)) -> 0 | S8: =IF(R8>=1/24*8,1/24*8,R8) -> 00:00:00 | T8: =IF(R8-S8>0,R8-S8,0) -> 00:00:00 | V8: =IF(U8<(1/24*35),0,U8-(1/24*35)) -> 0 | W8: =IF(V8>=1/24*8,1/24*8,V8) -> 00:00:00 | X8: =IF(V8-W8>0,V8-W8,0) -> 00:00:00 | Y8: =SUMIF($E$7:$X$7,$I$7,$E8:$X8) -> 0 | Z8: =SUMIF($E$7:$X$7,$Z$7,$E8:$X8) -> 0 | AA8: =SUMIF($E$7:$X$7,$AA$7,$E8:$X8) -> 0 | AB8: =SUMIF($E$7:$X$7,$AB$7,$E8:$X8) -> 0
A9: =B9&" "&C9 -> ANDRE FABIEN | B9: =Janvier!B9 -> ANDRE | C9: =Janvier!C9 -> FABIEN | D9: =Janvier!D9 -> FABRICATION | F9: =IF(E9<(1/24*35),0,E9-(1/24*35)) -> 0 | G9: =IF(F9>=1/24*8,1/24*8,F9) -> 00:00:00 | H9: =IF(F9-G9>0,F9-G9,0) -> 00:00:00 | J9: =IF(I9<(1/24*35),0,I9-(1/24*35)) -> 0 | K9: =IF(J9>=1/24*8,1/24*8,J9) -> 00:00:00 | L9: =IF(J9-K9>0,J9-K9,0) -> 00:00:00 | N9: 0 | O9: 00:00:00 | P9: 00:00:00 | R9: 0 | S9: 00:00:00 | T9: 00:00:00 | V9: 0 | W9: 00:00:00 | X9: 00:00:00 | Y9: =SUMIF($E$7:$X$7,$I$7,$E9:$X9) -> 0 | Z9: =SUMIF($E$7:$X$7,$Z$7,$E9:$X9) -> 0 | AA9: =SUMIF($E$7:$X$7,$AA$7,$E9:$X9) -> 0 | AB9: =SUMIF($E$7:$X$7,$AB$7,$E9:$X9) -> 0
A10: AUDIARD FLORIAN | B10: =Janvier!B10 -> AUDIARD | C10: =Janvier!C10 -> FLORIAN | D10: =Janvier!D10 -> FABRICATION | F10: 0 | G10: 00:00:00 | H10: 00:00:00 | J10: 0 | K10: 00:00:00 | L10: 00:00:00 | N10: 0 | O10: 00:00:00 | P10: 00:00:00 | R10: 0 | S10: 00:00:00 | T10: 00:00:00 | V10: 0 | W10: 00:00:00 | X10: 00:00:00 | Y10: 0 | Z10: 0 | AA10: 0 | AB10: 0
A11: AZEVEDO Catherine | B11: =Janvier!B11 -> AZEVEDO | C11: =Janvier!C11 -> Catherine | D11: =Janvier!D11 -> EMBALLAGE | F11: 0 | G11: 00:00:00 | H11: 00:00:00 | J11: 0 | K11: 00:00:00 | L11: 00:00:00 | N11: 0 | O11: 00:00:00 | P11: 00:00:00 | R11: 0 | S11: 00:00:00 | T11: 00:00:00 | V11: 0 | W11: 00:00:00 | X11: 00:00:00 | Y11: 0 | Z11: 0 | AA11: 0 | AB11: 0
A12: BARBIER Nathalie | B12: =Janvier!B12 -> BARBIER | C12: =Janvier!C12 -> Nathalie | D12: =Janvier!D12 -> QUALITE | F12: 0 | G12: 00:00:00 | H12: 00:00:00 | J12: 0 | K12: 00:00:00 | L12: 00:00:00 | N12: 0 | O12: 00:00:00 | P12: 00:00:00 | R12: 0 | S12: 00:00:00 | T12: 00:00:00 | V12: 0 | W12: 00:00:00 | X12: 00:00:00 | Y12: 0 | Z12: 0 | AA12: 0 | AB12: 0
A13: BECHTOLD Marie-Christine | B13: =Janvier!B13 -> BECHTOLD | C13: =Janvier!C13 -> Marie-Christine | D13: =Janvier!D13 -> EMBALLAGE | F13: 0 | G13: 00:00:00 | H13: 00:00:00 | J13: 0 | K13: 00:00:00 | L13: 00:00:00 | N13: 0 | O13: 00:00:00 | P13: 00:00:00 | R13: 0 | S13: 00:00:00 | T13: 00:00:00 | V13: 0 | W13: 00:00:00 | X13: 00:00:00 | Y13: 0 | Z13: 0 | AA13: 0 | AB13: 0
A14: BEURET MAUD | B14: =Janvier!B14 -> BEURET | C14: =Janvier!C14 -> MAUD | D14: =Janvier!D14 -> MAGASIN | F14: 0 | G14: 00:00:00 | H14: 00:00:00 | J14: 0 | K14: 00:00:00 | L14: 00:00:00 | N14: 0 | O14: 00:00:00 | P14: 00:00:00 | R14: 0 | S14: 00:00:00 | T14: 00:00:00 | V14: 0 | W14: 00:00:00 | X14: 00:00:00 | Y14: 0 | Z14: 0 | AA14: 0 | AB14: 0
A15: BOUEZNARD Myriam | B15: =Janvier!B15 -> BOUEZNARD | C15: =Janvier!C15 -> Myriam | D15: =Janvier!D15 -> NSG | F15: 0 | G15: 00:00:00 | H15: 00:00:00 | J15: 0 | K15: 00:00:00 | L15: 00:00:00 | N15: 0 | O15: 00:00:00 | P15: 00:00:00 | R15: 0 | S15: 00:00:00 | T15: 00:00:00 | V15: 0 | W15: 00:00:00 | X15: 00:00:00 | Y15: 0 | Z15: 0 | AA15: 0 | AB15: 0
A16: Boutiflat James | B16: =Janvier!B16 -> Boutiflat | C16: =Janvier!C16 -> James | D16: =Janvier!D16 -> EMBALLAGE | F16: 0 | G16: 00:00:00 | H16: 00:00:00 | J16: 0 | K16: 00:00:00 | L16: 00:00:00 | N16: 0 | O16: 00:00:00 | P16: 00:00:00 | R16: 0 | S16: 00:00:00 | T16: 00:00:00 | V16: 0 | W16: 00:00:00 | X16: 00:00:00 | Y16: 0 | Z16: 0 | AA16: 0 | AB16: 0
A17: BOUZENARD Adrien | B17: =Janvier!B17 -> BOUZENARD | C17: =Janvier!C17 -> Adrien | D17: =Janvier!D17 -> FABRICATION | F17: 0 | G17: 00:00:00 | H17: 00:00:00 | J17: 0 | K17: 00:00:00 | L17: 00:00:00 | N17: 0 | O17: 00:00:00 | P17: 00:00:00 | R17: 0 | S17: 00:00:00 | T17: 00:00:00 | V17: 0 | W17: 00:00:00 | X17: 00:00:00 | Y17: 0 | Z17: 0 | AA17: 0 | AB17: 0
A18: BOUZENARD Myriam | B18: =Janvier!B18 -> BOUZENARD | C18: =Janvier!C18 -> Myriam | D18: =Janvier!D18 -> EMBALLAGE | F18: 0 | G18: 00:00:00 | H18: 00:00:00 | J18: 0 | K18: 00:00:00 | L18: 00:00:00 | N18: 0 | O18: 00:00:00 | P18: 00:00:00 | R18: 0 | S18: 00:00:00 | T18: 00:00:00 | V18: 0 | W18: 00:00:00 | X18: 00:00:00 | Y18: 0 | Z18: 0 | AA18: 0 | AB18: 0
A19: CARRION JEAN-CLAUDE | B19: =Janvier!B19 -> CARRION | C19: =Janvier!C19 -> JEAN-CLAUDE | D19: =Janvier!D19 -> CHAUFFEURS | F19: 0 | G19: 00:00:00 | H19: 00:00:00 | J19: 0 | K19: 00:00:00 | L19: 00:00:00 | N19: 0 | O19: 00:00:00 | P19: 00:00:00 | R19: 0 | S19: 00:00:00 | T19: 00:00:00 | V19: 0 | W19: 00:00:00 | X19: 00:00:00 | Y19: 0 | Z19: 0 | AA19: 0 | AB19: 0
A20: CARTERON Claudine | B20: =Janvier!B20 -> CARTERON | C20: =Janvier!C20 -> Claudine | D20: =Janvier!D20 -> BUREAUX | F20: 0 | G20: 00:00:00 | H20: 00:00:00 | J20: 0 | K20: 00:00:00 | L20: 00:00:00 | N20: 0 | O20: 00:00:00 | P20: 00:00:00 | R20: 0 | S20: 00:00:00 | T20: 00:00:00 | V20: 0 | W20: 00:00:00 | X20: 00:00:00 | Y20: 0 | Z20: 0 | AA20: 0 | AB20: 0
A21: CHAUDRON Amandine | B21: =Janvier!B21 -> CHAUDRON | C21: =Janvier!C21 -> Amandine | D21: =Janvier!D21 -> EMBALLAGE | F21: 0 | G21: 00:00:00 | H21: 00:00:00 | J21: 0 | K21: 00:00:00 | L21: 00:00:00 | N21: 0 | O21: 00:00:00 | P21: 00:00:00 | R21: 0 | S21: 00:00:00 | T21: 00:00:00 | V21: 0 | W21: 00:00:00 | X21: 00:00:00 | Y21: 0 | Z21: 0 | AA21: 0 | AB21: 0
A22: CHAUDRON Virginie | B22: =Janvier!B22 -> CHAUDRON | C22: =Janvier!C22 -> Virginie | D22: =Janvier!D22 -> FABRICATION | F22: 0 | G22: 00:00:00 | H22: 00:00:00 | J22: 0 | K22: 00:00:00 | L22: 00:00:00 | N22: 0 | O22: 00:00:00 | P22: 00:00:00 | R22: 0 | S22: 00:00:00 | T22: 00:00:00 | V22: 0 | W22: 00:00:00 | X22: 00:00:00 | Y22: 0 | Z22: 0 | AA22: 0 | AB22: 0
A23: CHEVAUX Rodolphe | B23: =Janvier!B23 -> CHEVAUX | C23: =Janvier!C23 -> Rodolphe | D23: =Janvier!D23 -> MAINTENANCE | F23: 0 | G23: 00:00:00 | H23: 00:00:00 | J23: 0 | K23: 00:00:00 | L23: 00:00:00 | N23: 0 | O23: 00:00:00 | P23: 00:00:00 | R23: 0 | S23: 00:00:00 | T23: 00:00:00 | V23: 0 | W23: 00:00:00 | X23: 00:00:00 | Y23: 0 | Z23: 0 | AA23: 0 | AB23: 0
A24: COCHARD Hervé | B24: =Janvier!B24 -> COCHARD | C24: =Janvier!C24 -> Hervé | D24: =Janvier!D24 -> COMMERCIAL | F24: 0 | G24: 00:00:00 | H24: 00:00:00 | J24: 0 | K24: 00:00:00 | L24: 00:00:00 | N24: 0 | O24: 00:00:00 | P24: 00:00:00 | R24: 0 | S24: 00:00:00 | T24: 00:00:00 | V24: 0 | W24: 00:00:00 | X24: 00:00:00 | Y24: 0 | Z24: 0 | AA24: 0 | AB24: 0
A25: CRETIN JEROME | B25: =Janvier!B25 -> CRETIN | C25: =Janvier!C25 -> JEROME | D25: =Janvier!D25 -> NSG | F25: 0 | G25: 00:00:00 | H25: 00:00:00 | J25: 0 | K25: 00:00:00 | L25: 00:00:00 | N25: 0 | O25: 00:00:00 | P25: 00:00:00 | R25: 0 | S25: 00:00:00 | T25: 00:00:00 | V25: 0 | W25: 00:00:00 | X25: 00:00:00 | Y25: 0 | Z25: 0 | AA25: 0 | AB25: 0
A26: CRINQUANT JEROME | B26: =Janvier!B26 -> CRINQUANT | C26: =Janvier!C26 -> JEROME | D26: =Janvier!D26 -> NSG | F26: 0 | G26: 00:00:00 | H26: 00:00:00 | J26: 0 | K26: 00:00:00 | L26: 00:00:00 | N26: 0 | O26: 00:00:00 | P26: 00:00:00 | R26: 0 | S26: 00:00:00 | T26: 00:00:00 | V26: 0 | W26: 00:00:00 | X26: 00:00:00 | Y26: 0 | Z26: 0 | AA26: 0 | AB26: 0
A27: DASCIER ANDY | B27: =Janvier!B28 -> DASCIER | C27: =Janvier!C28 -> ANDY | D27: =Janvier!D28 -> PREPA COMMANDE | F27: 0 | G27: 00:00:00 | H27: 00:00:00 | J27: 0 | K27: 00:00:00 | L27: 00:00:00 | N27: 0 | O27: 00:00:00 | P27: 00:00:00 | R27: 0 | S27: 00:00:00 | T27: 00:00:00 | V27: 0 | W27: 00:00:00 | X27: 00:00:00 | Y27: 0 | Z27: 0 | AA27: 0 | AB27: 0
A28: DAVERIO BENOIT | B28: =Janvier!B29 -> DAVERIO | C28: =Janvier!C29 -> BENOIT | D28: =Janvier!D29 -> COMMERCIAL | F28: 0 | G28: 00:00:00 | H28: 00:00:00 | J28: 0 | K28: 00:00:00 | L28: 00:00:00 | N28: 0 | O28: 00:00:00 | P28: 00:00:00 | R28: 0 | S28: 00:00:00 | T28: 00:00:00 | V28: 0 | W28: 00:00:00 | X28: 00:00:00 | Y28: 0 | Z28: 0 | AA28: 0 | AB28: 0
A29: DELANGRE ALEX | B29: =Janvier!B30 -> DELANGRE | C29: =Janvier!C30 -> ALEX | D29: =Janvier!D30 -> FABRICATION | F29: 0 | G29: 00:00:00 | H29: 00:00:00 | J29: 0 | K29: 00:00:00 | L29: 00:00:00 | N29: 0 | O29: 00:00:00 | P29: 00:00:00 | R29: 0 | S29: 00:00:00 | T29: 00:00:00 | V29: 0 | W29: 00:00:00 | X29: 00:00:00 | Y29: 0 | Z29: 0 | AA29: 0 | AB29: 0
A30: DELIN Philippe | B30: =Janvier!B31 -> DELIN | C30: =Janvier!C31 -> Philippe | D30: =Janvier!D31 -> DIRECTION | F30: 0 | G30: 00:00:00 | H30: 00:00:00 | J30: 0 | K30: 00:00:00 | L30: 00:00:00 | N30: 0 | O30: 00:00:00 | P30: 00:00:00 | R30: 0 | S30: 00:00:00 | T30: 00:00:00 | V30: 0 | W30: 00:00:00 | X30: 00:00:00 | Y30: 0 | Z30: 0 | AA30: 0 | AB30: 0
A31: DORE Daisy | B31: =Janvier!B32 -> DORE | C31: =Janvier!C32 -> Daisy | D31: =Janvier!D32 -> FABRICATION | F31: 0 | G31: 00:00:00 | H31: 00:00:00 | J31: 0 | K31: 00:00:00 | L31: 00:00:00 | N31: 0 | O31: 00:00:00 | P31: 00:00:00 | R31: 0 | S31: 00:00:00 | T31: 00:00:00 | V31: 0 | W31: 00:00:00 | X31: 00:00:00 | Y31: 0 | Z31: 0 | AA31: 0 | AB31: 0
A32: ECHEVARIA Luis | B32: =Janvier!B33 -> ECHEVARIA | C32: =Janvier!C33 -> Luis | D32: =Janvier!D33 -> FABRICATION | F32: 0 | G32: 00:00:00 | H32: 00:00:00 | J32: 0 | K32: 00:00:00 | L32: 00:00:00 | N32: 0 | O32: 00:00:00 | P32: 00:00:00 | R32: 0 | S32: 00:00:00 | T32: 00:00:00 | V32: 0 | W32: 00:00:00 | X32: 00:00:00 | Y32: 0 | Z32: 0 | AA32: 0 | AB32: 0
A33: EL MOQADDAM REDOUANE | B33: =Janvier!B34 -> EL MOQADDAM | C33: =Janvier!C34 -> REDOUANE | D33: =Janvier!D34 -> FABRICATION | F33: 0 | G33: 00:00:00 | H33: 00:00:00 | J33: 0 | K33: 00:00:00 | L33: 00:00:00 | N33: 0 | O33: 00:00:00 | P33: 00:00:00 | R33: 0 | S33: 00:00:00 | T33: 00:00:00 | V33: 0 | W33: 00:00:00 | X33: 00:00:00 | Y33: 0 | Z33: 0 | AA33: 0 | AB33: 0
A34: FORMEL CELINE | B34: =Janvier!B35 -> FORMEL | C34: =Janvier!C35 -> CELINE | D34: =Janvier!D35 -> BUREAUX | F34: 0 | G34: 00:00:00 | H34: 00:00:00 | J34: 0 | K34: 00:00:00 | L34: 00:00:00 | N34: 0 | O34: 00:00:00 | P34: 00:00:00 | R34: 0 | S34: 00:00:00 | T34: 00:00:00 | V34: 0 | W34: 00:00:00 | X34: 00:00:00 | Y34: 0 | Z34: 0 | AA34: 0 | AB34: 0
A35: FOUACHE LENA | B35: =Janvier!B36 -> FOUACHE | C35: =Janvier!C36 -> LENA | D35: =Janvier!D36 -> QUALITE | F35: 0 | G35: 00:00:00 | H35: 00:00:00 | J35: 0 | K35: 00:00:00 | L35: 00:00:00 | N35: 0 | O35: 00:00:00 | P35: 00:00:00 | R35: 0 | S35: 00:00:00 | T35: 00:00:00 | V35: 0 | W35: 00:00:00 | X35: 00:00:00 | Y35: 0 | Z35: 0 | AA35: 0 | AB35: 0
A36: GALETTI Maud | B36: =Janvier!B37 -> GALETTI | C36: =Janvier!C37 -> Maud | D36: =Janvier!D37 -> FABRICATION | F36: 0 | G36: 00:00:00 | H36: 00:00:00 | J36: 0 | K36: 00:00:00 | L36: 00:00:00 | N36: 0 | O36: 00:00:00 | P36: 00:00:00 | R36: 0 | S36: 00:00:00 | T36: 00:00:00 | V36: 0 | W36: 00:00:00 | X36: 00:00:00 | Y36: 0 | Z36: 0 | AA36: 0 | AB36: 0
A37: GAY Stephane | B37: =Janvier!B38 -> GAY | C37: =Janvier!C38 -> Stephane | D37: =Janvier!D38 -> FABRICATION | F37: 0 | G37: 00:00:00 | H37: 00:00:00 | J37: 0 | K37: 00:00:00 | L37: 00:00:00 | N37: 0 | O37: 00:00:00 | P37: 00:00:00 | R37: 0 | S37: 00:00:00 | T37: 00:00:00 | V37: 0 | W37: 00:00:00 | X37: 00:00:00 | Y37: 0 | Z37: 0 | AA37: 0 | AB37: 0
A38: Graff MATHILDE | B38: =Janvier!B39 -> Graff | C38: =Janvier!C39 -> MATHILDE | D38: =Janvier!D39 -> CONDITIONNEMENT | F38: 0 | G38: 00:00:00 | H38: 00:00:00 | J38: 0 | K38: 00:00:00 | L38: 00:00:00 | N38: 0 | O38: 00:00:00 | P38: 00:00:00 | R38: 0 | S38: 00:00:00 | T38: 00:00:00 | V38: 0 | W38: 00:00:00 | X38: 00:00:00 | Y38: 0 | Z38: 0 | AA38: 0 | AB38: 0
A39: GRAPPIN Perrine | B39: =Janvier!B40 -> GRAPPIN | C39: =Janvier!C40 -> Perrine | D39: =Janvier!D40 -> FABRICATION | F39: 0 | G39: 00:00:00 | H39: 00:00:00 | J39: 0 | K39: 00:00:00 | L39: 00:00:00 | N39: 0 | O39: 00:00:00 | P39: 00:00:00 | R39: 0 | S39: 00:00:00 | T39: 00:00:00 | V39: 0 | W39: 00:00:00 | X39: 00:00:00 | Y39: 0 | Z39: 0 | AA39: 0 | AB39: 0
A40: GUENOT Anne | B40: =Janvier!B41 -> GUENOT | C40: =Janvier!C41 -> Anne | D40: =Janvier!D41 -> EXPEDITION | F40: 0 | G40: 00:00:00 | H40: 00:00:00 | J40: 0 | K40: 00:00:00 | L40: 00:00:00 | N40: 0 | O40: 00:00:00 | P40: 00:00:00 | R40: 0 | S40: 00:00:00 | T40: 00:00:00 | V40: 0 | W40: 00:00:00 | X40: 00:00:00 | Y40: 0 | Z40: 0 | AA40: 0 | AB40: 0
A41: GUYARD Christine | B41: =Janvier!B42 -> GUYARD | C41: =Janvier!C42 -> Christine | D41: =Janvier!D42 -> BUREAUX | F41: 0 | G41: 00:00:00 | H41: 00:00:00 | J41: 0 | K41: 00:00:00 | L41: 00:00:00 | N41: 0 | O41: 00:00:00 | P41: 00:00:00 | R41: 0 | S41: 00:00:00 | T41: 00:00:00 | V41: 0 | W41: 00:00:00 | X41: 00:00:00 | Y41: 0 | Z41: 0 | AA41: 0 | AB41: 0
A42: GUYARD Marie | B42: =Janvier!B43 -> GUYARD | C42: =Janvier!C43 -> Marie | D42: =Janvier!D43 -> FABRICATION | F42: 0 | G42: 00:00:00 | H42: 00:00:00 | J42: 0 | K42: 00:00:00 | L42: 00:00:00 | N42: 0 | O42: 00:00:00 | P42: 00:00:00 | R42: 0 | S42: 00:00:00 | T42: 00:00:00 | V42: 0 | W42: 00:00:00 | X42: 00:00:00 | Y42: 0 | Z42: 0 | AA42: 0 | AB42: 0
A43: GUYARD Marie | B43: =Janvier!B44 -> GUYARD | C43: =Janvier!C44 -> Marie | D43: =Janvier!D44 -> FABRICATION | F43: 0 | G43: 00:00:00 | H43: 00:00:00 | J43: 0 | K43: 00:00:00 | L43: 00:00:00 | N43: 0 | O43: 00:00:00 | P43: 00:00:00 | R43: 0 | S43: 00:00:00 | T43: 00:00:00 | V43: 0 | W43: 00:00:00 | X43: 00:00:00 | Y43: 0 | Z43: 0 | AA43: 0 | AB43: 0
A44: HARUTYUNYAN Haik | B44: =Janvier!B45 -> HARUTYUNYAN | C44: =Janvier!C45 -> Haik | D44: =Janvier!D45 -> FABRICATION | F44: 0 | G44: 00:00:00 | H44: 00:00:00 | J44: 0 | K44: 00:00:00 | L44: 00:00:00 | N44: 0 | O44: 00:00:00 | P44: 00:00:00 | R44: 0 | S44: 00:00:00 | T44: 00:00:00 | V44: 0 | W44: 00:00:00 | X44: 00:00:00 | Y44: 0 | Z44: 0 | AA44: 0 | AB44: 0
A45: IDRISSI Zinedinne | B45: =Janvier!B46 -> IDRISSI | C45: =Janvier!C46 -> Zinedinne | D45: =Janvier!D46 -> FABRICATION | F45: 0 | G45: 00:00:00 | H45: 00:00:00 | J45: 0 | K45: 00:00:00 | L45: 00:00:00 | N45: 0 | O45: 00:00:00 | P45: 00:00:00 | R45: 0 | S45: 00:00:00 | T45: 00:00:00 | V45: 0 | W45: 00:00:00 | X45: 00:00:00 | Y45: 0 | Z45: 0 | AA45: 0 | AB45: 0
A46: JULIEN Thomas | B46: =Janvier!B47 -> JULIEN | C46: =Janvier!C47 -> Thomas | D46: =Janvier!D47 -> Apprentis | F46: 0 | G46: 00:00:00 | H46: 00:00:00 | J46: 0 | K46: 00:00:00 | L46: 00:00:00 | N46: 0 | O46: 00:00:00 | P46: 00:00:00 | R46: 0 | S46: 00:00:00 | T46: 00:00:00 | V46: 0 | W46: 00:00:00 | X46: 00:00:00 | Y46: 0 | Z46: 0 | AA46: 0 | AB46: 0
A47: LABOREY Jonathan | B47: =Janvier!B48 -> LABOREY | C47: =Janvier!C48 -> Jonathan | D47: =Janvier!D48 -> EMBALLAGE | F47: 0 | G47: 00:00:00 | H47: 00:00:00 | J47: 0 | K47: 00:00:00 | L47: 00:00:00 | N47: 0 | O47: 00:00:00 | P47: 00:00:00 | R47: 0 | S47: 00:00:00 | T47: 00:00:00 | V47: 0 | W47: 00:00:00 | X47: 00:00:00 | Y47: 0 | Z47: 0 | AA47: 0 | AB47: 0
A48: LAHAYE Emmanuel | B48: =Janvier!B49 -> LAHAYE | C48: =Janvier!C49 -> Emmanuel | D48: =Janvier!D49 -> FABRICATION | F48: 0 | G48: 00:00:00 | H48: 00:00:00 | J48: 0 | K48: 00:00:00 | L48: 00:00:00 | N48: 0 | O48: 00:00:00 | P48: 00:00:00 | R48: 0 | S48: 00:00:00 | T48: 00:00:00 | V48: 0 | W48: 00:00:00 | X48: 00:00:00 | Y48: 0 | Z48: 0 | AA48: 0 | AB48: 0
A49: Lasalle Yann | B49: =Janvier!B50 -> Lasalle | C49: =Janvier!C50 -> Yann | D49: =Janvier!D50 -> CHAUFFEURS | F49: 0 | G49: 00:00:00 | H49: 00:00:00 | J49: 0 | K49: 00:00:00 | L49: 00:00:00 | N49: 0 | O49: 00:00:00 | P49: 00:00:00 | R49: 0 | S49: 00:00:00 | T49: 00:00:00 | V49: 0 | W49: 00:00:00 | X49: 00:00:00 | Y49: 0 | Z49: 0 | AA49: 0 | AB49: 0
A50: LORY ANNICK | B50: =Janvier!B51 -> LORY | C50: =Janvier!C51 -> ANNICK | D50: =Janvier!D51 -> FABRICATION | F50: 0 | G50: 00:00:00 | H50: 00:00:00 | J50: 0 | K50: 00:00:00 | L50: 00:00:00 | N50: 0 | O50: 00:00:00 | P50: 00:00:00 | R50: 0 | S50: 00:00:00 | T50: 00:00:00 | V50: 0 | W50: 00:00:00 | X50: 00:00:00 | Y50: 0 | Z50: 0 | AA50: 0 | AB50: 0
A51: LOXTON Morné | B51: =Janvier!B52 -> LOXTON | C51: =Janvier!C52 -> Morné | D51: =Janvier!D52 -> FABRICATION | F51: 0 | G51: 00:00:00 | H51: 00:00:00 | J51: 0 | K51: 00:00:00 | L51: 00:00:00 | N51: 0 | O51: 00:00:00 | P51: 00:00:00 | R51: 0 | S51: 00:00:00 | T51: 00:00:00 | V51: 0 | W51: 00:00:00 | X51: 00:00:00 | Y51: 0 | Z51: 0 | AA51: 0 | AB51: 0
A52: MAILLER Philippe | B52: =Janvier!B53 -> MAILLER | C52: =Janvier!C53 -> Philippe | D52: =Janvier!D53 -> CHAUFFEURS | F52: 0 | G52: 00:00:00 | H52: 00:00:00 | J52: 0 | K52: 00:00:00 | L52: 00:00:00 | N52: 0 | O52: 00:00:00 | P52: 00:00:00 | R52: 0 | S52: 00:00:00 | T52: 00:00:00 | V52: 0 | W52: 00:00:00 | X52: 00:00:00 | Y52: 0 | Z52: 0 | AA52: 0 | AB52: 0
A53: MANOUKIAN Arman | B53: =Janvier!B54 -> MANOUKIAN | C53: =Janvier!C54 -> Arman | D53: =Janvier!D54 -> FABRICATION | F53: 0 | G53: 00:00:00 | H53: 00:00:00 | J53: 0 | K53: 00:00:00 | L53: 00:00:00 | N53: 0 | O53: 00:00:00 | P53: 00:00:00 | R53: 0 | S53: 00:00:00 | T53: 00:00:00 | V53: 0 | W53: 00:00:00 | X53: 00:00:00 | Y53: 0 | Z53: 0 | AA53: 0 | AB53: 0
A54: MARGUIER Stéphane | B54: =Janvier!B55 -> MARGUIER | C54: =Janvier!C55 -> Stéphane | D54: =Janvier!D55 -> EMBALLAGE | F54: 0 | G54: 00:00:00 | H54: 00:00:00 | J54: 0 | K54: 00:00:00 | L54: 00:00:00 | N54: 0 | O54: 00:00:00 | P54: 00:00:00 | R54: 0 | S54: 00:00:00 | T54: 00:00:00 | V54: 0 | W54: 00:00:00 | X54: 00:00:00 | Y54: 0 | Z54: 0 | AA54: 0 | AB54: 0
A55: MARGUIER Stéphane | B55: =Janvier!B56 -> MARGUIER | C55: =Janvier!C56 -> Stéphane | D55: =Janvier!D56 -> NSG | F55: 0 | G55: 00:00:00 | H55: 00:00:00 | J55: 0 | K55: 00:00:00 | L55: 00:00:00 | N55: 0 | O55: 00:00:00 | P55: 00:00:00 | R55: 0 | S55: 00:00:00 | T55: 00:00:00 | V55: 0 | W55: 00:00:00 | X55: 00:00:00 | Y55: 0 | Z55: 0 | AA55: 0 | AB55: 0
A56: MARTIN Julien | B56: =Janvier!B57 -> MARTIN | C56: =Janvier!C57 -> Julien | D56: =Janvier!D57 -> EMBALLAGE | F56: 0 | G56: 00:00:00 | H56: 00:00:00 | J56: 0 | K56: 00:00:00 | L56: 00:00:00 | N56: 0 | O56: 00:00:00 | P56: 00:00:00 | R56: 0 | S56: 00:00:00 | T56: 00:00:00 | V56: 0 | W56: 00:00:00 | X56: 00:00:00 | Y56: 0 | Z56: 0 | AA56: 0 | AB56: 0
A57: MARTIN Pierre | B57: =Janvier!B58 -> MARTIN | C57: =Janvier!C58 -> Pierre | D57: =Janvier!D58 -> FABRICATION | F57: 0 | G57: 00:00:00 | H57: 00:00:00 | J57: 0 | K57: 00:00:00 | L57: 00:00:00 | N57: 0 | O57: 00:00:00 | P57: 00:00:00 | R57: 0 | S57: 00:00:00 | T57: 00:00:00 | V57: 0 | W57: 00:00:00 | X57: 00:00:00 | Y57: 0 | Z57: 0 | AA57: 0 | AB57: 0
A58: MINASYAN ARMAN | B58: =Janvier!B59 -> MINASYAN | C58: =Janvier!C59 -> ARMAN | D58: =Janvier!D59 -> FABRICATION | F58: 0 | G58: 00:00:00 | H58: 00:00:00 | J58: 0 | K58: 00:00:00 | L58: 00:00:00 | N58: 0 | O58: 00:00:00 | P58: 00:00:00 | R58: 0 | S58: 00:00:00 | T58: 00:00:00 | V58: 0 | W58: 00:00:00 | X58: 00:00:00 | Y58: 0 | Z58: 0 | AA58: 0 | AB58: 0
A59: MORET Robin | B59: =Janvier!B60 -> MORET | C59: =Janvier!C60 -> Robin | D59: =Janvier!D60 -> CHAUFFEURS | F59: 0 | G59: 00:00:00 | H59: 00:00:00 | J59: 0 | K59: 00:00:00 | L59: 00:00:00 | N59: 0 | O59: 00:00:00 | P59: 00:00:00 | R59: 0 | S59: 00:00:00 | T59: 00:00:00 | V59: 0 | W59: 00:00:00 | X59: 00:00:00 | Y59: 0 | Z59: 0 | AA59: 0 | AB59: 0
A60: MORIAUX Charles-Henry | B60: =Janvier!B61 -> MORIAUX | C60: =Janvier!C61 -> Charles-Henry | D60: =Janvier!D61 -> EXPEDITION | F60: 0 | G60: 00:00:00 | H60: 00:00:00 | J60: 0 | K60: 00:00:00 | L60: 00:00:00 | N60: 0 | O60: 00:00:00 | P60: 00:00:00 | R60: 0 | S60: 00:00:00 | T60: 00:00:00 | V60: 0 | W60: 00:00:00 | X60: 00:00:00 | Y60: 0 | Z60: 0 | AA60: 0 | AB60: 0
A61: MORIN Christophe | B61: =Janvier!B62 -> MORIN | C61: =Janvier!C62 -> Christophe | D61: =Janvier!D62 -> FABRICATION | F61: 0 | G61: 00:00:00 | H61: 00:00:00 | J61: 0 | K61: 00:00:00 | L61: 00:00:00 | N61: 0 | O61: 00:00:00 | P61: 00:00:00 | R61: 0 | S61: 00:00:00 | T61: 00:00:00 | V61: 0 | W61: 00:00:00 | X61: 00:00:00 | Y61: 0 | Z61: 0 | AA61: 0 | AB61: 0
A62: MORTET Alice | B62: =Janvier!B63 -> MORTET | C62: =Janvier!C63 -> Alice | D62: =Janvier!D63 -> EXPEDITION | F62: 0 | G62: 00:00:00 | H62: 00:00:00 | J62: 0 | K62: 00:00:00 | L62: 00:00:00 | N62: 0 | O62: 00:00:00 | P62: 00:00:00 | R62: 0 | S62: 00:00:00 | T62: 00:00:00 | V62: 0 | W62: 00:00:00 | X62: 00:00:00 | Y62: 0 | Z62: 0 | AA62: 0 | AB62: 0
A63: M'SAKINI Coralie | B63: =Janvier!B64 -> M'SAKINI | C63: =Janvier!C64 -> Coralie | D63: =Janvier!D64 -> COMMERCIAL | F63: 0 | G63: 00:00:00 | H63: 00:00:00 | J63: 0 | K63: 00:00:00 | L63: 00:00:00 | N63: 0 | O63: 00:00:00 | P63: 00:00:00 | R63: 0 | S63: 00:00:00 | T63: 00:00:00 | V63: 0 | W63: 00:00:00 | X63: 00:00:00 | Y63: 0 | Z63: 0 | AA63: 0 | AB63: 0
A64: NEAULT Emilie | B64: =Janvier!B65 -> NEAULT | C64: =Janvier!C65 -> Emilie | D64: =Janvier!D65 -> EMBALLAGE | F64: 0 | G64: 00:00:00 | H64: 00:00:00 | J64: 0 | K64: 00:00:00 | L64: 00:00:00 | N64: 0 | O64: 00:00:00 | P64: 00:00:00 | R64: 0 | S64: 00:00:00 | T64: 00:00:00 | V64: 0 | W64: 00:00:00 | X64: 00:00:00 | Y64: 0 | Z64: 0 | AA64: 0 | AB64: 0
A65: OCQUIDANT MANON | B65: =Janvier!B66 -> OCQUIDANT | C65: =Janvier!C66 -> MANON | D65: =Janvier!D66 -> FABRICATION | F65: 0 | G65: 00:00:00 | H65: 00:00:00 | J65: 0 | K65: 00:00:00 | L65: 00:00:00 | N65: 0 | O65: 00:00:00 | P65: 00:00:00 | R65: 0 | S65: 00:00:00 | T65: 00:00:00 | V65: 0 | W65: 00:00:00 | X65: 00:00:00 | Y65: 0 | Z65: 0 | AA65: 0 | AB65: 0
A66: PACOT Louis | B66: =Janvier!B67 -> PACOT | C66: =Janvier!C67 -> Louis | D66: =Janvier!D67 -> FABRICATION | F66: 0 | G66: 00:00:00 | H66: 00:00:00 | J66: 0 | K66: 00:00:00 | L66: 00:00:00 | N66: 0 | O66: 00:00:00 | P66: 00:00:00 | R66: 0 | S66: 00:00:00 | T66: 00:00:00 | V66: 0 | W66: 00:00:00 | X66: 00:00:00 | Y66: 0 | Z66: 0 | AA66: 0 | AB66: 0
A67: PACOT BENJAMIN | B67: =Janvier!B68 -> PACOT | C67: =Janvier!C68 -> BENJAMIN | D67: =Janvier!D68 -> FABRICATION | F67: 0 | G67: 00:00:00 | H67: 00:00:00 | J67: 0 | K67: 00:00:00 | L67: 00:00:00 | N67: 0 | O67: 00:00:00 | P67: 00:00:00 | R67: 0 | S67: 00:00:00 | T67: 00:00:00 | V67: 0 | W67: 00:00:00 | X67: 00:00:00 | Y67: 0 | Z67: 0 | AA67: 0 | AB67: 0
A68: PASSOT jean luc | B68: =Janvier!B69 -> PASSOT | C68: =Janvier!C69 -> jean luc | D68: =Janvier!D69 -> CHAUFFEURS | F68: 0 | G68: 00:00:00 | H68: 00:00:00 | J68: 0 | K68: 00:00:00 | L68: 00:00:00 | N68: 0 | O68: 00:00:00 | P68: 00:00:00 | R68: 0 | S68: 00:00:00 | T68: 00:00:00 | V68: 0 | W68: 00:00:00 | X68: 00:00:00 | Y68: 0 | Z68: 0 | AA68: 0 | AB68: 0
A69: PAYET Cédric | B69: =Janvier!B70 -> PAYET | C69: =Janvier!C70 -> Cédric | D69: =Janvier!D70 -> FABRICATION | F69: 0 | G69: 00:00:00 | H69: 00:00:00 | J69: 0 | K69: 00:00:00 | L69: 00:00:00 | N69: 0 | O69: 00:00:00 | P69: 00:00:00 | R69: 0 | S69: 00:00:00 | T69: 00:00:00 | V69: 0 | W69: 00:00:00 | X69: 00:00:00 | Y69: 0 | Z69: 0 | AA69: 0 | AB69: 0
A70: PAYET Cédric | B70: =Janvier!B71 -> PAYET | C70: =Janvier!C71 -> Cédric | D70: =Janvier!D71 -> NSG | F70: 0 | G70: 00:00:00 | H70: 00:00:00 | J70: 0 | K70: 00:00:00 | L70: 00:00:00 | N70: 0 | O70: 00:00:00 | P70: 00:00:00 | R70: 0 | S70: 00:00:00 | T70: 00:00:00 | V70: 0 | W70: 00:00:00 | X70: 00:00:00 | Y70: 0 | Z70: 0 | AA70: 0 | AB70: 0
A71: PETIT ISABELLE | B71: =Janvier!B72 -> PETIT | C71: =Janvier!C72 -> ISABELLE | D71: =Janvier!D72 -> CONDITIONNEMENT | F71: 0 | G71: 00:00:00 | H71: 00:00:00 | J71: 0 | K71: 00:00:00 | L71: 00:00:00 | N71: 0 | O71: 00:00:00 | P71: 00:00:00 | R71: 0 | S71: 00:00:00 | T71: 00:00:00 | V71: 0 | W71: 00:00:00 | X71: 00:00:00 | Y71: 0 | Z71: 0 | AA71: 0 | AB71: 0
A72: PIGEARD Jérémy | B72: =Janvier!B73 -> PIGEARD | C72: =Janvier!C73 -> Jérémy | D72: =Janvier!D73 -> FABRICATION | F72: 0 | G72: 00:00:00 | H72: 00:00:00 | J72: 0 | K72: 00:00:00 | L72: 00:00:00 | N72: =IF(M72<(1/24*35),0,M72-(1/24*35)) -> 0 | O72: =IF(N72>=1/24*8,1/24*8,N72) -> 00:00:00 | P72: =IF(N72-O72>0,N72-O72,0) -> 00:00:00 | R72: =IF(Q72<(1/24*35),0,Q72-(1/24*35)) -> 0 | S72: =IF(R72>=1/24*8,1/24*8,R72) -> 00:00:00 | T72: =IF(R72-S72>0,R72-S72,0) -> 00:00:00 | V72: =IF(U72<(1/24*35),0,U72-(1/24*35)) -> 0 | W72: =IF(V72>=1/24*8,1/24*8,V72) -> 00:00:00 | X72: =IF(V72-W72>0,V72-W72,0) -> 00:00:00 | Y72: 0 | Z72: 0 | AA72: 0 | AB72: 0
A73: =B73&" "&C73 -> POIGNANT Anthony | B73: =Janvier!B74 -> POIGNANT | C73: =Janvier!C74 -> Anthony | D73: =Janvier!D74 -> EMBALLAGE | F73: 0 | G73: 00:00:00 | H73: =IF(F73-G73>0,F73-G73,0) -> 00:00:00 | J73: 0 | K73: 00:00:00 | L73: =IF(J73-K73>0,J73-K73,0) -> 00:00:00 | N73: 0 | O73: 00:00:00 | P73: 00:00:00 | R73: 0 | S73: 00:00:00 | T73: 00:00:00 | V73: 0 | W73: 00:00:00 | X73: 00:00:00 | Y73: =SUMIF($E$7:$X$7,$I$7,$E73:$X73) -> 0 | Z73: =SUMIF($E$7:$X$7,$Z$7,$E73:$X73) -> 0 | AA73: =SUMIF($E$7:$X$7,$AA$7,$E73:$X73) -> 0 | AB73: =SUMIF($E$7:$X$7,$AB$7,$E73:$X73) -> 0
A74: PRINCET Véronique | B74: =Janvier!B75 -> PRINCET | C74: =Janvier!C75 -> Véronique | D74: =Janvier!D75 -> EMBALLAGE | F74: =IF(E74<(1/24*35),0,E74-(1/24*35)) -> 0 | G74: =IF(F74>=1/24*8,1/24*8,F74) -> 00:00:00 | H74: 00:00:00 | J74: =IF(I74<(1/24*35),0,I74-(1/24*35)) -> 0 | K74: =IF(J74>=1/24*8,1/24*8,J74) -> 00:00:00 | L74: 00:00:00 | N74: 0 | O74: 00:00:00 | P74: 00:00:00 | R74: 0 | S74: 00:00:00 | T74: 00:00:00 | V74: 0 | W74: 00:00:00 | X74: 00:00:00 | Y74: 0 | Z74: 0 | AA74: 0 | AB74: 0
A75: PRUDENT Axelle | B75: =Janvier!B76 -> PRUDENT | C75: =Janvier!C76 -> Axelle | D75: =Janvier!D76 -> Apprentis | F75: 0 | G75: 00:00:00 | H75: 00:00:00 | J75: 0 | K75: 00:00:00 | L75: 00:00:00 | N75: 0 | O75: 00:00:00 | P75: 00:00:00 | R75: 0 | S75: 00:00:00 | T75: 00:00:00 | V75: 0 | W75: 00:00:00 | X75: 00:00:00 | Y75: 0 | Z75: 0 | AA75: 0 | AB75: 0
A76: PUSSET Françis | B76: =Janvier!B77 -> PUSSET | C76: =Janvier!C77 -> Françis | D76: =Janvier!D77 -> FABRICATION | F76: 0 | G76: 00:00:00 | H76: 00:00:00 | J76: 0 | K76: 00:00:00 | L76: 00:00:00 | N76: 0 | O76: 00:00:00 | P76: 00:00:00 | R76: 0 | S76: 00:00:00 | T76: 00:00:00 | V76: 0 | W76: 00:00:00 | X76: 00:00:00 | Y76: 0 | Z76: 0 | AA76: 0 | AB76: 0
A77: ROGER Céline | B77: =Janvier!B78 -> ROGER | C77: =Janvier!C78 -> Céline | D77: =Janvier!D78 -> BUREAUX | F77: 0 | G77: 00:00:00 | H77: 00:00:00 | J77: 0 | K77: 00:00:00 | L77: 00:00:00 | N77: 0 | O77: 00:00:00 | P77: 00:00:00 | R77: 0 | S77: 00:00:00 | T77: 00:00:00 | V77: 0 | W77: 00:00:00 | X77: 00:00:00 | Y77: 0 | Z77: 0 | AA77: 0 | AB77: 0
A78: ROY Marianne | B78: =Janvier!B79 -> ROY | C78: =Janvier!C79 -> Marianne | D78: =Janvier!D79 -> NSG | F78: 0 | G78: 00:00:00 | H78: 00:00:00 | J78: 0 | K78: 00:00:00 | L78: 00:00:00 | N78: 0 | O78: 00:00:00 | P78: 00:00:00 | R78: 0 | S78: 00:00:00 | T78: 00:00:00 | V78: 0 | W78: 00:00:00 | X78: 00:00:00 | Y78: 0 | Z78: 0 | AA78: 0 | AB78: 0
A79: ROY SEBASTIEN | B79: =Janvier!B80 -> ROY | C79: =Janvier!C80 -> SEBASTIEN | D79: =Janvier!D80 -> EXPEDITION | F79: 0 | G79: 00:00:00 | H79: 00:00:00 | J79: 0 | K79: 00:00:00 | L79: 00:00:00 | N79: 0 | O79: 00:00:00 | P79: 00:00:00 | R79: 0 | S79: 00:00:00 | T79: 00:00:00 | V79: 0 | W79: 00:00:00 | X79: 00:00:00 | Y79: 0 | Z79: 0 | AA79: 0 | AB79: 0
A80: SABRI Moha | B80: =Janvier!B81 -> SABRI | C80: =Janvier!C81 -> Moha | D80: =Janvier!D81 -> FABRICATION | F80: 0 | G80: 00:00:00 | H80: 00:00:00 | J80: 0 | K80: 00:00:00 | L80: 00:00:00 | N80: 0 | O80: 00:00:00 | P80: 00:00:00 | R80: 0 | S80: 00:00:00 | T80: 00:00:00 | V80: 0 | W80: 00:00:00 | X80: 00:00:00 | Y80: 0 | Z80: 0 | AA80: 0 | AB80: 0
A81: SAVARIAT Betty | B81: =Janvier!B82 -> SAVARIAT | C81: =Janvier!C82 -> Betty | D81: =Janvier!D82 -> EMBALLAGE | F81: 0 | G81: 00:00:00 | H81: 00:00:00 | J81: 0 | K81: 00:00:00 | L81: 00:00:00 | N81: 0 | O81: 00:00:00 | P81: 00:00:00 | R81: 0 | S81: 00:00:00 | T81: 00:00:00 | V81: 0 | W81: 00:00:00 | X81: 00:00:00 | Y81: 0 | Z81: 0 | AA81: 0 | AB81: 0
E82: =SUM(E8:E81) -> 0 | F82: 0 | G82: 0 | H82: 0 | I82: 0 | J82: 0 | K82: 0 | L82: 0 | M82: 0 | N82: 0 | O82: 0 | P82: 0 | Q82: 0 | R82: 0 | S82: 0 | T82: 0 | U82: 0 | V82: 0 | W82: 0 | X82: 0 | Y82: =SUM(Y8:Y81) -> 0 | Z82: =SUM(Z8:Z81) -> 0 | AA82: 0 | AB82: 0

Sheet Août
C1: Menu | U1: =IF($U$5="","masquer colonne","") ->  | V1: =IF($U$5="","masquer colonne","") -> 
A2: =COUNTIF(U1:X1,"masquer colonne") -> 0
B3: =VALUE("01/08/"&Janvier!$B$1) -> 2017-08-01 | E3: =CHOOSE(MONTH(B3),"Janvier","Février","Mars","Avril","Mai","Juin","Juillet","Août","Septembre","Octobre","Novembre","Décembre") -> Août
E4: =WEEKNUM(E5,21) -> 31 | I4: =WEEKNUM(I5,21) -> 32 | M4: =WEEKNUM(M5,21) -> 33 | Q4: =WEEKNUM(Q5,21) -> 34 | U4: =IF(U5="","",WEEKNUM(U5,21)) -> 35
E5: =VALUE("01/"&MONTH(B3)&"/"&YEAR($B$3))+CHOOSE(WEEKDAY(VALUE("01/"&MONTH(B3)&"/"&YEAR($B$3)),2),6,5,4,10,9,8,7) -> 2017-08-06 | I5: =E5+7 -> 2017-08-13 | M5: =I5+7 -> 2017-08-20 | Q5: =M5+7 -> 2017-08-27 | U5: =IF(DAY(Q5+7)>4,"",Q5+7) -> 2017-09-03
E6: =CHOOSE(WEEKDAY(E5,2),"Lundi","Mardi","Mercredi","Jeudi","Vendredi","Samedi","Dimanche") -> Dimanche | I6: =CHOOSE(WEEKDAY(I5,2),"Lundi","Mardi","Mercredi","Jeudi","Vendredi","Samedi","Dimanche") -> Dimanche | M6: =CHOOSE(WEEKDAY(M5,2),"Lundi","Mardi","Mercredi","Jeudi","Vendredi","Samedi","Dimanche") -> Dimanche | Q6: =CHOOSE(WEEKDAY(Q5,2),"Lundi","Mardi","Mercredi","Jeudi","Vendredi","Samedi","Dimanche") -> Dimanche | U6: =IF(U5="","",CHOOSE(WEEKDAY(U5,2),"Lundi","Mardi","Mercredi","Jeudi","Vendredi","Samedi","Dimanche")) -> Dimanche | Y6: ="Total heures mois "&E3 -> Total heures mois Août
B7: NOM | C7: PRENOM | D7: SECTEUR | E7: Total Sem. | F7: Heure sup. | G7: Heure 25% | H7: Heure 50% | I7: Total Sem. | J7: Heure sup. | K7: Heure 25% | L7: Heure 50% | M7: Total Sem. | N7: Heure sup. | O7: Heure 25% | P7: Heure 50% | Q7: Total Sem. | R7: Heure sup. | S7: Heure 25% | T7: Heure 50% | U7: Total Sem. | V7: Heure sup. | W7: Heure 25% | X7: Heure 50% | Y7: Total Sem. | Z7: Heure sup. | AA7: Heure 25% | AB7: Heure 50%
A8: =B8&" "&C8 -> AMIOT Anne-Lise | B8: =Janvier!B8 -> AMIOT | C8: =Janvier!C8 -> Anne-Lise | D8: =Janvier!D8 -> QUALITE | F8: =IF(E8<(1/24*35),0,E8-(1/24*35)) -> 0 | G8: =IF(F8>=1/24*8,1/24*8,F8) -> 00:00:00 | H8: =IF(F8-G8>0,F8-G8,0) -> 00:00:00 | J8: =IF(I8<(1/24*35),0,I8-(1/24*35)) -> 0 | K8: =IF(J8>=1/24*8,1/24*8,J8) -> 00:00:00 | L8: =IF(J8-K8>0,J8-K8,0) -> 00:00:00 | N8: =IF(M8<(1/24*35),0,M8-(1/24*35)) -> 0 | O8: =IF(N8>=1/24*8,1/24*8,N8) -> 00:00:00 | P8: =IF(N8-O8>0,N8-O8,0) -> 00:00:00 | R8: =IF(Q8<(1/24*35),0,Q8-(1/24*35)) -> 0 | S8: =IF(R8>=1/24*8,1/24*8,R8) -> 00:00:00 | T8: =IF(R8-S8>0,R8-S8,0) -> 00:00:00 | V8: =IF(U8<(1/24*35),0,U8-(1/24*35)) -> 0 | W8: =IF(V8>=1/24*8,1/24*8,V8) -> 00:00:00 | X8: =IF(V8-W8>0,V8-W8,0) -> 00:00:00 | Y8: =SUMIF($E$7:$X$7,$I$7,$E8:$X8) -> 0 | Z8: =SUMIF($E$7:$X$7,$Z$7,$E8:$X8) -> 0 | AA8: =SUMIF($E$7:$X$7,$AA$7,$E8:$X8) -> 0 | AB8: =SUMIF($E$7:$X$7,$AB$7,$E8:$X8) -> 0
A9: =B9&" "&C9 -> ANDRE FABIEN | B9: =Janvier!B9 -> ANDRE | C9: =Janvier!C9 -> FABIEN | D9: =Janvier!D9 -> FABRICATION | F9: =IF(E9<(1/24*35),0,E9-(1/24*35)) -> 0 | G9: =IF(F9>=1/24*8,1/24*8,F9) -> 00:00:00 | H9: =IF(F9-G9>0,F9-G9,0) -> 00:00:00 | J9: =IF(I9<(1/24*35),0,I9-(1/24*35)) -> 0 | K9: =IF(J9>=1/24*8,1/24*8,J9) -> 00:00:00 | L9: =IF(J9-K9>0,J9-K9,0) -> 00:00:00 | N9: 0 | O9: 00:00:00 | P9: 00:00:00 | R9: 0 | S9: 00:00:00 | T9: 00:00:00 | V9: 0 | W9: 00:00:00 | X9: 00:00:00 | Y9: =SUMIF($E$7:$X$7,$I$7,$E9:$X9) -> 0 | Z9: =SUMIF($E$7:$X$7,$Z$7,$E9:$X9) -> 0 | AA9: =SUMIF($E$7:$X$7,$AA$7,$E9:$X9) -> 0 | AB9: =SUMIF($E$7:$X$7,$AB$7,$E9:$X9) -> 0
A10: AUDIARD FLORIAN | B10: =Janvier!B10 -> AUDIARD | C10: =Janvier!C10 -> FLORIAN | D10: =Janvier!D10 -> FABRICATION | F10: 0 | G10: 00:00:00 | H10: 00:00:00 | J10: 0 | K10: 00:00:00 | L10: 00:00:00 | N10: 0 | O10: 00:00:00 | P10: 00:00:00 | R10: 0 | S10: 00:00:00 | T10: 00:00:00 | V10: 0 | W10: 00:00:00 | X10: 00:00:00 | Y10: 0 | Z10: 0 | AA10: 0 | AB10: 0
A11: AZEVEDO Catherine | B11: =Janvier!B11 -> AZEVEDO | C11: =Janvier!C11 -> Catherine | D11: =Janvier!D11 -> EMBALLAGE | F11: 0 | G11: 00:00:00 | H11: 00:00:00 | J11: 0 | K11: 00:00:00 | L11: 00:00:00 | N11: 0 | O11: 00:00:00 | P11: 00:00:00 | R11: 0 | S11: 00:00:00 | T11: 00:00:00 | V11: 0 | W11: 00:00:00 | X11: 00:00:00 | Y11: 0 | Z11: 0 | AA11: 0 | AB11: 0
A12: BARBIER Nathalie | B12: =Janvier!B12 -> BARBIER | C12: =Janvier!C12 -> Nathalie | D12: =Janvier!D12 -> QUALITE | F12: 0 | G12: 00:00:00 | H12: 00:00:00 | J12: 0 | K12: 00:00:00 | L12: 00:00:00 | N12: 0 | O12: 00:00:00 | P12: 00:00:00 | R12: 0 | S12: 00:00:00 | T12: 00:00:00 | V12: 0 | W12: 00:00:00 | X12: 00:00:00 | Y12: 0 | Z12: 0 | AA12: 0 | AB12: 0
A13: BECHTOLD Marie-Christine | B13: =Janvier!B13 -> BECHTOLD | C13: =Janvier!C13 -> Marie-Christine | D13: =Janvier!D13 -> EMBALLAGE | F13: 0 | G13: 00:00:00 | H13: 00:00:00 | J13: 0 | K13: 00:00:00 | L13: 00:00:00 | N13: 0 | O13: 00:00:00 | P13: 00:00:00 | R13: 0 | S13: 00:00:00 | T13: 00:00:00 | V13: 0 | W13: 00:00:00 | X13: 00:00:00 | Y13: 0 | Z13: 0 | AA13: 0 | AB13: 0
A14: BEURET MAUD | B14: =Janvier!B14 -> BEURET | C14: =Janvier!C14 -> MAUD | D14: =Janvier!D14 -> MAGASIN | F14: 0 | G14: 00:00:00 | H14: 00:00:00 | J14: 0 | K14: 00:00:00 | L14: 00:00:00 | N14: 0 | O14: 00:00:00 | P14: 00:00:00 | R14: 0 | S14: 00:00:00 | T14: 00:00:00 | V14: 0 | W14: 00:00:00 | X14: 00:00:00 | Y14: 0 | Z14: 0 | AA14: 0 | AB14: 0
A15: BOUEZNARD Myriam | B15: =Janvier!B15 -> BOUEZNARD | C15: =Janvier!C15 -> Myriam | D15: =Janvier!D15 -> NSG | F15: 0 | G15: 00:00:00 | H15: 00:00:00 | J15: 0 | K15: 00:00:00 | L15: 00:00:00 | N15: 0 | O15: 00:00:00 | P15: 00:00:00 | R15: 0 | S15: 00:00:00 | T15: 00:00:00 | V15: 0 | W15: 00:00:00 | X15: 00:00:00 | Y15: 0 | Z15: 0 | AA15: 0 | AB15: 0
A16: Boutiflat James | B16: =Janvier!B16 -> Boutiflat | C16: =Janvier!C16 -> James | D16: =Janvier!D16 -> EMBALLAGE | F16: 0 | G16: 00:00:00 | H16: 00:00:00 | J16: 0 | K16: 00:00:00 | L16: 00:00:00 | N16: 0 | O16: 00:00:00 | P16: 00:00:00 | R16: 0 | S16: 00:00:00 | T16: 00:00:00 | V16: 0 | W16: 00:00:00 | X16: 00:00:00 | Y16: 0 | Z16: 0 | AA16: 0 | AB16: 0
A17: BOUZENARD Adrien | B17: =Janvier!B17 -> BOUZENARD | C17: =Janvier!C17 -> Adrien | D17: =Janvier!D17 -> FABRICATION | F17: 0 | G17: 00:00:00 | H17: 00:00:00 | J17: 0 | K17: 00:00:00 | L17: 00:00:00 | N17: 0 | O17: 00:00:00 | P17: 00:00:00 | R17: 0 | S17: 00:00:00 | T17: 00:00:00 | V17: 0 | W17: 00:00:00 | X17: 00:00:00 | Y17: 0 | Z17: 0 | AA17: 0 | AB17: 0
A18: BOUZENARD Myriam | B18: =Janvier!B18 -> BOUZENARD | C18: =Janvier!C18 -> Myriam | D18: =Janvier!D18 -> EMBALLAGE | F18: 0 | G18: 00:00:00 | H18: 00:00:00 | J18: 0 | K18: 00:00:00 | L18: 00:00:00 | N18: 0 | O18: 00:00:00 | P18: 00:00:00 | R18: 0 | S18: 00:00:00 | T18: 00:00:00 | V18: 0 | W18: 00:00:00 | X18: 00:00:00 | Y18: 0 | Z18: 0 | AA18: 0 | AB18: 0
A19: CARRION JEAN-CLAUDE | B19: =Janvier!B19 -> CARRION | C19: =Janvier!C19 -> JEAN-CLAUDE | D19: =Janvier!D19 -> CHAUFFEURS | F19: 0 | G19: 00:00:00 | H19: 00:00:00 | J19: 0 | K19: 00:00:00 | L19: 00:00:00 | N19: 0 | O19: 00:00:00 | P19: 00:00:00 | R19: 0 | S19: 00:00:00 | T19: 00:00:00 | V19: 0 | W19: 00:00:00 | X19: 00:00:00 | Y19: 0 | Z19: 0 | AA19: 0 | AB19: 0
A20: CARTERON Claudine | B20: =Janvier!B20 -> CARTERON | C20: =Janvier!C20 -> Claudine | D20: =Janvier!D20 -> BUREAUX | F20: 0 | G20: 00:00:00 | H20: 00:00:00 | J20: 0 | K20: 00:00:00 | L20: 00:00:00 | N20: 0 | O20: 00:00:00 | P20: 00:00:00 | R20: 0 | S20: 00:00:00 | T20: 00:00:00 | V20: 0 | W20: 00:00:00 | X20: 00:00:00 | Y20: 0 | Z20: 0 | AA20: 0 | AB20: 0
A21: CHAUDRON Amandine | B21: =Janvier!B21 -> CHAUDRON | C21: =Janvier!C21 -> Amandine | D21: =Janvier!D21 -> EMBALLAGE | F21: 0 | G21: 00:00:00 | H21: 00:00:00 | J21: 0 | K21: 00:00:00 | L21: 00:00:00 | N21: 0 | O21: 00:00:00 | P21: 00:00:00 | R21: 0 | S21: 00:00:00 | T21: 00:00:00 | V21: 0 | W21: 00:00:00 | X21: 00:00:00 | Y21: 0 | Z21: 0 | AA21: 0 | AB21: 0
A22: CHAUDRON Virginie | B22: =Janvier!B22 -> CHAUDRON | C22: =Janvier!C22 -> Virginie | D22: =Janvier!D22 -> FABRICATION | F22: 0 | G22: 00:00:00 | H22: 00:00:00 | J22: 0 | K22: 00:00:00 | L22: 00:00:00 | N22: 0 | O22: 00:00:00 | P22: 00:00:00 | R22: 0 | S22: 00:00:00 | T22: 00:00:00 | V22: 0 | W22: 00:00:00 | X22: 00:00:00 | Y22: 0 | Z22: 0 | AA22: 0 | AB22: 0
A23: CHEVAUX Rodolphe | B23: =Janvier!B23 -> CHEVAUX | C23: =Janvier!C23 -> Rodolphe | D23: =Janvier!D23 -> MAINTENANCE | F23: 0 | G23: 00:00:00 | H23: 00:00:00 | J23: 0 | K23: 00:00:00 | L23: 00:00:00 | N23: 0 | O23: 00:00:00 | P23: 00:00:00 | R23: 0 | S23: 00:00:00 | T23: 00:00:00 | V23: 0 | W23: 00:00:00 | X23: 00:00:00 | Y23: 0 | Z23: 0 | AA23: 0 | AB23: 0
A24: COCHARD Hervé | B24: =Janvier!B24 -> COCHARD | C24: =Janvier!C24 -> Hervé | D24: =Janvier!D24 -> COMMERCIAL | F24: 0 | G24: 00:00:00 | H24: 00:00:00 | J24: 0 | K24: 00:00:00 | L24: 00:00:00 | N24: 0 | O24: 00:00:00 | P24: 00:00:00 | R24: 0 | S24: 00:00:00 | T24: 00:00:00 | V24: 0 | W24: 00:00:00 | X24: 00:00:00 | Y24: 0 | Z24: 0 | AA24: 0 | AB24: 0
A25: CRETIN JEROME | B25: =Janvier!B25 -> CRETIN | C25: =Janvier!C25 -> JEROME | D25: =Janvier!D25 -> NSG | F25: 0 | G25: 00:00:00 | H25: 00:00:00 | J25: 0 | K25: 00:00:00 | L25: 00:00:00 | N25: 0 | O25: 00:00:00 | P25: 00:00:00 | R25: 0 | S25: 00:00:00 | T25: 00:00:00 | V25: 0 | W25: 00:00:00 | X25: 00:00:00 | Y25: 0 | Z25: 0 | AA25: 0 | AB25: 0
A26: CRINQUANT JEROME | B26: =Janvier!B26 -> CRINQUANT | C26: =Janvier!C26 -> JEROME | D26: =Janvier!D26 -> NSG | F26: 0 | G26: 00:00:00 | H26: 00:00:00 | J26: 0 | K26: 00:00:00 | L26: 00:00:00 | N26: 0 | O26: 00:00:00 | P26: 00:00:00 | R26: 0 | S26: 00:00:00 | T26: 00:00:00 | V26: 0 | W26: 00:00:00 | X26: 00:00:00 | Y26: 0 | Z26: 0 | AA26: 0 | AB26: 0
A27: DASCIER ANDY | B27: =Janvier!B28 -> DASCIER | C27: =Janvier!C28 -> ANDY | D27: =Janvier!D28 -> PREPA COMMANDE | F27: 0 | G27: 00:00:00 | H27: 00:00:00 | J27: 0 | K27: 00:00:00 | L27: 00:00:00 | N27: 0 | O27: 00:00:00 | P27: 00:00:00 | R27: 0 | S27: 00:00:00 | T27: 00:00:00 | V27: 0 | W27: 00:00:00 | X27: 00:00:00 | Y27: 0 | Z27: 0 | AA27: 0 | AB27: 0
A28: DAVERIO BENOIT | B28: =Janvier!B29 -> DAVERIO | C28: =Janvier!C29 -> BENOIT | D28: =Janvier!D29 -> COMMERCIAL | F28: 0 | G28: 00:00:00 | H28: 00:00:00 | J28: 0 | K28: 00:00:00 | L28: 00:00:00 | N28: 0 | O28: 00:00:00 | P28: 00:00:00 | R28: 0 | S28: 00:00:00 | T28: 00:00:00 | V28: 0 | W28: 00:00:00 | X28: 00:00:00 | Y28: 0 | Z28: 0 | AA28: 0 | AB28: 0
A29: DELANGRE ALEX | B29: =Janvier!B30 -> DELANGRE | C29: =Janvier!C30 -> ALEX | D29: =Janvier!D30 -> FABRICATION | F29: 0 | G29: 00:00:00 | H29: 00:00:00 | J29: 0 | K29: 00:00:00 | L29: 00:00:00 | N29: 0 | O29: 00:00:00 | P29: 00:00:00 | R29: 0 | S29: 00:00:00 | T29: 00:00:00 | V29: 0 | W29: 00:00:00 | X29: 00:00:00 | Y29: 0 | Z29: 0 | AA29: 0 | AB29: 0
A30: DELIN Philippe | B30: =Janvier!B31 -> DELIN | C30: =Janvier!C31 -> Philippe | D30: =Janvier!D31 -> DIRECTION | F30: 0 | G30: 00:00:00 | H30: 00:00:00 | J30: 0 | K30: 00:00:00 | L30: 00:00:00 | N30: 0 | O30: 00:00:00 | P30: 00:00:00 | R30: 0 | S30: 00:00:00 | T30: 00:00:00 | V30: 0 | W30: 00:00:00 | X30: 00:00:00 | Y30: 0 | Z30: 0 | AA30: 0 | AB30: 0
A31: DORE Daisy | B31: =Janvier!B32 -> DORE | C31: =Janvier!C32 -> Daisy | D31: =Janvier!D32 -> FABRICATION | F31: 0 | G31: 00:00:00 | H31: 00:00:00 | J31: 0 | K31: 00:00:00 | L31: 00:00:00 | N31: 0 | O31: 00:00:00 | P31: 00:00:00 | R31: 0 | S31: 00:00:00 | T31: 00:00:00 | V31: 0 | W31: 00:00:00 | X31: 00:00:00 | Y31: 0 | Z31: 0 | AA31: 0 | AB31: 0
A32: ECHEVARIA Luis | B32: =Janvier!B33 -> ECHEVARIA | C32: =Janvier!C33 -> Luis | D32: =Janvier!D33 -> FABRICATION | F32: 0 | G32: 00:00:00 | H32: 00:00:00 | J32: 0 | K32: 00:00:00 | L32: 00:00:00 | N32: 0 | O32: 00:00:00 | P32: 00:00:00 | R32: 0 | S32: 00:00:00 | T32: 00:00:00 | V32: 0 | W32: 00:00:00 | X32: 00:00:00 | Y32: 0 | Z32: 0 | AA32: 0 | AB32: 0
A33: EL MOQADDAM REDOUANE | B33: =Janvier!B34 -> EL MOQADDAM | C33: =Janvier!C34 -> REDOUANE | D33: =Janvier!D34 -> FABRICATION | F33: 0 | G33: 00:00:00 | H33: 00:00:00 | J33: 0 | K33: 00:00:00 | L33: 00:00:00 | N33: 0 | O33: 00:00:00 | P33: 00:00:00 | R33: 0 | S33: 00:00:00 | T33: 00:00:00 | V33: 0 | W33: 00:00:00 | X33: 00:00:00 | Y33: 0 | Z33: 0 | AA33: 0 | AB33: 0
A34: FORMEL CELINE | B34: =Janvier!B35 -> FORMEL | C34: =Janvier!C35 -> CELINE | D34: =Janvier!D35 -> BUREAUX | F34: 0 | G34: 00:00:00 | H34: 00:00:00 | J34: 0 | K34: 00:00:00 | L34: 00:00:00 | N34: 0 | O34: 00:00:00 | P34: 00:00:00 | R34: 0 | S34: 00:00:00 | T34: 00:00:00 | V34: 0 | W34: 00:00:00 | X34: 00:00:00 | Y34: 0 | Z34: 0 | AA34: 0 | AB34: 0
A35: FOUACHE LENA | B35: =Janvier!B36 -> FOUACHE | C35: =Janvier!C36 -> LENA | D35: =Janvier!D36 -> QUALITE | F35: 0 | G35: 00:00:00 | H35: 00:00:00 | J35: 0 | K35: 00:00:00 | L35: 00:00:00 | N35: 0 | O35: 00:00:00 | P35: 00:00:00 | R35: 0 | S35: 00:00:00 | T35: 00:00:00 | V35: 0 | W35: 00:00:00 | X35: 00:00:00 | Y35: 0 | Z35: 0 | AA35: 0 | AB35: 0
A36: GALETTI Maud | B36: =Janvier!B37 -> GALETTI | C36: =Janvier!C37 -> Maud | D36: =Janvier!D37 -> FABRICATION | F36: 0 | G36: 00:00:00 | H36: 00:00:00 | J36: 0 | K36: 00:00:00 | L36: 00:00:00 | N36: 0 | O36: 00:00:00 | P36: 00:00:00 | R36: 0 | S36: 00:00:00 | T36: 00:00:00 | V36: 0 | W36: 00:00:00 | X36: 00:00:00 | Y36: 0 | Z36: 0 | AA36: 0 | AB36: 0
A37: GAY Stephane | B37: =Janvier!B38 -> GAY | C37: =Janvier!C38 -> Stephane | D37: =Janvier!D38 -> FABRICATION | F37: 0 | G37: 00:00:00 | H37: 00:00:00 | J37: 0 | K37: 00:00:00 | L37: 00:00:00 | N37: 0 | O37: 00:00:00 | P37: 00:00:00 | R37: 0 | S37: 00:00:00 | T37: 00:00:00 | V37: 0 | W37: 00:00:00 | X37: 00:00:00 | Y37: 0 | Z37: 0 | AA37: 0 | AB37: 0
A38: Graff MATHILDE | B38: =Janvier!B39 -> Graff | C38: =Janvier!C39 -> MATHILDE | D38: =Janvier!D39 -> CONDITIONNEMENT | F38: 0 | G38: 00:00:00 | H38: 00:00:00 | J38: 0 | K38: 00:00:00 | L38: 00:00:00 | N38: 0 | O38: 00:00:00 | P38: 00:00:00 | R38: 0 | S38: 00:00:00 | T38: 00:00:00 | V38: 0 | W38: 00:00:00 | X38: 00:00:00 | Y38: 0 | Z38: 0 | AA38: 0 | AB38: 0
A39: GRAPPIN Perrine | B39: =Janvier!B40 -> GRAPPIN | C39: =Janvier!C40 -> Perrine | D39: =Janvier!D40 -> FABRICATION | F39: 0 | G39: 00:00:00 | H39: 00:00:00 | J39: 0 | K39: 00:00:00 | L39: 00:00:00 | N39: 0 | O39: 00:00:00 | P39: 00:00:00 | R39: 0 | S39: 00:00:00 | T39: 00:00:00 | V39: 0 | W39: 00:00:00 | X39: 00:00:00 | Y39: 0 | Z39: 0 | AA39: 0 | AB39: 0
A40: GUENOT Anne | B40: =Janvier!B41 -> GUENOT | C40: =Janvier!C41 -> Anne | D40: =Janvier!D41 -> EXPEDITION | F40: 0 | G40: 00:00:00 | H40: 00:00:00 | J40: 0 | K40: 00:00:00 | L40: 00:00:00 | N40: 0 | O40: 00:00:00 | P40: 00:00:00 | R40: 0 | S40: 00:00:00 | T40: 00:00:00 | V40: 0 | W40: 00:00:00 | X40: 00:00:00 | Y40: 0 | Z40: 0 | AA40: 0 | AB40: 0
A41: GUYARD Christine | B41: =Janvier!B42 -> GUYARD | C41: =Janvier!C42 -> Christine | D41: =Janvier!D42 -> BUREAUX | F41: 0 | G41: 00:00:00 | H41: 00:00:00 | J41: 0 | K41: 00:00:00 | L41: 00:00:00 | N41: 0 | O41: 00:00:00 | P41: 00:00:00 | R41: 0 | S41: 00:00:00 | T41: 00:00:00 | V41: 0 | W41: 00:00:00 | X41: 00:00:00 | Y41: 0 | Z41: 0 | AA41: 0 | AB41: 0
A42: GUYARD Marie | B42: =Janvier!B43 -> GUYARD | C42: =Janvier!C43 -> Marie | D42: =Janvier!D43 -> FABRICATION | F42: 0 | G42: 00:00:00 | H42: 00:00:00 | J42: 0 | K42: 00:00:00 | L42: 00:00:00 | N42: 0 | O42: 00:00:00 | P42: 00:00:00 | R42: 0 | S42: 00:00:00 | T42: 00:00:00 | V42: 0 | W42: 00:00:00 | X42: 00:00:00 | Y42: 0 | Z42: 0 | AA42: 0 | AB42: 0
A43: GUYARD Marie | B43: =Janvier!B44 -> GUYARD | C43: =Janvier!C44 -> Marie | D43: =Janvier!D44 -> FABRICATION | F43: 0 | G43: 00:00:00 | H43: 00:00:00 | J43: 0 | K43: 00:00:00 | L43: 00:00:00 | N43: 0 | O43: 00:00:00 | P43: 00:00:00 | R43: 0 | S43: 00:00:00 | T43: 00:00:00 | V43: 0 | W43: 00:00:00 | X43: 00:00:00 | Y43: 0 | Z43: 0 | AA43: 0 | AB43: 0
A44: HARUTYUNYAN Haik | B44: =Janvier!B45 -> HARUTYUNYAN | C44: =Janvier!C45 -> Haik | D44: =Janvier!D45 -> FABRICATION | F44: 0 | G44: 00:00:00 | H44: 00:00:00 | J44: 0 | K44: 00:00:00 | L44: 00:00:00 | N44: 0 | O44: 00:00:00 | P44: 00:00:00 | R44: 0 | S44: 00:00:00 | T44: 00:00:00 | V44: 0 | W44: 00:00:00 | X44: 00:00:00 | Y44: 0 | Z44: 0 | AA44: 0 | AB44: 0
A45: IDRISSI Zinedinne | B45: =Janvier!B46 -> IDRISSI | C45: =Janvier!C46 -> Zinedinne | D45: =Janvier!D46 -> FABRICATION | F45: 0 | G45: 00:00:00 | H45: 00:00:00 | J45: 0 | K45: 00:00:00 | L45: 00:00:00 | N45: 0 | O45: 00:00:00 | P45: 00:00:00 | R45: 0 | S45: 00:00:00 | T45: 00:00:00 | V45: 0 | W45: 00:00:00 | X45: 00:00:00 | Y45: 0 | Z45: 0 | AA45: 0 | AB45: 0
A46: JULIEN Thomas | B46: =Janvier!B47 -> JULIEN | C46: =Janvier!C47 -> Thomas | D46: =Janvier!D47 -> Apprentis | F46: 0 | G46: 00:00:00 | H46: 00:00:00 | J46: 0 | K46: 00:00:00 | L46: 00:00:00 | N46: 0 | O46: 00:00:00 | P46: 00:00:00 | R46: 0 | S46: 00:00:00 | T46: 00:00:00 | V46: 0 | W46: 00:00:00 | X46: 00:00:00 | Y46: 0 | Z46: 0 | AA46: 0 | AB46: 0
A47: LABOREY Jonathan | B47: =Janvier!B48 -> LABOREY | C47: =Janvier!C48 -> Jonathan | D47: =Janvier!D48 -> EMBALLAGE | F47: 0 | G47: 00:00:00 | H47: 00:00:00 | J47: 0 | K47: 00:00:00 | L47: 00:00:00 | N47: 0 | O47: 00:00:00 | P47: 00:00:00 | R47: 0 | S47: 00:00:00 | T47: 00:00:00 | V47: 0 | W47: 00:00:00 | X47: 00:00:00 | Y47: 0 | Z47: 0 | AA47: 0 | AB47: 0
A48: LAHAYE Emmanuel | B48: =Janvier!B49 -> LAHAYE | C48: =Janvier!C49 -> Emmanuel | D48: =Janvier!D49 -> FABRICATION | F48: 0 | G48: 00:00:00 | H48: 00:00:00 | J48: 0 | K48: 00:00:00 | L48: 00:00:00 | N48: 0 | O48: 00:00:00 | P48: 00:00:00 | R48: 0 | S48: 00:00:00 | T48: 00:00:00 | V48: 0 | W48: 00:00:00 | X48: 00:00:00 | Y48: 0 | Z48: 0 | AA48: 0 | AB48: 0
A49: Lasalle Yann | B49: =Janvier!B50 -> Lasalle | C49: =Janvier!C50 -> Yann | D49: =Janvier!D50 -> CHAUFFEURS | F49: 0 | G49: 00:00:00 | H49: 00:00:00 | J49: 0 | K49: 00:00:00 | L49: 00:00:00 | N49: 0 | O49: 00:00:00 | P49: 00:00:00 | R49: 0 | S49: 00:00:00 | T49: 00:00:00 | V49: 0 | W49: 00:00:00 | X49: 00:00:00 | Y49: 0 | Z49: 0 | AA49: 0 | AB49: 0
A50: LORY ANNICK | B50: =Janvier!B51 -> LORY | C50: =Janvier!C51 -> ANNICK | D50: =Janvier!D51 -> FABRICATION | F50: 0 | G50: 00:00:00 | H50: 00:00:00 | J50: 0 | K50: 00:00:00 | L50: 00:00:00 | N50: 0 | O50: 00:00:00 | P50: 00:00:00 | R50: 0 | S50: 00:00:00 | T50: 00:00:00 | V50: 0 | W50: 00:00:00 | X50: 00:00:00 | Y50: 0 | Z50: 0 | AA50: 0 | AB50: 0
A51: LOXTON Morné | B51: =Janvier!B52 -> LOXTON | C51: =Janvier!C52 -> Morné | D51: =Janvier!D52 -> FABRICATION | F51: 0 | G51: 00:00:00 | H51: 00:00:00 | J51: 0 | K51: 00:00:00 | L51: 00:00:00 | N51: 0 | O51: 00:00:00 | P51: 00:00:00 | R51: 0 | S51: 00:00:00 | T51: 00:00:00 | V51: 0 | W51: 00:00:00 | X51: 00:00:00 | Y51: 0 | Z51: 0 | AA51: 0 | AB51: 0
A52: MAILLER Philippe | B52: =Janvier!B53 -> MAILLER | C52: =Janvier!C53 -> Philippe | D52: =Janvier!D53 -> CHAUFFEURS | F52: 0 | G52: 00:00:00 | H52: 00:00:00 | J52: 0 | K52: 00:00:00 | L52: 00:00:00 | N52: 0 | O52: 00:00:00 | P52: 00:00:00 | R52: 0 | S52: 00:00:00 | T52: 00:00:00 | V52: 0 | W52: 00:00:00 | X52: 00:00:00 | Y52: 0 | Z52: 0 | AA52: 0 | AB52: 0
A53: MANOUKIAN Arman | B53: =Janvier!B54 -> MANOUKIAN | C53: =Janvier!C54 -> Arman | D53: =Janvier!D54 -> FABRICATION | F53: 0 | G53: 00:00:00 | H53: 00:00:00 | J53: 0 | K53: 00:00:00 | L53: 00:00:00 | N53: 0 | O53: 00:00:00 | P53: 00:00:00 | R53: 0 | S53: 00:00:00 | T53: 00:00:00 | V53: 0 | W53: 00:00:00 | X53: 00:00:00 | Y53: 0 | Z53: 0 | AA53: 0 | AB53: 0
A54: MARGUIER Stéphane | B54: =Janvier!B55 -> MARGUIER | C54: =Janvier!C55 -> Stéphane | D54: =Janvier!D55 -> EMBALLAGE | F54: 0 | G54: 00:00:00 | H54: 00:00:00 | J54: 0 | K54: 00:00:00 | L54: 00:00:00 | N54: 0 | O54: 00:00:00 | P54: 00:00:00 | R54: 0 | S54: 00:00:00 | T54: 00:00:00 | V54: 0 | W54: 00:00:00 | X54: 00:00:00 | Y54: 0 | Z54: 0 | AA54: 0 | AB54: 0
A55: MARGUIER Stéphane | B55: =Janvier!B56 -> MARGUIER | C55: =Janvier!C56 -> Stéphane | D55: =Janvier!D56 -> NSG | F55: 0 | G55: 00:00:00 | H55: 00:00:00 | J55: 0 | K55: 00:00:00 | L55: 00:00:00 | N55: 0 | O55: 00:00:00 | P55: 00:00:00 | R55: 0 | S55: 00:00:00 | T55: 00:00:00 | V55: 0 | W55: 00:00:00 | X55: 00:00:00 | Y55: 0 | Z55: 0 | AA55: 0 | AB55: 0
A56: MARTIN Julien | B56: =Janvier!B57 -> MARTIN | C56: =Janvier!C57 -> Julien | D56: =Janvier!D57 -> EMBALLAGE | F56: 0 | G56: 00:00:00 | H56: 00:00:00 | J56: 0 | K56: 00:00:00 | L56: 00:00:00 | N56: 0 | O56: 00:00:00 | P56: 00:00:00 | R56: 0 | S56: 00:00:00 | T56: 00:00:00 | V56: 0 | W56: 00:00:00 | X56: 00:00:00 | Y56: 0 | Z56: 0 | AA56: 0 | AB56: 0
A57: MARTIN Pierre | B57: =Janvier!B58 -> MARTIN | C57: =Janvier!C58 -> Pierre | D57: =Janvier!D58 -> FABRICATION | F57: 0 | G57: 00:00:00 | H57: 00:00:00 | J57: 0 | K57: 00:00:00 | L57: 00:00:00 | N57: 0 | O57: 00:00:00 | P57: 00:00:00 | R57: 0 | S57: 00:00:00 | T57: 00:00:00 | V57: 0 | W57: 00:00:00 | X57: 00:00:00 | Y57: 0 | Z57: 0 | AA57: 0 | AB57: 0
A58: MINASYAN ARMAN | B58: =Janvier!B59 -> MINASYAN | C58: =Janvier!C59 -> ARMAN | D58: =Janvier!D59 -> FABRICATION | F58: 0 | G58: 00:00:00 | H58: 00:00:00 | J58: 0 | K58: 00:00:00 | L58: 00:00:00 | N58: 0 | O58: 00:00:00 | P58: 00:00:00 | R58: 0 | S58: 00:00:00 | T58: 00:00:00 | V58: 0 | W58: 00:00:00 | X58: 00:00:00 | Y58: 0 | Z58: 0 | AA58: 0 | AB58: 0
A59: MORET Robin | B59: =Janvier!B60 -> MORET | C59: =Janvier!C60 -> Robin | D59: =Janvier!D60 -> CHAUFFEURS | F59: 0 | G59: 00:00:00 | H59: 00:00:00 | J59: 0 | K59: 00:00:00 | L59: 00:00:00 | N59: 0 | O59: 00:00:00 | P59: 00:00:00 | R59: 0 | S59: 00:00:00 | T59: 00:00:00 | V59: 0 | W59: 00:00:00 | X59: 00:00:00 | Y59: 0 | Z59: 0 | AA59: 0 | AB59: 0
A60: MORIAUX Charles-Henry | B60: =Janvier!B61 -> MORIAUX | C60: =Janvier!C61 -> Charles-Henry | D60: =Janvier!D61 -> EXPEDITION | F60: 0 | G60: 00:00:00 | H60: 00:00:00 | J60: 0 | K60: 00:00:00 | L60: 00:00:00 | N60: 0 | O60: 00:00:00 | P60: 00:00:00 | R60: 0 | S60: 00:00:00 | T60: 00:00:00 | V60: 0 | W60: 00:00:00 | X60: 00:00:00 | Y60: 0 | Z60: 0 | AA60: 0 | AB60: 0
A61: MORIN Christophe | B61: =Janvier!B62 -> MORIN | C61: =Janvier!C62 -> Christophe | D61: =Janvier!D62 -> FABRICATION | F61: 0 | G61: 00:00:00 | H61: 00:00:00 | J61: 0 | K61: 00:00:00 | L61: 00:00:00 | N61: 0 | O61: 00:00:00 | P61: 00:00:00 | R61: 0 | S61: 00:00:00 | T61: 00:00:00 | V61: 0 | W61: 00:00:00 | X61: 00:00:00 | Y61: 0 | Z61: 0 | AA61: 0 | AB61: 0
A62: MORTET Alice | B62: =Janvier!B63 -> MORTET | C62: =Janvier!C63 -> Alice | D62: =Janvier!D63 -> EXPEDITION | F62: 0 | G62: 00:00:00 | H62: 00:00:00 | J62: 0 | K62: 00:00:00 | L62: 00:00:00 | N62: 0 | O62: 00:00:00 | P62: 00:00:00 | R62: 0 | S62: 00:00:00 | T62: 00:00:00 | V62: 0 | W62: 00:00:00 | X62: 00:00:00 | Y62: 0 | Z62: 0 | AA62: 0 | AB62: 0
A63: M'SAKINI Coralie | B63: =Janvier!B64 -> M'SAKINI | C63: =Janvier!C64 -> Coralie | D63: =Janvier!D64 -> COMMERCIAL | F63: 0 | G63: 00:00:00 | H63: 00:00:00 | J63: 0 | K63: 00:00:00 | L63: 00:00:00 | N63: 0 | O63: 00:00:00 | P63: 00:00:00 | R63: 0 | S63: 00:00:00 | T63: 00:00:00 | V63: 0 | W63: 00:00:00 | X63: 00:00:00 | Y63: 0 | Z63: 0 | AA63: 0 | AB63: 0
A64: NEAULT Emilie | B64: =Janvier!B65 -> NEAULT | C64: =Janvier!C65 -> Emilie | D64: =Janvier!D65 -> EMBALLAGE | F64: 0 | G64: 00:00:00 | H64: 00:00:00 | J64: 0 | K64: 00:00:00 | L64: 00:00:00 | N64: 0 | O64: 00:00:00 | P64: 00:00:00 | R64: 0 | S64: 00:00:00 | T64: 00:00:00 | V64: 0 | W64: 00:00:00 | X64: 00:00:00 | Y64: 0 | Z64: 0 | AA64: 0 | AB64: 0
A65: OCQUIDANT MANON | B65: =Janvier!B66 -> OCQUIDANT | C65: =Janvier!C66 -> MANON | D65: =Janvier!D66 -> FABRICATION | F65: 0 | G65: 00:00:00 | H65: 00:00:00 | J65: 0 | K65: 00:00:00 | L65: 00:00:00 | N65: 0 | O65: 00:00:00 | P65: 00:00:00 | R65: 0 | S65: 00:00:00 | T65: 00:00:00 | V65: 0 | W65: 00:00:00 | X65: 00:00:00 | Y65: 0 | Z65: 0 | AA65: 0 | AB65: 0
A66: PACOT Louis | B66: =Janvier!B67 -> PACOT | C66: =Janvier!C67 -> Louis | D66: =Janvier!D67 -> FABRICATION | F66: 0 | G66: 00:00:00 | H66: 00:00:00 | J66: 0 | K66: 00:00:00 | L66: 00:00:00 | N66: 0 | O66: 00:00:00 | P66: 00:00:00 | R66: 0 | S66: 00:00:00 | T66: 00:00:00 | V66: 0 | W66: 00:00:00 | X66: 00:00:00 | Y66: 0 | Z66: 0 | AA66: 0 | AB66: 0
A67: PACOT BENJAMIN | B67: =Janvier!B68 -> PACOT | C67: =Janvier!C68 -> BENJAMIN | D67: =Janvier!D68 -> FABRICATION | F67: 0 | G67: 00:00:00 | H67: 00:00:00 | J67: 0 | K67: 00:00:00 | L67: 00:00:00 | N67: 0 | O67: 00:00:00 | P67: 00:00:00 | R67: 0 | S67: 00:00:00 | T67: 00:00:00 | V67: 0 | W67: 00:00:00 | X67: 00:00:00 | Y67: 0 | Z67: 0 | AA67: 0 | AB67: 0
A68: PASSOT jean luc | B68: =Janvier!B69 -> PASSOT | C68: =Janvier!C69 -> jean luc | D68: =Janvier!D69 -> CHAUFFEURS | F68: 0 | G68: 00:00:00 | H68: 00:00:00 | J68: 0 | K68: 00:00:00 | L68: 00:00:00 | N68: 0 | O68: 00:00:00 | P68: 00:00:00 | R68: 0 | S68: 00:00:00 | T68: 00:00:00 | V68: 0 | W68: 00:00:00 | X68: 00:00:00 | Y68: 0 | Z68: 0 | AA68: 0 | AB68: 0
A69: PAYET Cédric | B69: =Janvier!B70 -> PAYET | C69: =Janvier!C70 -> Cédric | D69: =Janvier!D70 -> FABRICATION | F69: 0 | G69: 00:00:00 | H69: 00:00:00 | J69: 0 | K69: 00:00:00 | L69: 00:00:00 | N69: 0 | O69: 00:00:00 | P69: 00:00:00 | R69: 0 | S69: 00:00:00 | T69: 00:00:00 | V69: 0 | W69: 00:00:00 | X69: 00:00:00 | Y69: 0 | Z69: 0 | AA69: 0 | AB69: 0
A70: PAYET Cédric | B70: =Janvier!B71 -> PAYET | C70: =Janvier!C71 -> Cédric | D70: =Janvier!D71 -> NSG | F70: 0 | G70: 00:00:00 | H70: 00:00:00 | J70: 0 | K70: 00:00:00 | L70: 00:00:00 | N70: 0 | O70: 00:00:00 | P70: 00:00:00 | R70: 0 | S70: 00:00:00 | T70: 00:00:00 | V70: 0 | W70: 00:00:00 | X70: 00:00:00 | Y70: 0 | Z70: 0 | AA70: 0 | AB70: 0
A71: PETIT ISABELLE | B71: =Janvier!B72 -> PETIT | C71: =Janvier!C72 -> ISABELLE | D71: =Janvier!D72 -> CONDITIONNEMENT | F71: 0 | G71: 00:00:00 | H71: 00:00:00 | J71: 0 | K71: 00:00:00 | L71: 00:00:00 | N71: 0 | O71: 00:00:00 | P71: 00:00:00 | R71: 0 | S71: 00:00:00 | T71: 00:00:00 | V71: 0 | W71: 00:00:00 | X71: 00:00:00 | Y71: 0 | Z71: 0 | AA71: 0 | AB71: 0
A72: PIGEARD Jérémy | B72: =Janvier!B73 -> PIGEARD | C72: =Janvier!C73 -> Jérémy | D72: =Janvier!D73 -> FABRICATION | F72: 0 | G72: 00:00:00 | H72: 00:00:00 | J72: 0 | K72: 00:00:00 | L72: 00:00:00 | N72: =IF(M72<(1/24*35),0,M72-(1/24*35)) -> 0 | O72: =IF(N72>=1/24*8,1/24*8,N72) -> 00:00:00 | P72: =IF(N72-O72>0,N72-O72,0) -> 00:00:00 | R72: =IF(Q72<(1/24*35),0,Q72-(1/24*35)) -> 0 | S72: =IF(R72>=1/24*8,1/24*8,R72) -> 00:00:00 | T72: =IF(R72-S72>0,R72-S72,0) -> 00:00:00 | V72: =IF(U72<(1/24*35),0,U72-(1/24*35)) -> 0 | W72: =IF(V72>=1/24*8,1/24*8,V72) -> 00:00:00 | X72: =IF(V72-W72>0,V72-W72,0) -> 00:00:00 | Y72: 0 | Z72: 0 | AA72: 0 | AB72: 0
A73: =B73&" "&C73 -> POIGNANT Anthony | B73: =Janvier!B74 -> POIGNANT | C73: =Janvier!C74 -> Anthony | D73: =Janvier!D74 -> EMBALLAGE | F73: 0 | G73: 00:00:00 | H73: =IF(F73-G73>0,F73-G73,0) -> 00:00:00 | J73: 0 | K73: 00:00:00 | L73: =IF(J73-K73>0,J73-K73,0) -> 00:00:00 | N73: 0 | O73: 00:00:00 | P73: 00:00:00 | R73: 0 | S73: 00:00:00 | T73: 00:00:00 | V73: 0 | W73: 00:00:00 | X73: 00:00:00 | Y73: =SUMIF($E$7:$X$7,$I$7,$E73:$X73) -> 0 | Z73: =SUMIF($E$7:$X$7,$Z$7,$E73:$X73) -> 0 | AA73: =SUMIF($E$7:$X$7,$AA$7,$E73:$X73) -> 0 | AB73: =SUMIF($E$7:$X$7,$AB$7,$E73:$X73) -> 0
A74: PRINCET Véronique | B74: =Janvier!B75 -> PRINCET | C74: =Janvier!C75 -> Véronique | D74: =Janvier!D75 -> EMBALLAGE | F74: =IF(E74<(1/24*35),0,E74-(1/24*35)) -> 0 | G74: =IF(F74>=1/24*8,1/24*8,F74) -> 00:00:00 | H74: 00:00:00 | J74: =IF(I74<(1/24*35),0,I74-(1/24*35)) -> 0 | K74: =IF(J74>=1/24*8,1/24*8,J74) -> 00:00:00 | L74: 00:00:00 | N74: 0 | O74: 00:00:00 | P74: 00:00:00 | R74: 0 | S74: 00:00:00 | T74: 00:00:00 | V74: 0 | W74: 00:00:00 | X74: 00:00:00 | Y74: 0 | Z74: 0 | AA74: 0 | AB74: 0
A75: PRUDENT Axelle | B75: =Janvier!B76 -> PRUDENT | C75: =Janvier!C76 -> Axelle | D75: =Janvier!D76 -> Apprentis | F75: 0 | G75: 00:00:00 | H75: 00:00:00 | J75: 0 | K75: 00:00:00 | L75: 00:00:00 | N75: 0 | O75: 00:00:00 | P75: 00:00:00 | R75: 0 | S75: 00:00:00 | T75: 00:00:00 | V75: 0 | W75: 00:00:00 | X75: 00:00:00 | Y75: 0 | Z75: 0 | AA75: 0 | AB75: 0
A76: PUSSET Françis | B76: =Janvier!B77 -> PUSSET | C76: =Janvier!C77 -> Françis | D76: =Janvier!D77 -> FABRICATION | F76: 0 | G76: 00:00:00 | H76: 00:00:00 | J76: 0 | K76: 00:00:00 | L76: 00:00:00 | N76: 0 | O76: 00:00:00 | P76: 00:00:00 | R76: 0 | S76: 00:00:00 | T76: 00:00:00 | V76: 0 | W76: 00:00:00 | X76: 00:00:00 | Y76: 0 | Z76: 0 | AA76: 0 | AB76: 0
A77: ROGER Céline | B77: =Janvier!B78 -> ROGER | C77: =Janvier!C78 -> Céline | D77: =Janvier!D78 -> BUREAUX | F77: 0 | G77: 00:00:00 | H77: 00:00:00 | J77: 0 | K77: 00:00:00 | L77: 00:00:00 | N77: 0 | O77: 00:00:00 | P77: 00:00:00 | R77: 0 | S77: 00:00:00 | T77: 00:00:00 | V77: 0 | W77: 00:00:00 | X77: 00:00:00 | Y77: 0 | Z77: 0 | AA77: 0 | AB77: 0
A78: ROY Marianne | B78: =Janvier!B79 -> ROY | C78: =Janvier!C79 -> Marianne | D78: =Janvier!D79 -> NSG | F78: 0 | G78: 00:00:00 | H78: 00:00:00 | J78: 0 | K78: 00:00:00 | L78: 00:00:00 | N78: 0 | O78: 00:00:00 | P78: 00:00:00 | R78: 0 | S78: 00:00:00 | T78: 00:00:00 | V78: 0 | W78: 00:00:00 | X78: 00:00:00 | Y78: 0 | Z78: 0 | AA78: 0 | AB78: 0
A79: ROY SEBASTIEN | B79: =Janvier!B80 -> ROY | C79: =Janvier!C80 -> SEBASTIEN | D79: =Janvier!D80 -> EXPEDITION | F79: 0 | G79: 00:00:00 | H79: 00:00:00 | J79: 0 | K79: 00:00:00 | L79: 00:00:00 | N79: 0 | O79: 00:00:00 | P79: 00:00:00 | R79: 0 | S79: 00:00:00 | T79: 00:00:00 | V79: 0 | W79: 00:00:00 | X79: 00:00:00 | Y79: 0 | Z79: 0 | AA79: 0 | AB79: 0
A80: SABRI Moha | B80: =Janvier!B81 -> SABRI | C80: =Janvier!C81 -> Moha | D80: =Janvier!D81 -> FABRICATION | F80: 0 | G80: 00:00:00 | H80: 00:00:00 | J80: 0 | K80: 00:00:00 | L80: 00:00:00 | N80: 0 | O80: 00:00:00 | P80: 00:00:00 | R80: 0 | S80: 00:00:00 | T80: 00:00:00 | V80: 0 | W80: 00:00:00 | X80: 00:00:00 | Y80: 0 | Z80: 0 | AA80: 0 | AB80: 0
A81: SAVARIAT Betty | B81: =Janvier!B82 -> SAVARIAT | C81: =Janvier!C82 -> Betty | D81: =Janvier!D82 -> EMBALLAGE | F81: 0 | G81: 00:00:00 | H81: 00:00:00 | J81: 0 | K81: 00:00:00 | L81: 00:00:00 | N81: 0 | O81: 00:00:00 | P81: 00:00:00 | R81: 0 | S81: 00:00:00 | T81: 00:00:00 | V81: 0 | W81: 00:00:00 | X81: 00:00:00 | Y81: 0 | Z81: 0 | AA81: 0 | AB81: 0
E82: =SUM(E8:E81) -> 0 | F82: 0 | G82: 0 | H82: 0 | I82: 0 | J82: 0 | K82: 0 | L82: 0 | M82: 0 | N82: 0 | O82: 0 | P82: 0 | Q82: 0 | R82: 0 | S82: 0 | T82: 0 | U82: 0 | V82: 0 | W82: 0 | X82: 0 | Y82: =SUM(Y8:Y81) -> 0 | Z82: =SUM(Z8:Z81) -> 0 | AA82: 0 | AB82: 0

Sheet Septembre
C1: Menu | U1: =IF($U$5="","masquer colonne","") -> masquer colonne | V1: =IF($U$5="","masquer colonne","") -> masquer colonne | W1: masquer colonne | X1: masquer colonne
A2: =COUNTIF(U1:X1,"masquer colonne") -> 4
B3: =VALUE("01/09/"&Janvier!$B$1) -> 2017-09-01 | E3: =CHOOSE(MONTH(B3),"Janvier","Février","Mars","Avril","Mai","Juin","Juillet","Août","Septembre","Octobre","Novembre","Décembre") -> Septembre
E4: =WEEKNUM(E5,21) -> 36 | I4: =WEEKNUM(I5,21) -> 37 | M4: =WEEKNUM(M5,21) -> 38 | Q4: =WEEKNUM(Q5,21) -> 39 | U4: =IF(U5="","",WEEKNUM(U5,21)) -> 
E5: =VALUE("01/"&MONTH(B3)&"/"&YEAR($B$3))+CHOOSE(WEEKDAY(VALUE("01/"&MONTH(B3)&"/"&YEAR($B$3)),2),6,5,4,10,9,8,7) -> 2017-09-10 | I5: =E5+7 -> 2017-09-17 | M5: =I5+7 -> 2017-09-24 | Q5: =M5+7 -> 2017-10-01 | U5: =IF(DAY(Q5+7)>4,"",Q5+7) -> 
E6: =CHOOSE(WEEKDAY(E5,2),"Lundi","Mardi","Mercredi","Jeudi","Vendredi","Samedi","Dimanche") -> Dimanche | I6: =CHOOSE(WEEKDAY(I5,2),"Lundi","Mardi","Mercredi","Jeudi","Vendredi","Samedi","Dimanche") -> Dimanche | M6: =CHOOSE(WEEKDAY(M5,2),"Lundi","Mardi","Mercredi","Jeudi","Vendredi","Samedi","Dimanche") -> Dimanche | Q6: =CHOOSE(WEEKDAY(Q5,2),"Lundi","Mardi","Mercredi","Jeudi","Vendredi","Samedi","Dimanche") -> Dimanche | U6: =IF(U5="","",CHOOSE(WEEKDAY(U5,2),"Lundi","Mardi","Mercredi","Jeudi","Vendredi","Samedi","Dimanche")) ->  | Y6: ="Total heures mois "&E3 -> Total heures mois Septembre
B7: NOM | C7: PRENOM | D7: SECTEUR | E7: Total Sem. | F7: Heure sup. | G7: Heure 25% | H7: Heure 50% | I7: Total Sem. | J7: Heure sup. | K7: Heure 25% | L7: Heure 50% | M7: Total Sem. | N7: Heure sup. | O7: Heure 25% | P7: Heure 50% | Q7: Total Sem. | R7: Heure sup. | S7: Heure 25% | T7: Heure 50% | U7: Total Sem. | V7: Heure sup. | W7: Heure 25% | X7: Heure 50% | Y7: Total Sem. | Z7: Heure sup. | AA7: Heure 25% | AB7: Heure 50%
A8: =B8&" "&C8 -> AMIOT Anne-Lise | B8: =Janvier!B8 -> AMIOT | C8: =Janvier!C8 -> Anne-Lise | D8: =Janvier!D8 -> QUALITE | F8: =IF(E8<(1/24*35),0,E8-(1/24*35)) -> 0 | G8: =IF(F8>=1/24*8,1/24*8,F8) -> 00:00:00 | H8: =IF(F8-G8>0,F8-G8,0) -> 00:00:00 | J8: =IF(I8<(1/24*35),0,I8-(1/24*35)) -> 0 | K8: =IF(J8>=1/24*8,1/24*8,J8) -> 00:00:00 | L8: =IF(J8-K8>0,J8-K8,0) -> 00:00:00 | N8: =IF(M8<(1/24*35),0,M8-(1/24*35)) -> 0 | O8: =IF(N8>=1/24*8,1/24*8,N8) -> 00:00:00 | P8: =IF(N8-O8>0,N8-O8,0) -> 00:00:00 | Q8: 0 | R8: =IF(Q8<(1/24*35),0,Q8-(1/24*35)) -> 0 | S8: =IF(R8>=1/24*8,1/24*8,R8) -> 00:00:00 | T8: =IF(R8-S8>0,R8-S8,0) -> 00:00:00 | V8: =IF(U8<(1/24*35),0,U8-(1/24*35)) -> 0 | W8: =IF(V8>=1/24*8,1/24*8,V8) -> 00:00:00 | X8: =IF(V8-W8>0,V8-W8,0) -> 00:00:00 | Y8: =SUMIF($E$7:$X$7,$I$7,$E8:$X8) -> 0 | Z8: =SUMIF($E$7:$X$7,$Z$7,$E8:$X8) -> 0 | AA8: =SUMIF($E$7:$X$7,$AA$7,$E8:$X8) -> 0 | AB8: =SUMIF($E$7:$X$7,$AB$7,$E8:$X8) -> 0
A9: =B9&" "&C9 -> ANDRE FABIEN | B9: =Janvier!B9 -> ANDRE | C9: =Janvier!C9 -> FABIEN | D9: =Janvier!D9 -> FABRICATION | F9: =IF(E9<(1/24*35),0,E9-(1/24*35)) -> 0 | G9: =IF(F9>=1/24*8,1/24*8,F9) -> 00:00:00 | H9: =IF(F9-G9>0,F9-G9,0) -> 00:00:00 | J9: =IF(I9<(1/24*35),0,I9-(1/24*35)) -> 0 | K9: =IF(J9>=1/24*8,1/24*8,J9) -> 00:00:00 | L9: =IF(J9-K9>0,J9-K9,0) -> 00:00:00 | N9: 0 | O9: 00:00:00 | P9: 00:00:00 | Q9: 1.60625 | R9: 0.1479166667 | S9: 03:33:00 | T9: 00:00:00 | V9: 0 | W9: 00:00:00 | X9: 00:00:00 | Y9: =SUMIF($E$7:$X$7,$I$7,$E9:$X9) -> 1.60625 | Z9: =SUMIF($E$7:$X$7,$Z$7,$E9:$X9) -> 0.1479166667 | AA9: =SUMIF($E$7:$X$7,$AA$7,$E9:$X9) -> 0.1479166667 | AB9: =SUMIF($E$7:$X$7,$AB$7,$E9:$X9) -> 0
A10: AUDIARD FLORIAN | B10: =Janvier!B10 -> AUDIARD | C10: =Janvier!C10 -> FLORIAN | D10: =Janvier!D10 -> FABRICATION | F10: 0 | G10: 00:00:00 | H10: 00:00:00 | J10: 0 | K10: 00:00:00 | L10: 00:00:00 | N10: 0 | O10: 00:00:00 | P10: 00:00:00 | Q10: 1.58125 | R10: 0.1229166667 | S10: 02:57:00 | T10: 00:00:00 | V10: 0 | W10: 00:00:00 | X10: 00:00:00 | Y10: 1.58125 | Z10: 0.1229166667 | AA10: 0.1229166667 | AB10: 0
A11: AZEVEDO Catherine | B11: =Janvier!B11 -> AZEVEDO | C11: =Janvier!C11 -> Catherine | D11: =Janvier!D11 -> EMBALLAGE | F11: 0 | G11: 00:00:00 | H11: 00:00:00 | J11: 0 | K11: 00:00:00 | L11: 00:00:00 | N11: 0 | O11: 00:00:00 | P11: 00:00:00 | Q11: 0.8847222222 | R11: 0 | S11: 00:00:00 | T11: 00:00:00 | V11: 0 | W11: 00:00:00 | X11: 00:00:00 | Y11: 0.8847222222 | Z11: 0 | AA11: 0 | AB11: 0
A12: BARBIER Nathalie | B12: =Janvier!B12 -> BARBIER | C12: =Janvier!C12 -> Nathalie | D12: =Janvier!D12 -> QUALITE | F12: 0 | G12: 00:00:00 | H12: 00:00:00 | J12: 0 | K12: 00:00:00 | L12: 00:00:00 | N12: 0 | O12: 00:00:00 | P12: 00:00:00 | R12: 0 | S12: 00:00:00 | T12: 00:00:00 | V12: 0 | W12: 00:00:00 | X12: 00:00:00 | Y12: 0 | Z12: 0 | AA12: 0 | AB12: 0
A13: BECHTOLD Marie-Christine | B13: =Janvier!B13 -> BECHTOLD | C13: =Janvier!C13 -> Marie-Christine | D13: =Janvier!D13 -> EMBALLAGE | F13: 0 | G13: 00:00:00 | H13: 00:00:00 | J13: 0 | K13: 00:00:00 | L13: 00:00:00 | N13: 0 | O13: 00:00:00 | P13: 00:00:00 | Q13: 1.548611111 | R13: 0.09027777778 | S13: 02:10:00 | T13: 00:00:00 | V13: 0 | W13: 00:00:00 | X13: 00:00:00 | Y13: 1.548611111 | Z13: 0.09027777778 | AA13: 0.09027777778 | AB13: 0
A14: BEURET MAUD | B14: =Janvier!B14 -> BEURET | C14: =Janvier!C14 -> MAUD | D14: =Janvier!D14 -> MAGASIN | F14: 0 | G14: 00:00:00 | H14: 00:00:00 | J14: 0 | K14: 00:00:00 | L14: 00:00:00 | N14: 0 | O14: 00:00:00 | P14: 00:00:00 | Q14: 1.589583333 | R14: 0.13125 | S14: 03:09:00 | T14: 00:00:00 | V14: 0 | W14: 00:00:00 | X14: 00:00:00 | Y14: 1.589583333 | Z14: 0.13125 | AA14: 0.13125 | AB14: 0
A15: BOUEZNARD Myriam | B15: =Janvier!B15 -> BOUEZNARD | C15: =Janvier!C15 -> Myriam | D15: =Janvier!D15 -> NSG | F15: 0 | G15: 00:00:00 | H15: 00:00:00 | J15: 0 | K15: 00:00:00 | L15: 00:00:00 | N15: 0 | O15: 00:00:00 | P15: 00:00:00 | Q15: 1.663194444 | R15: 0.2048611111 | S15: 04:55:00 | T15: 00:00:00 | V15: 0 | W15: 00:00:00 | X15: 00:00:00 | Y15: 1.663194444 | Z15: 0.2048611111 | AA15: 0.2048611111 | AB15: 0
A16: Boutiflat James | B16: =Janvier!B16 -> Boutiflat | C16: =Janvier!C16 -> James | D16: =Janvier!D16 -> EMBALLAGE | F16: 0 | G16: 00:00:00 | H16: 00:00:00 | J16: 0 | K16: 00:00:00 | L16: 00:00:00 | N16: 0 | O16: 00:00:00 | P16: 00:00:00 | Q16: 2.193055556 | R16: 0.7347222222 | S16: 08:00:00 | T16: 09:38:00 | V16: 0 | W16: 00:00:00 | X16: 00:00:00 | Y16: 2.193055556 | Z16: 0.7347222222 | AA16: 0.3333333333 | AB16: 0.4013888889
A17: BOUZENARD Adrien | B17: =Janvier!B17 -> BOUZENARD | C17: =Janvier!C17 -> Adrien | D17: =Janvier!D17 -> FABRICATION | F17: 0 | G17: 00:00:00 | H17: 00:00:00 | J17: 0 | K17: 00:00:00 | L17: 00:00:00 | N17: 0 | O17: 00:00:00 | P17: 00:00:00 | Q17: 1.786111111 | R17: 0.3277777778 | S17: 07:52:00 | T17: 00:00:00 | V17: 0 | W17: 00:00:00 | X17: 00:00:00 | Y17: 1.786111111 | Z17: 0.3277777778 | AA17: 0.3277777778 | AB17: 0
A18: BOUZENARD Myriam | B18: =Janvier!B18 -> BOUZENARD | C18: =Janvier!C18 -> Myriam | D18: =Janvier!D18 -> EMBALLAGE | F18: 0 | G18: 00:00:00 | H18: 00:00:00 | J18: 0 | K18: 00:00:00 | L18: 00:00:00 | N18: 0 | O18: 00:00:00 | P18: 00:00:00 | Q18: 1.663194444 | R18: 0.2048611111 | S18: 04:55:00 | T18: 00:00:00 | V18: 0 | W18: 00:00:00 | X18: 00:00:00 | Y18: 1.663194444 | Z18: 0.2048611111 | AA18: 0.2048611111 | AB18: 0
A19: CARRION JEAN-CLAUDE | B19: =Janvier!B19 -> CARRION | C19: =Janvier!C19 -> JEAN-CLAUDE | D19: =Janvier!D19 -> CHAUFFEURS | F19: 0 | G19: 00:00:00 | H19: 00:00:00 | J19: 0 | K19: 00:00:00 | L19: 00:00:00 | N19: 0 | O19: 00:00:00 | P19: 00:00:00 | Q19: 1.823611111 | R19: 0.3652777778 | S19: 08:00:00 | T19: 00:46:00 | V19: 0 | W19: 00:00:00 | X19: 00:00:00 | Y19: 1.823611111 | Z19: 0.3652777778 | AA19: 0.3333333333 | AB19: 0.03194444444
A20: CARTERON Claudine | B20: =Janvier!B20 -> CARTERON | C20: =Janvier!C20 -> Claudine | D20: =Janvier!D20 -> BUREAUX | F20: 0 | G20: 00:00:00 | H20: 00:00:00 | J20: 0 | K20: 00:00:00 | L20: 00:00:00 | N20: 0 | O20: 00:00:00 | P20: 00:00:00 | Q20: 1.315972222 | R20: 0 | S20: 00:00:00 | T20: 00:00:00 | V20: 0 | W20: 00:00:00 | X20: 00:00:00 | Y20: 1.315972222 | Z20: 0 | AA20: 0 | AB20: 0
A21: CHAUDRON Amandine | B21: =Janvier!B21 -> CHAUDRON | C21: =Janvier!C21 -> Amandine | D21: =Janvier!D21 -> EMBALLAGE | F21: 0 | G21: 00:00:00 | H21: 00:00:00 | J21: 0 | K21: 00:00:00 | L21: 00:00:00 | N21: 0 | O21: 00:00:00 | P21: 00:00:00 | Q21: 1.672916667 | R21: 0.2145833333 | S21: 05:09:00 | T21: 00:00:00 | V21: 0 | W21: 00:00:00 | X21: 00:00:00 | Y21: 1.672916667 | Z21: 0.2145833333 | AA21: 0.2145833333 | AB21: 0
A22: CHAUDRON Virginie | B22: =Janvier!B22 -> CHAUDRON | C22: =Janvier!C22 -> Virginie | D22: =Janvier!D22 -> FABRICATION | F22: 0 | G22: 00:00:00 | H22: 00:00:00 | J22: 0 | K22: 00:00:00 | L22: 00:00:00 | N22: 0 | O22: 00:00:00 | P22: 00:00:00 | Q22: 1.06875 | R22: 0 | S22: 00:00:00 | T22: 00:00:00 | V22: 0 | W22: 00:00:00 | X22: 00:00:00 | Y22: 1.06875 | Z22: 0 | AA22: 0 | AB22: 0
A23: CHEVAUX Rodolphe | B23: =Janvier!B23 -> CHEVAUX | C23: =Janvier!C23 -> Rodolphe | D23: =Janvier!D23 -> MAINTENANCE | F23: 0 | G23: 00:00:00 | H23: 00:00:00 | J23: 0 | K23: 00:00:00 | L23: 00:00:00 | N23: 0 | O23: 00:00:00 | P23: 00:00:00 | Q23: 1.790972222 | R23: 0.3326388889 | S23: 07:59:00 | T23: 00:00:00 | V23: 0 | W23: 00:00:00 | X23: 00:00:00 | Y23: 1.790972222 | Z23: 0.3326388889 | AA23: 0.3326388889 | AB23: 0
A24: COCHARD Hervé | B24: =Janvier!B24 -> COCHARD | C24: =Janvier!C24 -> Hervé | D24: =Janvier!D24 -> COMMERCIAL | F24: 0 | G24: 00:00:00 | H24: 00:00:00 | J24: 0 | K24: 00:00:00 | L24: 00:00:00 | N24: 0 | O24: 00:00:00 | P24: 00:00:00 | R24: 0 | S24: 00:00:00 | T24: 00:00:00 | V24: 0 | W24: 00:00:00 | X24: 00:00:00 | Y24: 0 | Z24: 0 | AA24: 0 | AB24: 0
A25: CRETIN JEROME | B25: =Janvier!B25 -> CRETIN | C25: =Janvier!C25 -> JEROME | D25: =Janvier!D25 -> NSG | F25: 0 | G25: 00:00:00 | H25: 00:00:00 | J25: 0 | K25: 00:00:00 | L25: 00:00:00 | N25: 0 | O25: 00:00:00 | P25: 00:00:00 | R25: 0 | S25: 00:00:00 | T25: 00:00:00 | V25: 0 | W25: 00:00:00 | X25: 00:00:00 | Y25: 0 | Z25: 0 | AA25: 0 | AB25: 0
A26: CRINQUANT JEROME | B26: =Janvier!B26 -> CRINQUANT | C26: =Janvier!C26 -> JEROME | D26: =Janvier!D26 -> NSG | F26: 0 | G26: 00:00:00 | H26: 00:00:00 | J26: 0 | K26: 00:00:00 | L26: 00:00:00 | N26: 0 | O26: 00:00:00 | P26: 00:00:00 | Q26: 1.696527778 | R26: 0.2381944444 | S26: 05:43:00 | T26: 00:00:00 | V26: 0 | W26: 00:00:00 | X26: 00:00:00 | Y26: 1.696527778 | Z26: 0.2381944444 | AA26: 0.2381944444 | AB26: 0
A27: DASCIER ANDY | B27: =Janvier!B28 -> DASCIER | C27: =Janvier!C28 -> ANDY | D27: =Janvier!D28 -> PREPA COMMANDE | F27: 0 | G27: 00:00:00 | H27: 00:00:00 | J27: 0 | K27: 00:00:00 | L27: 00:00:00 | N27: 0 | O27: 00:00:00 | P27: 00:00:00 | Q27: 1.84375 | R27: 0.3854166667 | S27: 08:00:00 | T27: 01:15:00 | V27: 0 | W27: 00:00:00 | X27: 00:00:00 | Y27: 1.84375 | Z27: 0.3854166667 | AA27: 0.3333333333 | AB27: 0.05208333333
A28: DAVERIO BENOIT | B28: =Janvier!B29 -> DAVERIO | C28: =Janvier!C29 -> BENOIT | D28: =Janvier!D29 -> COMMERCIAL | F28: 0 | G28: 00:00:00 | H28: 00:00:00 | J28: 0 | K28: 00:00:00 | L28: 00:00:00 | N28: 0 | O28: 00:00:00 | P28: 00:00:00 | R28: 0 | S28: 00:00:00 | T28: 00:00:00 | V28: 0 | W28: 00:00:00 | X28: 00:00:00 | Y28: 0 | Z28: 0 | AA28: 0 | AB28: 0
A29: DELANGRE ALEX | B29: =Janvier!B30 -> DELANGRE | C29: =Janvier!C30 -> ALEX | D29: =Janvier!D30 -> FABRICATION | F29: 0 | G29: 00:00:00 | H29: 00:00:00 | J29: 0 | K29: 00:00:00 | L29: 00:00:00 | N29: 0 | O29: 00:00:00 | P29: 00:00:00 | Q29: 1.416666667 | R29: 0 | S29: 00:00:00 | T29: 00:00:00 | V29: 0 | W29: 00:00:00 | X29: 00:00:00 | Y29: 1.416666667 | Z29: 0 | AA29: 0 | AB29: 0
A30: DELIN Philippe | B30: =Janvier!B31 -> DELIN | C30: =Janvier!C31 -> Philippe | D30: =Janvier!D31 -> DIRECTION | F30: 0 | G30: 00:00:00 | H30: 00:00:00 | J30: 0 | K30: 00:00:00 | L30: 00:00:00 | N30: 0 | O30: 00:00:00 | P30: 00:00:00 | R30: 0 | S30: 00:00:00 | T30: 00:00:00 | V30: 0 | W30: 00:00:00 | X30: 00:00:00 | Y30: 0 | Z30: 0 | AA30: 0 | AB30: 0
A31: DORE Daisy | B31: =Janvier!B32 -> DORE | C31: =Janvier!C32 -> Daisy | D31: =Janvier!D32 -> FABRICATION | F31: 0 | G31: 00:00:00 | H31: 00:00:00 | J31: 0 | K31: 00:00:00 | L31: 00:00:00 | N31: 0 | O31: 00:00:00 | P31: 00:00:00 | Q31: 1.488194444 | R31: 0.02986111111 | S31: 00:43:00 | T31: 00:00:00 | V31: 0 | W31: 00:00:00 | X31: 00:00:00 | Y31: 1.488194444 | Z31: 0.02986111111 | AA31: 0.02986111111 | AB31: 0
A32: ECHEVARIA Luis | B32: =Janvier!B33 -> ECHEVARIA | C32: =Janvier!C33 -> Luis | D32: =Janvier!D33 -> FABRICATION | F32: 0 | G32: 00:00:00 | H32: 00:00:00 | J32: 0 | K32: 00:00:00 | L32: 00:00:00 | N32: 0 | O32: 00:00:00 | P32: 00:00:00 | Q32: 1.461111111 | R32: 0.002777777778 | S32: 00:04:00 | T32: 00:00:00 | V32: 0 | W32: 00:00:00 | X32: 00:00:00 | Y32: 1.461111111 | Z32: 0.002777777778 | AA32: 0.002777777778 | AB32: 0
A33: EL MOQADDAM REDOUANE | B33: =Janvier!B34 -> EL MOQADDAM | C33: =Janvier!C34 -> REDOUANE | D33: =Janvier!D34 -> FABRICATION | F33: 0 | G33: 00:00:00 | H33: 00:00:00 | J33: 0 | K33: 00:00:00 | L33: 00:00:00 | N33: 0 | O33: 00:00:00 | P33: 00:00:00 | Q33: 1.713888889 | R33: 0.2555555556 | S33: 06:08:00 | T33: 00:00:00 | V33: 0 | W33: 00:00:00 | X33: 00:00:00 | Y33: 1.713888889 | Z33: 0.2555555556 | AA33: 0.2555555556 | AB33: 0
A34: FORMEL CELINE | B34: =Janvier!B35 -> FORMEL | C34: =Janvier!C35 -> CELINE | D34: =Janvier!D35 -> BUREAUX | F34: 0 | G34: 00:00:00 | H34: 00:00:00 | J34: 0 | K34: 00:00:00 | L34: 00:00:00 | N34: 0 | O34: 00:00:00 | P34: 00:00:00 | R34: 0 | S34: 00:00:00 | T34: 00:00:00 | V34: 0 | W34: 00:00:00 | X34: 00:00:00 | Y34: 0 | Z34: 0 | AA34: 0 | AB34: 0
A35: FOUACHE LENA | B35: =Janvier!B36 -> FOUACHE | C35: =Janvier!C36 -> LENA | D35: =Janvier!D36 -> QUALITE | F35: 0 | G35: 00:00:00 | H35: 00:00:00 | J35: 0 | K35: 00:00:00 | L35: 00:00:00 | N35: 0 | O35: 00:00:00 | P35: 00:00:00 | R35: 0 | S35: 00:00:00 | T35: 00:00:00 | V35: 0 | W35: 00:00:00 | X35: 00:00:00 | Y35: 0 | Z35: 0 | AA35: 0 | AB35: 0
A36: GALETTI Maud | B36: =Janvier!B37 -> GALETTI | C36: =Janvier!C37 -> Maud | D36: =Janvier!D37 -> FABRICATION | F36: 0 | G36: 00:00:00 | H36: 00:00:00 | J36: 0 | K36: 00:00:00 | L36: 00:00:00 | N36: 0 | O36: 00:00:00 | P36: 00:00:00 | Q36: 1.572916667 | R36: 0.1145833333 | S36: 02:45:00 | T36: 00:00:00 | V36: 0 | W36: 00:00:00 | X36: 00:00:00 | Y36: 1.572916667 | Z36: 0.1145833333 | AA36: 0.1145833333 | AB36: 0
A37: GAY Stephane | B37: =Janvier!B38 -> GAY | C37: =Janvier!C38 -> Stephane | D37: =Janvier!D38 -> FABRICATION | F37: 0 | G37: 00:00:00 | H37: 00:00:00 | J37: 0 | K37: 00:00:00 | L37: 00:00:00 | N37: 0 | O37: 00:00:00 | P37: 00:00:00 | Q37: 1.55 | R37: 0.09166666667 | S37: 02:12:00 | T37: 00:00:00 | V37: 0 | W37: 00:00:00 | X37: 00:00:00 | Y37: 1.55 | Z37: 0.09166666667 | AA37: 0.09166666667 | AB37: 0
A38: Graff MATHILDE | B38: =Janvier!B39 -> Graff | C38: =Janvier!C39 -> MATHILDE | D38: =Janvier!D39 -> CONDITIONNEMENT | F38: 0 | G38: 00:00:00 | H38: 00:00:00 | J38: 0 | K38: 00:00:00 | L38: 00:00:00 | N38: 0 | O38: 00:00:00 | P38: 00:00:00 | R38: 0 | S38: 00:00:00 | T38: 00:00:00 | V38: 0 | W38: 00:00:00 | X38: 00:00:00 | Y38: 0 | Z38: 0 | AA38: 0 | AB38: 0
A39: GRAPPIN Perrine | B39: =Janvier!B40 -> GRAPPIN | C39: =Janvier!C40 -> Perrine | D39: =Janvier!D40 -> FABRICATION | F39: 0 | G39: 00:00:00 | H39: 00:00:00 | J39: 0 | K39: 00:00:00 | L39: 00:00:00 | N39: 0 | O39: 00:00:00 | P39: 00:00:00 | Q39: 1.865277778 | R39: 0.4069444444 | S39: 08:00:00 | T39: 01:46:00 | V39: 0 | W39: 00:00:00 | X39: 00:00:00 | Y39: 1.865277778 | Z39: 0.4069444444 | AA39: 0.3333333333 | AB39: 0.07361111111
A40: GUENOT Anne | B40: =Janvier!B41 -> GUENOT | C40: =Janvier!C41 -> Anne | D40: =Janvier!D41 -> EXPEDITION | F40: 0 | G40: 00:00:00 | H40: 00:00:00 | J40: 0 | K40: 00:00:00 | L40: 00:00:00 | N40: 0 | O40: 00:00:00 | P40: 00:00:00 | Q40: 1.852777778 | R40: 0.3944444444 | S40: 08:00:00 | T40: 01:28:00 | V40: 0 | W40: 00:00:00 | X40: 00:00:00 | Y40: 1.852777778 | Z40: 0.3944444444 | AA40: 0.3333333333 | AB40: 0.06111111111
A41: GUYARD Christine | B41: =Janvier!B42 -> GUYARD | C41: =Janvier!C42 -> Christine | D41: =Janvier!D42 -> BUREAUX | F41: 0 | G41: 00:00:00 | H41: 00:00:00 | J41: 0 | K41: 00:00:00 | L41: 00:00:00 | N41: 0 | O41: 00:00:00 | P41: 00:00:00 | R41: 0 | S41: 00:00:00 | T41: 00:00:00 | V41: 0 | W41: 00:00:00 | X41: 00:00:00 | Y41: 0 | Z41: 0 | AA41: 0 | AB41: 0
A42: GUYARD Marie | B42: =Janvier!B43 -> GUYARD | C42: =Janvier!C43 -> Marie | D42: =Janvier!D43 -> FABRICATION | F42: 0 | G42: 00:00:00 | H42: 00:00:00 | J42: 0 | K42: 00:00:00 | L42: 00:00:00 | N42: 0 | O42: 00:00:00 | P42: 00:00:00 | Q42: 1.627777778 | R42: 0.1694444444 | S42: 04:04:00 | T42: 00:00:00 | V42: 0 | W42: 00:00:00 | X42: 00:00:00 | Y42: 1.627777778 | Z42: 0.1694444444 | AA42: 0.1694444444 | AB42: 0
A43: GUYARD Marie | B43: =Janvier!B44 -> GUYARD | C43: =Janvier!C44 -> Marie | D43: =Janvier!D44 -> FABRICATION | F43: 0 | G43: 00:00:00 | H43: 00:00:00 | J43: 0 | K43: 00:00:00 | L43: 00:00:00 | N43: 0 | O43: 00:00:00 | P43: 00:00:00 | Q43: 1.627777778 | R43: 0.1694444444 | S43: 04:04:00 | T43: 00:00:00 | V43: 0 | W43: 00:00:00 | X43: 00:00:00 | Y43: 1.627777778 | Z43: 0.1694444444 | AA43: 0.1694444444 | AB43: 0
A44: HARUTYUNYAN Haik | B44: =Janvier!B45 -> HARUTYUNYAN | C44: =Janvier!C45 -> Haik | D44: =Janvier!D45 -> FABRICATION | F44: 0 | G44: 00:00:00 | H44: 00:00:00 | J44: 0 | K44: 00:00:00 | L44: 00:00:00 | N44: 0 | O44: 00:00:00 | P44: 00:00:00 | Q44: 1.659722222 | R44: 0.2013888889 | S44: 04:50:00 | T44: 00:00:00 | V44: 0 | W44: 00:00:00 | X44: 00:00:00 | Y44: 1.659722222 | Z44: 0.2013888889 | AA44: 0.2013888889 | AB44: 0
A45: IDRISSI Zinedinne | B45: =Janvier!B46 -> IDRISSI | C45: =Janvier!C46 -> Zinedinne | D45: =Janvier!D46 -> FABRICATION | F45: 0 | G45: 00:00:00 | H45: 00:00:00 | J45: 0 | K45: 00:00:00 | L45: 00:00:00 | N45: 0 | O45: 00:00:00 | P45: 00:00:00 | Q45: 1.41875 | R45: 0 | S45: 00:00:00 | T45: 00:00:00 | V45: 0 | W45: 00:00:00 | X45: 00:00:00 | Y45: 1.41875 | Z45: 0 | AA45: 0 | AB45: 0
A46: JULIEN Thomas | B46: =Janvier!B47 -> JULIEN | C46: =Janvier!C47 -> Thomas | D46: =Janvier!D47 -> Apprentis | F46: 0 | G46: 00:00:00 | H46: 00:00:00 | J46: 0 | K46: 00:00:00 | L46: 00:00:00 | N46: 0 | O46: 00:00:00 | P46: 00:00:00 | Q46: 1.588888889 | R46: 0.1305555556 | S46: 03:08:00 | T46: 00:00:00 | V46: 0 | W46: 00:00:00 | X46: 00:00:00 | Y46: 1.588888889 | Z46: 0.1305555556 | AA46: 0.1305555556 | AB46: 0
A47: LABOREY Jonathan | B47: =Janvier!B48 -> LABOREY | C47: =Janvier!C48 -> Jonathan | D47: =Janvier!D48 -> EMBALLAGE | F47: 0 | G47: 00:00:00 | H47: 00:00:00 | J47: 0 | K47: 00:00:00 | L47: 00:00:00 | N47: 0 | O47: 00:00:00 | P47: 00:00:00 | Q47: 1.488194444 | R47: 0.02986111111 | S47: 00:43:00 | T47: 00:00:00 | V47: 0 | W47: 00:00:00 | X47: 00:00:00 | Y47: 1.488194444 | Z47: 0.02986111111 | AA47: 0.02986111111 | AB47: 0
A48: LAHAYE Emmanuel | B48: =Janvier!B49 -> LAHAYE | C48: =Janvier!C49 -> Emmanuel | D48: =Janvier!D49 -> FABRICATION | F48: 0 | G48: 00:00:00 | H48: 00:00:00 | J48: 0 | K48: 00:00:00 | L48: 00:00:00 | N48: 0 | O48: 00:00:00 | P48: 00:00:00 | Q48: 1.625694444 | R48: 0.1673611111 | S48: 04:01:00 | T48: 00:00:00 | V48: 0 | W48: 00:00:00 | X48: 00:00:00 | Y48: 1.625694444 | Z48: 0.1673611111 | AA48: 0.1673611111 | AB48: 0
A49: Lasalle Yann | B49: =Janvier!B50 -> Lasalle | C49: =Janvier!C50 -> Yann | D49: =Janvier!D50 -> CHAUFFEURS | F49: 0 | G49: 00:00:00 | H49: 00:00:00 | J49: 0 | K49: 00:00:00 | L49: 00:00:00 | N49: 0 | O49: 00:00:00 | P49: 00:00:00 | R49: 0 | S49: 00:00:00 | T49: 00:00:00 | V49: 0 | W49: 00:00:00 | X49: 00:00:00 | Y49: 0 | Z49: 0 | AA49: 0 | AB49: 0
A50: LORY ANNICK | B50: =Janvier!B51 -> LORY | C50: =Janvier!C51 -> ANNICK | D50: =Janvier!D51 -> FABRICATION | F50: 0 | G50: 00:00:00 | H50: 00:00:00 | J50: 0 | K50: 00:00:00 | L50: 00:00:00 | N50: 0 | O50: 00:00:00 | P50: 00:00:00 | R50: 0 | S50: 00:00:00 | T50: 00:00:00 | V50: 0 | W50: 00:00:00 | X50: 00:00:00 | Y50: 0 | Z50: 0 | AA50: 0 | AB50: 0
A51: LOXTON Morné | B51: =Janvier!B52 -> LOXTON | C51: =Janvier!C52 -> Morné | D51: =Janvier!D52 -> FABRICATION | F51: 0 | G51: 00:00:00 | H51: 00:00:00 | J51: 0 | K51: 00:00:00 | L51: 00:00:00 | N51: 0 | O51: 00:00:00 | P51: 00:00:00 | Q51: 1.5875 | R51: 0.1291666667 | S51: 03:06:00 | T51: 00:00:00 | V51: 0 | W51: 00:00:00 | X51: 00:00:00 | Y51: 1.5875 | Z51: 0.1291666667 | AA51: 0.1291666667 | AB51: 0
A52: MAILLER Philippe | B52: =Janvier!B53 -> MAILLER | C52: =Janvier!C53 -> Philippe | D52: =Janvier!D53 -> CHAUFFEURS | F52: 0 | G52: 00:00:00 | H52: 00:00:00 | J52: 0 | K52: 00:00:00 | L52: 00:00:00 | N52: 0 | O52: 00:00:00 | P52: 00:00:00 | Q52: 2.184027778 | R52: 0.7256944444 | S52: 08:00:00 | T52: 09:25:00 | V52: 0 | W52: 00:00:00 | X52: 00:00:00 | Y52: 2.184027778 | Z52: 0.7256944444 | AA52: 0.3333333333 | AB52: 0.3923611111
A53: MANOUKIAN Arman | B53: =Janvier!B54 -> MANOUKIAN | C53: =Janvier!C54 -> Arman | D53: =Janvier!D54 -> FABRICATION | F53: 0 | G53: 00:00:00 | H53: 00:00:00 | J53: 0 | K53: 00:00:00 | L53: 00:00:00 | N53: 0 | O53: 00:00:00 | P53: 00:00:00 | Q53: 1.545138889 | R53: 0.08680555556 | S53: 02:05:00 | T53: 00:00:00 | V53: 0 | W53: 00:00:00 | X53: 00:00:00 | Y53: 1.545138889 | Z53: 0.08680555556 | AA53: 0.08680555556 | AB53: 0
A54: MARGUIER Stéphane | B54: =Janvier!B55 -> MARGUIER | C54: =Janvier!C55 -> Stéphane | D54: =Janvier!D55 -> EMBALLAGE | F54: 0 | G54: 00:00:00 | H54: 00:00:00 | J54: 0 | K54: 00:00:00 | L54: 00:00:00 | N54: 0 | O54: 00:00:00 | P54: 00:00:00 | Q54: 1.682638889 | R54: 0.2243055556 | S54: 05:23:00 | T54: 00:00:00 | V54: 0 | W54: 00:00:00 | X54: 00:00:00 | Y54: 1.682638889 | Z54: 0.2243055556 | AA54: 0.2243055556 | AB54: 0
A55: MARGUIER Stéphane | B55: =Janvier!B56 -> MARGUIER | C55: =Janvier!C56 -> Stéphane | D55: =Janvier!D56 -> NSG | F55: 0 | G55: 00:00:00 | H55: 00:00:00 | J55: 0 | K55: 00:00:00 | L55: 00:00:00 | N55: 0 | O55: 00:00:00 | P55: 00:00:00 | Q55: 1.682638889 | R55: 0.2243055556 | S55: 05:23:00 | T55: 00:00:00 | V55: 0 | W55: 00:00:00 | X55: 00:00:00 | Y55: 1.682638889 | Z55: 0.2243055556 | AA55: 0.2243055556 | AB55: 0
A56: MARTIN Julien | B56: =Janvier!B57 -> MARTIN | C56: =Janvier!C57 -> Julien | D56: =Janvier!D57 -> EMBALLAGE | F56: 0 | G56: 00:00:00 | H56: 00:00:00 | J56: 0 | K56: 00:00:00 | L56: 00:00:00 | N56: 0 | O56: 00:00:00 | P56: 00:00:00 | Q56: 1.919444444 | R56: 0.4611111111 | S56: 08:00:00 | T56: 03:04:00 | V56: 0 | W56: 00:00:00 | X56: 00:00:00 | Y56: 1.919444444 | Z56: 0.4611111111 | AA56: 0.3333333333 | AB56: 0.1277777778
A57: MARTIN Pierre | B57: =Janvier!B58 -> MARTIN | C57: =Janvier!C58 -> Pierre | D57: =Janvier!D58 -> FABRICATION | F57: 0 | G57: 00:00:00 | H57: 00:00:00 | J57: 0 | K57: 00:00:00 | L57: 00:00:00 | N57: 0 | O57: 00:00:00 | P57: 00:00:00 | Q57: 1.4 | R57: 0 | S57: 00:00:00 | T57: 00:00:00 | V57: 0 | W57: 00:00:00 | X57: 00:00:00 | Y57: 1.4 | Z57: 0 | AA57: 0 | AB57: 0
A58: MINASYAN ARMAN | B58: =Janvier!B59 -> MINASYAN | C58: =Janvier!C59 -> ARMAN | D58: =Janvier!D59 -> FABRICATION | F58: 0 | G58: 00:00:00 | H58: 00:00:00 | J58: 0 | K58: 00:00:00 | L58: 00:00:00 | N58: 0 | O58: 00:00:00 | P58: 00:00:00 | Q58: 2.021527778 | R58: 0.5631944444 | S58: 08:00:00 | T58: 05:31:00 | V58: 0 | W58: 00:00:00 | X58: 00:00:00 | Y58: 2.021527778 | Z58: 0.5631944444 | AA58: 0.3333333333 | AB58: 0.2298611111
A59: MORET Robin | B59: =Janvier!B60 -> MORET | C59: =Janvier!C60 -> Robin | D59: =Janvier!D60 -> CHAUFFEURS | F59: 0 | G59: 00:00:00 | H59: 00:00:00 | J59: 0 | K59: 00:00:00 | L59: 00:00:00 | N59: 0 | O59: 00:00:00 | P59: 00:00:00 | Q59: 1.60625 | R59: 0.1479166667 | S59: 03:33:00 | T59: 00:00:00 | V59: 0 | W59: 00:00:00 | X59: 00:00:00 | Y59: 1.60625 | Z59: 0.1479166667 | AA59: 0.1479166667 | AB59: 0
A60: MORIAUX Charles-Henry | B60: =Janvier!B61 -> MORIAUX | C60: =Janvier!C61 -> Charles-Henry | D60: =Janvier!D61 -> EXPEDITION | F60: 0 | G60: 00:00:00 | H60: 00:00:00 | J60: 0 | K60: 00:00:00 | L60: 00:00:00 | N60: 0 | O60: 00:00:00 | P60: 00:00:00 | Q60: 0.9680555556 | R60: 0 | S60: 00:00:00 | T60: 00:00:00 | V60: 0 | W60: 00:00:00 | X60: 00:00:00 | Y60: 0.9680555556 | Z60: 0 | AA60: 0 | AB60: 0
A61: MORIN Christophe | B61: =Janvier!B62 -> MORIN | C61: =Janvier!C62 -> Christophe | D61: =Janvier!D62 -> FABRICATION | F61: 0 | G61: 00:00:00 | H61: 00:00:00 | J61: 0 | K61: 00:00:00 | L61: 00:00:00 | N61: 0 | O61: 00:00:00 | P61: 00:00:00 | Q61: 1.699305556 | R61: 0.2409722222 | S61: 05:47:00 | T61: 00:00:00 | V61: 0 | W61: 00:00:00 | X61: 00:00:00 | Y61: 1.699305556 | Z61: 0.2409722222 | AA61: 0.2409722222 | AB61: 0
A62: MORTET Alice | B62: =Janvier!B63 -> MORTET | C62: =Janvier!C63 -> Alice | D62: =Janvier!D63 -> EXPEDITION | F62: 0 | G62: 00:00:00 | H62: 00:00:00 | J62: 0 | K62: 00:00:00 | L62: 00:00:00 | N62: 0 | O62: 00:00:00 | P62: 00:00:00 | Q62: 1.843055556 | R62: 0.3847222222 | S62: 08:00:00 | T62: 01:14:00 | V62: 0 | W62: 00:00:00 | X62: 00:00:00 | Y62: 1.843055556 | Z62: 0.3847222222 | AA62: 0.3333333333 | AB62: 0.05138888889
A63: M'SAKINI Coralie | B63: =Janvier!B64 -> M'SAKINI | C63: =Janvier!C64 -> Coralie | D63: =Janvier!D64 -> COMMERCIAL | F63: 0 | G63: 00:00:00 | H63: 00:00:00 | J63: 0 | K63: 00:00:00 | L63: 00:00:00 | N63: 0 | O63: 00:00:00 | P63: 00:00:00 | R63: 0 | S63: 00:00:00 | T63: 00:00:00 | V63: 0 | W63: 00:00:00 | X63: 00:00:00 | Y63: 0 | Z63: 0 | AA63: 0 | AB63: 0
A64: NEAULT Emilie | B64: =Janvier!B65 -> NEAULT | C64: =Janvier!C65 -> Emilie | D64: =Janvier!D65 -> EMBALLAGE | F64: 0 | G64: 00:00:00 | H64: 00:00:00 | J64: 0 | K64: 00:00:00 | L64: 00:00:00 | N64: 0 | O64: 00:00:00 | P64: 00:00:00 | Q64: 1.680555556 | R64: 0.2222222222 | S64: 05:20:00 | T64: 00:00:00 | V64: 0 | W64: 00:00:00 | X64: 00:00:00 | Y64: 1.680555556 | Z64: 0.2222222222 | AA64: 0.2222222222 | AB64: 0
A65: OCQUIDANT MANON | B65: =Janvier!B66 -> OCQUIDANT | C65: =Janvier!C66 -> MANON | D65: =Janvier!D66 -> FABRICATION | F65: 0 | G65: 00:00:00 | H65: 00:00:00 | J65: 0 | K65: 00:00:00 | L65: 00:00:00 | N65: 0 | O65: 00:00:00 | P65: 00:00:00 | Q65: 1.661111111 | R65: 0.2027777778 | S65: 04:52:00 | T65: 00:00:00 | V65: 0 | W65: 00:00:00 | X65: 00:00:00 | Y65: 1.661111111 | Z65: 0.2027777778 | AA65: 0.2027777778 | AB65: 0
A66: PACOT Louis | B66: =Janvier!B67 -> PACOT | C66: =Janvier!C67 -> Louis | D66: =Janvier!D67 -> FABRICATION | F66: 0 | G66: 00:00:00 | H66: 00:00:00 | J66: 0 | K66: 00:00:00 | L66: 00:00:00 | N66: 0 | O66: 00:00:00 | P66: 00:00:00 | Q66: 1.526388889 | R66: 0.06805555556 | S66: 01:38:00 | T66: 00:00:00 | V66: 0 | W66: 00:00:00 | X66: 00:00:00 | Y66: 1.526388889 | Z66: 0.06805555556 | AA66: 0.06805555556 | AB66: 0
A67: PACOT BENJAMIN | B67: =Janvier!B68 -> PACOT | C67: =Janvier!C68 -> BENJAMIN | D67: =Janvier!D68 -> FABRICATION | F67: 0 | G67: 00:00:00 | H67: 00:00:00 | J67: 0 | K67: 00:00:00 | L67: 00:00:00 | N67: 0 | O67: 00:00:00 | P67: 00:00:00 | Q67: 1.615972222 | R67: 0.1576388889 | S67: 03:47:00 | T67: 00:00:00 | V67: 0 | W67: 00:00:00 | X67: 00:00:00 | Y67: 1.615972222 | Z67: 0.1576388889 | AA67: 0.1576388889 | AB67: 0
A68: PASSOT jean luc | B68: =Janvier!B69 -> PASSOT | C68: =Janvier!C69 -> jean luc | D68: =Janvier!D69 -> CHAUFFEURS | F68: 0 | G68: 00:00:00 | H68: 00:00:00 | J68: 0 | K68: 00:00:00 | L68: 00:00:00 | N68: 0 | O68: 00:00:00 | P68: 00:00:00 | R68: 0 | S68: 00:00:00 | T68: 00:00:00 | V68: 0 | W68: 00:00:00 | X68: 00:00:00 | Y68: 0 | Z68: 0 | AA68: 0 | AB68: 0
A69: PAYET Cédric | B69: =Janvier!B70 -> PAYET | C69: =Janvier!C70 -> Cédric | D69: =Janvier!D70 -> FABRICATION | F69: 0 | G69: 00:00:00 | H69: 00:00:00 | J69: 0 | K69: 00:00:00 | L69: 00:00:00 | N69: 0 | O69: 00:00:00 | P69: 00:00:00 | Q69: 1.715277778 | R69: 0.2569444444 | S69: 06:10:00 | T69: 00:00:00 | V69: 0 | W69: 00:00:00 | X69: 00:00:00 | Y69: 1.715277778 | Z69: 0.2569444444 | AA69: 0.2569444444 | AB69: 0
A70: PAYET Cédric | B70: =Janvier!B71 -> PAYET | C70: =Janvier!C71 -> Cédric | D70: =Janvier!D71 -> NSG | F70: 0 | G70: 00:00:00 | H70: 00:00:00 | J70: 0 | K70: 00:00:00 | L70: 00:00:00 | N70: 0 | O70: 00:00:00 | P70: 00:00:00 | Q70: 1.715277778 | R70: 0.2569444444 | S70: 06:10:00 | T70: 00:00:00 | V70: 0 | W70: 00:00:00 | X70: 00:00:00 | Y70: 1.715277778 | Z70: 0.2569444444 | AA70: 0.2569444444 | AB70: 0
A71: PETIT ISABELLE | B71: =Janvier!B72 -> PETIT | C71: =Janvier!C72 -> ISABELLE | D71: =Janvier!D72 -> CONDITIONNEMENT | F71: 0 | G71: 00:00:00 | H71: 00:00:00 | J71: 0 | K71: 00:00:00 | L71: 00:00:00 | N71: 0 | O71: 00:00:00 | P71: 00:00:00 | Q71: 0.6625 | R71: 0 | S71: 00:00:00 | T71: 00:00:00 | V71: 0 | W71: 00:00:00 | X71: 00:00:00 | Y71: 0.6625 | Z71: 0 | AA71: 0 | AB71: 0
A72: =B72&" "&C72 -> PIGEARD Jérémy | B72: =Janvier!B73 -> PIGEARD | C72: =Janvier!C73 -> Jérémy | D72: =Janvier!D73 -> FABRICATION | F72: 0 | G72: 00:00:00 | H72: 00:00:00 | J72: 0 | K72: 00:00:00 | L72: 00:00:00 | N72: =IF(M72<(1/24*35),0,M72-(1/24*35)) -> 0 | O72: =IF(N72>=1/24*8,1/24*8,N72) -> 00:00:00 | P72: =IF(N72-O72>0,N72-O72,0) -> 00:00:00 | Q72: 1.590277778 | R72: =IF(Q72<(1/24*35),0,Q72-(1/24*35)) -> 0.1319444444 | S72: =IF(R72>=1/24*8,1/24*8,R72) -> 03:10:00 | T72: =IF(R72-S72>0,R72-S72,0) -> 00:00:00 | V72: =IF(U72<(1/24*35),0,U72-(1/24*35)) -> 0 | W72: =IF(V72>=1/24*8,1/24*8,V72) -> 00:00:00 | X72: =IF(V72-W72>0,V72-W72,0) -> 00:00:00 | Y72: 1.590277778 | Z72: 0.1319444444 | AA72: 0.1319444444 | AB72: 0
A73: =B73&" "&C73 -> POIGNANT Anthony | B73: =Janvier!B74 -> POIGNANT | C73: =Janvier!C74 -> Anthony | D73: =Janvier!D74 -> EMBALLAGE | F73: 0 | G73: 00:00:00 | H73: =IF(F73-G73>0,F73-G73,0) -> 00:00:00 | J73: 0 | K73: 00:00:00 | L73: =IF(J73-K73>0,J73-K73,0) -> 00:00:00 | N73: 0 | O73: 00:00:00 | P73: 00:00:00 | Q73: 1.788194444 | R73: 0.3298611111 | S73: 07:55:00 | T73: 00:00:00 | V73: 0 | W73: 00:00:00 | X73: 00:00:00 | Y73: =SUMIF($E$7:$X$7,$I$7,$E73:$X73) -> 1.788194444 | Z73: =SUMIF($E$7:$X$7,$Z$7,$E73:$X73) -> 0.3298611111 | AA73: =SUMIF($E$7:$X$7,$AA$7,$E73:$X73) -> 0.3298611111 | AB73: =SUMIF($E$7:$X$7,$AB$7,$E73:$X73) -> 0
A74: PRINCET Véronique | B74: =Janvier!B75 -> PRINCET | C74: =Janvier!C75 -> Véronique | D74: =Janvier!D75 -> EMBALLAGE | F74: =IF(E74<(1/24*35),0,E74-(1/24*35)) -> 0 | G74: =IF(F74>=1/24*8,1/24*8,F74) -> 00:00:00 | H74: 00:00:00 | J74: =IF(I74<(1/24*35),0,I74-(1/24*35)) -> 0 | K74: =IF(J74>=1/24*8,1/24*8,J74) -> 00:00:00 | L74: 00:00:00 | N74: 0 | O74: 00:00:00 | P74: 00:00:00 | Q74: 1.85 | R74: 0.3916666667 | S74: 08:00:00 | T74: 01:24:00 | V74: 0 | W74: 00:00:00 | X74: 00:00:00 | Y74: 1.85 | Z74: 0.3916666667 | AA74: 0.3333333333 | AB74: 0.05833333333
A75: PRUDENT Axelle | B75: =Janvier!B76 -> PRUDENT | C75: =Janvier!C76 -> Axelle | D75: =Janvier!D76 -> Apprentis | F75: 0 | G75: 00:00:00 | H75: 00:00:00 | J75: 0 | K75: 00:00:00 | L75: 00:00:00 | N75: 0 | O75: 00:00:00 | P75: 00:00:00 | R75: 0 | S75: 00:00:00 | T75: 00:00:00 | V75: 0 | W75: 00:00:00 | X75: 00:00:00 | Y75: 0 | Z75: 0 | AA75: 0 | AB75: 0
A76: PUSSET Françis | B76: =Janvier!B77 -> PUSSET | C76: =Janvier!C77 -> Françis | D76: =Janvier!D77 -> FABRICATION | F76: 0 | G76: 00:00:00 | H76: 00:00:00 | J76: 0 | K76: 00:00:00 | L76: 00:00:00 | N76: 0 | O76: 00:00:00 | P76: 00:00:00 | Q76: 1.625694444 | R76: 0.1673611111 | S76: 04:01:00 | T76: 00:00:00 | V76: 0 | W76: 00:00:00 | X76: 00:00:00 | Y76: 1.625694444 | Z76: 0.1673611111 | AA76: 0.1673611111 | AB76: 0
A77: ROGER Céline | B77: =Janvier!B78 -> ROGER | C77: =Janvier!C78 -> Céline | D77: =Janvier!D78 -> BUREAUX | F77: 0 | G77: 00:00:00 | H77: 00:00:00 | J77: 0 | K77: 00:00:00 | L77: 00:00:00 | N77: 0 | O77: 00:00:00 | P77: 00:00:00 | Q77: 1.833333333 | R77: 0.375 | S77: 08:00:00 | T77: 01:00:00 | V77: 0 | W77: 00:00:00 | X77: 00:00:00 | Y77: 1.833333333 | Z77: 0.375 | AA77: 0.3333333333 | AB77: 0.04166666667
A78: ROY Marianne | B78: =Janvier!B79 -> ROY | C78: =Janvier!C79 -> Marianne | D78: =Janvier!D79 -> NSG | F78: 0 | G78: 00:00:00 | H78: 00:00:00 | J78: 0 | K78: 00:00:00 | L78: 00:00:00 | N78: 0 | O78: 00:00:00 | P78: 00:00:00 | Q78: 1.755555556 | R78: 0.2972222222 | S78: 07:08:00 | T78: 00:00:00 | V78: 0 | W78: 00:00:00 | X78: 00:00:00 | Y78: 1.755555556 | Z78: 0.2972222222 | AA78: 0.2972222222 | AB78: 0
A79: ROY SEBASTIEN | B79: =Janvier!B80 -> ROY | C79: =Janvier!C80 -> SEBASTIEN | D79: =Janvier!D80 -> EXPEDITION | F79: 0 | G79: 00:00:00 | H79: 00:00:00 | J79: 0 | K79: 00:00:00 | L79: 00:00:00 | N79: 0 | O79: 00:00:00 | P79: 00:00:00 | Q79: 1.927777778 | R79: 0.4694444444 | S79: 08:00:00 | T79: 03:16:00 | V79: 0 | W79: 00:00:00 | X79: 00:00:00 | Y79: 1.927777778 | Z79: 0.4694444444 | AA79: 0.3333333333 | AB79: 0.1361111111
A80: SABRI Moha | B80: =Janvier!B81 -> SABRI | C80: =Janvier!C81 -> Moha | D80: =Janvier!D81 -> FABRICATION | R80: =IF(Q80<(1/24*35),0,Q80-(1/24*35)) -> 0 | S80: =IF(R80>=1/24*8,1/24*8,R80) -> 00:00:00 | T80: =IF(R80-S80>0,R80-S80,0) -> 00:00:00 | V80: 0 | W80: 00:00:00 | X80: 00:00:00 | Y80: 0 | Z80: 0 | AA80: 0 | AB80: 0
A81: SAVARIAT Betty | B81: =Janvier!B82 -> SAVARIAT | C81: =Janvier!C82 -> Betty | D81: =Janvier!D82 -> EMBALLAGE | Q81: 1.707638889 | R81: 0.2493055556 | S81: 05:59:00 | T81: 00:00:00 | Y81: 1.707638889 | Z81: 0.2493055556 | AA81: 0.2493055556 | AB81: 0
A82: Shakaryan Artak | B82: =Janvier!B83 -> Shakaryan | C82: =Janvier!C83 -> Artak | D82: =Janvier!D83 -> FABRICATION | Q82: 1.770138889 | R82: 0.3118055556 | S82: 07:29:00 | T82: 00:00:00 | Y82: 1.770138889 | Z82: 0.3118055556 | AA82: 0.3118055556 | AB82: 0
A83: Shakaryan ARTUR | B83: =Janvier!B84 -> Shakaryan | C83: =Janvier!C84 -> ARTUR | D83: =Janvier!D84 -> FABRICATION | Q83: 1.679166667 | R83: 0.2208333333 | S83: 05:18:00 | T83: 00:00:00 | Y83: 1.679166667 | Z83: 0.2208333333 | AA83: 0.2208333333 | AB83: 0
A84: Tallo Oumar | B84: =Janvier!B85 -> Tallo | C84: =Janvier!C85 -> Oumar | D84: =Janvier!D85 -> FABRICATION | Q84: 1.419444444 | R84: 0 | S84: 00:00:00 | T84: 00:00:00 | Y84: 1.419444444 | Z84: 0 | AA84: 0 | AB84: 0
A85: TEIXERA Géraldine | B85: =Janvier!B86 -> TEIXERA | C85: =Janvier!C86 -> Géraldine | D85: =Janvier!D86 -> EMBALLAGE | Q85: 1.663888889 | R85: 0.2055555556 | S85: 04:56:00 | T85: 00:00:00 | Y85: 1.663888889 | Z85: 0.2055555556 | AA85: 0.2055555556 | AB85: 0
A86: THRITHARD Serge | B86: =Janvier!B87 -> THRITHARD | C86: =Janvier!C87 -> Serge | D86: =Janvier!D87 -> FABRICATION | Q86: 1.692361111 | R86: 0.2340277778 | S86: 05:37:00 | T86: 00:00:00 | Y86: 1.692361111 | Z86: 0.2340277778 | AA86: 0.2340277778 | AB86: 0
A87: TOULOUSE Florian | B87: =Janvier!B88 -> TOULOUSE | C87: =Janvier!C88 -> Florian | D87: =Janvier!D88 -> FABRICATION | Q87: 1.382638889 | R87: 0 | S87: 00:00:00 | T87: 00:00:00 | Y87: 1.382638889 | Z87: 0 | AA87: 0 | AB87: 0
A88: VARVOU Annie | B88: =Janvier!B89 -> VARVOU | C88: =Janvier!C89 -> Annie | D88: =Janvier!D89 -> COMMERCIAL | R88: 0 | S88: 00:00:00 | T88: 00:00:00 | Y88: 0 | Z88: 0 | AA88: 0 | AB88: 0
A89: VERDIERE Steeven | B89: =Janvier!B90 -> VERDIERE | C89: =Janvier!C90 -> Steeven | D89: =Janvier!D90 -> FABRICATION | R89: 0 | S89: 00:00:00 | T89: 00:00:00 | Y89: 0 | Z89: 0 | AA89: 0 | AB89: 0
A90: VINCENT FRANCK | B90: =Janvier!B91 -> VINCENT | C90: =Janvier!C91 -> FRANCK | D90: =Janvier!D91 -> EXPEDITION | R90: 0 | S90: 00:00:00 | T90: 00:00:00 | Y90: 0 | Z90: 0 | AA90: 0 | AB90: 0
A91: VINCENT FABRICE | B91: =Janvier!B92 -> VINCENT | C91: =Janvier!C92 -> FABRICE | D91: =Janvier!D92 -> FABRICATION | R91: 0 | S91: 00:00:00 | T91: 00:00:00 | Y91: 0 | Z91: 0 | AA91: 0 | AB91: 0
A92: WARGNIER Margot | B92: =Janvier!B93 -> WARGNIER | C92: =Janvier!C93 -> Margot | D92: =Janvier!D93 -> EMBALLAGE | Q92: 1.980555556 | R92: 0.5222222222 | S92: 08:00:00 | T92: 04:32:00 | Y92: 1.980555556 | Z92: 0.5222222222 | AA92: 0.3333333333 | AB92: 0.1888888889
A93: ZAMPARUTTI Simon | B93: =Janvier!B94 -> ZAMPARUTTI | C93: =Janvier!C94 -> Simon | D93: =Janvier!D94 -> DIRECTION | R93: 0 | S93: 00:00:00 | T93: 00:00:00 | Y93: 0 | Z93: 0 | AA93: 0 | AB93: 0
A94: ZIVANOVIC NATHALIE | B94: =Janvier!B95 -> ZIVANOVIC | C94: =Janvier!C95 -> NATHALIE | D94: =Janvier!D95 -> EMPLOYE DE SERVICE | F94: 0 | G94: 00:00:00 | H94: 00:00:00 | J94: 0 | K94: 00:00:00 | L94: 00:00:00 | N94: 0 | O94: 00:00:00 | P94: 00:00:00 | Q94: 1.425 | R94: 0 | S94: 00:00:00 | T94: 00:00:00 | Y94: 1.425 | Z94: 0 | AA94: 0 | AB94: 0
E95: =SUM(E8:E94) -> 0 | F95: =SUM(F8:F94) -> 0 | G95: =SUM(G8:G94) -> 0 | H95: =SUM(H8:H94) -> 0 | I95: =SUM(I8:I94) -> 0 | J95: =SUM(J8:J94) -> 0 | K95: =SUM(K8:K94) -> 0 | L95: =SUM(L8:L94) -> 0 | M95: =SUM(M8:M94) -> 0 | N95: =SUM(N8:N94) -> 0 | O95: =SUM(O8:O94) -> 0 | P95: =SUM(P8:P94) -> 0 | Q95: =SUM(Q8:Q94) -> 107.4944444 | R95: =SUM(R8:R94) -> 13.92361111 | S95: =SUM(S8:S94) -> 12.07708333 | T95: =SUM(T8:T94) -> 1.846527778 | U95: =SUM(U8:U94) -> 0 | V95: =SUM(V8:V94) -> 0 | W95: =SUM(W8:W94) -> 0 | X95: =SUM(X8:X94) -> 0 | Y95: =SUM(Y8:Y94) -> 107.4944444 | Z95: =SUM(Z8:Z94) -> 13.92361111 | AA95: =SUM(AA8:AA94) -> 12.07708333 | AB95: =SUM(AB8:AB94) -> 1.846527778

Sheet Octobre
C1: Menu | U1: =IF($U$5="","masquer colonne","") -> masquer colonne | V1: =IF($U$5="","masquer colonne","") -> masquer colonne | W1: masquer colonne | X1: masquer colonne
A2: =COUNTIF(U1:X1,"masquer colonne") -> 4
B3: =VALUE("01/10/"&Janvier!$B$1) -> 2017-10-01 | E3: =CHOOSE(MONTH(B3),"Janvier","Février","Mars","Avril","Mai","Juin","Juillet","Août","Septembre","Octobre","Novembre","Décembre") -> Octobre
E4: =WEEKNUM(E5,21) -> 40 | I4: =WEEKNUM(I5,21) -> 41 | M4: =WEEKNUM(M5,21) -> 42 | Q4: =WEEKNUM(Q5,21) -> 43 | U4: =IF(U5="","",WEEKNUM(U5,21)) -> 
E5: =VALUE("01/"&MONTH(B3)&"/"&YEAR($B$3))+CHOOSE(WEEKDAY(VALUE("01/"&MONTH(B3)&"/"&YEAR($B$3)),2),6,5,4,10,9,8,7) -> 2017-10-08 | I5: =E5+7 -> 2017-10-15 | M5: =I5+7 -> 2017-10-22 | Q5: =M5+7 -> 2017-10-29 | U5: =IF(DAY(Q5+7)>4,"",Q5+7) -> 
E6: =CHOOSE(WEEKDAY(E5,2),"Lundi","Mardi","Mercredi","Jeudi","Vendredi","Samedi","Dimanche") -> Dimanche | I6: =CHOOSE(WEEKDAY(I5,2),"Lundi","Mardi","Mercredi","Jeudi","Vendredi","Samedi","Dimanche") -> Dimanche | M6: =CHOOSE(WEEKDAY(M5,2),"Lundi","Mardi","Mercredi","Jeudi","Vendredi","Samedi","Dimanche") -> Dimanche | Q6: =CHOOSE(WEEKDAY(Q5,2),"Lundi","Mardi","Mercredi","Jeudi","Vendredi","Samedi","Dimanche") -> Dimanche | U6: =IF(U5="","",CHOOSE(WEEKDAY(U5,2),"Lundi","Mardi","Mercredi","Jeudi","Vendredi","Samedi","Dimanche")) ->  | Y6: ="Total heures mois "&E3 -> Total heures mois Octobre
B7: NOM | C7: PRENOM | D7: SECTEUR | E7: Total Sem. | F7: Heure sup. | G7: Heure 25% | H7: Heure 50% | I7: Total Sem. | J7: Heure sup. | K7: Heure 25% | L7: Heure 50% | M7: Total Sem. | N7: Heure sup. | O7: Heure 25% | P7: Heure 50% | Q7: Total Sem. | R7: Heure sup. | S7: Heure 25% | T7: Heure 50% | U7: Total Sem. | V7: Heure sup. | W7: Heure 25% | X7: Heure 50% | Y7: Total Sem. | Z7: Heure sup. | AA7: Heure 25% | AB7: Heure 50%
A8: =B8&" "&C8 -> AMIOT Anne-Lise | B8: =Janvier!B8 -> AMIOT | C8: =Janvier!C8 -> Anne-Lise | D8: =Janvier!D8 -> QUALITE | F8: =IF(E8<(1/24*35),0,E8-(1/24*35)) -> 0 | G8: =IF(F8>=1/24*8,1/24*8,F8) -> 00:00:00 | H8: =IF(F8-G8>0,F8-G8,0) -> 00:00:00 | J8: =IF(I8<(1/24*35),0,I8-(1/24*35)) -> 0 | K8: =IF(J8>=1/24*8,1/24*8,J8) -> 00:00:00 | L8: =IF(J8-K8>0,J8-K8,0) -> 00:00:00 | N8: =IF(M8<(1/24*35),0,M8-(1/24*35)) -> 0 | O8: =IF(N8>=1/24*8,1/24*8,N8) -> 00:00:00 | P8: =IF(N8-O8>0,N8-O8,0) -> 00:00:00 | R8: =IF(Q8<(1/24*35),0,Q8-(1/24*35)) -> 0 | S8: =IF(R8>=1/24*8,1/24*8,R8) -> 00:00:00 | T8: =IF(R8-S8>0,R8-S8,0) -> 00:00:00 | V8: =IF(U8<(1/24*35),0,U8-(1/24*35)) -> 0 | W8: =IF(V8>=1/24*8,1/24*8,V8) -> 00:00:00 | X8: =IF(V8-W8>0,V8-W8,0) -> 00:00:00 | Y8: =SUMIF($E$7:$X$7,$I$7,$E8:$X8) -> 0 | Z8: =SUMIF($E$7:$X$7,$Z$7,$E8:$X8) -> 0 | AA8: =SUMIF($E$7:$X$7,$AA$7,$E8:$X8) -> 0 | AB8: =SUMIF($E$7:$X$7,$AB$7,$E8:$X8) -> 0
A9: =B9&" "&C9 -> ANDRE FABIEN | B9: =Janvier!B9 -> ANDRE | C9: =Janvier!C9 -> FABIEN | D9: =Janvier!D9 -> FABRICATION | E9: 1.323611111 | F9: =IF(E9<(1/24*35),0,E9-(1/24*35)) -> 0 | G9: =IF(F9>=1/24*8,1/24*8,F9) -> 00:00:00 | H9: =IF(F9-G9>0,F9-G9,0) -> 00:00:00 | J9: =IF(I9<(1/24*35),0,I9-(1/24*35)) -> 0 | K9: =IF(J9>=1/24*8,1/24*8,J9) -> 00:00:00 | L9: =IF(J9-K9>0,J9-K9,0) -> 00:00:00 | N9: 0 | O9: 00:00:00 | P9: 00:00:00 | R9: 0 | S9: 00:00:00 | T9: 00:00:00 | V9: 0 | W9: 00:00:00 | X9: 00:00:00 | Y9: =SUMIF($E$7:$X$7,$I$7,$E9:$X9) -> 1.323611111 | Z9: =SUMIF($E$7:$X$7,$Z$7,$E9:$X9) -> 0 | AA9: =SUMIF($E$7:$X$7,$AA$7,$E9:$X9) -> 0 | AB9: =SUMIF($E$7:$X$7,$AB$7,$E9:$X9) -> 0
A10: AUDIARD FLORIAN | B10: =Janvier!B10 -> AUDIARD | C10: =Janvier!C10 -> FLORIAN | D10: =Janvier!D10 -> FABRICATION | E10: 1.674305556 | F10: 0.2159722222 | G10: 05:11:00 | H10: 00:00:00 | J10: 0 | K10: 00:00:00 | L10: 00:00:00 | N10: 0 | O10: 00:00:00 | P10: 00:00:00 | R10: 0 | S10: 00:00:00 | T10: 00:00:00 | V10: 0 | W10: 00:00:00 | X10: 00:00:00 | Y10: 1.674305556 | Z10: 0.2159722222 | AA10: 0.2159722222 | AB10: 0
A11: AZEVEDO Catherine | B11: =Janvier!B11 -> AZEVEDO | C11: =Janvier!C11 -> Catherine | D11: =Janvier!D11 -> EMBALLAGE | E11: 0.8715277778 | F11: 0 | G11: 00:00:00 | H11: 00:00:00 | J11: 0 | K11: 00:00:00 | L11: 00:00:00 | N11: 0 | O11: 00:00:00 | P11: 00:00:00 | R11: 0 | S11: 00:00:00 | T11: 00:00:00 | V11: 0 | W11: 00:00:00 | X11: 00:00:00 | Y11: 0.8715277778 | Z11: 0 | AA11: 0 | AB11: 0
A12: BARBIER Nathalie | B12: =Janvier!B12 -> BARBIER | C12: =Janvier!C12 -> Nathalie | D12: =Janvier!D12 -> QUALITE | F12: 0 | G12: 00:00:00 | H12: 00:00:00 | J12: 0 | K12: 00:00:00 | L12: 00:00:00 | N12: 0 | O12: 00:00:00 | P12: 00:00:00 | R12: 0 | S12: 00:00:00 | T12: 00:00:00 | V12: 0 | W12: 00:00:00 | X12: 00:00:00 | Y12: 0 | Z12: 0 | AA12: 0 | AB12: 0
A13: BECHTOLD Marie-Christine | B13: =Janvier!B13 -> BECHTOLD | C13: =Janvier!C13 -> Marie-Christine | D13: =Janvier!D13 -> EMBALLAGE | E13: 2.041666667 | F13: 0.5833333333 | G13: 08:00:00 | H13: 06:00:00 | J13: 0 | K13: 00:00:00 | L13: 00:00:00 | N13: 0 | O13: 00:00:00 | P13: 00:00:00 | R13: 0 | S13: 00:00:00 | T13: 00:00:00 | V13: 0 | W13: 00:00:00 | X13: 00:00:00 | Y13: 2.041666667 | Z13: 0.5833333333 | AA13: 0.3333333333 | AB13: 0.25
A14: BEURET MAUD | B14: =Janvier!B14 -> BEURET | C14: =Janvier!C14 -> MAUD | D14: =Janvier!D14 -> MAGASIN | E14: 1.195833333 | F14: 0 | G14: 00:00:00 | H14: 00:00:00 | J14: 0 | K14: 00:00:00 | L14: 00:00:00 | N14: 0 | O14: 00:00:00 | P14: 00:00:00 | R14: 0 | S14: 00:00:00 | T14: 00:00:00 | V14: 0 | W14: 00:00:00 | X14: 00:00:00 | Y14: 1.195833333 | Z14: 0 | AA14: 0 | AB14: 0
A15: BOUEZNARD Myriam | B15: =Janvier!B15 -> BOUEZNARD | C15: =Janvier!C15 -> Myriam | D15: =Janvier!D15 -> NSG | F15: 0 | G15: 00:00:00 | H15: 00:00:00 | J15: 0 | K15: 00:00:00 | L15: 00:00:00 | N15: 0 | O15: 00:00:00 | P15: 00:00:00 | R15: 0 | S15: 00:00:00 | T15: 00:00:00 | V15: 0 | W15: 00:00:00 | X15: 00:00:00 | Y15: 0 | Z15: 0 | AA15: 0 | AB15: 0
A16: Boutiflat James | B16: =Janvier!B16 -> Boutiflat | C16: =Janvier!C16 -> James | D16: =Janvier!D16 -> EMBALLAGE | E16: 2.334722222 | F16: 0.8763888889 | G16: 08:00:00 | H16: 13:02:00 | J16: 0 | K16: 00:00:00 | L16: 00:00:00 | N16: 0 | O16: 00:00:00 | P16: 00:00:00 | R16: 0 | S16: 00:00:00 | T16: 00:00:00 | V16: 0 | W16: 00:00:00 | X16: 00:00:00 | Y16: 2.334722222 | Z16: 0.8763888889 | AA16: 0.3333333333 | AB16: 0.5430555556
A17: BOUZENARD Adrien | B17: =Janvier!B17 -> BOUZENARD | C17: =Janvier!C17 -> Adrien | D17: =Janvier!D17 -> FABRICATION | E17: 1.775694444 | F17: 0.3173611111 | G17: 07:37:00 | H17: 00:00:00 | J17: 0 | K17: 00:00:00 | L17: 00:00:00 | N17: 0 | O17: 00:00:00 | P17: 00:00:00 | R17: 0 | S17: 00:00:00 | T17: 00:00:00 | V17: 0 | W17: 00:00:00 | X17: 00:00:00 | Y17: 1.775694444 | Z17: 0.3173611111 | AA17: 0.3173611111 | AB17: 0
A18: BOUZENARD Myriam | B18: =Janvier!B18 -> BOUZENARD | C18: =Janvier!C18 -> Myriam | D18: =Janvier!D18 -> EMBALLAGE | E18: 1.511111111 | F18: 0.05277777778 | G18: 01:16:00 | H18: 00:00:00 | J18: 0 | K18: 00:00:00 | L18: 00:00:00 | N18: 0 | O18: 00:00:00 | P18: 00:00:00 | R18: 0 | S18: 00:00:00 | T18: 00:00:00 | V18: 0 | W18: 00:00:00 | X18: 00:00:00 | Y18: 1.511111111 | Z18: 0.05277777778 | AA18: 0.05277777778 | AB18: 0
A19: CARRION JEAN-CLAUDE | B19: =Janvier!B19 -> CARRION | C19: =Janvier!C19 -> JEAN-CLAUDE | D19: =Janvier!D19 -> CHAUFFEURS | E19: 1.9125 | F19: 0.4541666667 | G19: 08:00:00 | H19: 02:54:00 | J19: 0 | K19: 00:00:00 | L19: 00:00:00 | N19: 0 | O19: 00:00:00 | P19: 00:00:00 | R19: 0 | S19: 00:00:00 | T19: 00:00:00 | V19: 0 | W19: 00:00:00 | X19: 00:00:00 | Y19: 1.9125 | Z19: 0.4541666667 | AA19: 0.3333333333 | AB19: 0.1208333333
A20: CARTERON Claudine | B20: =Janvier!B20 -> CARTERON | C20: =Janvier!C20 -> Claudine | D20: =Janvier!D20 -> BUREAUX | E20: 1.367361111 | F20: 0 | G20: 00:00:00 | H20: 00:00:00 | J20: 0 | K20: 00:00:00 | L20: 00:00:00 | N20: 0 | O20: 00:00:00 | P20: 00:00:00 | R20: 0 | S20: 00:00:00 | T20: 00:00:00 | V20: 0 | W20: 00:00:00 | X20: 00:00:00 | Y20: 1.367361111 | Z20: 0 | AA20: 0 | AB20: 0
A21: CHAUDRON Amandine | B21: =Janvier!B21 -> CHAUDRON | C21: =Janvier!C21 -> Amandine | D21: =Janvier!D21 -> EMBALLAGE | E21: 1.890277778 | F21: 0.4319444444 | G21: 08:00:00 | H21: 02:22:00 | J21: 0 | K21: 00:00:00 | L21: 00:00:00 | N21: 0 | O21: 00:00:00 | P21: 00:00:00 | R21: 0 | S21: 00:00:00 | T21: 00:00:00 | V21: 0 | W21: 00:00:00 | X21: 00:00:00 | Y21: 1.890277778 | Z21: 0.4319444444 | AA21: 0.3333333333 | AB21: 0.09861111111
A22: CHAUDRON Virginie | B22: =Janvier!B22 -> CHAUDRON | C22: =Janvier!C22 -> Virginie | D22: =Janvier!D22 -> FABRICATION | E22: 1.211111111 | F22: 0 | G22: 00:00:00 | H22: 00:00:00 | J22: 0 | K22: 00:00:00 | L22: 00:00:00 | N22: 0 | O22: 00:00:00 | P22: 00:00:00 | R22: 0 | S22: 00:00:00 | T22: 00:00:00 | V22: 0 | W22: 00:00:00 | X22: 00:00:00 | Y22: 1.211111111 | Z22: 0 | AA22: 0 | AB22: 0
A23: CHEVAUX Rodolphe | B23: =Janvier!B23 -> CHEVAUX | C23: =Janvier!C23 -> Rodolphe | D23: =Janvier!D23 -> MAINTENANCE | E23: 1.374305556 | F23: 0 | G23: 00:00:00 | H23: 00:00:00 | J23: 0 | K23: 00:00:00 | L23: 00:00:00 | N23: 0 | O23: 00:00:00 | P23: 00:00:00 | R23: 0 | S23: 00:00:00 | T23: 00:00:00 | V23: 0 | W23: 00:00:00 | X23: 00:00:00 | Y23: 1.374305556 | Z23: 0 | AA23: 0 | AB23: 0
A24: COCHARD Hervé | B24: =Janvier!B24 -> COCHARD | C24: =Janvier!C24 -> Hervé | D24: =Janvier!D24 -> COMMERCIAL | F24: 0 | G24: 00:00:00 | H24: 00:00:00 | J24: 0 | K24: 00:00:00 | L24: 00:00:00 | N24: 0 | O24: 00:00:00 | P24: 00:00:00 | R24: 0 | S24: 00:00:00 | T24: 00:00:00 | V24: 0 | W24: 00:00:00 | X24: 00:00:00 | Y24: 0 | Z24: 0 | AA24: 0 | AB24: 0
A25: CRETIN JEROME | B25: =Janvier!B25 -> CRETIN | C25: =Janvier!C25 -> JEROME | D25: =Janvier!D25 -> NSG | F25: 0 | G25: 00:00:00 | H25: 00:00:00 | J25: 0 | K25: 00:00:00 | L25: 00:00:00 | N25: 0 | O25: 00:00:00 | P25: 00:00:00 | R25: 0 | S25: 00:00:00 | T25: 00:00:00 | V25: 0 | W25: 00:00:00 | X25: 00:00:00 | Y25: 0 | Z25: 0 | AA25: 0 | AB25: 0
A26: CRINQUANT JEROME | B26: =Janvier!B26 -> CRINQUANT | C26: =Janvier!C26 -> JEROME | D26: =Janvier!D26 -> NSG | E26: 1.122222222 | F26: 0 | G26: 00:00:00 | H26: 00:00:00 | J26: 0 | K26: 00:00:00 | L26: 00:00:00 | N26: 0 | O26: 00:00:00 | P26: 00:00:00 | R26: 0 | S26: 00:00:00 | T26: 00:00:00 | V26: 0 | W26: 00:00:00 | X26: 00:00:00 | Y26: 1.122222222 | Z26: 0 | AA26: 0 | AB26: 0
A27: DASCIER ANDY | B27: =Janvier!B28 -> DASCIER | C27: =Janvier!C28 -> ANDY | D27: =Janvier!D28 -> PREPA COMMANDE | E27: 1.78125 | F27: 0.3229166667 | G27: 07:45:00 | H27: 00:00:00 | J27: 0 | K27: 00:00:00 | L27: 00:00:00 | N27: 0 | O27: 00:00:00 | P27: 00:00:00 | R27: 0 | S27: 00:00:00 | T27: 00:00:00 | V27: 0 | W27: 00:00:00 | X27: 00:00:00 | Y27: 1.78125 | Z27: 0.3229166667 | AA27: 0.3229166667 | AB27: 0
A28: DAVERIO BENOIT | B28: =Janvier!B29 -> DAVERIO | C28: =Janvier!C29 -> BENOIT | D28: =Janvier!D29 -> COMMERCIAL | F28: 0 | G28: 00:00:00 | H28: 00:00:00 | J28: 0 | K28: 00:00:00 | L28: 00:00:00 | N28: 0 | O28: 00:00:00 | P28: 00:00:00 | R28: 0 | S28: 00:00:00 | T28: 00:00:00 | V28: 0 | W28: 00:00:00 | X28: 00:00:00 | Y28: 0 | Z28: 0 | AA28: 0 | AB28: 0
A29: DELANGRE ALEX | B29: =Janvier!B30 -> DELANGRE | C29: =Janvier!C30 -> ALEX | D29: =Janvier!D30 -> FABRICATION | E29: 0.9708333333 | F29: 0 | G29: 00:00:00 | H29: 00:00:00 | J29: 0 | K29: 00:00:00 | L29: 00:00:00 | N29: 0 | O29: 00:00:00 | P29: 00:00:00 | R29: 0 | S29: 00:00:00 | T29: 00:00:00 | V29: 0 | W29: 00:00:00 | X29: 00:00:00 | Y29: 0.9708333333 | Z29: 0 | AA29: 0 | AB29: 0
A30: DELIN Philippe | B30: =Janvier!B31 -> DELIN | C30: =Janvier!C31 -> Philippe | D30: =Janvier!D31 -> DIRECTION | F30: 0 | G30: 00:00:00 | H30: 00:00:00 | J30: 0 | K30: 00:00:00 | L30: 00:00:00 | N30: 0 | O30: 00:00:00 | P30: 00:00:00 | R30: 0 | S30: 00:00:00 | T30: 00:00:00 | V30: 0 | W30: 00:00:00 | X30: 00:00:00 | Y30: 0 | Z30: 0 | AA30: 0 | AB30: 0
A31: DORE Daisy | B31: =Janvier!B32 -> DORE | C31: =Janvier!C32 -> Daisy | D31: =Janvier!D32 -> FABRICATION | E31: 1.495138889 | F31: 0.03680555556 | G31: 00:53:00 | H31: 00:00:00 | J31: 0 | K31: 00:00:00 | L31: 00:00:00 | N31: 0 | O31: 00:00:00 | P31: 00:00:00 | R31: 0 | S31: 00:00:00 | T31: 00:00:00 | V31: 0 | W31: 00:00:00 | X31: 00:00:00 | Y31: 1.495138889 | Z31: 0.03680555556 | AA31: 0.03680555556 | AB31: 0
A32: ECHEVARIA Luis | B32: =Janvier!B33 -> ECHEVARIA | C32: =Janvier!C33 -> Luis | D32: =Janvier!D33 -> FABRICATION | E32: 1.633333333 | F32: 0.175 | G32: 04:12:00 | H32: 00:00:00 | J32: 0 | K32: 00:00:00 | L32: 00:00:00 | N32: 0 | O32: 00:00:00 | P32: 00:00:00 | R32: 0 | S32: 00:00:00 | T32: 00:00:00 | V32: 0 | W32: 00:00:00 | X32: 00:00:00 | Y32: 1.633333333 | Z32: 0.175 | AA32: 0.175 | AB32: 0
A33: EL MOQADDAM REDOUANE | B33: =Janvier!B34 -> EL MOQADDAM | C33: =Janvier!C34 -> REDOUANE | D33: =Janvier!D34 -> FABRICATION | E33: 1.56875 | F33: 0.1104166667 | G33: 02:39:00 | H33: 00:00:00 | J33: 0 | K33: 00:00:00 | L33: 00:00:00 | N33: 0 | O33: 00:00:00 | P33: 00:00:00 | R33: 0 | S33: 00:00:00 | T33: 00:00:00 | V33: 0 | W33: 00:00:00 | X33: 00:00:00 | Y33: 1.56875 | Z33: 0.1104166667 | AA33: 0.1104166667 | AB33: 0
A34: FORMEL CELINE | B34: =Janvier!B35 -> FORMEL | C34: =Janvier!C35 -> CELINE | D34: =Janvier!D35 -> BUREAUX | F34: 0 | G34: 00:00:00 | H34: 00:00:00 | J34: 0 | K34: 00:00:00 | L34: 00:00:00 | N34: 0 | O34: 00:00:00 | P34: 00:00:00 | R34: 0 | S34: 00:00:00 | T34: 00:00:00 | V34: 0 | W34: 00:00:00 | X34: 00:00:00 | Y34: 0 | Z34: 0 | AA34: 0 | AB34: 0
A35: FOUACHE LENA | B35: =Janvier!B36 -> FOUACHE | C35: =Janvier!C36 -> LENA | D35: =Janvier!D36 -> QUALITE | F35: 0 | G35: 00:00:00 | H35: 00:00:00 | J35: 0 | K35: 00:00:00 | L35: 00:00:00 | N35: 0 | O35: 00:00:00 | P35: 00:00:00 | R35: 0 | S35: 00:00:00 | T35: 00:00:00 | V35: 0 | W35: 00:00:00 | X35: 00:00:00 | Y35: 0 | Z35: 0 | AA35: 0 | AB35: 0
A36: GALETTI Maud | B36: =Janvier!B37 -> GALETTI | C36: =Janvier!C37 -> Maud | D36: =Janvier!D37 -> FABRICATION | E36: 1.890277778 | F36: 0.4319444444 | G36: 08:00:00 | H36: 02:22:00 | J36: 0 | K36: 00:00:00 | L36: 00:00:00 | N36: 0 | O36: 00:00:00 | P36: 00:00:00 | R36: 0 | S36: 00:00:00 | T36: 00:00:00 | V36: 0 | W36: 00:00:00 | X36: 00:00:00 | Y36: 1.890277778 | Z36: 0.4319444444 | AA36: 0.3333333333 | AB36: 0.09861111111
A37: GAY Stephane | B37: =Janvier!B38 -> GAY | C37: =Janvier!C38 -> Stephane | D37: =Janvier!D38 -> FABRICATION | E37: 1.720138889 | F37: 0.2618055556 | G37: 06:17:00 | H37: 00:00:00 | J37: 0 | K37: 00:00:00 | L37: 00:00:00 | N37: 0 | O37: 00:00:00 | P37: 00:00:00 | R37: 0 | S37: 00:00:00 | T37: 00:00:00 | V37: 0 | W37: 00:00:00 | X37: 00:00:00 | Y37: 1.720138889 | Z37: 0.2618055556 | AA37: 0.2618055556 | AB37: 0
A38: Graff MATHILDE | B38: =Janvier!B39 -> Graff | C38: =Janvier!C39 -> MATHILDE | D38: =Janvier!D39 -> CONDITIONNEMENT | E38: 1.748611111 | F38: 0.2902777778 | G38: 06:58:00 | H38: 00:00:00 | J38: 0 | K38: 00:00:00 | L38: 00:00:00 | N38: 0 | O38: 00:00:00 | P38: 00:00:00 | R38: 0 | S38: 00:00:00 | T38: 00:00:00 | V38: 0 | W38: 00:00:00 | X38: 00:00:00 | Y38: 1.748611111 | Z38: 0.2902777778 | AA38: 0.2902777778 | AB38: 0
A39: GRAPPIN Perrine | B39: =Janvier!B40 -> GRAPPIN | C39: =Janvier!C40 -> Perrine | D39: =Janvier!D40 -> FABRICATION | E39: 1.925 | F39: 0.4666666667 | G39: 08:00:00 | H39: 03:12:00 | J39: 0 | K39: 00:00:00 | L39: 00:00:00 | N39: 0 | O39: 00:00:00 | P39: 00:00:00 | R39: 0 | S39: 00:00:00 | T39: 00:00:00 | V39: 0 | W39: 00:00:00 | X39: 00:00:00 | Y39: 1.925 | Z39: 0.4666666667 | AA39: 0.3333333333 | AB39: 0.1333333333
A40: GUENOT Anne | B40: =Janvier!B41 -> GUENOT | C40: =Janvier!C41 -> Anne | D40: =Janvier!D41 -> EXPEDITION | E40: 1.9 | F40: 0.4416666667 | G40: 08:00:00 | H40: 02:36:00 | J40: 0 | K40: 00:00:00 | L40: 00:00:00 | N40: 0 | O40: 00:00:00 | P40: 00:00:00 | R40: 0 | S40: 00:00:00 | T40: 00:00:00 | V40: 0 | W40: 00:00:00 | X40: 00:00:00 | Y40: 1.9 | Z40: 0.4416666667 | AA40: 0.3333333333 | AB40: 0.1083333333
A41: GUYARD Christine | B41: =Janvier!B42 -> GUYARD | C41: =Janvier!C42 -> Christine | D41: =Janvier!D42 -> BUREAUX | F41: 0 | G41: 00:00:00 | H41: 00:00:00 | J41: 0 | K41: 00:00:00 | L41: 00:00:00 | N41: 0 | O41: 00:00:00 | P41: 00:00:00 | R41: 0 | S41: 00:00:00 | T41: 00:00:00 | V41: 0 | W41: 00:00:00 | X41: 00:00:00 | Y41: 0 | Z41: 0 | AA41: 0 | AB41: 0
A42: GUYARD Marie | B42: =Janvier!B43 -> GUYARD | C42: =Janvier!C43 -> Marie | D42: =Janvier!D43 -> FABRICATION | E42: 1.359027778 | F42: 0 | G42: 00:00:00 | H42: 00:00:00 | J42: 0 | K42: 00:00:00 | L42: 00:00:00 | N42: 0 | O42: 00:00:00 | P42: 00:00:00 | R42: 0 | S42: 00:00:00 | T42: 00:00:00 | V42: 0 | W42: 00:00:00 | X42: 00:00:00 | Y42: 1.359027778 | Z42: 0 | AA42: 0 | AB42: 0
A43: GUYARD Marie | B43: =Janvier!B44 -> GUYARD | C43: =Janvier!C44 -> Marie | D43: =Janvier!D44 -> FABRICATION | F43: 0 | G43: 00:00:00 | H43: 00:00:00 | J43: 0 | K43: 00:00:00 | L43: 00:00:00 | N43: 0 | O43: 00:00:00 | P43: 00:00:00 | R43: 0 | S43: 00:00:00 | T43: 00:00:00 | V43: 0 | W43: 00:00:00 | X43: 00:00:00 | Y43: 0 | Z43: 0 | AA43: 0 | AB43: 0
A44: HARUTYUNYAN Haik | B44: =Janvier!B45 -> HARUTYUNYAN | C44: =Janvier!C45 -> Haik | D44: =Janvier!D45 -> FABRICATION | E44: 1.768055556 | F44: 0.3097222222 | G44: 07:26:00 | H44: 00:00:00 | J44: 0 | K44: 00:00:00 | L44: 00:00:00 | N44: 0 | O44: 00:00:00 | P44: 00:00:00 | R44: 0 | S44: 00:00:00 | T44: 00:00:00 | V44: 0 | W44: 00:00:00 | X44: 00:00:00 | Y44: 1.768055556 | Z44: 0.3097222222 | AA44: 0.3097222222 | AB44: 0
A45: IDRISSI Zinedinne | B45: =Janvier!B46 -> IDRISSI | C45: =Janvier!C46 -> Zinedinne | D45: =Janvier!D46 -> FABRICATION | E45: 0.3215277778 | F45: 0 | G45: 00:00:00 | H45: 00:00:00 | J45: 0 | K45: 00:00:00 | L45: 00:00:00 | N45: 0 | O45: 00:00:00 | P45: 00:00:00 | R45: 0 | S45: 00:00:00 | T45: 00:00:00 | V45: 0 | W45: 00:00:00 | X45: 00:00:00 | Y45: 0.3215277778 | Z45: 0 | AA45: 0 | AB45: 0
A46: JULIEN Thomas | B46: =Janvier!B47 -> JULIEN | C46: =Janvier!C47 -> Thomas | D46: =Janvier!D47 -> Apprentis | F46: 0 | G46: 00:00:00 | H46: 00:00:00 | J46: 0 | K46: 00:00:00 | L46: 00:00:00 | N46: 0 | O46: 00:00:00 | P46: 00:00:00 | R46: 0 | S46: 00:00:00 | T46: 00:00:00 | V46: 0 | W46: 00:00:00 | X46: 00:00:00 | Y46: 0 | Z46: 0 | AA46: 0 | AB46: 0
A47: LABOREY Jonathan | B47: =Janvier!B48 -> LABOREY | C47: =Janvier!C48 -> Jonathan | D47: =Janvier!D48 -> EMBALLAGE | E47: 1.55625 | F47: 0.09791666667 | G47: 02:21:00 | H47: 00:00:00 | J47: 0 | K47: 00:00:00 | L47: 00:00:00 | N47: 0 | O47: 00:00:00 | P47: 00:00:00 | R47: 0 | S47: 00:00:00 | T47: 00:00:00 | V47: 0 | W47: 00:00:00 | X47: 00:00:00 | Y47: 1.55625 | Z47: 0.09791666667 | AA47: 0.09791666667 | AB47: 0
A48: LAHAYE Emmanuel | B48: =Janvier!B49 -> LAHAYE | C48: =Janvier!C49 -> Emmanuel | D48: =Janvier!D49 -> FABRICATION | E48: 1.611111111 | F48: 0.1527777778 | G48: 03:40:00 | H48: 00:00:00 | J48: 0 | K48: 00:00:00 | L48: 00:00:00 | N48: 0 | O48: 00:00:00 | P48: 00:00:00 | R48: 0 | S48: 00:00:00 | T48: 00:00:00 | V48: 0 | W48: 00:00:00 | X48: 00:00:00 | Y48: 1.611111111 | Z48: 0.1527777778 | AA48: 0.1527777778 | AB48: 0
A49: Lasalle Yann | B49: =Janvier!B50 -> Lasalle | C49: =Janvier!C50 -> Yann | D49: =Janvier!D50 -> CHAUFFEURS | F49: 0 | G49: 00:00:00 | H49: 00:00:00 | J49: 0 | K49: 00:00:00 | L49: 00:00:00 | N49: 0 | O49: 00:00:00 | P49: 00:00:00 | R49: 0 | S49: 00:00:00 | T49: 00:00:00 | V49: 0 | W49: 00:00:00 | X49: 00:00:00 | Y49: 0 | Z49: 0 | AA49: 0 | AB49: 0
A50: LORY ANNICK | B50: =Janvier!B51 -> LORY | C50: =Janvier!C51 -> ANNICK | D50: =Janvier!D51 -> FABRICATION | E50: 1.429166667 | F50: 0 | G50: 00:00:00 | H50: 00:00:00 | J50: 0 | K50: 00:00:00 | L50: 00:00:00 | N50: 0 | O50: 00:00:00 | P50: 00:00:00 | R50: 0 | S50: 00:00:00 | T50: 00:00:00 | V50: 0 | W50: 00:00:00 | X50: 00:00:00 | Y50: 1.429166667 | Z50: 0 | AA50: 0 | AB50: 0
A51: LOXTON Morné | B51: =Janvier!B52 -> LOXTON | C51: =Janvier!C52 -> Morné | D51: =Janvier!D52 -> FABRICATION | E51: 1.677777778 | F51: 0.2194444444 | G51: 05:16:00 | H51: 00:00:00 | J51: 0 | K51: 00:00:00 | L51: 00:00:00 | N51: 0 | O51: 00:00:00 | P51: 00:00:00 | R51: 0 | S51: 00:00:00 | T51: 00:00:00 | V51: 0 | W51: 00:00:00 | X51: 00:00:00 | Y51: 1.677777778 | Z51: 0.2194444444 | AA51: 0.2194444444 | AB51: 0
A52: MAILLER Philippe | B52: =Janvier!B53 -> MAILLER | C52: =Janvier!C53 -> Philippe | D52: =Janvier!D53 -> CHAUFFEURS | E52: 2.242361111 | F52: 0.7840277778 | G52: 08:00:00 | H52: 10:49:00 | J52: 0 | K52: 00:00:00 | L52: 00:00:00 | N52: 0 | O52: 00:00:00 | P52: 00:00:00 | R52: 0 | S52: 00:00:00 | T52: 00:00:00 | V52: 0 | W52: 00:00:00 | X52: 00:00:00 | Y52: 2.242361111 | Z52: 0.7840277778 | AA52: 0.3333333333 | AB52: 0.4506944444
A53: MANOUKIAN Arman | B53: =Janvier!B54 -> MANOUKIAN | C53: =Janvier!C54 -> Arman | D53: =Janvier!D54 -> FABRICATION | E53: 1.588888889 | F53: 0.1305555556 | G53: 03:08:00 | H53: 00:00:00 | J53: 0 | K53: 00:00:00 | L53: 00:00:00 | N53: 0 | O53: 00:00:00 | P53: 00:00:00 | R53: 0 | S53: 00:00:00 | T53: 00:00:00 | V53: 0 | W53: 00:00:00 | X53: 00:00:00 | Y53: 1.588888889 | Z53: 0.1305555556 | AA53: 0.1305555556 | AB53: 0
A54: MARGUIER Stéphane | B54: =Janvier!B55 -> MARGUIER | C54: =Janvier!C55 -> Stéphane | D54: =Janvier!D55 -> EMBALLAGE | E54: 1.88125 | F54: 0.4229166667 | G54: 08:00:00 | H54: 02:09:00 | J54: 0 | K54: 00:00:00 | L54: 00:00:00 | N54: 0 | O54: 00:00:00 | P54: 00:00:00 | R54: 0 | S54: 00:00:00 | T54: 00:00:00 | V54: 0 | W54: 00:00:00 | X54: 00:00:00 | Y54: 1.88125 | Z54: 0.4229166667 | AA54: 0.3333333333 | AB54: 0.08958333333
A55: MARGUIER Stéphane | B55: =Janvier!B56 -> MARGUIER | C55: =Janvier!C56 -> Stéphane | D55: =Janvier!D56 -> NSG | E55: 1.88125 | F55: 0.4229166667 | G55: 08:00:00 | H55: 02:09:00 | J55: 0 | K55: 00:00:00 | L55: 00:00:00 | N55: 0 | O55: 00:00:00 | P55: 00:00:00 | R55: 0 | S55: 00:00:00 | T55: 00:00:00 | V55: 0 | W55: 00:00:00 | X55: 00:00:00 | Y55: 1.88125 | Z55: 0.4229166667 | AA55: 0.3333333333 | AB55: 0.08958333333
A56: MARTIN Julien | B56: =Janvier!B57 -> MARTIN | C56: =Janvier!C57 -> Julien | D56: =Janvier!D57 -> EMBALLAGE | E56: 1.870833333 | F56: 0.4125 | G56: 08:00:00 | H56: 01:54:00 | J56: 0 | K56: 00:00:00 | L56: 00:00:00 | N56: 0 | O56: 00:00:00 | P56: 00:00:00 | R56: 0 | S56: 00:00:00 | T56: 00:00:00 | V56: 0 | W56: 00:00:00 | X56: 00:00:00 | Y56: 1.870833333 | Z56: 0.4125 | AA56: 0.3333333333 | AB56: 0.07916666667
A57: MARTIN Pierre | B57: =Janvier!B58 -> MARTIN | C57: =Janvier!C58 -> Pierre | D57: =Janvier!D58 -> FABRICATION | E57: 1.3875 | F57: 0 | G57: 00:00:00 | H57: 00:00:00 | J57: 0 | K57: 00:00:00 | L57: 00:00:00 | N57: 0 | O57: 00:00:00 | P57: 00:00:00 | R57: 0 | S57: 00:00:00 | T57: 00:00:00 | V57: 0 | W57: 00:00:00 | X57: 00:00:00 | Y57: 1.3875 | Z57: 0 | AA57: 0 | AB57: 0
A58: MINASYAN ARMAN | B58: =Janvier!B59 -> MINASYAN | C58: =Janvier!C59 -> ARMAN | D58: =Janvier!D59 -> FABRICATION | E58: 1.95625 | F58: 0.4979166667 | G58: 08:00:00 | H58: 03:57:00 | J58: 0 | K58: 00:00:00 | L58: 00:00:00 | N58: 0 | O58: 00:00:00 | P58: 00:00:00 | R58: 0 | S58: 00:00:00 | T58: 00:00:00 | V58: 0 | W58: 00:00:00 | X58: 00:00:00 | Y58: 1.95625 | Z58: 0.4979166667 | AA58: 0.3333333333 | AB58: 0.1645833333
A59: MORET Robin | B59: =Janvier!B60 -> MORET | C59: =Janvier!C60 -> Robin | D59: =Janvier!D60 -> CHAUFFEURS | E59: 1.692361111 | F59: 0.2340277778 | G59: 05:37:00 | H59: 00:00:00 | J59: 0 | K59: 00:00:00 | L59: 00:00:00 | N59: 0 | O59: 00:00:00 | P59: 00:00:00 | R59: 0 | S59: 00:00:00 | T59: 00:00:00 | V59: 0 | W59: 00:00:00 | X59: 00:00:00 | Y59: 1.692361111 | Z59: 0.2340277778 | AA59: 0.2340277778 | AB59: 0
A60: MORIAUX Charles-Henry | B60: =Janvier!B61 -> MORIAUX | C60: =Janvier!C61 -> Charles-Henry | D60: =Janvier!D61 -> EXPEDITION | E60: 1.009027778 | F60: 0 | G60: 00:00:00 | H60: 00:00:00 | J60: 0 | K60: 00:00:00 | L60: 00:00:00 | N60: 0 | O60: 00:00:00 | P60: 00:00:00 | R60: 0 | S60: 00:00:00 | T60: 00:00:00 | V60: 0 | W60: 00:00:00 | X60: 00:00:00 | Y60: 1.009027778 | Z60: 0 | AA60: 0 | AB60: 0
A61: MORIN Christophe | B61: =Janvier!B62 -> MORIN | C61: =Janvier!C62 -> Christophe | D61: =Janvier!D62 -> FABRICATION | E61: 1.701388889 | F61: 0.2430555556 | G61: 05:50:00 | H61: 00:00:00 | J61: 0 | K61: 00:00:00 | L61: 00:00:00 | N61: 0 | O61: 00:00:00 | P61: 00:00:00 | R61: 0 | S61: 00:00:00 | T61: 00:00:00 | V61: 0 | W61: 00:00:00 | X61: 00:00:00 | Y61: 1.701388889 | Z61: 0.2430555556 | AA61: 0.2430555556 | AB61: 0
